{"text_format":"1","workbook":"xlsx","n_sheets":14,"sheets":["応募申請用入力シートⅠ","応募申請用入力入力シートⅡ","ア（様式第17）交付申請書兼完了実績報告書","イ（別紙１）実施計画書","イ（別紙１）実施計画書 (2)","イ（別紙１）実施計画書 (3)","（ａ）別紙１－１ 【補助対象車両一覧】","（ｂ）別紙１－２【年度間走行距離一覧表】","（ｃ）別紙１－３－１【事業の効果 ＣＯ2削減量】 ","（ｄ）別紙１－３－２【事業の効果 費用対効果】","(e）別紙１－４　【実績燃費計算シート】","ウ（別紙２）経費内訳","（ｆ）別紙２－１【補助対象経費支出予定額の内訳】","（ｇ）別紙２－２　【価格計算内訳書】"],"not_rendered":{"charts":0,"images":0,"macros":1,"external_links":0,"defined_names":15,"comments":2,"pivot_tables":0},"unopened":[],"bounds":{"document_bytes":16777216,"sheet_cells":100000,"rows_first":2000,"rows_last":500,"rows_between":2000,"halvings":0,"cell_chars":16384,"cell_head_chars":4096},"cells_cut":0,"cells_raw":0,"read":"whole","date_system":"1900"}

{"sheet":"応募申請用入力シートⅠ","index":0,"n_rows":69,"n_cols":61,"rows_kept":69,"cut":false,"hidden":false,"merged":[[5,60,6,69],[52,11,52,28],[53,11,53,28],[62,11,62,28],[68,25,68,30],[55,11,55,28],[56,11,56,28],[57,11,57,28],[58,11,58,28],[54,11,54,28],[43,11,43,28],[44,11,44,28],[45,11,45,28],[46,11,46,28],[47,11,47,28],[48,11,48,28],[49,11,49,28],[50,11,50,28],[51,11,51,28],[33,11,33,28],[34,11,34,28],[35,11,35,28],[42,11,42,28],[36,11,36,28],[37,11,37,28],[38,11,38,28],[39,11,39,28],[40,11,40,28],[41,11,41,28],[27,11,27,28],[28,11,28,28],[29,11,29,28],[30,11,30,28],[31,11,31,28],[32,11,32,28],[21,11,21,28],[22,11,22,28],[23,11,23,28],[24,11,24,28],[25,11,25,28],[26,11,26,28],[57,7,57,10],[58,7,58,10],[13,11,13,28],[14,11,14,28],[15,11,15,28],[16,11,16,28],[17,11,17,28],[18,11,18,28],[19,11,19,28],[20,11,20,28],[51,7,51,10],[52,7,52,10],[53,7,53,10],[54,7,54,10],[55,7,55,10],[56,7,56,10],[45,7,45,10],[46,7,46,10],[47,7,47,10],[43,1,64,2],[43,3,43,6],[51,3,51,6],[59,7,59,10],[48,7,48,10],[49,7,49,10],[50,7,50,10],[39,7,39,10],[40,7,40,10],[41,7,41,10],[42,7,42,10],[43,7,43,10],[44,7,44,10],[61,7,61,10],[62,7,62,10],[34,7,34,10],[35,1,35,6],[35,7,35,10],[36,7,36,10],[37,7,37,10],[38,7,38,10],[28,7,28,10],[29,7,29,10],[30,7,30,10],[31,7,31,10],[32,7,32,10],[33,7,33,10],[23,7,23,10],[24,7,24,10],[25,7,25,10],[26,7,26,10],[27,1,27,6],[27,7,27,10],[18,7,18,10],[19,1,19,6],[19,7,19,10],[20,7,20,10],[21,7,21,10],[22,7,22,10],[6,7,6,10],[6,11,6,28],[13,1,13,6],[13,7,13,10],[14,7,14,10],[15,7,15,10],[16,7,16,10],[17,7,17,10],[10,7,10,10],[10,11,10,28],[11,1,11,6],[11,7,11,10],[11,11,11,28],[12,1,12,6],[12,7,12,10],[12,11,12,28],[7,7,7,10],[7,11,7,28],[8,7,8,10],[8,11,8,28],[9,7,9,10],[9,11,9,28],[2,31,2,36],[2,37,2,58],[3,31,3,36],[4,31,4,36],[2,1,2,6],[2,7,2,28],[3,1,3,6],[3,7,3,10],[3,11,3,28],[4,1,4,6],[3,37,3,58],[4,37,5,58],[4,7,4,10],[4,11,4,28],[5,1,5,6],[5,7,5,10],[5,11,5,28],[6,31,6,36],[7,31,7,36],[6,37,6,44],[7,37,7,44],[6,45,10,58],[5,31,5,36],[18,37,18,58],[13,31,13,36],[11,37,11,58],[12,37,13,58],[11,31,11,36],[12,31,12,36],[18,31,18,36]]}
[null,"応募申請用入力シートⅠ（申請者等基本情報等）入力画面"]
[]
[null,"項目",null,null,null,null,null,"応募申請者基本情報入力",null,null,null,null,null,null,null,null,null,null,null,null,null,null,null,null,null,null,null,null,null,null,null,"項目",null,null,null,null,null,"応募申請事業概要情報入力"]
[null,"事業実施の代表者",null,null,null,null,null,"会社名等",null,null,null,null,null,null,null,null,null,null,null,null,null,null,null,null,null,null,null,null,null,null,null,"事業の目的・概要",null,null,null,null,null,"（先進環境対応型車両を選定した理由等を記入して下さい。"]
[null,"（事業の実質の責",null,null,null,null,null,"所　属"]
[null,"任者）",null,null,null,null,null,"所在地",null,null,null,null,null,null,null,null,null,null,null,null,null,null,null,null,null,null,null,null,null,null,null,null,null,null,null,null,null,null,null,null,null,null,null,null,null,null,null,null,null,null,null,null,null,null,null,null,null,null,null,null,"枠内のセルに入力して下さい。"]
[null,null,null,null,null,null,null,"役職名",null,null,null,null,null,null,null,null,null,null,null,null,null,null,null,null,null,null,null,null,null,null,null,"補助申請対象車両",null,null,null,null,null,"補助申請対象車両の具",null,null,null,null,null,null,null,"応募申請用シートⅡに記載をお願いします。"]
[null,null,null,null,null,null,null,"氏 名",null,null,null,null,null,null,null,null,null,null,null,null,null,null,null,null,null,null,null,null,null,null,null,"の使用計画",null,null,null,null,null,"体的な用途"]
[null,null,null,null,null,null,null,"ＴＥＬ"]
[null,null,null,null,null,null,null,"ＦＡＸ"]
[null,null,null,null,null,null,null,"Ｅ-mail"]
[null,"事業実施の担当者",null,null,null,null,null,"会社名等",null,null,null,null,null,null,null,null,null,null,null,null,null,null,null,null,null,null,null,null,null,null,null,"事業実施に関連す",null,null,null,null,null,"※他の補助金との関係を記入して下さい。"]
[null,"（問い合わせに対",null,null,null,null,null,"所　属",null,null,null,null,null,null,null,null,null,null,null,null,null,null,null,null,null,null,null,null,null,null,null,"る事項"]
[null,"応できる実施計画",null,null,null,null,null,"所在地"]
[null,"書等の作成者）",null,null,null,null,null,"役職名"]
[null,null,null,null,null,null,null,"氏 名"]
[null,null,null,null,null,null,null,"ＴＥＬ"]
[null,null,null,null,null,null,null,"ＦＡＸ"]
[null,null,null,null,null,null,null,"Ｅ-mail",null,null,null,null,null,null,null,null,null,null,null,null,null,null,null,null,null,null,null,null,null,null,null,"申請期日入力"]
[null,"経 理 責 任 者",null,null,null,null,null,"会社名等"]
[null,null,null,null,null,null,null,"所　属"]
[null,null,null,null,null,null,null,"所在地"]
[null,null,null,null,null,null,null,"役職名",null,null,null,null,null,null,null,null,null,null,null,null,null,null,null,null,null,null,null,null,null,null,null,null,null,null,null,null,null,null,null,null,null,null,"入力完了後クリックしてください。",null,null,null,null,null,null,"👉","応募申請用入力シートⅡ"]
[null,null,null,null,null,null,null,"氏 名"]
[null,null,null,null,null,null,null,"ＴＥＬ"]
[null,null,null,null,null,null,null,"ＦＡＸ"]
[null,null,null,null,null,null,null,"Ｅ-mail"]
[null,"共同事業者の代表",null,null,null,null,null,"会社名等"]
[null,"者",null,null,null,null,null,"所　属"]
[null,null,null,null,null,null,null,"所在地"]
[null,null,null,null,null,null,null,"役職名"]
[null,null,null,null,null,null,null,"氏 名"]
[null,null,null,null,null,null,null,"ＴＥＬ"]
[null,null,null,null,null,null,null,"ＦＡＸ"]
[null,null,null,null,null,null,null,"Ｅ-mail"]
[null,"共同事業者の担当",null,null,null,null,null,"会社名等"]
[null,"者",null,null,null,null,null,"所　属"]
[null,null,null,null,null,null,null,"所在地"]
[null,null,null,null,null,null,null,"役職名"]
[null,null,null,null,null,null,null,"氏 名"]
[null,null,null,null,null,null,null,"ＴＥＬ"]
[null,null,null,null,null,null,null,"ＦＡＸ"]
[null,null,null,null,null,null,null,"Ｅ-mail"]
[null,"使 用 者 <貸 渡 し 先>",null,"代表者",null,null,null,"会社名等"]
[null,null,null,null,null,null,null,"所　属"]
[null,null,null,null,null,null,null,"所在地"]
[null,null,null,null,null,null,null,"役職名"]
[null,null,null,null,null,null,null,"氏 名"]
[null,null,null,null,null,null,null,"ＴＥＬ"]
[null,null,null,null,null,null,null,"ＦＡＸ"]
[null,null,null,null,null,null,null,"Ｅ-mail"]
[null,null,null,"担当者",null,null,null,"会社名等"]
[null,null,null,null,null,null,null,"所　属"]
[null,null,null,null,null,null,null,"所在地"]
[null,null,null,null,null,null,null,"役職名"]
[null,null,null,null,null,null,null,"氏 名"]
[null,null,null,null,null,null,null,"ＴＥＬ"]
[null,null,null,null,null,null,null,"ＦＡＸ"]
[null,null,null,null,null,null,null,"Ｅ-mail"]
[null,null,null,"廃棄物収集",null,null,null,"一般廃棄物"]
[null,null,null,"運搬に係る"]
[null,null,null,"許可番号",null,null,null,"産業廃棄物"]
[null,null,null,"補助対象車",null,null,null,"住　所",null,null,null,"応募申請用入力シートⅡに入力下さい。"]
[null,null,null,"両の使用の"]
[null,null,null,"本拠地"]
[]
[]
[]
[null,null,null,null,null,null,null,null,null,null,null,null,null,null,null,null,null,null,null,null,null,null,null,null,null,"👉申請概要入力へ"]

{"sheet":"応募申請用入力入力シートⅡ","index":1,"n_rows":371,"n_cols":163,"rows_kept":371,"cut":false,"hidden":false,"merged":[[12,51,12,58],[54,45,54,47],[60,45,60,47],[61,45,61,47],[43,45,43,47],[44,45,44,47],[58,45,58,47],[59,45,59,47],[35,51,35,58],[46,45,46,47],[278,68,278,71],[146,98,146,105],[174,98,174,105],[202,98,202,105],[272,62,272,69],[247,74,247,79],[247,80,247,85],[248,62,248,65],[276,66,276,67],[216,86,216,89],[228,62,228,65],[203,48,203,49],[263,54,263,56],[263,62,265,73],[265,50,265,58],[265,74,265,81],[267,74,267,85],[266,74,266,85],[265,84,265,89],[267,50,267,58],[263,74,263,81],[257,50,257,53],[309,98,309,104],[311,98,313,105],[230,98,230,105],[258,98,258,105],[286,98,286,105],[298,62,298,69],[306,62,306,65],[276,72,276,73],[293,74,293,81],[312,74,312,81],[334,68,334,71],[237,84,237,89],[314,98,314,105],[319,50,319,53],[304,56,304,61],[250,68,250,71],[283,98,285,105],[322,74,322,85],[326,74,326,78],[326,80,326,85],[319,54,319,56],[235,62,237,73],[327,56,327,58],[283,50,283,61],[275,50,275,55],[276,62,276,65],[330,56,330,61],[321,84,321,89],[277,56,277,61],[319,62,321,73],[323,74,323,85],[324,76,324,83],[362,68,362,71],[82,68,82,71],[110,68,110,71],[138,68,138,71],[166,68,166,71],[194,68,194,71],[222,68,222,71],[306,68,306,71],[276,68,276,71],[207,62,209,73],[119,48,119,49],[278,62,278,65],[276,50,276,55],[276,56,276,61],[273,50,273,55],[273,56,273,61],[268,50,268,55],[268,56,268,61],[274,50,274,55],[175,48,175,49],[231,48,231,49],[259,48,259,49],[289,50,289,54],[289,55,289,56],[287,48,287,49],[275,56,275,61],[272,50,272,55],[272,56,272,61],[269,50,269,55],[269,56,269,59],[333,50,333,55],[147,48,147,49],[305,50,305,55],[305,56,305,61],[290,50,290,51],[314,74,314,81],[316,62,316,73],[330,77,330,78],[327,59,327,61],[328,56,328,61],[321,74,321,81],[324,62,324,69],[330,62,330,65],[331,50,331,55],[330,50,330,55],[331,56,331,61],[332,50,332,55],[277,50,277,55],[329,56,329,61],[300,50,300,55],[324,50,324,55],[324,56,324,61],[316,50,316,61],[303,80,303,85],[318,50,318,51],[318,52,318,53],[318,55,318,56],[318,57,318,58],[304,62,304,65],[304,66,304,67],[304,50,304,55],[302,74,302,76],[302,77,302,78],[321,50,321,58],[323,50,323,58],[326,56,326,61],[327,50,327,55],[330,81,330,84],[332,56,332,61],[332,62,332,65],[332,66,332,67],[332,68,332,71],[331,80,331,85],[331,74,331,79],[332,74,332,79],[332,80,332,85],[327,86,327,97],[305,77,305,82],[307,74,307,81],[319,74,319,81],[322,86,322,97],[307,86,307,93],[329,92,329,97],[330,93,330,96],[325,50,325,55],[325,56,325,59],[328,50,328,55],[328,62,328,69],[326,62,326,69],[329,80,329,85],[329,50,329,55],[330,74,330,76],[317,50,317,54],[317,55,317,56],[314,62,314,65],[304,74,304,79],[301,50,301,55],[302,50,302,55],[302,56,302,61],[302,62,302,65],[304,68,304,71],[304,72,304,73],[302,93,302,96],[303,50,303,55],[303,56,303,61],[302,81,302,84],[301,56,301,61],[298,80,298,85],[298,74,298,78],[299,86,299,97],[300,86,300,89],[301,92,301,97],[300,56,300,61],[300,62,300,69],[304,80,304,85],[274,56,274,61],[274,62,274,65],[284,62,284,65],[270,56,270,61],[270,62,270,69],[271,50,271,55],[271,56,271,58],[271,59,271,61],[288,62,288,73],[262,55,262,56],[262,57,262,58],[268,62,268,69],[263,50,263,53],[269,74,269,79],[269,80,269,85],[291,54,291,56],[291,62,293,73],[293,50,293,58],[288,50,288,61],[291,50,291,53],[243,56,243,58],[243,59,243,61],[237,50,237,58],[237,74,237,81],[239,50,239,58],[240,50,240,55],[240,56,240,61],[240,62,240,69],[239,74,239,85],[240,76,240,83],[238,74,238,85],[244,74,244,78],[258,62,258,65],[260,62,260,73],[260,74,260,97],[258,74,258,81],[260,50,260,61],[251,50,251,61],[252,62,252,65],[253,50,253,61],[254,62,254,65],[255,50,255,61],[256,62,256,65],[246,50,246,55],[246,56,246,61],[246,62,246,65],[249,50,249,55],[249,56,249,61],[250,62,250,65],[248,50,248,55],[248,56,248,61],[247,50,247,55],[224,62,224,65],[225,50,225,61],[226,62,226,65],[227,50,227,61],[226,74,226,81],[218,62,218,65],[221,50,221,55],[221,56,221,61],[222,62,222,65],[220,50,220,55],[220,56,220,61],[219,50,219,55],[219,56,219,61],[220,62,220,65],[220,66,220,67],[220,68,220,71],[220,72,220,73],[216,50,216,55],[216,56,216,61],[216,62,216,69],[217,50,217,55],[217,56,217,61],[218,50,218,55],[218,56,218,61],[216,74,216,78],[217,74,217,79],[213,50,213,55],[213,56,213,59],[214,56,214,61],[214,62,214,69],[215,50,215,55],[215,56,215,58],[215,59,215,61],[209,50,209,58],[209,74,209,81],[211,50,211,58],[212,50,212,55],[212,56,212,61],[212,62,212,69],[211,74,211,85],[212,76,212,83],[210,74,210,85],[209,84,209,89],[212,88,212,95],[213,74,213,79],[213,80,213,85],[214,74,214,78],[214,80,214,85],[215,86,215,97],[185,80,185,85],[186,74,186,78],[186,80,186,85],[187,86,187,97],[188,86,188,89],[189,74,189,79],[198,62,198,65],[199,50,199,61],[200,62,200,65],[190,50,190,55],[190,56,190,61],[190,62,190,65],[193,50,193,55],[193,56,193,61],[194,62,194,65],[192,50,192,55],[192,56,192,61],[191,50,191,55],[191,56,191,61],[191,74,191,79],[191,80,191,85],[192,62,192,65],[192,66,192,67],[192,68,192,71],[192,72,192,73],[192,74,192,79],[192,80,192,85],[197,50,197,61],[164,68,164,71],[164,72,164,73],[164,74,164,79],[164,80,164,85],[162,74,162,76],[162,77,162,78],[188,50,188,55],[188,56,188,61],[188,62,188,69],[189,50,189,55],[189,56,189,61],[188,74,188,78],[185,50,185,55],[185,56,185,59],[186,56,186,61],[186,62,186,69],[187,50,187,55],[187,56,187,58],[187,59,187,61],[179,62,181,73],[179,74,179,81],[181,50,181,58],[181,74,181,81],[183,50,183,58],[184,50,184,55],[184,56,184,61],[184,62,184,69],[183,74,183,85],[184,76,184,83],[181,84,181,89],[184,88,184,95],[185,74,185,79],[160,50,160,55],[160,56,160,61],[160,62,160,69],[161,50,161,55],[161,56,161,61],[160,74,160,78],[157,50,157,55],[157,56,157,59],[158,56,158,61],[158,62,158,69],[159,50,159,55],[159,56,159,58],[159,59,159,61],[151,62,153,73],[151,74,151,81],[153,50,153,58],[153,74,153,81],[155,50,155,58],[156,50,156,55],[156,56,156,61],[156,62,156,69],[155,74,155,85],[156,76,156,83],[153,84,153,89],[159,86,159,97],[160,86,160,89],[161,74,161,79],[161,80,161,85],[161,92,161,97],[156,88,156,95],[157,74,157,79],[157,80,157,85],[108,68,108,71],[121,50,121,54],[110,62,110,65],[112,62,112,65],[106,62,106,65],[117,50,117,53],[104,62,104,69],[137,56,137,61],[139,50,139,61],[144,62,144,65],[142,62,142,65],[138,62,138,65],[141,50,141,61],[140,62,140,65],[143,50,143,61],[137,50,137,55],[128,62,128,69],[39,2,39,49],[53,45,53,47],[37,26,37,37],[37,38,37,49],[47,34,47,36],[48,34,48,36],[49,34,49,36],[54,34,54,36],[51,34,51,36],[50,34,50,36],[54,37,54,38],[129,50,129,55],[129,56,129,59],[131,50,131,55],[150,57,150,58],[122,52,122,53],[122,55,122,56],[122,57,122,58],[104,50,104,55],[104,56,104,61],[23,8,23,13],[21,8,21,13],[26,2,26,7],[26,8,26,13],[19,8,19,13],[19,14,19,21],[25,24,25,25],[22,8,22,13],[21,14,21,21],[22,2,22,7],[24,2,24,7],[24,8,24,13],[23,2,23,7],[21,2,21,7],[57,45,57,47],[91,48,91,49],[87,50,87,61],[34,2,34,5],[30,2,30,13],[32,2,32,13],[31,14,31,17],[35,14,35,17],[33,14,33,17],[27,14,27,17],[67,50,67,53],[73,50,73,55],[78,56,78,61],[76,56,76,61],[71,50,71,58],[73,56,73,59],[80,50,80,55],[56,45,56,47],[11,7,11,8],[11,9,11,10],[12,2,12,5],[12,6,12,8],[20,2,20,7],[16,2,16,10],[17,2,17,7],[18,2,18,7],[18,8,18,11],[20,8,20,10],[9,2,9,13],[9,14,9,25],[9,26,9,49],[10,2,10,6],[10,7,10,8],[14,26,14,33],[14,36,14,41],[12,14,14,25],[11,2,11,3],[11,4,11,5],[12,26,12,33],[15,26,15,37],[15,38,15,49],[16,26,16,37],[17,28,17,35],[17,40,17,47],[18,26,18,31],[18,32,18,37],[14,2,14,10],[17,8,17,13],[17,14,17,21],[20,11,20,13],[25,20,25,23],[123,50,123,53],[47,45,47,47],[50,37,50,38],[42,26,42,31],[48,37,48,38],[93,55,93,56],[51,37,51,38],[52,37,52,38],[53,37,53,38],[122,50,122,51],[95,54,95,56],[100,56,100,61],[36,2,36,49],[37,2,37,13],[37,14,37,25],[63,49,63,50],[101,56,101,59],[25,2,25,7],[25,8,25,13],[101,50,101,55],[105,50,105,55],[105,56,105,61],[25,14,25,17],[28,2,28,13],[29,14,29,17],[25,18,25,19],[23,14,23,17],[39,0,39,1],[43,28,43,31],[45,45,45,47],[44,28,44,31],[40,7,41,9],[40,10,41,11],[40,5,41,6],[40,14,41,16],[40,17,41,18],[42,45,42,47],[40,2,41,2],[44,34,44,36],[42,32,42,38],[43,32,43,33],[40,3,41,4],[55,45,55,47],[40,44,41,49],[49,45,49,47],[51,45,51,47],[52,45,52,47],[40,12,41,13],[50,45,50,47],[48,45,48,47],[43,37,43,38],[43,34,43,36],[49,37,49,38],[45,28,45,31],[45,34,45,36],[44,32,47,32],[48,32,50,32],[45,37,45,38],[46,34,46,36],[99,50,99,58],[108,56,108,61],[111,50,111,61],[113,50,113,61],[103,59,103,61],[118,62,118,65],[109,56,109,61],[94,50,94,51],[69,74,69,81],[75,56,75,58],[75,59,75,61],[67,62,69,73],[74,56,74,61],[69,50,69,58],[70,74,70,85],[71,74,71,85],[73,80,73,85],[74,74,74,78],[76,62,76,69],[78,50,78,55],[77,50,77,55],[75,50,75,55],[76,50,76,55],[79,56,79,61],[80,56,80,61],[80,72,80,73],[95,62,97,73],[90,62,90,65],[88,62,88,65],[102,62,102,69],[72,62,72,69],[80,66,80,67],[136,50,136,55],[108,72,108,73],[97,50,97,58],[102,56,102,61],[106,56,106,61],[103,50,103,55],[120,74,120,97],[109,50,109,55],[100,62,100,69],[90,74,90,81],[98,74,98,85],[98,86,98,97],[97,74,97,81],[118,74,118,81],[120,50,120,61],[74,80,74,85],[72,50,72,55],[76,74,76,78],[72,56,72,61],[75,86,75,97],[80,68,80,71],[78,62,78,65],[80,62,80,65],[79,50,79,55],[77,56,77,61],[95,74,95,81],[95,50,95,53],[103,56,103,58],[114,62,114,65],[115,50,115,61],[100,50,100,55],[93,50,93,54],[81,50,81,55],[64,50,64,61],[107,56,107,61],[81,56,81,61],[94,55,94,56],[92,50,92,61],[92,62,92,73],[94,57,94,58],[86,62,86,65],[85,50,85,61],[83,50,83,61],[108,50,108,55],[116,62,116,65],[108,62,108,65],[134,50,134,55],[134,56,134,61],[133,50,133,55],[131,59,131,61],[131,56,131,58],[125,50,125,58],[107,50,107,55],[132,56,132,61],[94,52,94,53],[89,50,89,53],[108,66,108,67],[106,50,106,55],[130,56,130,61],[130,62,130,69],[132,62,132,69],[134,62,134,65],[133,56,133,61],[132,50,132,55],[79,80,79,85],[80,74,80,79],[82,62,82,65],[73,74,73,79],[76,86,76,89],[77,74,77,79],[77,80,77,85],[84,62,84,65],[77,92,77,97],[83,98,84,105],[78,74,78,76],[78,77,78,78],[78,81,78,84],[78,93,78,96],[79,74,79,79],[80,80,80,85],[81,77,81,82],[83,74,83,81],[74,62,74,69],[100,76,100,83],[100,88,100,95],[83,86,83,93],[86,74,86,81],[99,74,99,85],[87,98,89,105],[88,74,88,81],[90,98,90,104],[97,84,97,89],[106,81,106,84],[106,93,106,96],[101,74,101,79],[101,80,101,85],[102,74,102,78],[102,80,102,85],[104,74,104,78],[104,86,104,89],[92,74,92,97],[114,74,114,81],[115,98,117,105],[116,74,116,81],[105,92,105,97],[106,74,106,76],[106,77,106,78],[109,77,109,82],[111,74,111,81],[105,74,105,79],[105,80,105,85],[111,86,111,93],[108,74,108,79],[108,80,108,85],[118,98,118,105],[126,74,126,85],[126,86,126,97],[111,98,112,105],[107,74,107,79],[107,80,107,85],[127,74,127,85],[121,55,121,56],[125,84,125,89],[123,62,125,73],[123,74,123,81],[128,76,128,83],[128,88,128,95],[128,56,128,61],[127,50,127,58],[128,50,128,55],[120,62,120,73],[125,74,125,81],[123,54,123,56],[131,86,131,97],[132,74,132,78],[132,86,132,89],[133,74,133,79],[133,80,133,85],[133,92,133,97],[129,74,129,79],[129,80,129,85],[130,74,130,78],[130,80,130,85],[134,81,134,84],[134,93,134,96],[135,74,135,79],[135,80,135,85],[136,74,136,79],[136,80,136,85],[137,77,137,82],[139,74,139,81],[139,86,139,93],[139,98,140,105],[142,74,142,81],[143,98,145,105],[144,74,144,81],[146,74,146,81],[148,50,148,61],[154,74,154,85],[154,86,154,97],[145,50,145,53],[146,62,146,65],[148,74,148,97],[148,62,148,73],[151,50,151,53],[151,54,151,56],[136,72,136,73],[134,74,134,76],[134,77,134,78],[136,68,136,71],[136,56,136,61],[136,62,136,65],[136,66,136,67],[135,50,135,55],[135,56,135,61],[158,74,158,78],[158,80,158,85],[149,50,149,54],[149,55,149,56],[150,50,150,51],[150,52,150,53],[150,55,150,56],[162,81,162,84],[162,93,162,96],[165,77,165,82],[167,74,167,81],[167,86,167,93],[167,98,168,105],[171,98,173,105],[172,74,172,81],[170,74,170,81],[182,74,182,85],[182,86,182,97],[177,50,177,54],[177,55,177,56],[178,50,178,51],[178,52,178,53],[178,55,178,56],[178,57,178,58],[179,50,179,53],[179,54,179,56],[173,50,173,53],[174,62,174,65],[176,62,176,73],[176,74,176,97],[174,74,174,81],[176,50,176,61],[167,50,167,61],[168,62,168,65],[169,50,169,61],[170,62,170,65],[171,50,171,61],[172,62,172,65],[162,50,162,55],[189,80,189,85],[189,92,189,97],[190,74,190,76],[190,77,190,78],[190,81,190,84],[190,93,190,96],[193,77,193,82],[195,74,195,81],[195,86,195,93],[195,98,196,105],[195,50,195,61],[196,62,196,65],[162,56,162,61],[162,62,162,65],[165,50,165,55],[165,56,165,61],[166,62,166,65],[164,50,164,55],[164,56,164,61],[163,50,163,55],[163,56,163,61],[163,74,163,79],[163,80,163,85],[164,62,164,65],[164,66,164,67],[199,98,201,105],[200,74,200,81],[198,74,198,81],[210,86,210,97],[205,50,205,54],[205,55,205,56],[206,50,206,51],[206,52,206,53],[206,55,206,56],[206,57,206,58],[207,50,207,53],[207,54,207,56],[207,74,207,81],[201,50,201,53],[202,62,202,65],[204,62,204,73],[204,74,204,97],[202,74,202,81],[204,50,204,61],[217,92,217,97],[218,74,218,76],[218,77,218,78],[218,81,218,84],[218,93,218,96],[219,74,219,79],[219,80,219,85],[217,80,217,85],[220,74,220,79],[220,80,220,85],[221,77,221,82],[223,74,223,81],[223,86,223,93],[223,98,224,105],[238,86,238,97],[233,50,233,54],[233,55,233,56],[234,50,234,51],[234,52,234,53],[234,55,234,56],[234,57,234,58],[235,50,235,53],[235,54,235,56],[235,74,235,81],[229,50,229,53],[230,62,230,65],[232,62,232,73],[232,74,232,97],[228,74,228,81],[230,74,230,81],[232,50,232,61],[223,50,223,61],[241,50,241,55],[241,56,241,59],[242,56,242,61],[276,74,276,79],[273,80,273,85],[273,92,273,97],[274,74,274,76],[274,77,274,78],[274,81,274,84],[274,93,274,96],[273,74,273,79],[277,77,277,82],[270,74,270,78],[270,80,270,85],[240,88,240,95],[241,74,241,79],[241,80,241,85],[242,74,242,78],[242,80,242,85],[243,86,243,97],[245,74,245,79],[245,80,245,85],[245,92,245,97],[246,74,246,76],[246,77,246,78],[246,81,246,84],[246,93,246,96],[249,77,249,82],[251,74,251,81],[251,86,251,93],[242,62,242,69],[243,50,243,55],[276,80,276,85],[255,98,257,105],[256,74,256,81],[254,74,254,81],[268,76,268,83],[268,88,268,95],[284,74,284,81],[294,74,294,85],[294,86,294,97],[295,74,295,85],[296,76,296,83],[296,88,296,95],[286,74,286,81],[288,74,288,97],[291,74,291,81],[293,84,293,89],[244,50,244,55],[244,56,244,61],[244,62,244,69],[245,50,245,55],[245,56,245,61],[251,98,252,105],[247,56,247,61],[248,66,248,67],[248,68,248,71],[248,72,248,73],[248,74,248,79],[248,80,248,85],[279,50,279,61],[280,62,280,65],[281,50,281,61],[282,62,282,65],[297,74,297,79],[297,80,297,85],[298,56,298,61],[300,74,300,78],[301,74,301,79],[301,80,301,85],[303,74,303,79],[295,50,295,58],[296,50,296,55],[299,50,299,55],[299,56,299,58],[299,59,299,61],[297,56,297,59],[279,74,279,81],[279,86,279,93],[279,98,280,105],[282,74,282,81],[290,52,290,53],[290,55,290,56],[290,57,290,58],[285,50,285,53],[286,62,286,65],[296,56,296,61],[296,62,296,69],[297,50,297,55],[341,50,341,53],[342,62,342,65],[340,62,340,65],[349,50,349,58],[349,74,349,81],[346,50,346,51],[346,52,346,53],[346,55,346,56],[346,57,346,58],[347,74,347,81],[345,50,345,54],[345,55,345,56],[349,84,349,89],[316,74,316,97],[324,88,324,95],[325,74,325,79],[325,80,325,85],[335,86,335,93],[328,74,328,78],[328,86,328,89],[329,74,329,79],[333,77,333,82],[335,74,335,81],[332,72,332,73],[337,50,337,61],[338,74,338,81],[338,62,338,65],[333,56,333,61],[334,62,334,65],[336,62,336,65],[335,50,335,61],[339,50,339,61],[355,86,355,97],[356,50,356,55],[356,56,356,61],[356,62,356,69],[356,74,356,78],[356,86,356,89],[359,50,359,55],[359,56,359,61],[359,74,359,79],[359,80,359,85],[357,92,357,97],[358,50,358,55],[358,56,358,61],[358,62,358,65],[358,74,358,76],[358,77,358,78],[350,74,350,85],[350,86,350,97],[351,50,351,58],[351,74,351,85],[352,50,352,55],[352,56,352,61],[352,62,352,69],[352,76,352,83]],"merged_total":1136,"flags":["merged_cut"]}
["👉",null,"応募申請用入力シートⅡ入力方法の説明"]
[]
[]
[null,null,"＜凡例＞"]
[null,null,null,"プルダウン選択（カーソルにて選択できます。例：小型、中型・・・）"]
[null,null,null,"手入力（車検証、領収証等から必要事項を転記入力してください。）"]
[null,null,null,"計算結果表示（入力すると、自動的に計算結果や、「適合」「問い合わせ」等の表示が現れます。）"]
[null,null,null,null,null,null,null,null,null,null,null,null,null,null,null,null,null,null,null,null,null,null,null,null,null,null,null,null,null,null,null,null,null,null,null,null,null,null,null,null,null,null,null,null,null,null,null,null,null,null,null,"説明画面で入力箇所や方法が確認できましたら、クリックし次に進んで下さい。"]
[null,null,"１台目"]
[null,null,"申請車両購入区分及び申請車情報",null,null,null,null,null,null,null,null,null,null,null,"申請車両年度間走行情報",null,null,null,null,null,null,null,null,null,null,null,"申請車両の購入額等"]
[null,null,"申請台数",null,null,null,null,"複数"]
[null,null,"車種",null,{"$f":"IF(C15=\"\",\"\",VLOOKUP(I19,$AI$45:$AN$55,6.1))","v":"中型"},{"$f":"IF(O16=\"\",\"\",VLOOKUP(U20,$AI$45:$AN$55,6.1))","v":{"$error":"#N/A"}},null,1,null,"号車",null,null,null,null,"具体的な用途",null,null,null,null,null,null,null,null,null,null,null,"①1台毎の車両購入費"]
[null,null,"購入区分",null,null,null,"買替",null,null,null,null,null,null,null,"都内中央区内の事務所ビル内廃棄物の収集運搬に供する。",null,null,null,null,null,null,null,null,null,null,null,13000000,null,null,null,null,null,null,null,"円",null,null,null,null,null,null,null,null,null,null,null,null,null,null,null,null,"👉１台目入力へ⇒"]
[null,null,"登録年月日",null,null,null,null,null,null,null,null,null,null,null,null,null,null,null,null,null,null,null,null,null,null,null,"②寄付金その他の収入",null,null,null,null,null,null,null,null,null,"③差引額（①ー②）"]
[null,null,"2018-09-07",null,null,null,null,null,null,null,null,null,null,null,null,null,null,null,null,null,null,null,null,null,null,null,0,null,null,null,null,null,null,null,"円",null,{"$f":"IF(AA13=\"\",\"\",'（ｆ）別紙２－１【補助対象経費支出予定額の内訳】'!G8)","v":""},null,null,null,null,null,"円"]
[null,null,"登録番号",null,null,null,null,null,null,null,null,null,null,null,"代表的な運行コース",null,null,null,null,null,null,null,null,null,null,null,"買替の場合の旧車両情報",null,null,null,null,null,null,null,null,null,null,null,{"$f":"IF(G13=\"増車\",\"増車の場合の旧車両(シャシのみ)情報\",\"\")","v":""}]
[null,null,"足立22は12－12",null,null,null,null,null,null,null,null,null,null,null,"出発地（Ａ）",null,null,null,null,null,null,null,null,null,null,null,"旧車両（先進環境対応型に適合していない車両）"]
[null,null,"車台番号",null,null,null,null,null,"車両総重量",null,null,null,null,null,"中央区○○",null,null,null,null,null,null,null,null,null,null,null,null,null,{"$f":"IF(G13=\"買替\",\"☟車両情報入力\",\"\")","v":"☟車両情報入力"},null,null,null,null,null,null,null,null,null,null,null,{"$f":"IF(G13=\"増車\",\"☟車両価格入力\",\"\")","v":""}]
[null,null,"ＦｋＲ－11",null,null,null,null,null,7700,null,null,null,"kg ",null,"経由地",null,null,null,null,null,null,null,null,null,null,null,"車両総重量",null,null,null,null,null,"車体の形状"]
[null,null,"車名（メーカー）",null,null,null,null,null,"型式",null,null,null,null,null,"区内循環",null,null,null,null,null,null,null,null,null,null,null,7800,null,null,null,null,"kg ","脱着装置付きコンテナ専用車"]
[null,null,null,null,null,null,null,null,"２ＫＧ",null,null,"zzz",null,null,"到着地（Ｂ）",null,null,null,null,null,null,null,null,null,null,null,"旧車両の購入時価格",null,null,null,null,null,null,null,null,null,null,null,"平成21年車両価格"]
[null,null,"通称名",null,null,null,null,null,"架装業者",null,null,null,null,null,"中央区○○",null,null,null,null,null,null,null,null,null,null,null,12000000,null,null,null,null,"円",null,null,null,null,null,null,null,null,null,null,"円"]
[null,null,"○○サムタン",null,null,null,null,null,"△〇企業",null,null,null,null,null,"（Ａ）から（Ｂ）までの距離",null,null,null,null,null,null,null,null,null,null,null,"旧車両の購入年",null,null,null,null,null,"消費者物価指数",null,null,null,null,null,null,null,null,null,null,null,"消費者物価指数"]
[null,null,"車体の形状",null,null,null,null,null,"用途",null,null,null,null,null,32,null,null,null,"㎞",null,null,null,null,null,null,null,"平成",null,null,15,null,"年",null,{"$f":"IF(AD24=\"\",\"\",VLOOKUP(AD24,$AS$43:$AT$62,2,FALSE))","v":98.6},null,null,null,null,null,null,null,null,null,null,null,{"$f":"IF(AM22=\"\",\"\",98)","v":""}]
[null,null,"塵芥車",null,null,null,null,null,"特種",null,null,null,null,null,"移動回数及び年度間稼働日数",null,null,null,null,null,null,null,null,null,null,null,"車両総重量",null,null,null,null,null,"車体の形状"]
[null,null,null,null,null,null,null,null,null,null,null,null,null,null,2,null,null,null,"回",null,260,null,null,null,"日",null,{"$f":"IF(G13=\"買替\",IF(AND(AA20>=I19-(I19*0.05),AA20<=I19+(I19*0.05)),\"適合\",\"不適合\"),\"\")","v":"適合"},null,null,null,null,null,{"$f":"IF(G13=\"買替\",IF(EXACT(C25,AG20),\"適合\",\"再確認\"),\"\")","v":"再確認"},{"$f":"IF(EXACT(AF26,AG26),\"ok\",\"x\")","v":"x"},{"$f":"IF(EXACT(AG26,AH26),\"ok\",\"x\")","v":"x"},{"$f":"IF(EXACT(AH26,AI26),\"ok\",\"x\")","v":"ok"},{"$f":"IF(EXACT(AI26,AJ26),\"ok\",\"x\")","v":"x"},{"$f":"IF(EXACT(AJ26,AK26),\"ok\",\"x\")","v":"x"}]
[null,null,null,null,null,null,null,null,null,null,null,null,null,null,"その他の走行距離",null,null,null,null,null,"年度間走行距離",null,null,null,null,null,null,null,null,{"$f":"IF(G13=\"買替\",IF(AND(AA26=\"適合\",AG26=\"適合\"),\"適合\",\"問い合わせ！\"),\"\")","v":"問い合わせ！"}]
[null,null,"所有者の氏名又は名称",null,null,null,null,null,null,null,null,null,null,null,500,null,null,null,"㎞",null,{"$f":"+'（ｂ）別紙１－２【年度間走行距離一覧表】'!M12","v":0},null,null,null,"㎞",null,"⑤基準額",null,null,null,null,null,null,null,null,null,null,null,"④補助対象経費支出予定額"]
[null,null,{"$f":"IF(C15=\"\",\"\",+応募申請用入力シートⅠ!$L$4)","v":0},null,null,null,null,null,null,null,null,null,null,null,"「増車」の先進環境対応型の燃費",null,null,null,null,null,null,null,null,null,null,null,{"$f":"+IF(C15=\"\",\"\",VLOOKUP(E12,$AA$44:$AC$46,3,FALSE))","v":880000},null,null,null,null,null,null,null,"円",null,null,null,829960,null,null,null,null,null,null,null,"円"]
[null,null,"所有者の住所",null,null,null,null,null,null,null,null,null,null,null,{"$f":"IF(G13=\"買替\",\"\",VLOOKUP(I19,$AI$45:$AM$55,4,1))","v":""},null,null,null,"㎞／ℓ",null,null,null,null,null,null,null,null,null,null,null,null,null,null,null,null,null,null,null,"（物価指数補正後）"]
[null,null,{"$f":"IF(C15=\"\",\"\",+応募申請用入力シートⅠ!$L$4)","v":0},null,null,null,null,null,null,null,null,null,null,null,"「増車」の旧車両相当型式換算燃費",null,null,null,null,null,null,null,null,null,null,null,"⑥選定額（④と⑤の少ない方の額）",null,null,null,null,null,null,null,null,null,null,null,null,null,null,null,null,null,null,null,null,null,null,null,null,"説明画面で入力箇所や方法が確認できましたら、クリックし次に進んで下さい。"]
[null,null,"使用の本拠の位置",null,null,null,null,null,null,null,null,null,null,null,{"$f":"IF(O30=\"\",\"\",(+O30*100/105))","v":""},null,null,null,"㎞／ℓ",null,null,null,null,null,null,null,829960,null,null,null,null,null,null,null,"円"]
[null,null,"〇〇県□□市△△区※※－※",null,null,null,null,null,null,null,null,null,null,null,"実績走行距離",null,null,null,null,null,null,null,null,null,null,null,"⑦補助基本額（③と⑤の少ない方の額）"]
[null,null,"抵当権の有無",null,null,null,null,null,null,null,null,null,null,null,20000,null,null,null,"㎞",{"$f":"IF(G13=\"増車\",\"👈入力不要\",\"👈入力\")","v":"👈入力"},null,null,null,"旧車両",null,null,829960,null,null,null,null,null,null,null,"円"]
[null,null,"無",null,null,null,null,null,null,null,null,null,null,null,"実績燃料使用量",null,null,null,null,null,null,null,null,null,null,null,"⑧補助金所要額（⑦×１/３）"]
[null,null,null,null,null,null,null,null,null,null,null,null,null,null,7800,null,null,null,"ℓ",{"$f":"IF(G13=\"増車\",\"👈入力不要\",\"👈入力\")","v":"👈入力"},null,null,null,"旧車両",null,null,276000,null,null,null,null,null,null,null,"円",null,null,null,null,null,null,null,null,null,null,null,null,null,null,null,null,"👉１台目入力へ⇒"]
[null,null,"入力により反映される、各様式等"]
[null,null,"別紙１－１",null,null,null,null,null,null,null,null,null,null,null,"別紙１－２・別紙１－３－１・別紙１－４",null,null,null,null,null,null,null,null,null,null,null,"別紙１－３－２・別紙２－１",null,null,null,null,null,null,null,null,null,null,null,"別紙２－２"]
[]
[null,null,"入力時プルダウン選択できる各項目リスト"]
[null,null,"台数","購入\n区分",null,"車種",null,"車名",null,null,"車台\n型式",null,"用途",null,"車体\nの形状",null,null,"抵当権\nの有無",null,null,null,null,null,null,null,null,null,null,null,null,null,null,null,null,null,null,null,null,null,null,null,null,null,null,"消費者\n物価指数"]
[]
[null,null,"1台","増車",null,"大型",null,"いすゞ ",null,null,"２ＫＧ",null,"貨物",null,"塵芥車",null,null,"有",null,null,null,null,null,null,null,null,"基準額",null,null,null,null,null,"燃費テーブル",null,null,null,null,null,null,null,null,null,null,null,"年","指数"]
[null,null,"複数","買替",null,"中型",null,"UDﾄﾗｯｸｽ ",null,null,"２ＰＧ",null,"特種",null,"清掃車",null,null,"無",null,null,null,null,null,null,null,null,"大型",null,1500000,null,null,null,"車両区分",null,"総重量",null,null,"燃費",null,null,null,null,null,null,10,100.2]
[null,null,null,null,null,"小型",null,"日野 ",null,null,"２ＲＧ",null,null,null,"糞尿車",null,null,null,null,null,null,null,null,null,null,null,"中型",null,880000,null,null,null,"小型",1,3500,null,null,7.45,null,"小型",null,null,null,null,11,100.1]
[null,null,null,null,null,null,null,"三菱ふそう ",null,null,"ＴＫＧ",null,null,null,"キャブオーバー",null,null,null,null,null,null,null,null,null,null,null,"小型",null,800000,null,null,null,null,2,4500,null,null,7.25,null,"小型",null,null,null,null,12,100]
[null,null,null,null,null,null,null,"マツダ ",null,null,"ＴＰＧ",null,null,null,"バン",null,null,null,null,null,null,null,null,null,null,null,null,null,null,null,null,null,null,3,5500,null,null,6.87,null,"小型",null,null,null,null,13,99.4]
[null,null,null,null,null,null,null,"日産 ",null,null,"ＴＲＧ",null,null,null,"脱着装置付きコンテナ専用車",null,null,null,null,null,null,null,null,null,null,null,null,null,null,null,null,null,null,4,6500,null,null,6.68,null,"小型",null,null,null,null,14,98.8]
[null,null,null,null,null,null,null,"トヨタ ",null,null,"ＳＰＧ",null,null,null,"ダンプ",null,null,null,null,null,null,null,null,null,null,null,null,null,null,null,null,null,"中型",5,7500,null,null,6.24,null,"中型",null,null,null,null,15,98.6]
[null,null,null,null,null,null,null,"ボルボ",null,null,"ＳＲＧ",null,null,null,"貨物",null,null,null,null,null,null,null,null,null,null,null,null,null,null,null,null,null,null,6,8000,null,null,5.93,null,"中型",null,null,null,null,16,98.2]
[null,null,null,null,null,null,null,null,null,null,"ＱＫＧ",null,null,null,"タンク車",null,null,null,null,null,null,null,null,null,null,null,null,null,null,null,null,null,null,7,10000,null,null,5.16,null,"中型",null,null,null,null,17,98.7]
[null,null,null,null,null,null,null,null,null,null,"ＱＰＧ",null,null,null,"トラクタ",null,null,null,null,null,null,null,null,null,null,null,null,null,null,null,null,null,"大型",8,12000,null,null,4.7,null,"大型",null,null,null,null,18,98.6]
[null,null,null,null,null,null,null,null,null,null,"ＱＲＧ",null,null,null,null,null,null,null,null,null,null,null,null,null,null,null,null,null,null,null,null,null,null,9,14000,null,null,4.43,null,"大型",null,null,null,null,19,98.8]
[null,null,null,null,null,null,null,null,null,null,"ＬＰＧ",null,null,null,null,null,null,null,null,null,null,null,null,null,null,null,null,null,null,null,null,null,null,10,16000,null,null,4.08,null,"大型",null,null,null,null,20,98.8]
[null,null,null,null,null,null,null,null,null,null,"ＬＲＧ",null,null,null,null,null,null,null,null,null,null,null,null,null,null,null,null,null,null,null,null,null,null,11,20000,null,null,3.58,null,"大型",null,null,null,null,21,98]
[null,null,null,null,null,null,null,null,null,null,null,null,null,null,null,null,null,null,null,null,null,null,null,null,null,null,null,null,null,null,null,null,null,null,null,null,null,null,null,null,null,null,null,null,22,97.4]
[null,null,null,null,null,null,null,null,null,null,null,null,null,null,null,null,null,null,null,null,null,null,null,null,null,null,null,null,null,null,null,null,null,null,null,null,null,null,null,null,null,null,null,null,23,97.3]
[null,null,null,null,null,null,null,null,null,null,null,null,null,null,null,null,null,null,null,null,null,null,null,null,null,null,null,null,null,null,null,null,null,null,null,null,null,null,null,null,null,null,null,null,24,97.5]
[null,null,null,null,null,null,null,null,null,null,null,null,null,null,null,null,null,null,null,null,null,null,null,null,null,null,null,null,null,null,null,null,null,null,null,null,null,null,null,null,null,null,null,null,25,97.1]
[null,null,null,null,null,null,null,null,null,null,null,null,null,null,null,null,null,null,null,null,null,null,null,null,null,null,null,null,null,null,null,null,null,null,null,null,null,null,null,null,null,null,null,null,26,98.8]
[null,null,null,null,null,null,null,null,null,null,null,null,null,null,null,null,null,null,null,null,null,null,null,null,null,null,null,null,null,null,null,null,null,null,null,null,null,null,null,null,null,null,null,null,27,100]
[null,null,null,null,null,null,null,null,null,null,null,null,null,null,null,null,null,null,null,null,null,null,null,null,null,null,null,null,null,null,null,null,null,null,null,null,null,null,null,null,null,null,null,null,28,100.2]
[null,null,null,null,null,null,null,null,null,null,null,null,null,null,null,null,null,null,null,null,null,null,null,null,null,null,null,null,null,null,null,null,null,null,null,null,null,null,null,null,null,null,null,null,29,100.2]
[null,null,null,null,null,null,null,null,null,null,null,null,null,null,null,null,null,null,null,null,null,null,null,null,null,null,null,null,null,null,null,null,null,null,null,null,null,null,null,null,null,null,null,null,null,null,null,null,null,"⇒",null,"１台目",null,null,"☟１台目入力"]
[null,null,null,null,null,null,null,null,null,null,null,null,null,null,null,null,null,null,null,null,null,null,null,null,null,null,null,null,null,null,null,null,null,null,null,null,null,null,null,null,null,null,null,null,null,null,null,null,null,null,"申請車両購入区分及び申請車情報",null,null,null,null,null,null,null,null,null,null,null,"申請車両年度間走行情報",null,null,null,null,null,null,null,null,null,null,null,"申請車両の購入額等"]
[null,null,null,null,null,null,null,null,null,null,null,null,null,null,null,null,null,null,null,null,null,null,null,null,null,null,null,null,null,null,null,null,null,null,null,null,null,null,null,null,null,null,null,null,null,null,null,null,null,null,"申請台数",null,null,null,null,null,null,null,null,null,null,null,null,null,null,null,null,null,null,null,null,null,null,null,null,null,null,null,null,null,null,null,null,null,null,null,null,null,null,null,null,null,null,null,null,null,null,null,null,null,null,null,null,null,null,null,null,null,null,null,null,null,null,null,null,null,null,null,null,null,null,null,null,null,null,null,null,null,null,null,null,null,null,null,null,null,null,null,null,null,null,null,null,null,null,null,null,null,null,null,null,null,null,null,null,null,"入力完了"]
[null,null,null,null,null,null,null,null,null,null,null,null,null,null,null,null,null,null,null,null,null,null,null,null,null,null,null,null,null,null,null,null,null,null,null,null,null,null,null,null,null,null,null,null,null,null,null,null,null,null,"車種",null,{"$f":"IF(AY70=\"\",\"\",VLOOKUP(BE74,$AI$45:$AN$55,6.1))","v":""},{"$f":"IF(BK71=\"\",\"\",VLOOKUP(BQ75,$AI$45:$AN$55,6.1))","v":{"$error":"#N/A"}},null,null,null,"号車",null,null,null,null,"具体的な用途",null,null,null,null,null,null,null,null,null,null,null,"①1台毎の車両購入費"]
[null,null,null,null,null,null,null,null,null,null,null,null,null,null,null,null,null,null,null,null,null,null,null,null,null,null,null,null,null,null,null,null,null,null,null,null,null,null,null,null,null,null,null,null,null,null,null,null,null,null,"購入区分",null,null,null,null,null,null,null,null,null,null,null,null,null,null,null,null,null,null,null,null,null,null,null,null,null,null,null,null,null,null,null,"円"]
[null,null,null,null,null,null,null,null,null,null,null,null,null,null,null,null,null,null,null,null,null,null,null,null,null,null,null,null,null,null,null,null,null,null,null,null,null,null,null,null,null,null,null,null,null,null,null,null,null,null,"登録年月日",null,null,null,null,null,null,null,null,null,null,null,null,null,null,null,null,null,null,null,null,null,null,null,"②寄付金その他の収入",null,null,null,null,null,null,null,null,null,"③差引額（①ー②）"]
[null,null,null,null,null,null,null,null,null,null,null,null,null,null,null,null,null,null,null,null,null,null,null,null,null,null,null,null,null,null,null,null,null,null,null,null,null,null,null,null,null,null,null,null,null,null,null,null,null,null,null,null,null,null,null,null,null,null,null,null,null,null,null,null,null,null,null,null,null,null,null,null,null,null,null,null,null,null,null,null,null,null,"円",null,{"$f":"IF(BW68=\"\",\"\",'（ｆ）別紙２－１【補助対象経費支出予定額の内訳】'!G8)","v":""},{"$f":"IF(AND(CG70>=CF70-(CF70*0.05),CG70<=CF70+(CF70*0.05)),\"適\",\"不適\")","v":"不適"},{"$f":"IF(AND(CH70>=CG70-(CG70*0.05),CH70<=CG70+(CG70*0.05)),\"適\",\"不適\")","v":{"$error":"#VALUE!"}},{"$f":"IF(AND(CI70>=CH70-(CH70*0.05),CI70<=CH70+(CH70*0.05)),\"適\",\"不適\")","v":{"$error":"#VALUE!"}},{"$f":"IF(AND(CJ70>=CI70-(CI70*0.05),CJ70<=CI70+(CI70*0.05)),\"適\",\"不適\")","v":{"$error":"#VALUE!"}},{"$f":"IF(AND(CK70>=CJ70-(CJ70*0.05),CK70<=CJ70+(CJ70*0.05)),\"適\",\"不適\")","v":{"$error":"#VALUE!"}},"円",null,null,null,null,null,null,null,null,null,null,null,null,null,null,null,null,null,null,null,null,null,null,null,null,null,null,null,null,null,null,null,null,null,null,null,null,null,null,null,null,null,null,null,null,null,null,null,null,null,null,null,null,null,null,null,null,null,"再度入力確認する場合",null,null,null,null,null,null,null,null,null,null,null,null,null,"入力確認後印刷する場合"]
[null,null,null,null,null,null,null,null,null,null,null,null,null,null,null,null,null,null,null,null,null,null,null,null,null,null,null,null,null,null,null,null,null,null,null,null,null,null,null,null,null,null,null,null,null,null,null,null,null,null,"登録番号",null,null,null,null,null,null,null,null,null,null,null,"代表的な運行コース",null,null,null,null,null,null,null,null,null,null,null,"買替の場合の旧車両情報",null,null,null,null,null,null,null,null,null,null,null,{"$f":"IF(BC68=\"増車\",\"増車の場合の旧車両情報\",\"\")","v":""},null,null,null,null,null,null,null,null,null,null,null,null,null,null,null,null,null,null,null,null,null,null,null,null,null,null,null,null,null,null,null,null,null,null,null,null,null,null,null,null,null,null,null,null,null,null,null,null,null,null,null,null,null,null,null,null,null,null,null,null,null,"「入力画面に戻る」をクリックして下さい。",null,null,null,null,null,null,null,null,null,null,null,null,null,"次の「様式の印刷」をクリックして下さい。"]
[null,null,null,null,null,null,null,null,null,null,null,null,null,null,null,null,null,null,null,null,null,null,null,null,null,null,null,null,null,null,null,null,null,null,null,null,null,null,null,null,null,null,null,null,null,null,null,null,null,null,null,null,null,null,null,null,null,null,null,null,null,null,"出発地（Ａ）",null,null,null,null,null,null,null,null,null,null,null,"旧車両（先進環境対応型に適合していない車両）"]
[null,null,null,null,null,null,null,null,null,null,null,null,null,null,null,null,null,null,null,null,null,null,null,null,null,null,null,null,null,null,null,null,null,null,null,null,null,null,null,null,null,null,null,null,null,null,null,null,null,null,"車台番号",null,null,null,null,null,"車両総重量",null,null,null,null,null,"車庫",null,null,null,null,null,null,null,null,null,null,null,null,null,{"$f":"IF(BC68=\"買替\",\"☟車両情報入力\",\"\")","v":""},null,null,null,null,null,null,null,null,null,null,null,{"$f":"IF(BC68=\"増車\",\"☟車両価格入力\",\"\")","v":""},null,null,null,null,null,null,null,null,null,null,null,null,null,null,null,null,null,null,null,null,null,null,null,null,null,null,null,null,null,null,null,null,null,null,null,null,null,null,null,null,null,null,null,null,null,null,null,null,null,null,null,null,null,null,null,null,null,null,null,"👉入力画面に戻る⇒"]
[null,null,null,null,null,null,null,null,null,null,null,null,null,null,null,null,null,null,null,null,null,null,null,null,null,null,null,null,null,null,null,null,null,null,null,null,null,null,null,null,null,null,null,null,null,null,null,null,null,null,null,null,null,null,null,null,null,null,null,null,"kg ",null,"経由地",null,null,null,null,null,null,null,null,null,null,null,"車両総重量",null,null,null,null,null,"車体の形状"]
[null,null,null,null,null,null,null,null,null,null,null,null,null,null,null,null,null,null,null,null,null,null,null,null,null,null,null,null,null,null,null,null,null,null,null,null,null,null,null,null,null,null,null,null,null,null,null,null,null,null,"車名（メーカー）",null,null,null,null,null,"型式",null,null,null,null,null,null,null,null,null,null,null,null,null,null,null,null,null,null,null,null,null,null,"kg "]
[null,null,null,null,null,null,null,null,null,null,null,null,null,null,null,null,null,null,null,null,null,null,null,null,null,null,null,null,null,null,null,null,null,null,null,null,null,null,null,null,null,null,null,null,null,null,null,null,null,null,null,null,null,null,null,null,null,null,null,null,null,null,"到着地（Ｂ）",null,null,null,null,null,null,null,null,null,null,null,"旧車両の購入時価格",null,null,null,null,null,null,null,null,null,null,null,"平成21年車両価格"]
[null,null,null,null,null,null,null,null,null,null,null,null,null,null,null,null,null,null,null,null,null,null,null,null,null,null,null,null,null,null,null,null,null,null,null,null,null,null,null,null,null,null,null,null,null,null,null,null,null,null,"通称名",null,null,null,null,null,"架装業者",null,null,null,null,null,null,null,null,null,null,null,null,null,null,null,null,null,null,null,null,null,null,"円",null,null,null,null,null,null,null,null,null,null,"円"]
[null,null,null,null,null,null,null,null,null,null,null,null,null,null,null,null,null,null,null,null,null,null,null,null,null,null,null,null,null,null,null,null,null,null,null,null,null,null,null,null,null,null,null,null,null,null,null,null,null,null,null,null,null,null,null,null,null,null,null,null,null,null,"（Ａ）から（Ｂ）までの距離",null,null,null,null,null,null,null,null,null,null,null,"旧車両の購入年",null,null,null,null,null,"消費者物価指数",null,null,null,null,null,null,null,null,null,null,null,"消費者物価指数"]
[null,null,null,null,null,null,null,null,null,null,null,null,null,null,null,null,null,null,null,null,null,null,null,null,null,null,null,null,null,null,null,null,null,null,null,null,null,null,null,null,null,null,null,null,null,null,null,null,null,null,"車体の形状",null,null,null,null,null,"用途",null,null,null,null,null,null,null,null,null,"㎞",null,null,null,null,null,null,null,"平成",null,null,null,null,"年",null,{"$f":"IF(BZ79=\"\",\"\",VLOOKUP(BZ79,$AS$43:$AT$63,2,FALSE))","v":""},null,null,null,null,null,null,null,null,null,null,null,{"$f":"IF(CI77=\"\",\"\",98)","v":""}]
[null,null,null,null,null,null,null,null,null,null,null,null,null,null,null,null,null,null,null,null,null,null,null,null,null,null,null,null,null,null,null,null,null,null,null,null,null,null,null,null,null,null,null,null,null,null,null,null,null,null,null,null,null,null,null,null,null,null,null,null,null,null,"移動回数及び年度間稼働日数",null,null,null,null,null,null,null,null,null,null,null,"車両総重量",null,null,null,null,null,"車体の形状"]
[null,null,null,null,null,null,null,null,null,null,null,null,null,null,null,null,null,null,null,null,null,null,null,null,null,null,null,null,null,null,null,null,null,null,null,null,null,null,null,null,null,null,null,null,null,null,null,null,null,null,null,null,null,null,null,null,null,null,null,null,null,null,null,null,null,null,"回",null,null,null,null,null,"日",null,{"$f":"IF(BC68=\"買替\",IF(AND(BW75>=BE74-(BE74*0.05),BW75<=BE74+(BE74*0.05)),\"適合\",\"不適合\"),\"\")","v":""},{"$f":"IF(AND(BW81>=BV81-(BV81*0.05),BW81<=BV81+(BV81*0.05)),\"適\",\"不適\")","v":"不適"},{"$f":"IF(AND(BX81>=BW81-(BW81*0.05),BX81<=BW81+(BW81*0.05)),\"適\",\"不適\")","v":{"$error":"#VALUE!"}},{"$f":"IF(AND(BY81>=BX81-(BX81*0.05),BY81<=BX81+(BX81*0.05)),\"適\",\"不適\")","v":{"$error":"#VALUE!"}},{"$f":"IF(AND(BZ81>=BY81-(BY81*0.05),BZ81<=BY81+(BY81*0.05)),\"適\",\"不適\")","v":{"$error":"#VALUE!"}},{"$f":"IF(AND(CA81>=BZ81-(BZ81*0.05),CA81<=BZ81+(BZ81*0.05)),\"適\",\"不適\")","v":{"$error":"#VALUE!"}},{"$f":"IF(BC68=\"買替\",IF(EXACT(AY80,CC75),\"適合\",\"再確認\"),\"\")","v":""},{"$f":"IF(EXACT(CB81,CC81),\"ok\",\"x\")","v":{"$error":"#VALUE!"}},{"$f":"IF(EXACT(CC81,CD81),\"ok\",\"x\")","v":{"$error":"#VALUE!"}},{"$f":"IF(EXACT(CD81,CE81),\"ok\",\"x\")","v":{"$error":"#VALUE!"}},{"$f":"IF(EXACT(CE81,CF81),\"ok\",\"x\")","v":{"$error":"#VALUE!"}},{"$f":"IF(EXACT(CF81,CG81),\"ok\",\"x\")","v":{"$error":"#VALUE!"}}]
[null,null,null,null,null,null,null,null,null,null,null,null,null,null,null,null,null,null,null,null,null,null,null,null,null,null,null,null,null,null,null,null,null,null,null,null,null,null,null,null,null,null,null,null,null,null,null,null,null,null,null,null,null,null,null,null,null,null,null,null,null,null,"その他の走行距離",null,null,null,null,null,"年度間走行距離",null,null,null,null,null,null,null,null,{"$f":"IF(BC68=\"買替\",IF(AND(BW81=\"適合\",CC81=\"適合\"),\"適合\",\"問い合わせ！\"),\"\")","v":""}]
[null,null,null,null,null,null,null,null,null,null,null,null,null,null,null,null,null,null,null,null,null,null,null,null,null,null,null,null,null,null,null,null,null,null,null,null,null,null,null,null,null,null,null,null,null,null,null,null,null,null,"所有者の氏名又は名称",null,null,null,null,null,null,null,null,null,null,null,null,null,null,null,"㎞",null,{"$f":"IF(AY70=\"\",\"\",+'（ｂ）別紙１－２【年度間走行距離一覧表】'!M12)","v":""},null,null,null,"㎞",null,"⑤基準額",null,null,null,null,null,null,null,null,null,null,null,"④補助対象経費支出予定額",null,null,null,null,null,null,null,null,null,null,null,"申請台数分の入力が終了しましたら"]
[null,null,null,null,null,null,null,null,null,null,null,null,null,null,null,null,null,null,null,null,null,null,null,null,null,null,null,null,null,null,null,null,null,null,null,null,null,null,null,null,null,null,null,null,null,null,null,null,null,null,{"$f":"IF(AY70=\"\",\"\",+応募申請用入力シートⅠ!$L$4)","v":""},null,null,null,null,null,null,null,null,null,null,null,"「増車」の先進環境対応型の燃費",null,null,null,null,null,null,null,null,null,null,null,{"$f":"+IF(AY70=\"\",\"\",VLOOKUP(BA67,$AA$44:$AC$46,3,FALSE))","v":""},null,null,null,null,null,null,null,"円",null,null,null,{"$f":"IF(AY70=\"\",\"\",+'（ｆ）別紙２－１【補助対象経費支出予定額の内訳】'!H8)","v":""},null,null,null,null,null,null,null,"円",null,null,null,"下記の「入力完了」をクリックして下さい。"]
[null,null,null,null,null,null,null,null,null,null,null,null,null,null,null,null,null,null,null,null,null,null,null,null,null,null,null,null,null,null,null,null,null,null,null,null,null,null,null,null,null,null,null,null,null,null,null,null,null,null,"所有者の住所",null,null,null,null,null,null,null,null,null,null,null,{"$f":"IF(AY70=\"\",\"\",IF(BC68=\"買替\",\"\",VLOOKUP(BE74,$AI$45:$AM$55,4,1)))","v":""},null,null,null,"㎞／ℓ",null,null,null,null,null,null,null,null,null,null,null,null,null,null,null,null,null,null,null,"（物価指数補正後）"]
[null,null,null,null,null,null,null,null,null,null,null,null,null,null,null,null,null,null,null,null,null,null,null,null,null,null,null,null,null,null,null,null,null,null,null,null,null,null,null,null,null,null,null,null,null,null,null,null,null,null,{"$f":"IF(AY70=\"\",\"\",+応募申請用入力シートⅠ!$L$6)","v":""},null,null,null,null,null,null,null,null,null,null,null,"「増車」の旧車両相当型式換算燃費",null,null,null,null,null,null,null,null,null,null,null,"⑥選定額（④と⑤の少ない方の額）",null,null,null,null,null,null,null,null,null,null,null,null,null,null,null,null,null,null,null,null,null,null,null,"👉入力完了⇒"]
[null,null,null,null,null,null,null,null,null,null,null,null,null,null,null,null,null,null,null,null,null,null,null,null,null,null,null,null,null,null,null,null,null,null,null,null,null,null,null,null,null,null,null,null,null,null,null,null,null,null,"使用の本拠の位置",null,null,null,null,null,null,null,null,null,null,null,{"$f":"IF(BK85=\"\",\"\",(+BK85*100/105))","v":""},null,null,null,"㎞／ℓ",null,null,null,null,null,null,null,{"$f":"IF(AY70=\"\",\"\",+'（ｆ）別紙２－１【補助対象経費支出予定額の内訳】'!L8)","v":""},null,null,null,null,null,null,null,"円"]
[null,null,null,null,null,null,null,null,null,null,null,null,null,null,null,null,null,null,null,null,null,null,null,null,null,null,null,null,null,null,null,null,null,null,null,null,null,null,null,null,null,null,null,null,null,null,null,null,null,null,null,null,null,null,null,null,null,null,null,null,null,null,"実績走行距離",null,null,null,null,null,null,null,null,null,null,null,"⑦補助基本額（③と⑤の少ない方の額）",null,null,null,null,null,null,null,null,null,null,null,null,null,null,null,null,null,null,null,null,null,null,null,"複数台数申請の場合は次の申請車入力画面に進んで下さい。"]
[null,null,null,null,null,null,null,null,null,null,null,null,null,null,null,null,null,null,null,null,null,null,null,null,null,null,null,null,null,null,null,null,null,null,null,null,null,null,null,null,null,null,null,null,null,null,null,null,null,null,"抵当権の有無",null,null,null,null,null,null,null,null,null,null,null,null,null,null,null,"㎞",{"$f":"IF(BC68=\"増車\",\"👈入力不要\",\"👈入力\")","v":"👈入力"},null,null,null,"旧車両",null,null,{"$f":"IF(AY75=\"\",\"\",+'（ｆ）別紙２－１【補助対象経費支出予定額の内訳】'!M8)","v":""},null,null,null,null,null,null,null,"円"]
[null,null,null,null,null,null,null,null,null,null,null,null,null,null,null,null,null,null,null,null,null,null,null,null,null,null,null,null,null,null,null,null,null,null,null,null,null,null,null,null,null,null,null,null,null,null,null,null,null,null,null,null,null,null,null,null,null,null,null,null,null,null,"実績燃料使用量",null,null,null,null,null,null,null,null,null,null,null,"⑧補助金所要額（⑦×１/３）"]
[null,null,null,null,null,null,null,null,null,null,null,null,null,null,null,null,null,null,null,null,null,null,null,null,null,null,null,null,null,null,null,null,null,null,null,null,null,null,null,null,null,null,null,null,null,null,null,null,null,null,null,null,null,null,null,null,null,null,null,null,null,null,null,null,null,null,"ℓ",{"$f":"IF(BC68=\"増車\",\"👈入力不要\",\"👈入力\")","v":"👈入力"},null,null,null,"旧車両",null,null,{"$f":"IF(AY70=\"\",\"\",+'（ｆ）別紙２－１【補助対象経費支出予定額の内訳】'!N8)","v":""},null,null,null,null,null,null,null,"円",null,null,null,null,null,null,null,null,null,null,null,null,null,null,null,"👉2台目入力へ⇒"]
[null,null,null,null,null,null,null,null,null,null,null,null,null,null,null,null,null,null,null,null,null,null,null,null,null,null,null,null,null,null,null,null,null,null,null,null,null,null,null,null,null,null,null,null,null,null,null,null,"⇒",null,"２台目",null,null,"☟２台目入力"]
[null,null,null,null,null,null,null,null,null,null,null,null,null,null,null,null,null,null,null,null,null,null,null,null,null,null,null,null,null,null,null,null,null,null,null,null,null,null,null,null,null,null,null,null,null,null,null,null,null,null,"申請車両購入区分及び申請車情報",null,null,null,null,null,null,null,null,null,null,null,"申請車両年度間走行情報",null,null,null,null,null,null,null,null,null,null,null,"申請車両の購入額等"]
[null,null,null,null,null,null,null,null,null,null,null,null,null,null,null,null,null,null,null,null,null,null,null,null,null,null,null,null,null,null,null,null,null,null,null,null,null,null,null,null,null,null,null,null,null,null,null,null,null,null,"申請台数"]
[null,null,null,null,null,null,null,null,null,null,null,null,null,null,null,null,null,null,null,null,null,null,null,null,null,null,null,null,null,null,null,null,null,null,null,null,null,null,null,null,null,null,null,null,null,null,null,null,null,null,"車種",null,{"$f":"IF(AY98=\"\",\"\",VLOOKUP(BE102,$AI$45:$AN$55,6.1))","v":""},{"$f":"IF(BK99=\"\",\"\",VLOOKUP(BQ103,$AI$45:$AN$55,6.1))","v":{"$error":"#N/A"}},null,null,null,"号車",null,null,null,null,"具体的な用途",null,null,null,null,null,null,null,null,null,null,null,"①1台毎の車両購入費"]
[null,null,null,null,null,null,null,null,null,null,null,null,null,null,null,null,null,null,null,null,null,null,null,null,null,null,null,null,null,null,null,null,null,null,null,null,null,null,null,null,null,null,null,null,null,null,null,null,null,null,"購入区分",null,null,null,null,null,null,null,null,null,null,null,null,null,null,null,null,null,null,null,null,null,null,null,null,null,null,null,null,null,null,null,"円"]
[null,null,null,null,null,null,null,null,null,null,null,null,null,null,null,null,null,null,null,null,null,null,null,null,null,null,null,null,null,null,null,null,null,null,null,null,null,null,null,null,null,null,null,null,null,null,null,null,null,null,"登録年月日",null,null,null,null,null,null,null,null,null,null,null,null,null,null,null,null,null,null,null,null,null,null,null,"②寄付金その他の収入",null,null,null,null,null,null,null,null,null,"③差引額（①ー②）"]
[null,null,null,null,null,null,null,null,null,null,null,null,null,null,null,null,null,null,null,null,null,null,null,null,null,null,null,null,null,null,null,null,null,null,null,null,null,null,null,null,null,null,null,null,null,null,null,null,null,null,null,null,null,null,null,null,null,null,null,null,null,null,null,null,null,null,null,null,null,null,null,null,null,null,null,null,null,null,null,null,null,null,"円",null,{"$f":"IF(BW96=\"\",\"\",'（ｆ）別紙２－１【補助対象経費支出予定額の内訳】'!G9)","v":""},null,null,null,null,null,"円"]
[null,null,null,null,null,null,null,null,null,null,null,null,null,null,null,null,null,null,null,null,null,null,null,null,null,null,null,null,null,null,null,null,null,null,null,null,null,null,null,null,null,null,null,null,null,null,null,null,null,null,"登録番号",null,null,null,null,null,null,null,null,null,null,null,"代表的な運行コース",null,null,null,null,null,null,null,null,null,null,null,"買替の場合の旧車両情報",null,null,null,null,null,null,null,null,null,null,null,{"$f":"IF(BC96=\"増車\",\"増車の場合の旧車両情報\",\"\")","v":""}]
[null,null,null,null,null,null,null,null,null,null,null,null,null,null,null,null,null,null,null,null,null,null,null,null,null,null,null,null,null,null,null,null,null,null,null,null,null,null,null,null,null,null,null,null,null,null,null,null,null,null,null,null,null,null,null,null,null,null,null,null,null,null,"出発地（Ａ）",null,null,null,null,null,null,null,null,null,null,null,"旧車両（先進環境対応型に適合していない車両）"]
[null,null,null,null,null,null,null,null,null,null,null,null,null,null,null,null,null,null,null,null,null,null,null,null,null,null,null,null,null,null,null,null,null,null,null,null,null,null,null,null,null,null,null,null,null,null,null,null,null,null,"車台番号",null,null,null,null,null,"車両総重量",null,null,null,null,null,null,null,null,null,null,null,null,null,null,null,null,null,null,null,{"$f":"IF(BC96=\"買替\",\"☟車両情報入力\",\"\")","v":""},null,null,null,null,null,null,null,null,null,null,null,{"$f":"IF(BC96=\"増車\",\"☟車両価格入力\",\"\")","v":""}]
[null,null,null,null,null,null,null,null,null,null,null,null,null,null,null,null,null,null,null,null,null,null,null,null,null,null,null,null,null,null,null,null,null,null,null,null,null,null,null,null,null,null,null,null,null,null,null,null,null,null,null,null,null,null,null,null,null,null,null,null,"kg ",null,"経由地",null,null,null,null,null,null,null,null,null,null,null,"車両総重量",null,null,null,null,null,"車体の形状"]
[null,null,null,null,null,null,null,null,null,null,null,null,null,null,null,null,null,null,null,null,null,null,null,null,null,null,null,null,null,null,null,null,null,null,null,null,null,null,null,null,null,null,null,null,null,null,null,null,null,null,"車名（メーカー）",null,null,null,null,null,"型式",null,null,null,null,null,null,null,null,null,null,null,null,null,null,null,null,null,null,null,null,null,null,"kg "]
[null,null,null,null,null,null,null,null,null,null,null,null,null,null,null,null,null,null,null,null,null,null,null,null,null,null,null,null,null,null,null,null,null,null,null,null,null,null,null,null,null,null,null,null,null,null,null,null,null,null,null,null,null,null,null,null,null,null,null,null,null,null,"到着地（Ｂ）",null,null,null,null,null,null,null,null,null,null,null,"旧車両の購入時価格",null,null,null,null,null,null,null,null,null,null,null,"平成21年車両価格"]
[null,null,null,null,null,null,null,null,null,null,null,null,null,null,null,null,null,null,null,null,null,null,null,null,null,null,null,null,null,null,null,null,null,null,null,null,null,null,null,null,null,null,null,null,null,null,null,null,null,null,"通称名",null,null,null,null,null,"架装業者",null,null,null,null,null,null,null,null,null,null,null,null,null,null,null,null,null,null,null,null,null,null,"円",null,null,null,null,null,null,null,null,null,null,"円"]
[null,null,null,null,null,null,null,null,null,null,null,null,null,null,null,null,null,null,null,null,null,null,null,null,null,null,null,null,null,null,null,null,null,null,null,null,null,null,null,null,null,null,null,null,null,null,null,null,null,null,null,null,null,null,null,null,null,null,null,null,null,null,"（Ａ）から（Ｂ）までの距離",null,null,null,null,null,null,null,null,null,null,null,"旧車両の購入年",null,null,null,null,null,"消費者物価指数",null,null,null,null,null,null,null,null,null,null,null,"消費者物価指数"]
[null,null,null,null,null,null,null,null,null,null,null,null,null,null,null,null,null,null,null,null,null,null,null,null,null,null,null,null,null,null,null,null,null,null,null,null,null,null,null,null,null,null,null,null,null,null,null,null,null,null,"車体の形状",null,null,null,null,null,"用途",null,null,null,null,null,100,null,null,null,"㎞",null,null,null,null,null,null,null,"平成",null,null,null,null,"年",null,{"$f":"IF(BZ107=\"\",\"\",VLOOKUP(BZ107,$AS$43:$AT$63,2,FALSE))","v":""},null,null,null,null,null,null,null,null,null,null,null,{"$f":"IF(CI105=\"\",\"\",98)","v":""}]
[null,null,null,null,null,null,null,null,null,null,null,null,null,null,null,null,null,null,null,null,null,null,null,null,null,null,null,null,null,null,null,null,null,null,null,null,null,null,null,null,null,null,null,null,null,null,null,null,null,null,null,null,null,null,null,null,null,null,null,null,null,null,"移動回数及び年度間稼働日数",null,null,null,null,null,null,null,null,null,null,null,"車両総重量",null,null,null,null,null,"車体の形状"]
[null,null,null,null,null,null,null,null,null,null,null,null,null,null,null,null,null,null,null,null,null,null,null,null,null,null,null,null,null,null,null,null,null,null,null,null,null,null,null,null,null,null,null,null,null,null,null,null,null,null,null,null,null,null,null,null,null,null,null,null,null,null,2,null,null,null,"回",null,200,null,null,null,"日",null,{"$f":"IF(BC96=\"買替\",IF(AND(BW103>=BE102-(BE102*0.05),BW103<=BE102+(BE102*0.05)),\"適合\",\"不適合\"),\"\")","v":""},{"$f":"IF(AND(BW109>=BV109-(BV109*0.05),BW109<=BV109+(BV109*0.05)),\"適\",\"不適\")","v":"不適"},{"$f":"IF(AND(BX109>=BW109-(BW109*0.05),BX109<=BW109+(BW109*0.05)),\"適\",\"不適\")","v":{"$error":"#VALUE!"}},{"$f":"IF(AND(BY109>=BX109-(BX109*0.05),BY109<=BX109+(BX109*0.05)),\"適\",\"不適\")","v":{"$error":"#VALUE!"}},{"$f":"IF(AND(BZ109>=BY109-(BY109*0.05),BZ109<=BY109+(BY109*0.05)),\"適\",\"不適\")","v":{"$error":"#VALUE!"}},{"$f":"IF(AND(CA109>=BZ109-(BZ109*0.05),CA109<=BZ109+(BZ109*0.05)),\"適\",\"不適\")","v":{"$error":"#VALUE!"}},{"$f":"IF(BC96=\"買替\",IF(EXACT(AY108,CC103),\"適合\",\"再確認\"),\"\")","v":""},{"$f":"IF(EXACT(CB109,CC109),\"ok\",\"x\")","v":{"$error":"#VALUE!"}},{"$f":"IF(EXACT(CC109,CD109),\"ok\",\"x\")","v":{"$error":"#VALUE!"}},{"$f":"IF(EXACT(CD109,CE109),\"ok\",\"x\")","v":{"$error":"#VALUE!"}},{"$f":"IF(EXACT(CE109,CF109),\"ok\",\"x\")","v":{"$error":"#VALUE!"}},{"$f":"IF(EXACT(CF109,CG109),\"ok\",\"x\")","v":{"$error":"#VALUE!"}}]
[null,null,null,null,null,null,null,null,null,null,null,null,null,null,null,null,null,null,null,null,null,null,null,null,null,null,null,null,null,null,null,null,null,null,null,null,null,null,null,null,null,null,null,null,null,null,null,null,null,null,null,null,null,null,null,null,null,null,null,null,null,null,"その他の走行距離",null,null,null,null,null,"年度間走行距離",null,null,null,null,null,null,null,null,{"$f":"IF(BC96=\"買替\",IF(AND(BW109=\"適合\",CC109=\"適合\"),\"適合\",\"問い合わせ！\"),\"\")","v":""}]
[null,null,null,null,null,null,null,null,null,null,null,null,null,null,null,null,null,null,null,null,null,null,null,null,null,null,null,null,null,null,null,null,null,null,null,null,null,null,null,null,null,null,null,null,null,null,null,null,null,null,"所有者の氏名又は名称",null,null,null,null,null,null,null,null,null,null,null,100,null,null,null,"㎞",null,{"$f":"IF(AY98=\"\",\"\",+'（ｂ）別紙１－２【年度間走行距離一覧表】'!M19)","v":""},null,null,null,"㎞",null,"⑤基準額",null,null,null,null,null,null,null,null,null,null,null,"④補助対象経費支出予定額",null,null,null,null,null,null,null,null,null,null,null,"申請台数分の入力が終了しましたら"]
[null,null,null,null,null,null,null,null,null,null,null,null,null,null,null,null,null,null,null,null,null,null,null,null,null,null,null,null,null,null,null,null,null,null,null,null,null,null,null,null,null,null,null,null,null,null,null,null,null,null,{"$f":"IF(AY98=\"\",\"\",+応募申請用入力シートⅠ!$L$4)","v":""},null,null,null,null,null,null,null,null,null,null,null,"「増車」の先進環境対応型の燃費",null,null,null,null,null,null,null,null,null,null,null,{"$f":"+IF(AY98=\"\",\"\",VLOOKUP(BA95,$AA$44:$AC$46,3,FALSE))","v":""},null,null,null,null,null,null,null,"円",null,null,null,{"$f":"IF(AY98=\"\",\"\",+'（ｆ）別紙２－１【補助対象経費支出予定額の内訳】'!H9)","v":""},null,null,null,null,null,null,null,"円",null,null,null,"下記の「入力完了」をクリックして下さい。"]
[null,null,null,null,null,null,null,null,null,null,null,null,null,null,null,null,null,null,null,null,null,null,null,null,null,null,null,null,null,null,null,null,null,null,null,null,null,null,null,null,null,null,null,null,null,null,null,null,null,null,"所有者の住所",null,null,null,null,null,null,null,null,null,null,null,{"$f":"IF(AY98=\"\",\"\",IF(BC96=\"買替\",\"\",VLOOKUP(BE102,$AI$45:$AM$55,4,1)))","v":""},null,null,null,"㎞／ℓ",null,null,null,null,null,null,null,null,null,null,null,null,null,null,null,null,null,null,null,"（物価指数補正後）"]
[null,null,null,null,null,null,null,null,null,null,null,null,null,null,null,null,null,null,null,null,null,null,null,null,null,null,null,null,null,null,null,null,null,null,null,null,null,null,null,null,null,null,null,null,null,null,null,null,null,null,{"$f":"IF(AY98=\"\",\"\",+応募申請用入力シートⅠ!$L$6)","v":""},null,null,null,null,null,null,null,null,null,null,null,"「増車」の旧車両相当型式換算燃費",null,null,null,null,null,null,null,null,null,null,null,"⑥選定額（④と⑤の少ない方の額）",null,null,null,null,null,null,null,null,null,null,null,null,null,null,null,null,null,null,null,null,null,null,null,"👉入力完了⇒"]
[null,null,null,null,null,null,null,null,null,null,null,null,null,null,null,null,null,null,null,null,null,null,null,null,null,null,null,null,null,null,null,null,null,null,null,null,null,null,null,null,null,null,null,null,null,null,null,null,null,null,"使用の本拠の位置",null,null,null,null,null,null,null,null,null,null,null,{"$f":"IF(BK113=\"\",\"\",(+BK113*100/105))","v":""},null,null,null,"㎞／ℓ",null,null,null,null,null,null,null,{"$f":"IF(AY98=\"\",\"\",+'（ｆ）別紙２－１【補助対象経費支出予定額の内訳】'!L9)","v":""},null,null,null,null,null,null,null,"円"]
[null,null,null,null,null,null,null,null,null,null,null,null,null,null,null,null,null,null,null,null,null,null,null,null,null,null,null,null,null,null,null,null,null,null,null,null,null,null,null,null,null,null,null,null,null,null,null,null,null,null,null,null,null,null,null,null,null,null,null,null,null,null,"実績走行距離",null,null,null,null,null,null,null,null,null,null,null,"⑦補助基本額（③と⑤の少ない方の額）",null,null,null,null,null,null,null,null,null,null,null,null,null,null,null,null,null,null,null,null,null,null,null,"複数台数申請の場合は次の申請車入力画面に進んで下さい。"]
[null,null,null,null,null,null,null,null,null,null,null,null,null,null,null,null,null,null,null,null,null,null,null,null,null,null,null,null,null,null,null,null,null,null,null,null,null,null,null,null,null,null,null,null,null,null,null,null,null,null,"抵当権の有無",null,null,null,null,null,null,null,null,null,null,null,null,null,null,null,"㎞",{"$f":"IF(BC96=\"増車\",\"👈入力不要\",\"👈入力\")","v":"👈入力"},null,null,null,"旧車両",null,null,{"$f":"IF(AY98=\"\",\"\",+'（ｆ）別紙２－１【補助対象経費支出予定額の内訳】'!M9)","v":""},null,null,null,null,null,null,null,"円"]
[null,null,null,null,null,null,null,null,null,null,null,null,null,null,null,null,null,null,null,null,null,null,null,null,null,null,null,null,null,null,null,null,null,null,null,null,null,null,null,null,null,null,null,null,null,null,null,null,null,null,null,null,null,null,null,null,null,null,null,null,null,null,"実績燃料使用量",null,null,null,null,null,null,null,null,null,null,null,"⑧補助金所要額（⑦×１/３）"]
[null,null,null,null,null,null,null,null,null,null,null,null,null,null,null,null,null,null,null,null,null,null,null,null,null,null,null,null,null,null,null,null,null,null,null,null,null,null,null,null,null,null,null,null,null,null,null,null,null,null,null,null,null,null,null,null,null,null,null,null,null,null,null,null,null,null,"ℓ",{"$f":"IF(BC96=\"増車\",\"👈入力不要\",\"👈入力\")","v":"👈入力"},null,null,null,"旧車両",null,null,{"$f":"IF(AY98=\"\",\"\",+'（ｆ）別紙２－１【補助対象経費支出予定額の内訳】'!N9)","v":""},null,null,null,null,null,null,null,"円",null,null,null,null,null,null,null,null,null,null,null,null,null,null,null,"👉３台目入力へ⇒"]
[null,null,null,null,null,null,null,null,null,null,null,null,null,null,null,null,null,null,null,null,null,null,null,null,null,null,null,null,null,null,null,null,null,null,null,null,null,null,null,null,null,null,null,null,null,null,null,null,"⇒",null,"３台目",null,null,"☟３台目入力"]
[null,null,null,null,null,null,null,null,null,null,null,null,null,null,null,null,null,null,null,null,null,null,null,null,null,null,null,null,null,null,null,null,null,null,null,null,null,null,null,null,null,null,null,null,null,null,null,null,null,null,"申請車両購入区分及び申請車情報",null,null,null,null,null,null,null,null,null,null,null,"申請車両年度間走行情報",null,null,null,null,null,null,null,null,null,null,null,"申請車両の購入額等"]
[null,null,null,null,null,null,null,null,null,null,null,null,null,null,null,null,null,null,null,null,null,null,null,null,null,null,null,null,null,null,null,null,null,null,null,null,null,null,null,null,null,null,null,null,null,null,null,null,null,null,"申請台数"]
[null,null,null,null,null,null,null,null,null,null,null,null,null,null,null,null,null,null,null,null,null,null,null,null,null,null,null,null,null,null,null,null,null,null,null,null,null,null,null,null,null,null,null,null,null,null,null,null,null,null,"車種",null,{"$f":"IF(AY126=\"\",\"\",VLOOKUP(BE130,$AI$45:$AN$55,6.1))","v":""},{"$f":"IF(BK127=\"\",\"\",VLOOKUP(BQ131,$AI$45:$AN$55,6.1))","v":{"$error":"#N/A"}},null,null,null,"号車",null,null,null,null,"具体的な用途",null,null,null,null,null,null,null,null,null,null,null,"①1台毎の車両購入費"]
[null,null,null,null,null,null,null,null,null,null,null,null,null,null,null,null,null,null,null,null,null,null,null,null,null,null,null,null,null,null,null,null,null,null,null,null,null,null,null,null,null,null,null,null,null,null,null,null,null,null,"購入区分",null,null,null,null,null,null,null,null,null,null,null,null,null,null,null,null,null,null,null,null,null,null,null,null,null,null,null,null,null,null,null,"円"]
[null,null,null,null,null,null,null,null,null,null,null,null,null,null,null,null,null,null,null,null,null,null,null,null,null,null,null,null,null,null,null,null,null,null,null,null,null,null,null,null,null,null,null,null,null,null,null,null,null,null,"登録年月日",null,null,null,null,null,null,null,null,null,null,null,null,null,null,null,null,null,null,null,null,null,null,null,"②寄付金その他の収入",null,null,null,null,null,null,null,null,null,"③差引額（①ー②）"]
[null,null,null,null,null,null,null,null,null,null,null,null,null,null,null,null,null,null,null,null,null,null,null,null,null,null,null,null,null,null,null,null,null,null,null,null,null,null,null,null,null,null,null,null,null,null,null,null,null,null,null,null,null,null,null,null,null,null,null,null,null,null,null,null,null,null,null,null,null,null,null,null,null,null,null,null,null,null,null,null,null,null,"円",null,{"$f":"IF(BW124=\"\",\"\",'（ｆ）別紙２－１【補助対象経費支出予定額の内訳】'!G10)","v":""},null,null,null,null,null,"円"]
[null,null,null,null,null,null,null,null,null,null,null,null,null,null,null,null,null,null,null,null,null,null,null,null,null,null,null,null,null,null,null,null,null,null,null,null,null,null,null,null,null,null,null,null,null,null,null,null,null,null,"登録番号",null,null,null,null,null,null,null,null,null,null,null,"代表的な運行コース",null,null,null,null,null,null,null,null,null,null,null,"買替の場合の旧車両情報",null,null,null,null,null,null,null,null,null,null,null,{"$f":"IF(BC124=\"増車\",\"増車の場合の旧車両情報\",\"\")","v":""}]
[null,null,null,null,null,null,null,null,null,null,null,null,null,null,null,null,null,null,null,null,null,null,null,null,null,null,null,null,null,null,null,null,null,null,null,null,null,null,null,null,null,null,null,null,null,null,null,null,null,null,null,null,null,null,null,null,null,null,null,null,null,null,"出発地（Ａ）",null,null,null,null,null,null,null,null,null,null,null,"旧車両（先進環境対応型に適合していない車両）"]
[null,null,null,null,null,null,null,null,null,null,null,null,null,null,null,null,null,null,null,null,null,null,null,null,null,null,null,null,null,null,null,null,null,null,null,null,null,null,null,null,null,null,null,null,null,null,null,null,null,null,"車台番号",null,null,null,null,null,"車両総重量",null,null,null,null,null,null,null,null,null,null,null,null,null,null,null,null,null,null,null,{"$f":"IF(BC124=\"買替\",\"☟車両情報入力\",\"\")","v":""},null,null,null,null,null,null,null,null,null,null,null,{"$f":"IF(BC124=\"増車\",\"☟車両価格入力\",\"\")","v":""}]
[null,null,null,null,null,null,null,null,null,null,null,null,null,null,null,null,null,null,null,null,null,null,null,null,null,null,null,null,null,null,null,null,null,null,null,null,null,null,null,null,null,null,null,null,null,null,null,null,null,null,null,null,null,null,null,null,null,null,null,null,"kg ",null,"経由地",null,null,null,null,null,null,null,null,null,null,null,"車両総重量",null,null,null,null,null,"車体の形状"]
[null,null,null,null,null,null,null,null,null,null,null,null,null,null,null,null,null,null,null,null,null,null,null,null,null,null,null,null,null,null,null,null,null,null,null,null,null,null,null,null,null,null,null,null,null,null,null,null,null,null,"車名（メーカー）",null,null,null,null,null,"型式",null,null,null,null,null,null,null,null,null,null,null,null,null,null,null,null,null,null,null,null,null,null,"kg "]
[null,null,null,null,null,null,null,null,null,null,null,null,null,null,null,null,null,null,null,null,null,null,null,null,null,null,null,null,null,null,null,null,null,null,null,null,null,null,null,null,null,null,null,null,null,null,null,null,null,null,null,null,null,null,null,null,null,null,null,null,null,null,"到着地（Ｂ）",null,null,null,null,null,null,null,null,null,null,null,"旧車両の購入時価格",null,null,null,null,null,null,null,null,null,null,null,"平成21年車両価格"]
[null,null,null,null,null,null,null,null,null,null,null,null,null,null,null,null,null,null,null,null,null,null,null,null,null,null,null,null,null,null,null,null,null,null,null,null,null,null,null,null,null,null,null,null,null,null,null,null,null,null,"通称名",null,null,null,null,null,"架装業者",null,null,null,null,null,null,null,null,null,null,null,null,null,null,null,null,null,null,null,null,null,null,"円",null,null,null,null,null,null,null,null,null,null,"円"]
[null,null,null,null,null,null,null,null,null,null,null,null,null,null,null,null,null,null,null,null,null,null,null,null,null,null,null,null,null,null,null,null,null,null,null,null,null,null,null,null,null,null,null,null,null,null,null,null,null,null,null,null,null,null,null,null,null,null,null,null,null,null,"（Ａ）から（Ｂ）までの距離",null,null,null,null,null,null,null,null,null,null,null,"旧車両の購入年",null,null,null,null,null,"消費者物価指数",null,null,null,null,null,null,null,null,null,null,null,"消費者物価指数"]
[null,null,null,null,null,null,null,null,null,null,null,null,null,null,null,null,null,null,null,null,null,null,null,null,null,null,null,null,null,null,null,null,null,null,null,null,null,null,null,null,null,null,null,null,null,null,null,null,null,null,"車体の形状",null,null,null,null,null,"用途",null,null,null,null,null,null,null,null,null,"㎞",null,null,null,null,null,null,null,"平成",null,null,null,null,"年",null,{"$f":"IF(BZ135=\"\",\"\",VLOOKUP(BZ135,$AS$43:$AT$63,2,FALSE))","v":""},null,null,null,null,null,null,null,null,null,null,null,{"$f":"IF(CI133=\"\",\"\",98)","v":""}]
[null,null,null,null,null,null,null,null,null,null,null,null,null,null,null,null,null,null,null,null,null,null,null,null,null,null,null,null,null,null,null,null,null,null,null,null,null,null,null,null,null,null,null,null,null,null,null,null,null,null,null,null,null,null,null,null,null,null,null,null,null,null,"移動回数及び年度間稼働日数",null,null,null,null,null,null,null,null,null,null,null,"車両総重量",null,null,null,null,null,"車体の形状"]
[null,null,null,null,null,null,null,null,null,null,null,null,null,null,null,null,null,null,null,null,null,null,null,null,null,null,null,null,null,null,null,null,null,null,null,null,null,null,null,null,null,null,null,null,null,null,null,null,null,null,null,null,null,null,null,null,null,null,null,null,null,null,null,null,null,null,"回",null,null,null,null,null,"日",null,{"$f":"IF(BC124=\"買替\",IF(AND(BW131>=BE130-(BE130*0.05),BW131<=BE130+(BE130*0.05)),\"適合\",\"不適合\"),\"\")","v":""},{"$f":"IF(AND(BW137>=BV137-(BV137*0.05),BW137<=BV137+(BV137*0.05)),\"適\",\"不適\")","v":"不適"},{"$f":"IF(AND(BX137>=BW137-(BW137*0.05),BX137<=BW137+(BW137*0.05)),\"適\",\"不適\")","v":{"$error":"#VALUE!"}},{"$f":"IF(AND(BY137>=BX137-(BX137*0.05),BY137<=BX137+(BX137*0.05)),\"適\",\"不適\")","v":{"$error":"#VALUE!"}},{"$f":"IF(AND(BZ137>=BY137-(BY137*0.05),BZ137<=BY137+(BY137*0.05)),\"適\",\"不適\")","v":{"$error":"#VALUE!"}},{"$f":"IF(AND(CA137>=BZ137-(BZ137*0.05),CA137<=BZ137+(BZ137*0.05)),\"適\",\"不適\")","v":{"$error":"#VALUE!"}},{"$f":"IF(BC124=\"買替\",IF(EXACT(AY136,CC131),\"適合\",\"再確認\"),\"\")","v":""},{"$f":"IF(EXACT(CB137,CC137),\"ok\",\"x\")","v":{"$error":"#VALUE!"}},{"$f":"IF(EXACT(CC137,CD137),\"ok\",\"x\")","v":{"$error":"#VALUE!"}},{"$f":"IF(EXACT(CD137,CE137),\"ok\",\"x\")","v":{"$error":"#VALUE!"}},{"$f":"IF(EXACT(CE137,CF137),\"ok\",\"x\")","v":{"$error":"#VALUE!"}},{"$f":"IF(EXACT(CF137,CG137),\"ok\",\"x\")","v":{"$error":"#VALUE!"}}]
[null,null,null,null,null,null,null,null,null,null,null,null,null,null,null,null,null,null,null,null,null,null,null,null,null,null,null,null,null,null,null,null,null,null,null,null,null,null,null,null,null,null,null,null,null,null,null,null,null,null,null,null,null,null,null,null,null,null,null,null,null,null,"その他の走行距離",null,null,null,null,null,"年度間走行距離",null,null,null,null,null,null,null,null,{"$f":"IF(BC124=\"買替\",IF(AND(BW137=\"適合\",CC137=\"適合\"),\"適合\",\"問い合わせ！\"),\"\")","v":""}]
[null,null,null,null,null,null,null,null,null,null,null,null,null,null,null,null,null,null,null,null,null,null,null,null,null,null,null,null,null,null,null,null,null,null,null,null,null,null,null,null,null,null,null,null,null,null,null,null,null,null,"所有者の氏名又は名称",null,null,null,null,null,null,null,null,null,null,null,null,null,null,null,"㎞",null,{"$f":"IF(AY126=\"\",\"\",+'（ｂ）別紙１－２【年度間走行距離一覧表】'!M26)","v":""},null,null,null,"㎞",null,"⑤基準額",null,null,null,null,null,null,null,null,null,null,null,"④補助対象経費支出予定額",null,null,null,null,null,null,null,null,null,null,null,"申請台数分の入力が終了しましたら"]
[null,null,null,null,null,null,null,null,null,null,null,null,null,null,null,null,null,null,null,null,null,null,null,null,null,null,null,null,null,null,null,null,null,null,null,null,null,null,null,null,null,null,null,null,null,null,null,null,null,null,{"$f":"IF(AY126=\"\",\"\",+応募申請用入力シートⅠ!$L$4)","v":""},null,null,null,null,null,null,null,null,null,null,null,"「増車」の先進環境対応型の燃費",null,null,null,null,null,null,null,null,null,null,null,{"$f":"+IF(AY126=\"\",\"\",VLOOKUP(BA123,$AA$44:$AC$46,3,FALSE))","v":""},null,null,null,null,null,null,null,"円",null,null,null,{"$f":"IF(AY126=\"\",\"\",+'（ｆ）別紙２－１【補助対象経費支出予定額の内訳】'!H10)","v":""},null,null,null,null,null,null,null,"円",null,null,null,"下記の「入力完了」をクリックして下さい。"]
[null,null,null,null,null,null,null,null,null,null,null,null,null,null,null,null,null,null,null,null,null,null,null,null,null,null,null,null,null,null,null,null,null,null,null,null,null,null,null,null,null,null,null,null,null,null,null,null,null,null,"所有者の住所",null,null,null,null,null,null,null,null,null,null,null,{"$f":"IF(AY126=\"\",\"\",IF(BC124=\"買替\",\"\",VLOOKUP(BE130,$AI$45:$AM$55,4,1)))","v":""},null,null,null,"㎞／ℓ",null,null,null,null,null,null,null,null,null,null,null,null,null,null,null,null,null,null,null,"（物価指数補正後）"]
[null,null,null,null,null,null,null,null,null,null,null,null,null,null,null,null,null,null,null,null,null,null,null,null,null,null,null,null,null,null,null,null,null,null,null,null,null,null,null,null,null,null,null,null,null,null,null,null,null,null,{"$f":"IF(AY126=\"\",\"\",+応募申請用入力シートⅠ!$L$6)","v":""},null,null,null,null,null,null,null,null,null,null,null,"「増車」の旧車両相当型式換算燃費",null,null,null,null,null,null,null,null,null,null,null,"⑥選定額（④と⑤の少ない方の額）",null,null,null,null,null,null,null,null,null,null,null,null,null,null,null,null,null,null,null,null,null,null,null,"👉入力完了⇒"]
[null,null,null,null,null,null,null,null,null,null,null,null,null,null,null,null,null,null,null,null,null,null,null,null,null,null,null,null,null,null,null,null,null,null,null,null,null,null,null,null,null,null,null,null,null,null,null,null,null,null,"使用の本拠の位置",null,null,null,null,null,null,null,null,null,null,null,{"$f":"IF(BK141=\"\",\"\",(+BK141*100/105))","v":""},null,null,null,"㎞／ℓ",null,null,null,null,null,null,null,{"$f":"IF(AY126=\"\",\"\",+'（ｆ）別紙２－１【補助対象経費支出予定額の内訳】'!L10)","v":""},null,null,null,null,null,null,null,"円"]
[null,null,null,null,null,null,null,null,null,null,null,null,null,null,null,null,null,null,null,null,null,null,null,null,null,null,null,null,null,null,null,null,null,null,null,null,null,null,null,null,null,null,null,null,null,null,null,null,null,null,null,null,null,null,null,null,null,null,null,null,null,null,"実績走行距離",null,null,null,null,null,null,null,null,null,null,null,"⑦補助基本額（③と⑤の少ない方の額）",null,null,null,null,null,null,null,null,null,null,null,null,null,null,null,null,null,null,null,null,null,null,null,"複数台数申請の場合は次の申請車入力画面に進んで下さい。"]
[null,null,null,null,null,null,null,null,null,null,null,null,null,null,null,null,null,null,null,null,null,null,null,null,null,null,null,null,null,null,null,null,null,null,null,null,null,null,null,null,null,null,null,null,null,null,null,null,null,null,"抵当権の有無",null,null,null,null,null,null,null,null,null,null,null,null,null,null,null,"㎞",{"$f":"IF(BC124=\"増車\",\"👈入力不要\",\"👈入力\")","v":"👈入力"},null,null,null,"旧車両",null,null,{"$f":"IF(AY126=\"\",\"\",+'（ｆ）別紙２－１【補助対象経費支出予定額の内訳】'!M10)","v":""},null,null,null,null,null,null,null,"円"]
[null,null,null,null,null,null,null,null,null,null,null,null,null,null,null,null,null,null,null,null,null,null,null,null,null,null,null,null,null,null,null,null,null,null,null,null,null,null,null,null,null,null,null,null,null,null,null,null,null,null,null,null,null,null,null,null,null,null,null,null,null,null,"実績燃料使用量",null,null,null,null,null,null,null,null,null,null,null,"⑧補助金所要額（⑦×１/３）"]
[null,null,null,null,null,null,null,null,null,null,null,null,null,null,null,null,null,null,null,null,null,null,null,null,null,null,null,null,null,null,null,null,null,null,null,null,null,null,null,null,null,null,null,null,null,null,null,null,null,null,null,null,null,null,null,null,null,null,null,null,null,null,null,null,null,null,"ℓ",{"$f":"IF(BC124=\"増車\",\"👈入力不要\",\"👈入力\")","v":"👈入力"},null,null,null,"旧車両",null,null,{"$f":"IF(AY126=\"\",\"\",+'（ｆ）別紙２－１【補助対象経費支出予定額の内訳】'!N10)","v":""},null,null,null,null,null,null,null,"円",null,null,null,null,null,null,null,null,null,null,null,null,null,null,null,"👉４台目入力へ⇒"]
[null,null,null,null,null,null,null,null,null,null,null,null,null,null,null,null,null,null,null,null,null,null,null,null,null,null,null,null,null,null,null,null,null,null,null,null,null,null,null,null,null,null,null,null,null,null,null,null,"⇒",null,"４台目",null,null,"☟４台目入力"]
[null,null,null,null,null,null,null,null,null,null,null,null,null,null,null,null,null,null,null,null,null,null,null,null,null,null,null,null,null,null,null,null,null,null,null,null,null,null,null,null,null,null,null,null,null,null,null,null,null,null,"申請車両購入区分及び申請車情報",null,null,null,null,null,null,null,null,null,null,null,"申請車両年度間走行情報",null,null,null,null,null,null,null,null,null,null,null,"申請車両の購入額等"]
[null,null,null,null,null,null,null,null,null,null,null,null,null,null,null,null,null,null,null,null,null,null,null,null,null,null,null,null,null,null,null,null,null,null,null,null,null,null,null,null,null,null,null,null,null,null,null,null,null,null,"申請台数"]
[null,null,null,null,null,null,null,null,null,null,null,null,null,null,null,null,null,null,null,null,null,null,null,null,null,null,null,null,null,null,null,null,null,null,null,null,null,null,null,null,null,null,null,null,null,null,null,null,null,null,"車種",null,{"$f":"IF(AY154=\"\",\"\",VLOOKUP(BE158,$AI$45:$AN$55,6.1))","v":""},{"$f":"IF(BK155=\"\",\"\",VLOOKUP(BQ159,$AI$45:$AN$55,6.1))","v":{"$error":"#N/A"}},null,null,null,"号車",null,null,null,null,"具体的な用途",null,null,null,null,null,null,null,null,null,null,null,"①1台毎の車両購入費"]
[null,null,null,null,null,null,null,null,null,null,null,null,null,null,null,null,null,null,null,null,null,null,null,null,null,null,null,null,null,null,null,null,null,null,null,null,null,null,null,null,null,null,null,null,null,null,null,null,null,null,"購入区分",null,null,null,null,null,null,null,null,null,null,null,null,null,null,null,null,null,null,null,null,null,null,null,null,null,null,null,null,null,null,null,"円"]
[null,null,null,null,null,null,null,null,null,null,null,null,null,null,null,null,null,null,null,null,null,null,null,null,null,null,null,null,null,null,null,null,null,null,null,null,null,null,null,null,null,null,null,null,null,null,null,null,null,null,"登録年月日",null,null,null,null,null,null,null,null,null,null,null,null,null,null,null,null,null,null,null,null,null,null,null,"②寄付金その他の収入",null,null,null,null,null,null,null,null,null,"③差引額（①ー②）"]
[null,null,null,null,null,null,null,null,null,null,null,null,null,null,null,null,null,null,null,null,null,null,null,null,null,null,null,null,null,null,null,null,null,null,null,null,null,null,null,null,null,null,null,null,null,null,null,null,null,null,null,null,null,null,null,null,null,null,null,null,null,null,null,null,null,null,null,null,null,null,null,null,null,null,null,null,null,null,null,null,null,null,"円",null,{"$f":"IF(BW152=\"\",\"\",'（ｆ）別紙２－１【補助対象経費支出予定額の内訳】'!G11)","v":""},null,null,null,null,null,"円"]
[null,null,null,null,null,null,null,null,null,null,null,null,null,null,null,null,null,null,null,null,null,null,null,null,null,null,null,null,null,null,null,null,null,null,null,null,null,null,null,null,null,null,null,null,null,null,null,null,null,null,"登録番号",null,null,null,null,null,null,null,null,null,null,null,"代表的な運行コース",null,null,null,null,null,null,null,null,null,null,null,"買替の場合の旧車両情報",null,null,null,null,null,null,null,null,null,null,null,{"$f":"IF(BC152=\"増車\",\"増車の場合の旧車両情報\",\"\")","v":""}]
[null,null,null,null,null,null,null,null,null,null,null,null,null,null,null,null,null,null,null,null,null,null,null,null,null,null,null,null,null,null,null,null,null,null,null,null,null,null,null,null,null,null,null,null,null,null,null,null,null,null,null,null,null,null,null,null,null,null,null,null,null,null,"出発地（Ａ）",null,null,null,null,null,null,null,null,null,null,null,"旧車両（先進環境対応型に適合していない車両）"]
[null,null,null,null,null,null,null,null,null,null,null,null,null,null,null,null,null,null,null,null,null,null,null,null,null,null,null,null,null,null,null,null,null,null,null,null,null,null,null,null,null,null,null,null,null,null,null,null,null,null,"車台番号",null,null,null,null,null,"車両総重量",null,null,null,null,null,null,null,null,null,null,null,null,null,null,null,null,null,null,null,{"$f":"IF(BC152=\"買替\",\"☟車両情報入力\",\"\")","v":""},null,null,null,null,null,null,null,null,null,null,null,{"$f":"IF(BC152=\"増車\",\"☟車両価格入力\",\"\")","v":""}]
[null,null,null,null,null,null,null,null,null,null,null,null,null,null,null,null,null,null,null,null,null,null,null,null,null,null,null,null,null,null,null,null,null,null,null,null,null,null,null,null,null,null,null,null,null,null,null,null,null,null,null,null,null,null,null,null,null,null,null,null,"kg ",null,"経由地",null,null,null,null,null,null,null,null,null,null,null,"車両総重量",null,null,null,null,null,"車体の形状"]
[null,null,null,null,null,null,null,null,null,null,null,null,null,null,null,null,null,null,null,null,null,null,null,null,null,null,null,null,null,null,null,null,null,null,null,null,null,null,null,null,null,null,null,null,null,null,null,null,null,null,"車名（メーカー）",null,null,null,null,null,"型式",null,null,null,null,null,null,null,null,null,null,null,null,null,null,null,null,null,null,null,null,null,null,"kg "]
[null,null,null,null,null,null,null,null,null,null,null,null,null,null,null,null,null,null,null,null,null,null,null,null,null,null,null,null,null,null,null,null,null,null,null,null,null,null,null,null,null,null,null,null,null,null,null,null,null,null,null,null,null,null,null,null,null,null,null,null,null,null,"到着地（Ｂ）",null,null,null,null,null,null,null,null,null,null,null,"旧車両の購入時価格",null,null,null,null,null,null,null,null,null,null,null,"平成21年車両価格"]
[null,null,null,null,null,null,null,null,null,null,null,null,null,null,null,null,null,null,null,null,null,null,null,null,null,null,null,null,null,null,null,null,null,null,null,null,null,null,null,null,null,null,null,null,null,null,null,null,null,null,"通称名",null,null,null,null,null,"架装業者",null,null,null,null,null,null,null,null,null,null,null,null,null,null,null,null,null,null,null,null,null,null,"円",null,null,null,null,null,null,null,null,null,null,"円"]
[null,null,null,null,null,null,null,null,null,null,null,null,null,null,null,null,null,null,null,null,null,null,null,null,null,null,null,null,null,null,null,null,null,null,null,null,null,null,null,null,null,null,null,null,null,null,null,null,null,null,null,null,null,null,null,null,null,null,null,null,null,null,"（Ａ）から（Ｂ）までの距離",null,null,null,null,null,null,null,null,null,null,null,"旧車両の購入年",null,null,null,null,null,"消費者物価指数",null,null,null,null,null,null,null,null,null,null,null,"消費者物価指数"]
[null,null,null,null,null,null,null,null,null,null,null,null,null,null,null,null,null,null,null,null,null,null,null,null,null,null,null,null,null,null,null,null,null,null,null,null,null,null,null,null,null,null,null,null,null,null,null,null,null,null,"車体の形状",null,null,null,null,null,"用途",null,null,null,null,null,null,null,null,null,"㎞",null,null,null,null,null,null,null,"平成",null,null,null,null,"年",null,{"$f":"IF(BZ163=\"\",\"\",VLOOKUP(BZ163,$AS$43:$AT$63,2,FALSE))","v":""},null,null,null,null,null,null,null,null,null,null,null,{"$f":"IF(CI161=\"\",\"\",98)","v":""}]
[null,null,null,null,null,null,null,null,null,null,null,null,null,null,null,null,null,null,null,null,null,null,null,null,null,null,null,null,null,null,null,null,null,null,null,null,null,null,null,null,null,null,null,null,null,null,null,null,null,null,null,null,null,null,null,null,null,null,null,null,null,null,"移動回数及び年度間稼働日数",null,null,null,null,null,null,null,null,null,null,null,"車両総重量",null,null,null,null,null,"車体の形状"]
[null,null,null,null,null,null,null,null,null,null,null,null,null,null,null,null,null,null,null,null,null,null,null,null,null,null,null,null,null,null,null,null,null,null,null,null,null,null,null,null,null,null,null,null,null,null,null,null,null,null,null,null,null,null,null,null,null,null,null,null,null,null,null,null,null,null,"回",null,null,null,null,null,"日",null,{"$f":"IF(BC152=\"買替\",IF(AND(BW159>=BE158-(BE158*0.05),BW159<=BE158+(BE158*0.05)),\"適合\",\"不適合\"),\"\")","v":""},{"$f":"IF(AND(BW165>=BV165-(BV165*0.05),BW165<=BV165+(BV165*0.05)),\"適\",\"不適\")","v":"不適"},{"$f":"IF(AND(BX165>=BW165-(BW165*0.05),BX165<=BW165+(BW165*0.05)),\"適\",\"不適\")","v":{"$error":"#VALUE!"}},{"$f":"IF(AND(BY165>=BX165-(BX165*0.05),BY165<=BX165+(BX165*0.05)),\"適\",\"不適\")","v":{"$error":"#VALUE!"}},{"$f":"IF(AND(BZ165>=BY165-(BY165*0.05),BZ165<=BY165+(BY165*0.05)),\"適\",\"不適\")","v":{"$error":"#VALUE!"}},{"$f":"IF(AND(CA165>=BZ165-(BZ165*0.05),CA165<=BZ165+(BZ165*0.05)),\"適\",\"不適\")","v":{"$error":"#VALUE!"}},{"$f":"IF(BC152=\"買替\",IF(EXACT(AY164,CC159),\"適合\",\"再確認\"),\"\")","v":""},{"$f":"IF(EXACT(CB165,CC165),\"ok\",\"x\")","v":{"$error":"#VALUE!"}},{"$f":"IF(EXACT(CC165,CD165),\"ok\",\"x\")","v":{"$error":"#VALUE!"}},{"$f":"IF(EXACT(CD165,CE165),\"ok\",\"x\")","v":{"$error":"#VALUE!"}},{"$f":"IF(EXACT(CE165,CF165),\"ok\",\"x\")","v":{"$error":"#VALUE!"}},{"$f":"IF(EXACT(CF165,CG165),\"ok\",\"x\")","v":{"$error":"#VALUE!"}}]
[null,null,null,null,null,null,null,null,null,null,null,null,null,null,null,null,null,null,null,null,null,null,null,null,null,null,null,null,null,null,null,null,null,null,null,null,null,null,null,null,null,null,null,null,null,null,null,null,null,null,null,null,null,null,null,null,null,null,null,null,null,null,"その他の走行距離",null,null,null,null,null,"年度間走行距離",null,null,null,null,null,null,null,null,{"$f":"IF(BC152=\"買替\",IF(AND(BW165=\"適合\",CC165=\"適合\"),\"適合\",\"問い合わせ！\"),\"\")","v":""}]
[null,null,null,null,null,null,null,null,null,null,null,null,null,null,null,null,null,null,null,null,null,null,null,null,null,null,null,null,null,null,null,null,null,null,null,null,null,null,null,null,null,null,null,null,null,null,null,null,null,null,"所有者の氏名又は名称",null,null,null,null,null,null,null,null,null,null,null,0,null,null,null,"㎞",null,{"$f":"IF(AY154=\"\",\"\",+'（ｂ）別紙１－２【年度間走行距離一覧表】'!M33)","v":""},null,null,null,"㎞",null,"⑤基準額",null,null,null,null,null,null,null,null,null,null,null,"④補助対象経費支出予定額",null,null,null,null,null,null,null,null,null,null,null,"申請台数分の入力が終了しましたら"]
[null,null,null,null,null,null,null,null,null,null,null,null,null,null,null,null,null,null,null,null,null,null,null,null,null,null,null,null,null,null,null,null,null,null,null,null,null,null,null,null,null,null,null,null,null,null,null,null,null,null,{"$f":"IF(AY154=\"\",\"\",+応募申請用入力シートⅠ!$L$4)","v":""},null,null,null,null,null,null,null,null,null,null,null,"「増車」の先進環境対応型の燃費",null,null,null,null,null,null,null,null,null,null,null,{"$f":"+IF(AY154=\"\",\"\",VLOOKUP(BA151,$AA$44:$AC$46,3,FALSE))","v":""},null,null,null,null,null,null,null,"円",null,null,null,{"$f":"IF(AY154=\"\",\"\",+'（ｆ）別紙２－１【補助対象経費支出予定額の内訳】'!H11)","v":""},null,null,null,null,null,null,null,"円",null,null,null,"下記の「入力完了」をクリックして下さい。"]
[null,null,null,null,null,null,null,null,null,null,null,null,null,null,null,null,null,null,null,null,null,null,null,null,null,null,null,null,null,null,null,null,null,null,null,null,null,null,null,null,null,null,null,null,null,null,null,null,null,null,"所有者の住所",null,null,null,null,null,null,null,null,null,null,null,{"$f":"IF(AY154=\"\",\"\",IF(BC152=\"買替\",\"\",VLOOKUP(BE158,$AI$45:$AM$55,4,1)))","v":""},null,null,null,"㎞／ℓ",null,null,null,null,null,null,null,null,null,null,null,null,null,null,null,null,null,null,null,"（物価指数補正後）"]
[null,null,null,null,null,null,null,null,null,null,null,null,null,null,null,null,null,null,null,null,null,null,null,null,null,null,null,null,null,null,null,null,null,null,null,null,null,null,null,null,null,null,null,null,null,null,null,null,null,null,{"$f":"IF(AY154=\"\",\"\",+応募申請用入力シートⅠ!$L$6)","v":""},null,null,null,null,null,null,null,null,null,null,null,"「増車」の旧車両相当型式換算燃費",null,null,null,null,null,null,null,null,null,null,null,"⑥選定額（④と⑤の少ない方の額）",null,null,null,null,null,null,null,null,null,null,null,null,null,null,null,null,null,null,null,null,null,null,null,"👉入力完了⇒"]
[null,null,null,null,null,null,null,null,null,null,null,null,null,null,null,null,null,null,null,null,null,null,null,null,null,null,null,null,null,null,null,null,null,null,null,null,null,null,null,null,null,null,null,null,null,null,null,null,null,null,"使用の本拠の位置",null,null,null,null,null,null,null,null,null,null,null,{"$f":"IF(BK169=\"\",\"\",(+BK169*100/105))","v":""},null,null,null,"㎞／ℓ",null,null,null,null,null,null,null,{"$f":"IF(AY154=\"\",\"\",+'（ｆ）別紙２－１【補助対象経費支出予定額の内訳】'!L11)","v":""},null,null,null,null,null,null,null,"円"]
[null,null,null,null,null,null,null,null,null,null,null,null,null,null,null,null,null,null,null,null,null,null,null,null,null,null,null,null,null,null,null,null,null,null,null,null,null,null,null,null,null,null,null,null,null,null,null,null,null,null,null,null,null,null,null,null,null,null,null,null,null,null,"実績走行距離",null,null,null,null,null,null,null,null,null,null,null,"⑦補助基本額（③と⑤の少ない方の額）",null,null,null,null,null,null,null,null,null,null,null,null,null,null,null,null,null,null,null,null,null,null,null,"複数台数申請の場合は次の申請車入力画面に進んで下さい。"]
[null,null,null,null,null,null,null,null,null,null,null,null,null,null,null,null,null,null,null,null,null,null,null,null,null,null,null,null,null,null,null,null,null,null,null,null,null,null,null,null,null,null,null,null,null,null,null,null,null,null,"抵当権の有無",null,null,null,null,null,null,null,null,null,null,null,null,null,null,null,"㎞",{"$f":"IF(BC152=\"増車\",\"👈入力不要\",\"👈入力\")","v":"👈入力"},null,null,null,"旧車両",null,null,{"$f":"IF(AY154=\"\",\"\",+'（ｆ）別紙２－１【補助対象経費支出予定額の内訳】'!M11)","v":""},null,null,null,null,null,null,null,"円"]
[null,null,null,null,null,null,null,null,null,null,null,null,null,null,null,null,null,null,null,null,null,null,null,null,null,null,null,null,null,null,null,null,null,null,null,null,null,null,null,null,null,null,null,null,null,null,null,null,null,null,null,null,null,null,null,null,null,null,null,null,null,null,"実績燃料使用量",null,null,null,null,null,null,null,null,null,null,null,"⑧補助金所要額（⑦×１/３）"]
[null,null,null,null,null,null,null,null,null,null,null,null,null,null,null,null,null,null,null,null,null,null,null,null,null,null,null,null,null,null,null,null,null,null,null,null,null,null,null,null,null,null,null,null,null,null,null,null,null,null,null,null,null,null,null,null,null,null,null,null,null,null,null,null,null,null,"ℓ",{"$f":"IF(BC152=\"増車\",\"👈入力不要\",\"👈入力\")","v":"👈入力"},null,null,null,"旧車両",null,null,{"$f":"IF(AY154=\"\",\"\",+'（ｆ）別紙２－１【補助対象経費支出予定額の内訳】'!N11)","v":""},null,null,null,null,null,null,null,"円",null,null,null,null,null,null,null,null,null,null,null,null,null,null,null,"👉５台目入力へ⇒"]
[null,null,null,null,null,null,null,null,null,null,null,null,null,null,null,null,null,null,null,null,null,null,null,null,null,null,null,null,null,null,null,null,null,null,null,null,null,null,null,null,null,null,null,null,null,null,null,null,"⇒",null,"５台目",null,null,"☟５台目入力"]
[null,null,null,null,null,null,null,null,null,null,null,null,null,null,null,null,null,null,null,null,null,null,null,null,null,null,null,null,null,null,null,null,null,null,null,null,null,null,null,null,null,null,null,null,null,null,null,null,null,null,"申請車両購入区分及び申請車情報",null,null,null,null,null,null,null,null,null,null,null,"申請車両年度間走行情報",null,null,null,null,null,null,null,null,null,null,null,"申請車両の購入額等"]
[null,null,null,null,null,null,null,null,null,null,null,null,null,null,null,null,null,null,null,null,null,null,null,null,null,null,null,null,null,null,null,null,null,null,null,null,null,null,null,null,null,null,null,null,null,null,null,null,null,null,"申請台数"]
[null,null,null,null,null,null,null,null,null,null,null,null,null,null,null,null,null,null,null,null,null,null,null,null,null,null,null,null,null,null,null,null,null,null,null,null,null,null,null,null,null,null,null,null,null,null,null,null,null,null,"車種",null,{"$f":"IF(AY182=\"\",\"\",VLOOKUP(BE186,$AI$45:$AN$55,6.1))","v":""},{"$f":"IF(BK183=\"\",\"\",VLOOKUP(BQ187,$AI$45:$AN$55,6.1))","v":{"$error":"#N/A"}},null,null,null,"号車",null,null,null,null,"具体的な用途",null,null,null,null,null,null,null,null,null,null,null,"①1台毎の車両購入費"]
[null,null,null,null,null,null,null,null,null,null,null,null,null,null,null,null,null,null,null,null,null,null,null,null,null,null,null,null,null,null,null,null,null,null,null,null,null,null,null,null,null,null,null,null,null,null,null,null,null,null,"購入区分",null,null,null,null,null,null,null,null,null,null,null,null,null,null,null,null,null,null,null,null,null,null,null,null,null,null,null,null,null,null,null,"円"]
[null,null,null,null,null,null,null,null,null,null,null,null,null,null,null,null,null,null,null,null,null,null,null,null,null,null,null,null,null,null,null,null,null,null,null,null,null,null,null,null,null,null,null,null,null,null,null,null,null,null,"登録年月日",null,null,null,null,null,null,null,null,null,null,null,null,null,null,null,null,null,null,null,null,null,null,null,"②寄付金その他の収入",null,null,null,null,null,null,null,null,null,"③差引額（①ー②）"]
[null,null,null,null,null,null,null,null,null,null,null,null,null,null,null,null,null,null,null,null,null,null,null,null,null,null,null,null,null,null,null,null,null,null,null,null,null,null,null,null,null,null,null,null,null,null,null,null,null,null,null,null,null,null,null,null,null,null,null,null,null,null,null,null,null,null,null,null,null,null,null,null,null,null,null,null,null,null,null,null,null,null,"円",null,{"$f":"IF(BW180=\"\",\"\",'（ｆ）別紙２－１【補助対象経費支出予定額の内訳】'!G12)","v":""},null,null,null,null,null,"円"]
[null,null,null,null,null,null,null,null,null,null,null,null,null,null,null,null,null,null,null,null,null,null,null,null,null,null,null,null,null,null,null,null,null,null,null,null,null,null,null,null,null,null,null,null,null,null,null,null,null,null,"登録番号",null,null,null,null,null,null,null,null,null,null,null,"代表的な運行コース",null,null,null,null,null,null,null,null,null,null,null,"買替の場合の旧車両情報",null,null,null,null,null,null,null,null,null,null,null,{"$f":"IF(BC180=\"増車\",\"増車の場合の旧車両情報\",\"\")","v":""}]
[null,null,null,null,null,null,null,null,null,null,null,null,null,null,null,null,null,null,null,null,null,null,null,null,null,null,null,null,null,null,null,null,null,null,null,null,null,null,null,null,null,null,null,null,null,null,null,null,null,null,null,null,null,null,null,null,null,null,null,null,null,null,"出発地（Ａ）",null,null,null,null,null,null,null,null,null,null,null,"旧車両（先進環境対応型に適合していない車両）"]
[null,null,null,null,null,null,null,null,null,null,null,null,null,null,null,null,null,null,null,null,null,null,null,null,null,null,null,null,null,null,null,null,null,null,null,null,null,null,null,null,null,null,null,null,null,null,null,null,null,null,"車台番号",null,null,null,null,null,"車両総重量",null,null,null,null,null,null,null,null,null,null,null,null,null,null,null,null,null,null,null,{"$f":"IF(BC180=\"買替\",\"☟車両情報入力\",\"\")","v":""},null,null,null,null,null,null,null,null,null,null,null,{"$f":"IF(BC180=\"増車\",\"☟車両価格入力\",\"\")","v":""}]
[null,null,null,null,null,null,null,null,null,null,null,null,null,null,null,null,null,null,null,null,null,null,null,null,null,null,null,null,null,null,null,null,null,null,null,null,null,null,null,null,null,null,null,null,null,null,null,null,null,null,null,null,null,null,null,null,null,null,null,null,"kg ",null,"経由地",null,null,null,null,null,null,null,null,null,null,null,"車両総重量",null,null,null,null,null,"車体の形状"]
[null,null,null,null,null,null,null,null,null,null,null,null,null,null,null,null,null,null,null,null,null,null,null,null,null,null,null,null,null,null,null,null,null,null,null,null,null,null,null,null,null,null,null,null,null,null,null,null,null,null,"車名（メーカー）",null,null,null,null,null,"型式",null,null,null,null,null,null,null,null,null,null,null,null,null,null,null,null,null,null,null,null,null,null,"kg "]
[null,null,null,null,null,null,null,null,null,null,null,null,null,null,null,null,null,null,null,null,null,null,null,null,null,null,null,null,null,null,null,null,null,null,null,null,null,null,null,null,null,null,null,null,null,null,null,null,null,null,null,null,null,null,null,null,null,null,null,null,null,null,"到着地（Ｂ）",null,null,null,null,null,null,null,null,null,null,null,"旧車両の購入時価格",null,null,null,null,null,null,null,null,null,null,null,"平成21年車両価格"]
[null,null,null,null,null,null,null,null,null,null,null,null,null,null,null,null,null,null,null,null,null,null,null,null,null,null,null,null,null,null,null,null,null,null,null,null,null,null,null,null,null,null,null,null,null,null,null,null,null,null,"通称名",null,null,null,null,null,"架装業者",null,null,null,null,null,null,null,null,null,null,null,null,null,null,null,null,null,null,null,null,null,null,"円",null,null,null,null,null,null,null,null,null,null,"円"]
[null,null,null,null,null,null,null,null,null,null,null,null,null,null,null,null,null,null,null,null,null,null,null,null,null,null,null,null,null,null,null,null,null,null,null,null,null,null,null,null,null,null,null,null,null,null,null,null,null,null,null,null,null,null,null,null,null,null,null,null,null,null,"（Ａ）から（Ｂ）までの距離",null,null,null,null,null,null,null,null,null,null,null,"旧車両の購入年",null,null,null,null,null,"消費者物価指数",null,null,null,null,null,null,null,null,null,null,null,"消費者物価指数"]
[null,null,null,null,null,null,null,null,null,null,null,null,null,null,null,null,null,null,null,null,null,null,null,null,null,null,null,null,null,null,null,null,null,null,null,null,null,null,null,null,null,null,null,null,null,null,null,null,null,null,"車体の形状",null,null,null,null,null,"用途",null,null,null,null,null,null,null,null,null,"㎞",null,null,null,null,null,null,null,"平成",null,null,null,null,null,null,{"$f":"IF(BZ191=\"\",\"\",VLOOKUP(BZ191,$AS$43:$AT$63,2,FALSE))","v":""},null,null,null,null,null,null,null,null,null,null,null,{"$f":"IF(CI189=\"\",\"\",98)","v":""}]
[null,null,null,null,null,null,null,null,null,null,null,null,null,null,null,null,null,null,null,null,null,null,null,null,null,null,null,null,null,null,null,null,null,null,null,null,null,null,null,null,null,null,null,null,null,null,null,null,null,null,null,null,null,null,null,null,null,null,null,null,null,null,"移動回数及び年度間稼働日数",null,null,null,null,null,null,null,null,null,null,null,"車両総重量",null,null,null,null,null,"車体の形状"]
[null,null,null,null,null,null,null,null,null,null,null,null,null,null,null,null,null,null,null,null,null,null,null,null,null,null,null,null,null,null,null,null,null,null,null,null,null,null,null,null,null,null,null,null,null,null,null,null,null,null,null,null,null,null,null,null,null,null,null,null,null,null,null,null,null,null,"回",null,null,null,null,null,"日",null,{"$f":"IF(BC180=\"買替\",IF(AND(BW187>=BE186-(BE186*0.05),BW187<=BE186+(BE186*0.05)),\"適合\",\"不適合\"),\"\")","v":""},{"$f":"IF(AND(BW193>=BV193-(BV193*0.05),BW193<=BV193+(BV193*0.05)),\"適\",\"不適\")","v":"不適"},{"$f":"IF(AND(BX193>=BW193-(BW193*0.05),BX193<=BW193+(BW193*0.05)),\"適\",\"不適\")","v":{"$error":"#VALUE!"}},{"$f":"IF(AND(BY193>=BX193-(BX193*0.05),BY193<=BX193+(BX193*0.05)),\"適\",\"不適\")","v":{"$error":"#VALUE!"}},{"$f":"IF(AND(BZ193>=BY193-(BY193*0.05),BZ193<=BY193+(BY193*0.05)),\"適\",\"不適\")","v":{"$error":"#VALUE!"}},{"$f":"IF(AND(CA193>=BZ193-(BZ193*0.05),CA193<=BZ193+(BZ193*0.05)),\"適\",\"不適\")","v":{"$error":"#VALUE!"}},{"$f":"IF(BC180=\"買替\",IF(EXACT(AY192,CC187),\"適合\",\"再確認\"),\"\")","v":""},{"$f":"IF(EXACT(CB193,CC193),\"ok\",\"x\")","v":{"$error":"#VALUE!"}},{"$f":"IF(EXACT(CC193,CD193),\"ok\",\"x\")","v":{"$error":"#VALUE!"}},{"$f":"IF(EXACT(CD193,CE193),\"ok\",\"x\")","v":{"$error":"#VALUE!"}},{"$f":"IF(EXACT(CE193,CF193),\"ok\",\"x\")","v":{"$error":"#VALUE!"}},{"$f":"IF(EXACT(CF193,CG193),\"ok\",\"x\")","v":{"$error":"#VALUE!"}}]
[null,null,null,null,null,null,null,null,null,null,null,null,null,null,null,null,null,null,null,null,null,null,null,null,null,null,null,null,null,null,null,null,null,null,null,null,null,null,null,null,null,null,null,null,null,null,null,null,null,null,null,null,null,null,null,null,null,null,null,null,null,null,"その他の走行距離",null,null,null,null,null,"年度間走行距離",null,null,null,null,null,null,null,null,{"$f":"IF(BC180=\"買替\",IF(AND(BW193=\"適合\",CC193=\"適合\"),\"適合\",\"問い合わせ！\"),\"\")","v":""}]
[null,null,null,null,null,null,null,null,null,null,null,null,null,null,null,null,null,null,null,null,null,null,null,null,null,null,null,null,null,null,null,null,null,null,null,null,null,null,null,null,null,null,null,null,null,null,null,null,null,null,"所有者の氏名又は名称",null,null,null,null,null,null,null,null,null,null,null,null,null,null,null,"㎞",null,{"$f":"IF(AY182=\"\",\"\",+'（ｂ）別紙１－２【年度間走行距離一覧表】'!M40)","v":""},null,null,null,"㎞",null,"⑤基準額",null,null,null,null,null,null,null,null,null,null,null,"④補助対象経費支出予定額",null,null,null,null,null,null,null,null,null,null,null,"申請台数分の入力が終了しましたら"]
[null,null,null,null,null,null,null,null,null,null,null,null,null,null,null,null,null,null,null,null,null,null,null,null,null,null,null,null,null,null,null,null,null,null,null,null,null,null,null,null,null,null,null,null,null,null,null,null,null,null,{"$f":"IF(AY182=\"\",\"\",+応募申請用入力シートⅠ!$L$4)","v":""},null,null,null,null,null,null,null,null,null,null,null,"「増車」の先進環境対応型の燃費",null,null,null,null,null,null,null,null,null,null,null,{"$f":"+IF(AY182=\"\",\"\",VLOOKUP(BA179,$AA$44:$AC$46,3,FALSE))","v":""},null,null,null,null,null,null,null,"円",null,null,null,{"$f":"IF(AY182=\"\",\"\",+'（ｆ）別紙２－１【補助対象経費支出予定額の内訳】'!H12)","v":""},null,null,null,null,null,null,null,"円",null,null,null,"下記の「入力完了」をクリックして下さい。"]
[null,null,null,null,null,null,null,null,null,null,null,null,null,null,null,null,null,null,null,null,null,null,null,null,null,null,null,null,null,null,null,null,null,null,null,null,null,null,null,null,null,null,null,null,null,null,null,null,null,null,"所有者の住所",null,null,null,null,null,null,null,null,null,null,null,{"$f":"IF(AY182=\"\",\"\",IF(BC180=\"買替\",\"\",VLOOKUP(BE186,$AI$45:$AM$55,4,1)))","v":""},null,null,null,"㎞／ℓ",null,null,null,null,null,null,null,null,null,null,null,null,null,null,null,null,null,null,null,"（物価指数補正後）"]
[null,null,null,null,null,null,null,null,null,null,null,null,null,null,null,null,null,null,null,null,null,null,null,null,null,null,null,null,null,null,null,null,null,null,null,null,null,null,null,null,null,null,null,null,null,null,null,null,null,null,{"$f":"IF(AY182=\"\",\"\",+応募申請用入力シートⅠ!$L$6)","v":""},null,null,null,null,null,null,null,null,null,null,null,"「増車」の旧車両相当型式換算燃費",null,null,null,null,null,null,null,null,null,null,null,"⑥選定額（④と⑤の少ない方の額）",null,null,null,null,null,null,null,null,null,null,null,null,null,null,null,null,null,null,null,null,null,null,null,"👉入力完了⇒"]
[null,null,null,null,null,null,null,null,null,null,null,null,null,null,null,null,null,null,null,null,null,null,null,null,null,null,null,null,null,null,null,null,null,null,null,null,null,null,null,null,null,null,null,null,null,null,null,null,null,null,"使用の本拠の位置",null,null,null,null,null,null,null,null,null,null,null,{"$f":"IF(BK197=\"\",\"\",(+BK197*100/105))","v":""},null,null,null,"㎞／ℓ",null,null,null,null,null,null,null,{"$f":"IF(AY182=\"\",\"\",+'（ｆ）別紙２－１【補助対象経費支出予定額の内訳】'!L12)","v":""},null,null,null,null,null,null,null,"円"]
[null,null,null,null,null,null,null,null,null,null,null,null,null,null,null,null,null,null,null,null,null,null,null,null,null,null,null,null,null,null,null,null,null,null,null,null,null,null,null,null,null,null,null,null,null,null,null,null,null,null,null,null,null,null,null,null,null,null,null,null,null,null,"実績走行距離",null,null,null,null,null,null,null,null,null,null,null,"⑦補助基本額（③と⑤の少ない方の額）",null,null,null,null,null,null,null,null,null,null,null,null,null,null,null,null,null,null,null,null,null,null,null,"複数台数申請の場合は次の申請車入力画面に進んで下さい。"]
[null,null,null,null,null,null,null,null,null,null,null,null,null,null,null,null,null,null,null,null,null,null,null,null,null,null,null,null,null,null,null,null,null,null,null,null,null,null,null,null,null,null,null,null,null,null,null,null,null,null,"抵当権の有無",null,null,null,null,null,null,null,null,null,null,null,null,null,null,null,"㎞",{"$f":"IF(BC180=\"増車\",\"👈入力不要\",\"👈入力\")","v":"👈入力"},null,null,null,"旧車両",null,null,{"$f":"IF(AY182=\"\",\"\",+'（ｆ）別紙２－１【補助対象経費支出予定額の内訳】'!M12)","v":""},null,null,null,null,null,null,null,"円"]
[null,null,null,null,null,null,null,null,null,null,null,null,null,null,null,null,null,null,null,null,null,null,null,null,null,null,null,null,null,null,null,null,null,null,null,null,null,null,null,null,null,null,null,null,null,null,null,null,null,null,null,null,null,null,null,null,null,null,null,null,null,null,"実績燃料使用量",null,null,null,null,null,null,null,null,null,null,null,"⑧補助金所要額（⑦×１/３）"]
[null,null,null,null,null,null,null,null,null,null,null,null,null,null,null,null,null,null,null,null,null,null,null,null,null,null,null,null,null,null,null,null,null,null,null,null,null,null,null,null,null,null,null,null,null,null,null,null,null,null,null,null,null,null,null,null,null,null,null,null,null,null,null,null,null,null,"ℓ",{"$f":"IF(BC180=\"増車\",\"👈入力不要\",\"👈入力\")","v":"👈入力"},null,null,null,"旧車両",null,null,{"$f":"IF(AY182=\"\",\"\",+'（ｆ）別紙２－１【補助対象経費支出予定額の内訳】'!N12)","v":""},null,null,null,null,null,null,null,"円",null,null,null,null,null,null,null,null,null,null,null,null,null,null,null,"👉６台目入力へ⇒"]
[null,null,null,null,null,null,null,null,null,null,null,null,null,null,null,null,null,null,null,null,null,null,null,null,null,null,null,null,null,null,null,null,null,null,null,null,null,null,null,null,null,null,null,null,null,null,null,null,"⇒",null,"６台目",null,null,"☟６台目入力"]
[null,null,null,null,null,null,null,null,null,null,null,null,null,null,null,null,null,null,null,null,null,null,null,null,null,null,null,null,null,null,null,null,null,null,null,null,null,null,null,null,null,null,null,null,null,null,null,null,null,null,"申請車両購入区分及び申請車情報",null,null,null,null,null,null,null,null,null,null,null,"申請車両年度間走行情報",null,null,null,null,null,null,null,null,null,null,null,"申請車両の購入額等"]
[null,null,null,null,null,null,null,null,null,null,null,null,null,null,null,null,null,null,null,null,null,null,null,null,null,null,null,null,null,null,null,null,null,null,null,null,null,null,null,null,null,null,null,null,null,null,null,null,null,null,"申請台数"]
[null,null,null,null,null,null,null,null,null,null,null,null,null,null,null,null,null,null,null,null,null,null,null,null,null,null,null,null,null,null,null,null,null,null,null,null,null,null,null,null,null,null,null,null,null,null,null,null,null,null,"車種",null,{"$f":"IF(AY210=\"\",\"\",VLOOKUP(BE214,$AI$45:$AN$55,6.1))","v":""},{"$f":"IF(BK211=\"\",\"\",VLOOKUP(BQ215,$AI$45:$AN$55,6.1))","v":{"$error":"#N/A"}},null,null,null,"号車",null,null,null,null,"具体的な用途",null,null,null,null,null,null,null,null,null,null,null,"①1台毎の車両購入費"]
[null,null,null,null,null,null,null,null,null,null,null,null,null,null,null,null,null,null,null,null,null,null,null,null,null,null,null,null,null,null,null,null,null,null,null,null,null,null,null,null,null,null,null,null,null,null,null,null,null,null,"購入区分",null,null,null,null,null,null,null,null,null,null,null,null,null,null,null,null,null,null,null,null,null,null,null,null,null,null,null,null,null,null,null,"円"]
[null,null,null,null,null,null,null,null,null,null,null,null,null,null,null,null,null,null,null,null,null,null,null,null,null,null,null,null,null,null,null,null,null,null,null,null,null,null,null,null,null,null,null,null,null,null,null,null,null,null,"登録年月日",null,null,null,null,null,null,null,null,null,null,null,null,null,null,null,null,null,null,null,null,null,null,null,"②寄付金その他の収入",null,null,null,null,null,null,null,null,null,"③差引額（①ー②）"]
[null,null,null,null,null,null,null,null,null,null,null,null,null,null,null,null,null,null,null,null,null,null,null,null,null,null,null,null,null,null,null,null,null,null,null,null,null,null,null,null,null,null,null,null,null,null,null,null,null,null,null,null,null,null,null,null,null,null,null,null,null,null,null,null,null,null,null,null,null,null,null,null,null,null,null,null,null,null,null,null,null,null,"円",null,{"$f":"IF(BW208=\"\",\"\",'（ｆ）別紙２－１【補助対象経費支出予定額の内訳】'!G13)","v":""},null,null,null,null,null,"円"]
[null,null,null,null,null,null,null,null,null,null,null,null,null,null,null,null,null,null,null,null,null,null,null,null,null,null,null,null,null,null,null,null,null,null,null,null,null,null,null,null,null,null,null,null,null,null,null,null,null,null,"登録番号",null,null,null,null,null,null,null,null,null,null,null,"代表的な運行コース",null,null,null,null,null,null,null,null,null,null,null,"買替の場合の旧車両情報",null,null,null,null,null,null,null,null,null,null,null,{"$f":"IF(BC208=\"増車\",\"増車の場合の旧車両情報\",\"\")","v":""}]
[null,null,null,null,null,null,null,null,null,null,null,null,null,null,null,null,null,null,null,null,null,null,null,null,null,null,null,null,null,null,null,null,null,null,null,null,null,null,null,null,null,null,null,null,null,null,null,null,null,null,null,null,null,null,null,null,null,null,null,null,null,null,"出発地（Ａ）",null,null,null,null,null,null,null,null,null,null,null,"旧車両（先進環境対応型に適合していない車両）"]
[null,null,null,null,null,null,null,null,null,null,null,null,null,null,null,null,null,null,null,null,null,null,null,null,null,null,null,null,null,null,null,null,null,null,null,null,null,null,null,null,null,null,null,null,null,null,null,null,null,null,"車台番号",null,null,null,null,null,"車両総重量",null,null,null,null,null,null,null,null,null,null,null,null,null,null,null,null,null,null,null,{"$f":"IF(BC208=\"買替\",\"☟車両情報入力\",\"\")","v":""},null,null,null,null,null,null,null,null,null,null,null,{"$f":"IF(BC208=\"増車\",\"☟車両価格入力\",\"\")","v":""}]
[null,null,null,null,null,null,null,null,null,null,null,null,null,null,null,null,null,null,null,null,null,null,null,null,null,null,null,null,null,null,null,null,null,null,null,null,null,null,null,null,null,null,null,null,null,null,null,null,null,null,null,null,null,null,null,null,null,null,null,null,"kg ",null,"経由地",null,null,null,null,null,null,null,null,null,null,null,"車両総重量",null,null,null,null,null,"車体の形状"]
[null,null,null,null,null,null,null,null,null,null,null,null,null,null,null,null,null,null,null,null,null,null,null,null,null,null,null,null,null,null,null,null,null,null,null,null,null,null,null,null,null,null,null,null,null,null,null,null,null,null,"車名（メーカー）",null,null,null,null,null,"型式",null,null,null,null,null,null,null,null,null,null,null,null,null,null,null,null,null,null,null,null,null,null,"kg "]
[null,null,null,null,null,null,null,null,null,null,null,null,null,null,null,null,null,null,null,null,null,null,null,null,null,null,null,null,null,null,null,null,null,null,null,null,null,null,null,null,null,null,null,null,null,null,null,null,null,null,null,null,null,null,null,null,null,null,null,null,null,null,"到着地（Ｂ）",null,null,null,null,null,null,null,null,null,null,null,"旧車両の購入時価格",null,null,null,null,null,null,null,null,null,null,null,"平成21年車両価格"]
[null,null,null,null,null,null,null,null,null,null,null,null,null,null,null,null,null,null,null,null,null,null,null,null,null,null,null,null,null,null,null,null,null,null,null,null,null,null,null,null,null,null,null,null,null,null,null,null,null,null,"通称名",null,null,null,null,null,"架装業者",null,null,null,null,null,null,null,null,null,null,null,null,null,null,null,null,null,null,null,null,null,null,"円",null,null,null,null,null,null,null,null,null,null,"円"]
[null,null,null,null,null,null,null,null,null,null,null,null,null,null,null,null,null,null,null,null,null,null,null,null,null,null,null,null,null,null,null,null,null,null,null,null,null,null,null,null,null,null,null,null,null,null,null,null,null,null,null,null,null,null,null,null,null,null,null,null,null,null,"（Ａ）から（Ｂ）までの距離",null,null,null,null,null,null,null,null,null,null,null,"旧車両の購入年",null,null,null,null,null,"消費者物価指数",null,null,null,null,null,null,null,null,null,null,null,"消費者物価指数"]
[null,null,null,null,null,null,null,null,null,null,null,null,null,null,null,null,null,null,null,null,null,null,null,null,null,null,null,null,null,null,null,null,null,null,null,null,null,null,null,null,null,null,null,null,null,null,null,null,null,null,"車体の形状",null,null,null,null,null,"用途",null,null,null,null,null,null,null,null,null,"㎞",null,null,null,null,null,null,null,"平成",null,null,null,null,"年",null,{"$f":"IF(BZ219=\"\",\"\",VLOOKUP(BZ219,$AS$43:$AT$63,2,FALSE))","v":""},null,null,null,null,null,null,null,null,null,null,null,{"$f":"IF(CI217=\"\",\"\",98)","v":""}]
[null,null,null,null,null,null,null,null,null,null,null,null,null,null,null,null,null,null,null,null,null,null,null,null,null,null,null,null,null,null,null,null,null,null,null,null,null,null,null,null,null,null,null,null,null,null,null,null,null,null,null,null,null,null,null,null,null,null,null,null,null,null,"移動回数及び年度間稼働日数",null,null,null,null,null,null,null,null,null,null,null,"車両総重量",null,null,null,null,null,"車体の形状"]
[null,null,null,null,null,null,null,null,null,null,null,null,null,null,null,null,null,null,null,null,null,null,null,null,null,null,null,null,null,null,null,null,null,null,null,null,null,null,null,null,null,null,null,null,null,null,null,null,null,null,null,null,null,null,null,null,null,null,null,null,null,null,null,null,null,null,"回",null,null,null,null,null,"日",null,{"$f":"IF(BC208=\"買替\",IF(AND(BW215>=BE214-(BE214*0.05),BW215<=BE214+(BE214*0.05)),\"適合\",\"不適合\"),\"\")","v":""},{"$f":"IF(AND(BW221>=BV221-(BV221*0.05),BW221<=BV221+(BV221*0.05)),\"適\",\"不適\")","v":"不適"},{"$f":"IF(AND(BX221>=BW221-(BW221*0.05),BX221<=BW221+(BW221*0.05)),\"適\",\"不適\")","v":{"$error":"#VALUE!"}},{"$f":"IF(AND(BY221>=BX221-(BX221*0.05),BY221<=BX221+(BX221*0.05)),\"適\",\"不適\")","v":{"$error":"#VALUE!"}},{"$f":"IF(AND(BZ221>=BY221-(BY221*0.05),BZ221<=BY221+(BY221*0.05)),\"適\",\"不適\")","v":{"$error":"#VALUE!"}},{"$f":"IF(AND(CA221>=BZ221-(BZ221*0.05),CA221<=BZ221+(BZ221*0.05)),\"適\",\"不適\")","v":{"$error":"#VALUE!"}},{"$f":"IF(BC208=\"買替\",IF(EXACT(AY220,CC215),\"適合\",\"再確認\"),\"\")","v":""},{"$f":"IF(EXACT(CB221,CC221),\"ok\",\"x\")","v":{"$error":"#VALUE!"}},{"$f":"IF(EXACT(CC221,CD221),\"ok\",\"x\")","v":{"$error":"#VALUE!"}},{"$f":"IF(EXACT(CD221,CE221),\"ok\",\"x\")","v":{"$error":"#VALUE!"}},{"$f":"IF(EXACT(CE221,CF221),\"ok\",\"x\")","v":{"$error":"#VALUE!"}},{"$f":"IF(EXACT(CF221,CG221),\"ok\",\"x\")","v":{"$error":"#VALUE!"}}]
[null,null,null,null,null,null,null,null,null,null,null,null,null,null,null,null,null,null,null,null,null,null,null,null,null,null,null,null,null,null,null,null,null,null,null,null,null,null,null,null,null,null,null,null,null,null,null,null,null,null,null,null,null,null,null,null,null,null,null,null,null,null,"その他の走行距離",null,null,null,null,null,"年度間走行距離",null,null,null,null,null,null,null,null,{"$f":"IF(BC208=\"買替\",IF(AND(BW221=\"適合\",CC221=\"適合\"),\"適合\",\"問い合わせ！\"),\"\")","v":""}]
[null,null,null,null,null,null,null,null,null,null,null,null,null,null,null,null,null,null,null,null,null,null,null,null,null,null,null,null,null,null,null,null,null,null,null,null,null,null,null,null,null,null,null,null,null,null,null,null,null,null,"所有者の氏名又は名称",null,null,null,null,null,null,null,null,null,null,null,null,null,null,null,"㎞",null,{"$f":"IF(AY210=\"\",\"\",+'（ｂ）別紙１－２【年度間走行距離一覧表】'!M47)","v":""},null,null,null,"㎞",null,"⑤基準額",null,null,null,null,null,null,null,null,null,null,null,"④補助対象経費支出予定額",null,null,null,null,null,null,null,null,null,null,null,"申請台数分の入力が終了しましたら"]
[null,null,null,null,null,null,null,null,null,null,null,null,null,null,null,null,null,null,null,null,null,null,null,null,null,null,null,null,null,null,null,null,null,null,null,null,null,null,null,null,null,null,null,null,null,null,null,null,null,null,{"$f":"IF(AY210=\"\",\"\",+応募申請用入力シートⅠ!$L$4)","v":""},null,null,null,null,null,null,null,null,null,null,null,"「増車」の先進環境対応型の燃費",null,null,null,null,null,null,null,null,null,null,null,{"$f":"+IF(AY210=\"\",\"\",VLOOKUP(BA207,$AA$44:$AC$46,3,FALSE))","v":""},null,null,null,null,null,null,null,"円",null,null,null,{"$f":"IF(AY210=\"\",\"\",+'（ｆ）別紙２－１【補助対象経費支出予定額の内訳】'!H13)","v":""},null,null,null,null,null,null,null,"円",null,null,null,"下記の「入力完了」をクリックして下さい。"]
[null,null,null,null,null,null,null,null,null,null,null,null,null,null,null,null,null,null,null,null,null,null,null,null,null,null,null,null,null,null,null,null,null,null,null,null,null,null,null,null,null,null,null,null,null,null,null,null,null,null,"所有者の住所",null,null,null,null,null,null,null,null,null,null,null,{"$f":"IF(AY210=\"\",\"\",IF(BC208=\"買替\",\"\",VLOOKUP(BE214,$AI$45:$AM$55,4,1)))","v":""},null,null,null,"㎞／ℓ",null,null,null,null,null,null,null,null,null,null,null,null,null,null,null,null,null,null,null,"（物価指数補正後）"]
[null,null,null,null,null,null,null,null,null,null,null,null,null,null,null,null,null,null,null,null,null,null,null,null,null,null,null,null,null,null,null,null,null,null,null,null,null,null,null,null,null,null,null,null,null,null,null,null,null,null,{"$f":"IF(AY210=\"\",\"\",+応募申請用入力シートⅠ!$L$6)","v":""},null,null,null,null,null,null,null,null,null,null,null,"「増車」の旧車両相当型式換算燃費",null,null,null,null,null,null,null,null,null,null,null,"⑥選定額（④と⑤の少ない方の額）",null,null,null,null,null,null,null,null,null,null,null,null,null,null,null,null,null,null,null,null,null,null,null,"👉入力完了⇒"]
[null,null,null,null,null,null,null,null,null,null,null,null,null,null,null,null,null,null,null,null,null,null,null,null,null,null,null,null,null,null,null,null,null,null,null,null,null,null,null,null,null,null,null,null,null,null,null,null,null,null,"使用の本拠の位置",null,null,null,null,null,null,null,null,null,null,null,{"$f":"IF(BK225=\"\",\"\",(+BK225*100/105))","v":""},null,null,null,"㎞／ℓ",null,null,null,null,null,null,null,{"$f":"IF(AY210=\"\",\"\",+'（ｆ）別紙２－１【補助対象経費支出予定額の内訳】'!L13)","v":""},null,null,null,null,null,null,null,"円"]
[null,null,null,null,null,null,null,null,null,null,null,null,null,null,null,null,null,null,null,null,null,null,null,null,null,null,null,null,null,null,null,null,null,null,null,null,null,null,null,null,null,null,null,null,null,null,null,null,null,null,null,null,null,null,null,null,null,null,null,null,null,null,"実績走行距離",null,null,null,null,null,null,null,null,null,null,null,"⑦補助基本額（③と⑤の少ない方の額）",null,null,null,null,null,null,null,null,null,null,null,null,null,null,null,null,null,null,null,null,null,null,null,"複数台数申請の場合は次の申請車入力画面に進んで下さい。"]
[null,null,null,null,null,null,null,null,null,null,null,null,null,null,null,null,null,null,null,null,null,null,null,null,null,null,null,null,null,null,null,null,null,null,null,null,null,null,null,null,null,null,null,null,null,null,null,null,null,null,"抵当権の有無",null,null,null,null,null,null,null,null,null,null,null,null,null,null,null,"㎞",{"$f":"IF(BC208=\"増車\",\"👈入力不要\",\"👈入力\")","v":"👈入力"},null,null,null,"旧車両",null,null,{"$f":"IF(AY210=\"\",\"\",+'（ｆ）別紙２－１【補助対象経費支出予定額の内訳】'!M13)","v":""},null,null,null,null,null,null,null,"円"]
[null,null,null,null,null,null,null,null,null,null,null,null,null,null,null,null,null,null,null,null,null,null,null,null,null,null,null,null,null,null,null,null,null,null,null,null,null,null,null,null,null,null,null,null,null,null,null,null,null,null,null,null,null,null,null,null,null,null,null,null,null,null,"実績燃料使用量",null,null,null,null,null,null,null,null,null,null,null,"⑧補助金所要額（⑦×１/３）"]
[null,null,null,null,null,null,null,null,null,null,null,null,null,null,null,null,null,null,null,null,null,null,null,null,null,null,null,null,null,null,null,null,null,null,null,null,null,null,null,null,null,null,null,null,null,null,null,null,null,null,null,null,null,null,null,null,null,null,null,null,null,null,null,null,null,null,"ℓ",{"$f":"IF(BC208=\"増車\",\"👈入力不要\",\"👈入力\")","v":"👈入力"},null,null,null,"旧車両",null,null,{"$f":"IF(AY210=\"\",\"\",+'（ｆ）別紙２－１【補助対象経費支出予定額の内訳】'!N13)","v":""},null,null,null,null,null,null,null,"円",null,null,null,null,null,null,null,null,null,null,null,null,null,null,null,"👉７台目入力へ⇒"]
[null,null,null,null,null,null,null,null,null,null,null,null,null,null,null,null,null,null,null,null,null,null,null,null,null,null,null,null,null,null,null,null,null,null,null,null,null,null,null,null,null,null,null,null,null,null,null,null,"⇒",null,"７台目",null,null,"☟７台目入力"]
[null,null,null,null,null,null,null,null,null,null,null,null,null,null,null,null,null,null,null,null,null,null,null,null,null,null,null,null,null,null,null,null,null,null,null,null,null,null,null,null,null,null,null,null,null,null,null,null,null,null,"申請車両購入区分及び申請車情報",null,null,null,null,null,null,null,null,null,null,null,"申請車両年度間走行情報",null,null,null,null,null,null,null,null,null,null,null,"申請車両の購入額等"]
[null,null,null,null,null,null,null,null,null,null,null,null,null,null,null,null,null,null,null,null,null,null,null,null,null,null,null,null,null,null,null,null,null,null,null,null,null,null,null,null,null,null,null,null,null,null,null,null,null,null,"申請台数"]
[null,null,null,null,null,null,null,null,null,null,null,null,null,null,null,null,null,null,null,null,null,null,null,null,null,null,null,null,null,null,null,null,null,null,null,null,null,null,null,null,null,null,null,null,null,null,null,null,null,null,"車種",null,{"$f":"IF(AY238=\"\",\"\",VLOOKUP(BE242,$AI$45:$AN$55,6.1))","v":""},{"$f":"IF(BK239=\"\",\"\",VLOOKUP(BQ243,$AI$45:$AN$55,6.1))","v":{"$error":"#N/A"}},null,null,null,"号車",null,null,null,null,"具体的な用途",null,null,null,null,null,null,null,null,null,null,null,"①1台毎の車両購入費"]
[null,null,null,null,null,null,null,null,null,null,null,null,null,null,null,null,null,null,null,null,null,null,null,null,null,null,null,null,null,null,null,null,null,null,null,null,null,null,null,null,null,null,null,null,null,null,null,null,null,null,"購入区分",null,null,null,null,null,null,null,null,null,null,null,null,null,null,null,null,null,null,null,null,null,null,null,null,null,null,null,null,null,null,null,"円"]
[null,null,null,null,null,null,null,null,null,null,null,null,null,null,null,null,null,null,null,null,null,null,null,null,null,null,null,null,null,null,null,null,null,null,null,null,null,null,null,null,null,null,null,null,null,null,null,null,null,null,"登録年月日",null,null,null,null,null,null,null,null,null,null,null,null,null,null,null,null,null,null,null,null,null,null,null,"②寄付金その他の収入",null,null,null,null,null,null,null,null,null,"③差引額（①ー②）"]
[null,null,null,null,null,null,null,null,null,null,null,null,null,null,null,null,null,null,null,null,null,null,null,null,null,null,null,null,null,null,null,null,null,null,null,null,null,null,null,null,null,null,null,null,null,null,null,null,null,null,null,null,null,null,null,null,null,null,null,null,null,null,null,null,null,null,null,null,null,null,null,null,null,null,null,null,null,null,null,null,null,null,"円",null,{"$f":"IF(BW236=\"\",\"\",'（ｆ）別紙２－１【補助対象経費支出予定額の内訳】'!G14)","v":""},null,null,null,null,null,"円"]
[null,null,null,null,null,null,null,null,null,null,null,null,null,null,null,null,null,null,null,null,null,null,null,null,null,null,null,null,null,null,null,null,null,null,null,null,null,null,null,null,null,null,null,null,null,null,null,null,null,null,"登録番号",null,null,null,null,null,null,null,null,null,null,null,"代表的な運行コース",null,null,null,null,null,null,null,null,null,null,null,"買替の場合の旧車両情報",null,null,null,null,null,null,null,null,null,null,null,{"$f":"IF(BC236=\"増車\",\"増車の場合の旧車両情報\",\"\")","v":""}]
[null,null,null,null,null,null,null,null,null,null,null,null,null,null,null,null,null,null,null,null,null,null,null,null,null,null,null,null,null,null,null,null,null,null,null,null,null,null,null,null,null,null,null,null,null,null,null,null,null,null,null,null,null,null,null,null,null,null,null,null,null,null,"出発地（Ａ）",null,null,null,null,null,null,null,null,null,null,null,"旧車両（先進環境対応型に適合していない車両）"]
[null,null,null,null,null,null,null,null,null,null,null,null,null,null,null,null,null,null,null,null,null,null,null,null,null,null,null,null,null,null,null,null,null,null,null,null,null,null,null,null,null,null,null,null,null,null,null,null,null,null,"車台番号",null,null,null,null,null,"車両総重量",null,null,null,null,null,null,null,null,null,null,null,null,null,null,null,null,null,null,null,{"$f":"IF(BC236=\"買替\",\"☟車両情報入力\",\"\")","v":""},null,null,null,null,null,null,null,null,null,null,null,{"$f":"IF(BC236=\"増車\",\"☟車両価格入力\",\"\")","v":""}]
[null,null,null,null,null,null,null,null,null,null,null,null,null,null,null,null,null,null,null,null,null,null,null,null,null,null,null,null,null,null,null,null,null,null,null,null,null,null,null,null,null,null,null,null,null,null,null,null,null,null,null,null,null,null,null,null,null,null,null,null,"kg ",null,"経由地",null,null,null,null,null,null,null,null,null,null,null,"車両総重量",null,null,null,null,null,"車体の形状"]
[null,null,null,null,null,null,null,null,null,null,null,null,null,null,null,null,null,null,null,null,null,null,null,null,null,null,null,null,null,null,null,null,null,null,null,null,null,null,null,null,null,null,null,null,null,null,null,null,null,null,"車名（メーカー）",null,null,null,null,null,"型式",null,null,null,null,null,null,null,null,null,null,null,null,null,null,null,null,null,null,null,null,null,null,"kg "]
[null,null,null,null,null,null,null,null,null,null,null,null,null,null,null,null,null,null,null,null,null,null,null,null,null,null,null,null,null,null,null,null,null,null,null,null,null,null,null,null,null,null,null,null,null,null,null,null,null,null,null,null,null,null,null,null,null,null,null,null,null,null,"到着地（Ｂ）",null,null,null,null,null,null,null,null,null,null,null,"旧車両の購入時価格",null,null,null,null,null,null,null,null,null,null,null,"平成21年車両価格"]
[null,null,null,null,null,null,null,null,null,null,null,null,null,null,null,null,null,null,null,null,null,null,null,null,null,null,null,null,null,null,null,null,null,null,null,null,null,null,null,null,null,null,null,null,null,null,null,null,null,null,"通称名",null,null,null,null,null,"架装業者",null,null,null,null,null,null,null,null,null,null,null,null,null,null,null,null,null,null,null,null,null,null,"円",null,null,null,null,null,null,null,null,null,null,"円"]
[null,null,null,null,null,null,null,null,null,null,null,null,null,null,null,null,null,null,null,null,null,null,null,null,null,null,null,null,null,null,null,null,null,null,null,null,null,null,null,null,null,null,null,null,null,null,null,null,null,null,null,null,null,null,null,null,null,null,null,null,null,null,"（Ａ）から（Ｂ）までの距離",null,null,null,null,null,null,null,null,null,null,null,"旧車両の購入年",null,null,null,null,null,"消費者物価指数",null,null,null,null,null,null,null,null,null,null,null,"消費者物価指数"]
[null,null,null,null,null,null,null,null,null,null,null,null,null,null,null,null,null,null,null,null,null,null,null,null,null,null,null,null,null,null,null,null,null,null,null,null,null,null,null,null,null,null,null,null,null,null,null,null,null,null,"車体の形状",null,null,null,null,null,"用途",null,null,null,null,null,null,null,null,null,"㎞",null,null,null,null,null,null,null,"平成",null,null,null,null,"年",null,{"$f":"IF(BZ247=\"\",\"\",VLOOKUP(BZ247,$AS$43:$AT$63,2,FALSE))","v":""},null,null,null,null,null,null,null,null,null,null,null,{"$f":"IF(CI245=\"\",\"\",98)","v":""}]
[null,null,null,null,null,null,null,null,null,null,null,null,null,null,null,null,null,null,null,null,null,null,null,null,null,null,null,null,null,null,null,null,null,null,null,null,null,null,null,null,null,null,null,null,null,null,null,null,null,null,null,null,null,null,null,null,null,null,null,null,null,null,"移動回数及び年度間稼働日数",null,null,null,null,null,null,null,null,null,null,null,"車両総重量",null,null,null,null,null,"車体の形状"]
[null,null,null,null,null,null,null,null,null,null,null,null,null,null,null,null,null,null,null,null,null,null,null,null,null,null,null,null,null,null,null,null,null,null,null,null,null,null,null,null,null,null,null,null,null,null,null,null,null,null,null,null,null,null,null,null,null,null,null,null,null,null,null,null,null,null,"回",null,null,null,null,null,"日",null,{"$f":"IF(BC236=\"買替\",IF(AND(BW243>=BE242-(BE242*0.05),BW243<=BE242+(BE242*0.05)),\"適合\",\"不適合\"),\"\")","v":""},{"$f":"IF(AND(BW249>=BV249-(BV249*0.05),BW249<=BV249+(BV249*0.05)),\"適\",\"不適\")","v":"不適"},{"$f":"IF(AND(BX249>=BW249-(BW249*0.05),BX249<=BW249+(BW249*0.05)),\"適\",\"不適\")","v":{"$error":"#VALUE!"}},{"$f":"IF(AND(BY249>=BX249-(BX249*0.05),BY249<=BX249+(BX249*0.05)),\"適\",\"不適\")","v":{"$error":"#VALUE!"}},{"$f":"IF(AND(BZ249>=BY249-(BY249*0.05),BZ249<=BY249+(BY249*0.05)),\"適\",\"不適\")","v":{"$error":"#VALUE!"}},{"$f":"IF(AND(CA249>=BZ249-(BZ249*0.05),CA249<=BZ249+(BZ249*0.05)),\"適\",\"不適\")","v":{"$error":"#VALUE!"}},{"$f":"IF(BC236=\"買替\",IF(EXACT(AY248,CC243),\"適合\",\"再確認\"),\"\")","v":""},{"$f":"IF(EXACT(CB249,CC249),\"ok\",\"x\")","v":{"$error":"#VALUE!"}},{"$f":"IF(EXACT(CC249,CD249),\"ok\",\"x\")","v":{"$error":"#VALUE!"}},{"$f":"IF(EXACT(CD249,CE249),\"ok\",\"x\")","v":{"$error":"#VALUE!"}},{"$f":"IF(EXACT(CE249,CF249),\"ok\",\"x\")","v":{"$error":"#VALUE!"}},{"$f":"IF(EXACT(CF249,CG249),\"ok\",\"x\")","v":{"$error":"#VALUE!"}}]
[null,null,null,null,null,null,null,null,null,null,null,null,null,null,null,null,null,null,null,null,null,null,null,null,null,null,null,null,null,null,null,null,null,null,null,null,null,null,null,null,null,null,null,null,null,null,null,null,null,null,null,null,null,null,null,null,null,null,null,null,null,null,"その他の走行距離",null,null,null,null,null,"年度間走行距離",null,null,null,null,null,null,null,null,{"$f":"IF(BC236=\"買替\",IF(AND(BW249=\"適合\",CC249=\"適合\"),\"適合\",\"問い合わせ！\"),\"\")","v":""}]
[null,null,null,null,null,null,null,null,null,null,null,null,null,null,null,null,null,null,null,null,null,null,null,null,null,null,null,null,null,null,null,null,null,null,null,null,null,null,null,null,null,null,null,null,null,null,null,null,null,null,"所有者の氏名又は名称",null,null,null,null,null,null,null,null,null,null,null,null,null,null,null,"㎞",null,{"$f":"IF(AY238=\"\",\"\",+'（ｂ）別紙１－２【年度間走行距離一覧表】'!M54)","v":""},null,null,null,"㎞",null,"⑤基準額",null,null,null,null,null,null,null,null,null,null,null,"④補助対象経費支出予定額",null,null,null,null,null,null,null,null,null,null,null,"申請台数分の入力が終了しましたら"]
[null,null,null,null,null,null,null,null,null,null,null,null,null,null,null,null,null,null,null,null,null,null,null,null,null,null,null,null,null,null,null,null,null,null,null,null,null,null,null,null,null,null,null,null,null,null,null,null,null,null,{"$f":"IF(AY238=\"\",\"\",+応募申請用入力シートⅠ!$L$4)","v":""},null,null,null,null,null,null,null,null,null,null,null,"「増車」の先進環境対応型の燃費",null,null,null,null,null,null,null,null,null,null,null,{"$f":"+IF(AY238=\"\",\"\",VLOOKUP(BA235,$AA$44:$AC$46,3,FALSE))","v":""},null,null,null,null,null,null,null,"円",null,null,null,{"$f":"IF(AY238=\"\",\"\",+'（ｆ）別紙２－１【補助対象経費支出予定額の内訳】'!H14)","v":""},null,null,null,null,null,null,null,"円",null,null,null,"下記の「入力完了」をクリックして下さい。"]
[null,null,null,null,null,null,null,null,null,null,null,null,null,null,null,null,null,null,null,null,null,null,null,null,null,null,null,null,null,null,null,null,null,null,null,null,null,null,null,null,null,null,null,null,null,null,null,null,null,null,"所有者の住所",null,null,null,null,null,null,null,null,null,null,null,{"$f":"IF(AY238=\"\",\"\",IF(BC236=\"買替\",\"\",VLOOKUP(BE242,$AI$45:$AM$55,4,1)))","v":""},null,null,null,"㎞／ℓ",null,null,null,null,null,null,null,null,null,null,null,null,null,null,null,null,null,null,null,"（物価指数補正後）"]
[null,null,null,null,null,null,null,null,null,null,null,null,null,null,null,null,null,null,null,null,null,null,null,null,null,null,null,null,null,null,null,null,null,null,null,null,null,null,null,null,null,null,null,null,null,null,null,null,null,null,{"$f":"IF(AY238=\"\",\"\",+応募申請用入力シートⅠ!$L$6)","v":""},null,null,null,null,null,null,null,null,null,null,null,"「増車」の旧車両相当型式換算燃費",null,null,null,null,null,null,null,null,null,null,null,"⑥選定額（④と⑤の少ない方の額）",null,null,null,null,null,null,null,null,null,null,null,null,null,null,null,null,null,null,null,null,null,null,null,"👉入力完了⇒"]
[null,null,null,null,null,null,null,null,null,null,null,null,null,null,null,null,null,null,null,null,null,null,null,null,null,null,null,null,null,null,null,null,null,null,null,null,null,null,null,null,null,null,null,null,null,null,null,null,null,null,"使用の本拠の位置",null,null,null,null,null,null,null,null,null,null,null,{"$f":"IF(BK253=\"\",\"\",(+BK253*100/105))","v":""},null,null,null,"㎞／ℓ",null,null,null,null,null,null,null,{"$f":"IF(AY238=\"\",\"\",+'（ｆ）別紙２－１【補助対象経費支出予定額の内訳】'!L14)","v":""},null,null,null,null,null,null,null,"円"]
[null,null,null,null,null,null,null,null,null,null,null,null,null,null,null,null,null,null,null,null,null,null,null,null,null,null,null,null,null,null,null,null,null,null,null,null,null,null,null,null,null,null,null,null,null,null,null,null,null,null,null,null,null,null,null,null,null,null,null,null,null,null,"実績走行距離",null,null,null,null,null,null,null,null,null,null,null,"⑦補助基本額（③と⑤の少ない方の額）",null,null,null,null,null,null,null,null,null,null,null,null,null,null,null,null,null,null,null,null,null,null,null,"複数台数申請の場合は次の申請車入力画面に進んで下さい。"]
[null,null,null,null,null,null,null,null,null,null,null,null,null,null,null,null,null,null,null,null,null,null,null,null,null,null,null,null,null,null,null,null,null,null,null,null,null,null,null,null,null,null,null,null,null,null,null,null,null,null,"抵当権の有無",null,null,null,null,null,null,null,null,null,null,null,null,null,null,null,"㎞",{"$f":"IF(BC236=\"増車\",\"👈入力不要\",\"👈入力\")","v":"👈入力"},null,null,null,"旧車両",null,null,{"$f":"IF(AY238=\"\",\"\",+'（ｆ）別紙２－１【補助対象経費支出予定額の内訳】'!M14)","v":""},null,null,null,null,null,null,null,"円"]
[null,null,null,null,null,null,null,null,null,null,null,null,null,null,null,null,null,null,null,null,null,null,null,null,null,null,null,null,null,null,null,null,null,null,null,null,null,null,null,null,null,null,null,null,null,null,null,null,null,null,null,null,null,null,null,null,null,null,null,null,null,null,"実績燃料使用量",null,null,null,null,null,null,null,null,null,null,null,"⑧補助金所要額（⑦×１/３）"]
[null,null,null,null,null,null,null,null,null,null,null,null,null,null,null,null,null,null,null,null,null,null,null,null,null,null,null,null,null,null,null,null,null,null,null,null,null,null,null,null,null,null,null,null,null,null,null,null,null,null,null,null,null,null,null,null,null,null,null,null,null,null,null,null,null,null,"ℓ",{"$f":"IF(BC236=\"増車\",\"👈入力不要\",\"👈入力\")","v":"👈入力"},null,null,null,"旧車両",null,null,{"$f":"IF(AY238=\"\",\"\",+'（ｆ）別紙２－１【補助対象経費支出予定額の内訳】'!N14)","v":""},null,null,null,null,null,null,null,"円",null,null,null,null,null,null,null,null,null,null,null,null,null,null,null,"👉８台目入力へ⇒"]
[null,null,null,null,null,null,null,null,null,null,null,null,null,null,null,null,null,null,null,null,null,null,null,null,null,null,null,null,null,null,null,null,null,null,null,null,null,null,null,null,null,null,null,null,null,null,null,null,"⇒",null,"８台目",null,null,"☟８台目入力"]
[null,null,null,null,null,null,null,null,null,null,null,null,null,null,null,null,null,null,null,null,null,null,null,null,null,null,null,null,null,null,null,null,null,null,null,null,null,null,null,null,null,null,null,null,null,null,null,null,null,null,"申請車両購入区分及び申請車情報",null,null,null,null,null,null,null,null,null,null,null,"申請車両年度間走行情報",null,null,null,null,null,null,null,null,null,null,null,"申請車両の購入額等"]
[null,null,null,null,null,null,null,null,null,null,null,null,null,null,null,null,null,null,null,null,null,null,null,null,null,null,null,null,null,null,null,null,null,null,null,null,null,null,null,null,null,null,null,null,null,null,null,null,null,null,"申請台数"]
[null,null,null,null,null,null,null,null,null,null,null,null,null,null,null,null,null,null,null,null,null,null,null,null,null,null,null,null,null,null,null,null,null,null,null,null,null,null,null,null,null,null,null,null,null,null,null,null,null,null,"車種",null,{"$f":"IF(AY266=\"\",\"\",VLOOKUP(BE270,$AI$45:$AN$55,6.1))","v":""},{"$f":"IF(BK267=\"\",\"\",VLOOKUP(BQ271,$AI$45:$AN$55,6.1))","v":{"$error":"#N/A"}},null,null,null,"号車",null,null,null,null,"具体的な用途",null,null,null,null,null,null,null,null,null,null,null,"①1台毎の車両購入費"]
[null,null,null,null,null,null,null,null,null,null,null,null,null,null,null,null,null,null,null,null,null,null,null,null,null,null,null,null,null,null,null,null,null,null,null,null,null,null,null,null,null,null,null,null,null,null,null,null,null,null,"購入区分",null,null,null,null,null,null,null,null,null,null,null,null,null,null,null,null,null,null,null,null,null,null,null,null,null,null,null,null,null,null,null,"円"]
[null,null,null,null,null,null,null,null,null,null,null,null,null,null,null,null,null,null,null,null,null,null,null,null,null,null,null,null,null,null,null,null,null,null,null,null,null,null,null,null,null,null,null,null,null,null,null,null,null,null,"登録年月日",null,null,null,null,null,null,null,null,null,null,null,null,null,null,null,null,null,null,null,null,null,null,null,"②寄付金その他の収入",null,null,null,null,null,null,null,null,null,"③差引額（①ー②）"]
[null,null,null,null,null,null,null,null,null,null,null,null,null,null,null,null,null,null,null,null,null,null,null,null,null,null,null,null,null,null,null,null,null,null,null,null,null,null,null,null,null,null,null,null,null,null,null,null,null,null,null,null,null,null,null,null,null,null,null,null,null,null,null,null,null,null,null,null,null,null,null,null,null,null,null,null,null,null,null,null,null,null,"円",null,{"$f":"IF(BW264=\"\",\"\",'（ｆ）別紙２－１【補助対象経費支出予定額の内訳】'!G15)","v":""},null,null,null,null,null,"円"]
[null,null,null,null,null,null,null,null,null,null,null,null,null,null,null,null,null,null,null,null,null,null,null,null,null,null,null,null,null,null,null,null,null,null,null,null,null,null,null,null,null,null,null,null,null,null,null,null,null,null,"登録番号",null,null,null,null,null,null,null,null,null,null,null,"代表的な運行コース",null,null,null,null,null,null,null,null,null,null,null,"買替の場合の旧車両情報",null,null,null,null,null,null,null,null,null,null,null,{"$f":"IF(BC264=\"増車\",\"増車の場合の旧車両情報\",\"\")","v":""}]
[null,null,null,null,null,null,null,null,null,null,null,null,null,null,null,null,null,null,null,null,null,null,null,null,null,null,null,null,null,null,null,null,null,null,null,null,null,null,null,null,null,null,null,null,null,null,null,null,null,null,null,null,null,null,null,null,null,null,null,null,null,null,"出発地（Ａ）",null,null,null,null,null,null,null,null,null,null,null,"旧車両（先進環境対応型に適合していない車両）"]
[null,null,null,null,null,null,null,null,null,null,null,null,null,null,null,null,null,null,null,null,null,null,null,null,null,null,null,null,null,null,null,null,null,null,null,null,null,null,null,null,null,null,null,null,null,null,null,null,null,null,"車台番号",null,null,null,null,null,"車両総重量",null,null,null,null,null,null,null,null,null,null,null,null,null,null,null,null,null,null,null,{"$f":"IF(BC264=\"買替\",\"☟車両情報入力\",\"\")","v":""},null,null,null,null,null,null,null,null,null,null,null,{"$f":"IF(BC264=\"増車\",\"☟車両価格入力\",\"\")","v":""}]
[null,null,null,null,null,null,null,null,null,null,null,null,null,null,null,null,null,null,null,null,null,null,null,null,null,null,null,null,null,null,null,null,null,null,null,null,null,null,null,null,null,null,null,null,null,null,null,null,null,null,null,null,null,null,null,null,null,null,null,null,"kg ",null,"経由地",null,null,null,null,null,null,null,null,null,null,null,"車両総重量",null,null,null,null,null,"車体の形状"]
[null,null,null,null,null,null,null,null,null,null,null,null,null,null,null,null,null,null,null,null,null,null,null,null,null,null,null,null,null,null,null,null,null,null,null,null,null,null,null,null,null,null,null,null,null,null,null,null,null,null,"車名（メーカー）",null,null,null,null,null,"型式",null,null,null,null,null,null,null,null,null,null,null,null,null,null,null,null,null,null,null,null,null,null,"kg "]
[null,null,null,null,null,null,null,null,null,null,null,null,null,null,null,null,null,null,null,null,null,null,null,null,null,null,null,null,null,null,null,null,null,null,null,null,null,null,null,null,null,null,null,null,null,null,null,null,null,null,null,null,null,null,null,null,null,null,null,null,null,null,"到着地（Ｂ）",null,null,null,null,null,null,null,null,null,null,null,"旧車両の購入時価格",null,null,null,null,null,null,null,null,null,null,null,"平成21年車両価格"]
[null,null,null,null,null,null,null,null,null,null,null,null,null,null,null,null,null,null,null,null,null,null,null,null,null,null,null,null,null,null,null,null,null,null,null,null,null,null,null,null,null,null,null,null,null,null,null,null,null,null,"通称名",null,null,null,null,null,"架装業者",null,null,null,null,null,null,null,null,null,null,null,null,null,null,null,null,null,null,null,null,null,null,"円",null,null,null,null,null,null,null,null,null,null,"円"]
[null,null,null,null,null,null,null,null,null,null,null,null,null,null,null,null,null,null,null,null,null,null,null,null,null,null,null,null,null,null,null,null,null,null,null,null,null,null,null,null,null,null,null,null,null,null,null,null,null,null,null,null,null,null,null,null,null,null,null,null,null,null,"（Ａ）から（Ｂ）までの距離",null,null,null,null,null,null,null,null,null,null,null,"旧車両の購入年",null,null,null,null,null,"消費者物価指数",null,null,null,null,null,null,null,null,null,null,null,"消費者物価指数"]
[null,null,null,null,null,null,null,null,null,null,null,null,null,null,null,null,null,null,null,null,null,null,null,null,null,null,null,null,null,null,null,null,null,null,null,null,null,null,null,null,null,null,null,null,null,null,null,null,null,null,"車体の形状",null,null,null,null,null,"用途",null,null,null,null,null,null,null,null,null,"㎞",null,null,null,null,null,null,null,"平成",null,null,null,null,"年",null,{"$f":"IF(BZ275=\"\",\"\",VLOOKUP(BZ275,$AS$43:$AT$63,2,FALSE))","v":""},null,null,null,null,null,null,null,null,null,null,null,{"$f":"IF(CI273=\"\",\"\",98)","v":""}]
[null,null,null,null,null,null,null,null,null,null,null,null,null,null,null,null,null,null,null,null,null,null,null,null,null,null,null,null,null,null,null,null,null,null,null,null,null,null,null,null,null,null,null,null,null,null,null,null,null,null,null,null,null,null,null,null,null,null,null,null,null,null,"移動回数及び年度間稼働日数",null,null,null,null,null,null,null,null,null,null,null,"車両総重量",null,null,null,null,null,"車体の形状"]
[null,null,null,null,null,null,null,null,null,null,null,null,null,null,null,null,null,null,null,null,null,null,null,null,null,null,null,null,null,null,null,null,null,null,null,null,null,null,null,null,null,null,null,null,null,null,null,null,null,null,null,null,null,null,null,null,null,null,null,null,null,null,null,null,null,null,"回",null,null,null,null,null,"日",null,{"$f":"IF(BC264=\"買替\",IF(AND(BW271>=BE270-(BE270*0.05),BW271<=BE270+(BE270*0.05)),\"適合\",\"不適合\"),\"\")","v":""},{"$f":"IF(AND(BW277>=BV277-(BV277*0.05),BW277<=BV277+(BV277*0.05)),\"適\",\"不適\")","v":"不適"},{"$f":"IF(AND(BX277>=BW277-(BW277*0.05),BX277<=BW277+(BW277*0.05)),\"適\",\"不適\")","v":{"$error":"#VALUE!"}},{"$f":"IF(AND(BY277>=BX277-(BX277*0.05),BY277<=BX277+(BX277*0.05)),\"適\",\"不適\")","v":{"$error":"#VALUE!"}},{"$f":"IF(AND(BZ277>=BY277-(BY277*0.05),BZ277<=BY277+(BY277*0.05)),\"適\",\"不適\")","v":{"$error":"#VALUE!"}},{"$f":"IF(AND(CA277>=BZ277-(BZ277*0.05),CA277<=BZ277+(BZ277*0.05)),\"適\",\"不適\")","v":{"$error":"#VALUE!"}},{"$f":"IF(BC264=\"買替\",IF(EXACT(AY276,CC271),\"適合\",\"再確認\"),\"\")","v":""},{"$f":"IF(EXACT(CB277,CC277),\"ok\",\"x\")","v":{"$error":"#VALUE!"}},{"$f":"IF(EXACT(CC277,CD277),\"ok\",\"x\")","v":{"$error":"#VALUE!"}},{"$f":"IF(EXACT(CD277,CE277),\"ok\",\"x\")","v":{"$error":"#VALUE!"}},{"$f":"IF(EXACT(CE277,CF277),\"ok\",\"x\")","v":{"$error":"#VALUE!"}},{"$f":"IF(EXACT(CF277,CG277),\"ok\",\"x\")","v":{"$error":"#VALUE!"}}]
[null,null,null,null,null,null,null,null,null,null,null,null,null,null,null,null,null,null,null,null,null,null,null,null,null,null,null,null,null,null,null,null,null,null,null,null,null,null,null,null,null,null,null,null,null,null,null,null,null,null,null,null,null,null,null,null,null,null,null,null,null,null,"その他の走行距離",null,null,null,null,null,"年度間走行距離",null,null,null,null,null,null,null,null,{"$f":"IF(BC264=\"買替\",IF(AND(BW277=\"適合\",CC277=\"適合\"),\"適合\",\"問い合わせ！\"),\"\")","v":""}]
[null,null,null,null,null,null,null,null,null,null,null,null,null,null,null,null,null,null,null,null,null,null,null,null,null,null,null,null,null,null,null,null,null,null,null,null,null,null,null,null,null,null,null,null,null,null,null,null,null,null,"所有者の氏名又は名称",null,null,null,null,null,null,null,null,null,null,null,null,null,null,null,"㎞",null,{"$f":"IF(AY266=\"\",\"\",+'（ｂ）別紙１－２【年度間走行距離一覧表】'!M61)","v":""},null,null,null,"㎞",null,"⑤基準額",null,null,null,null,null,null,null,null,null,null,null,"④補助対象経費支出予定額",null,null,null,null,null,null,null,null,null,null,null,"申請台数分の入力が終了しましたら"]
[null,null,null,null,null,null,null,null,null,null,null,null,null,null,null,null,null,null,null,null,null,null,null,null,null,null,null,null,null,null,null,null,null,null,null,null,null,null,null,null,null,null,null,null,null,null,null,null,null,null,{"$f":"IF(AY266=\"\",\"\",+応募申請用入力シートⅠ!$L$4)","v":""},null,null,null,null,null,null,null,null,null,null,null,"「増車」の先進環境対応型の燃費",null,null,null,null,null,null,null,null,null,null,null,{"$f":"+IF(AY266=\"\",\"\",VLOOKUP(BA263,$AA$44:$AC$46,3,FALSE))","v":""},null,null,null,null,null,null,null,"円",null,null,null,{"$f":"IF(AY266=\"\",\"\",+'（ｆ）別紙２－１【補助対象経費支出予定額の内訳】'!H15)","v":""},null,null,null,null,null,null,null,"円",null,null,null,"下記の「入力完了」をクリックして下さい。"]
[null,null,null,null,null,null,null,null,null,null,null,null,null,null,null,null,null,null,null,null,null,null,null,null,null,null,null,null,null,null,null,null,null,null,null,null,null,null,null,null,null,null,null,null,null,null,null,null,null,null,"所有者の住所",null,null,null,null,null,null,null,null,null,null,null,{"$f":"IF(AY266=\"\",\"\",IF(BC264=\"買替\",\"\",VLOOKUP(BE270,$AI$45:$AM$55,4,1)))","v":""},null,null,null,"㎞／ℓ",null,null,null,null,null,null,null,null,null,null,null,null,null,null,null,null,null,null,null,"（物価指数補正後）"]
[null,null,null,null,null,null,null,null,null,null,null,null,null,null,null,null,null,null,null,null,null,null,null,null,null,null,null,null,null,null,null,null,null,null,null,null,null,null,null,null,null,null,null,null,null,null,null,null,null,null,{"$f":"IF(AY266=\"\",\"\",+応募申請用入力シートⅠ!$L$6)","v":""},null,null,null,null,null,null,null,null,null,null,null,"「増車」の旧車両相当型式換算燃費",null,null,null,null,null,null,null,null,null,null,null,"⑥選定額（④と⑤の少ない方の額）",null,null,null,null,null,null,null,null,null,null,null,null,null,null,null,null,null,null,null,null,null,null,null,"👉入力完了⇒"]
[null,null,null,null,null,null,null,null,null,null,null,null,null,null,null,null,null,null,null,null,null,null,null,null,null,null,null,null,null,null,null,null,null,null,null,null,null,null,null,null,null,null,null,null,null,null,null,null,null,null,"使用の本拠の位置",null,null,null,null,null,null,null,null,null,null,null,{"$f":"IF(BK281=\"\",\"\",(+BK281*100/105))","v":""},null,null,null,"㎞／ℓ",null,null,null,null,null,null,null,{"$f":"IF(AY266=\"\",\"\",+'（ｆ）別紙２－１【補助対象経費支出予定額の内訳】'!L15)","v":""},null,null,null,null,null,null,null,"円"]
[null,null,null,null,null,null,null,null,null,null,null,null,null,null,null,null,null,null,null,null,null,null,null,null,null,null,null,null,null,null,null,null,null,null,null,null,null,null,null,null,null,null,null,null,null,null,null,null,null,null,null,null,null,null,null,null,null,null,null,null,null,null,"実績走行距離",null,null,null,null,null,null,null,null,null,null,null,"⑦補助基本額（③と⑤の少ない方の額）",null,null,null,null,null,null,null,null,null,null,null,null,null,null,null,null,null,null,null,null,null,null,null,"複数台数申請の場合は次の申請車入力画面に進んで下さい。"]
[null,null,null,null,null,null,null,null,null,null,null,null,null,null,null,null,null,null,null,null,null,null,null,null,null,null,null,null,null,null,null,null,null,null,null,null,null,null,null,null,null,null,null,null,null,null,null,null,null,null,"抵当権の有無",null,null,null,null,null,null,null,null,null,null,null,null,null,null,null,"㎞",{"$f":"IF(BC264=\"増車\",\"👈入力不要\",\"👈入力\")","v":"👈入力"},null,null,null,"旧車両",null,null,{"$f":"IF(AY266=\"\",\"\",+'（ｆ）別紙２－１【補助対象経費支出予定額の内訳】'!M15)","v":""},null,null,null,null,null,null,null,"円"]
[null,null,null,null,null,null,null,null,null,null,null,null,null,null,null,null,null,null,null,null,null,null,null,null,null,null,null,null,null,null,null,null,null,null,null,null,null,null,null,null,null,null,null,null,null,null,null,null,null,null,null,null,null,null,null,null,null,null,null,null,null,null,"実績燃料使用量",null,null,null,null,null,null,null,null,null,null,null,"⑧補助金所要額（⑦×１/３）"]
[null,null,null,null,null,null,null,null,null,null,null,null,null,null,null,null,null,null,null,null,null,null,null,null,null,null,null,null,null,null,null,null,null,null,null,null,null,null,null,null,null,null,null,null,null,null,null,null,null,null,null,null,null,null,null,null,null,null,null,null,null,null,null,null,null,null,"ℓ",{"$f":"IF(BC264=\"増車\",\"👈入力不要\",\"👈入力\")","v":"👈入力"},null,null,null,"旧車両",null,null,{"$f":"IF(AY266=\"\",\"\",+'（ｆ）別紙２－１【補助対象経費支出予定額の内訳】'!N15)","v":""},null,null,null,null,null,null,null,"円",null,null,null,null,null,null,null,null,null,null,null,null,null,null,null,"👉９台目入力へ⇒"]
[null,null,null,null,null,null,null,null,null,null,null,null,null,null,null,null,null,null,null,null,null,null,null,null,null,null,null,null,null,null,null,null,null,null,null,null,null,null,null,null,null,null,null,null,null,null,null,null,"⇒",null,"９台目",null,null,"☟９台目入力"]
[null,null,null,null,null,null,null,null,null,null,null,null,null,null,null,null,null,null,null,null,null,null,null,null,null,null,null,null,null,null,null,null,null,null,null,null,null,null,null,null,null,null,null,null,null,null,null,null,null,null,"申請車両購入区分及び申請車情報",null,null,null,null,null,null,null,null,null,null,null,"申請車両年度間走行情報",null,null,null,null,null,null,null,null,null,null,null,"申請車両の購入額等"]
[null,null,null,null,null,null,null,null,null,null,null,null,null,null,null,null,null,null,null,null,null,null,null,null,null,null,null,null,null,null,null,null,null,null,null,null,null,null,null,null,null,null,null,null,null,null,null,null,null,null,"申請台数"]
[null,null,null,null,null,null,null,null,null,null,null,null,null,null,null,null,null,null,null,null,null,null,null,null,null,null,null,null,null,null,null,null,null,null,null,null,null,null,null,null,null,null,null,null,null,null,null,null,null,null,"車種",null,{"$f":"IF(AY294=\"\",\"\",VLOOKUP(BE298,$AI$45:$AN$55,6.1))","v":""},{"$f":"IF(BK295=\"\",\"\",VLOOKUP(BQ299,$AI$45:$AN$55,6.1))","v":{"$error":"#N/A"}},null,null,null,"号車",null,null,null,null,"具体的な用途",null,null,null,null,null,null,null,null,null,null,null,"①1台毎の車両購入費"]
[null,null,null,null,null,null,null,null,null,null,null,null,null,null,null,null,null,null,null,null,null,null,null,null,null,null,null,null,null,null,null,null,null,null,null,null,null,null,null,null,null,null,null,null,null,null,null,null,null,null,"購入区分",null,null,null,null,null,null,null,null,null,null,null,null,null,null,null,null,null,null,null,null,null,null,null,null,null,null,null,null,null,null,null,"円"]
[null,null,null,null,null,null,null,null,null,null,null,null,null,null,null,null,null,null,null,null,null,null,null,null,null,null,null,null,null,null,null,null,null,null,null,null,null,null,null,null,null,null,null,null,null,null,null,null,null,null,"登録年月日",null,null,null,null,null,null,null,null,null,null,null,null,null,null,null,null,null,null,null,null,null,null,null,"②寄付金その他の収入",null,null,null,null,null,null,null,null,null,"③差引額（①ー②）"]
[null,null,null,null,null,null,null,null,null,null,null,null,null,null,null,null,null,null,null,null,null,null,null,null,null,null,null,null,null,null,null,null,null,null,null,null,null,null,null,null,null,null,null,null,null,null,null,null,null,null,null,null,null,null,null,null,null,null,null,null,null,null,null,null,null,null,null,null,null,null,null,null,null,null,null,null,null,null,null,null,null,null,"円",null,{"$f":"IF(BW292=\"\",\"\",'（ｆ）別紙２－１【補助対象経費支出予定額の内訳】'!G16)","v":""},null,null,null,null,null,"円"]
[null,null,null,null,null,null,null,null,null,null,null,null,null,null,null,null,null,null,null,null,null,null,null,null,null,null,null,null,null,null,null,null,null,null,null,null,null,null,null,null,null,null,null,null,null,null,null,null,null,null,"登録番号",null,null,null,null,null,null,null,null,null,null,null,"代表的な運行コース",null,null,null,null,null,null,null,null,null,null,null,"買替の場合の旧車両情報",null,null,null,null,null,null,null,null,null,null,null,{"$f":"IF(BC292=\"増車\",\"増車の場合の旧車両情報\",\"\")","v":""}]
[null,null,null,null,null,null,null,null,null,null,null,null,null,null,null,null,null,null,null,null,null,null,null,null,null,null,null,null,null,null,null,null,null,null,null,null,null,null,null,null,null,null,null,null,null,null,null,null,null,null,null,null,null,null,null,null,null,null,null,null,null,null,"出発地（Ａ）",null,null,null,null,null,null,null,null,null,null,null,"旧車両（先進環境対応型に適合していない車両）"]
[null,null,null,null,null,null,null,null,null,null,null,null,null,null,null,null,null,null,null,null,null,null,null,null,null,null,null,null,null,null,null,null,null,null,null,null,null,null,null,null,null,null,null,null,null,null,null,null,null,null,"車台番号",null,null,null,null,null,"車両総重量",null,null,null,null,null,null,null,null,null,null,null,null,null,null,null,null,null,null,null,{"$f":"IF(BC292=\"買替\",\"☟車両情報入力\",\"\")","v":""},null,null,null,null,null,null,null,null,null,null,null,{"$f":"IF(BC292=\"増車\",\"☟車両価格入力\",\"\")","v":""}]
[null,null,null,null,null,null,null,null,null,null,null,null,null,null,null,null,null,null,null,null,null,null,null,null,null,null,null,null,null,null,null,null,null,null,null,null,null,null,null,null,null,null,null,null,null,null,null,null,null,null,null,null,null,null,null,null,null,null,null,null,"kg ",null,"経由地",null,null,null,null,null,null,null,null,null,null,null,"車両総重量",null,null,null,null,null,"車体の形状"]
[null,null,null,null,null,null,null,null,null,null,null,null,null,null,null,null,null,null,null,null,null,null,null,null,null,null,null,null,null,null,null,null,null,null,null,null,null,null,null,null,null,null,null,null,null,null,null,null,null,null,"車名（メーカー）",null,null,null,null,null,"型式",null,null,null,null,null,null,null,null,null,null,null,null,null,null,null,null,null,null,null,null,null,null,"kg "]
[null,null,null,null,null,null,null,null,null,null,null,null,null,null,null,null,null,null,null,null,null,null,null,null,null,null,null,null,null,null,null,null,null,null,null,null,null,null,null,null,null,null,null,null,null,null,null,null,null,null,null,null,null,null,null,null,null,null,null,null,null,null,"到着地（Ｂ）",null,null,null,null,null,null,null,null,null,null,null,"旧車両の購入時価格",null,null,null,null,null,null,null,null,null,null,null,"平成21年車両価格"]
[null,null,null,null,null,null,null,null,null,null,null,null,null,null,null,null,null,null,null,null,null,null,null,null,null,null,null,null,null,null,null,null,null,null,null,null,null,null,null,null,null,null,null,null,null,null,null,null,null,null,"通称名",null,null,null,null,null,"架装業者",null,null,null,null,null,null,null,null,null,null,null,null,null,null,null,null,null,null,null,null,null,null,"円",null,null,null,null,null,null,null,null,null,null,"円"]
[null,null,null,null,null,null,null,null,null,null,null,null,null,null,null,null,null,null,null,null,null,null,null,null,null,null,null,null,null,null,null,null,null,null,null,null,null,null,null,null,null,null,null,null,null,null,null,null,null,null,null,null,null,null,null,null,null,null,null,null,null,null,"（Ａ）から（Ｂ）までの距離",null,null,null,null,null,null,null,null,null,null,null,"旧車両の購入年",null,null,null,null,null,"消費者物価指数",null,null,null,null,null,null,null,null,null,null,null,"消費者物価指数"]
[null,null,null,null,null,null,null,null,null,null,null,null,null,null,null,null,null,null,null,null,null,null,null,null,null,null,null,null,null,null,null,null,null,null,null,null,null,null,null,null,null,null,null,null,null,null,null,null,null,null,"車体の形状",null,null,null,null,null,"用途",null,null,null,null,null,null,null,null,null,"㎞",null,null,null,null,null,null,null,"平成",null,null,null,null,"年",null,{"$f":"IF(BZ303=\"\",\"\",VLOOKUP(BZ303,$AS$43:$AT$63,2,FALSE))","v":""},null,null,null,null,null,null,null,null,null,null,null,{"$f":"IF(CI301=\"\",\"\",98)","v":""}]
[null,null,null,null,null,null,null,null,null,null,null,null,null,null,null,null,null,null,null,null,null,null,null,null,null,null,null,null,null,null,null,null,null,null,null,null,null,null,null,null,null,null,null,null,null,null,null,null,null,null,null,null,null,null,null,null,null,null,null,null,null,null,"移動回数及び年度間稼働日数",null,null,null,null,null,null,null,null,null,null,null,"車両総重量",null,null,null,null,null,"車体の形状"]
[null,null,null,null,null,null,null,null,null,null,null,null,null,null,null,null,null,null,null,null,null,null,null,null,null,null,null,null,null,null,null,null,null,null,null,null,null,null,null,null,null,null,null,null,null,null,null,null,null,null,null,null,null,null,null,null,null,null,null,null,null,null,null,null,null,null,"回",null,null,null,null,null,"日",null,{"$f":"IF(BC292=\"買替\",IF(AND(BW299>=BE298-(BE298*0.05),BW299<=BE298+(BE298*0.05)),\"適合\",\"不適合\"),\"\")","v":""},{"$f":"IF(AND(BW305>=BV305-(BV305*0.05),BW305<=BV305+(BV305*0.05)),\"適\",\"不適\")","v":"不適"},{"$f":"IF(AND(BX305>=BW305-(BW305*0.05),BX305<=BW305+(BW305*0.05)),\"適\",\"不適\")","v":{"$error":"#VALUE!"}},{"$f":"IF(AND(BY305>=BX305-(BX305*0.05),BY305<=BX305+(BX305*0.05)),\"適\",\"不適\")","v":{"$error":"#VALUE!"}},{"$f":"IF(AND(BZ305>=BY305-(BY305*0.05),BZ305<=BY305+(BY305*0.05)),\"適\",\"不適\")","v":{"$error":"#VALUE!"}},{"$f":"IF(AND(CA305>=BZ305-(BZ305*0.05),CA305<=BZ305+(BZ305*0.05)),\"適\",\"不適\")","v":{"$error":"#VALUE!"}},{"$f":"IF(BC292=\"買替\",IF(EXACT(AY304,CC299),\"適合\",\"再確認\"),\"\")","v":""},{"$f":"IF(EXACT(CB305,CC305),\"ok\",\"x\")","v":{"$error":"#VALUE!"}},{"$f":"IF(EXACT(CC305,CD305),\"ok\",\"x\")","v":{"$error":"#VALUE!"}},{"$f":"IF(EXACT(CD305,CE305),\"ok\",\"x\")","v":{"$error":"#VALUE!"}},{"$f":"IF(EXACT(CE305,CF305),\"ok\",\"x\")","v":{"$error":"#VALUE!"}},{"$f":"IF(EXACT(CF305,CG305),\"ok\",\"x\")","v":{"$error":"#VALUE!"}}]
[null,null,null,null,null,null,null,null,null,null,null,null,null,null,null,null,null,null,null,null,null,null,null,null,null,null,null,null,null,null,null,null,null,null,null,null,null,null,null,null,null,null,null,null,null,null,null,null,null,null,null,null,null,null,null,null,null,null,null,null,null,null,"その他の走行距離",null,null,null,null,null,"年度間走行距離",null,null,null,null,null,null,null,null,{"$f":"IF(BC292=\"買替\",IF(AND(BW305=\"適合\",CC305=\"適合\"),\"適合\",\"問い合わせ！\"),\"\")","v":""}]
[null,null,null,null,null,null,null,null,null,null,null,null,null,null,null,null,null,null,null,null,null,null,null,null,null,null,null,null,null,null,null,null,null,null,null,null,null,null,null,null,null,null,null,null,null,null,null,null,null,null,"所有者の氏名又は名称",null,null,null,null,null,null,null,null,null,null,null,null,null,null,null,"㎞",null,{"$f":"IF(AY294=\"\",\"\",+'（ｂ）別紙１－２【年度間走行距離一覧表】'!M68)","v":""},null,null,null,"㎞",null,"⑤基準額",null,null,null,null,null,null,null,null,null,null,null,"④補助対象経費支出予定額",null,null,null,null,null,null,null,null,null,null,null,"申請台数分の入力が終了しましたら"]
[null,null,null,null,null,null,null,null,null,null,null,null,null,null,null,null,null,null,null,null,null,null,null,null,null,null,null,null,null,null,null,null,null,null,null,null,null,null,null,null,null,null,null,null,null,null,null,null,null,null,{"$f":"IF(AY294=\"\",\"\",+応募申請用入力シートⅠ!$L$4)","v":""},null,null,null,null,null,null,null,null,null,null,null,"「増車」の旧車両相当型式換算燃費",null,null,null,null,null,null,null,null,null,null,null,{"$f":"+IF(AY294=\"\",\"\",VLOOKUP(BA291,$AA$44:$AC$46,3,FALSE))","v":""},null,null,null,null,null,null,null,"円",null,null,null,{"$f":"IF(AY294=\"\",\"\",+'（ｆ）別紙２－１【補助対象経費支出予定額の内訳】'!H16)","v":""},null,null,null,null,null,null,null,"円",null,null,null,"下記の「入力完了」をクリックして下さい。"]
[null,null,null,null,null,null,null,null,null,null,null,null,null,null,null,null,null,null,null,null,null,null,null,null,null,null,null,null,null,null,null,null,null,null,null,null,null,null,null,null,null,null,null,null,null,null,null,null,null,null,"所有者の住所",null,null,null,null,null,null,null,null,null,null,null,{"$f":"IF(AY294=\"\",\"\",IF(BC292=\"買替\",\"\",VLOOKUP(BE298,$AI$45:$AM$55,4,1)))","v":""},null,null,null,"㎞／ℓ",null,null,null,null,null,null,null,null,null,null,null,null,null,null,null,null,null,null,null,"（物価指数補正後）"]
[null,null,null,null,null,null,null,null,null,null,null,null,null,null,null,null,null,null,null,null,null,null,null,null,null,null,null,null,null,null,null,null,null,null,null,null,null,null,null,null,null,null,null,null,null,null,null,null,null,null,{"$f":"IF(AY294=\"\",\"\",+応募申請用入力シートⅠ!$L$6)","v":""},null,null,null,null,null,null,null,null,null,null,null,"「増車」の旧車相当型式換算燃費",null,null,null,null,null,null,null,null,null,null,null,"⑥選定額（④と⑤の少ない方の額）",null,null,null,null,null,null,null,null,null,null,null,null,null,null,null,null,null,null,null,null,null,null,null,"👉入力完了⇒"]
[null,null,null,null,null,null,null,null,null,null,null,null,null,null,null,null,null,null,null,null,null,null,null,null,null,null,null,null,null,null,null,null,null,null,null,null,null,null,null,null,null,null,null,null,null,null,null,null,null,null,"使用の本拠の位置",null,null,null,null,null,null,null,null,null,null,null,{"$f":"IF(BK309=\"\",\"\",(+BK309*100/105))","v":""},null,null,null,"㎞／ℓ",null,null,null,null,null,null,null,{"$f":"IF(AY294=\"\",\"\",+'（ｆ）別紙２－１【補助対象経費支出予定額の内訳】'!L16)","v":""},null,null,null,null,null,null,null,"円"]
[null,null,null,null,null,null,null,null,null,null,null,null,null,null,null,null,null,null,null,null,null,null,null,null,null,null,null,null,null,null,null,null,null,null,null,null,null,null,null,null,null,null,null,null,null,null,null,null,null,null,null,null,null,null,null,null,null,null,null,null,null,null,"実績走行距離",null,null,null,null,null,null,null,null,null,null,null,"⑦補助基本額（③と⑤の少ない方の額）",null,null,null,null,null,null,null,null,null,null,null,null,null,null,null,null,null,null,null,null,null,null,null,"複数台数申請の場合は次の申請車入力画面に進んで下さい。"]
[null,null,null,null,null,null,null,null,null,null,null,null,null,null,null,null,null,null,null,null,null,null,null,null,null,null,null,null,null,null,null,null,null,null,null,null,null,null,null,null,null,null,null,null,null,null,null,null,null,null,"抵当権の有無",null,null,null,null,null,null,null,null,null,null,null,null,null,null,null,"㎞",{"$f":"IF(BC292=\"増車\",\"👈入力不要\",\"👈入力\")","v":"👈入力"},null,null,null,"旧車両",null,null,{"$f":"IF(AY294=\"\",\"\",+'（ｆ）別紙２－１【補助対象経費支出予定額の内訳】'!M16)","v":""},null,null,null,null,null,null,null,"円"]
[null,null,null,null,null,null,null,null,null,null,null,null,null,null,null,null,null,null,null,null,null,null,null,null,null,null,null,null,null,null,null,null,null,null,null,null,null,null,null,null,null,null,null,null,null,null,null,null,null,null,null,null,null,null,null,null,null,null,null,null,null,null,"実績燃料使用量",null,null,null,null,null,null,null,null,null,null,null,"⑧補助金所要額（⑦×１/３）"]
[null,null,null,null,null,null,null,null,null,null,null,null,null,null,null,null,null,null,null,null,null,null,null,null,null,null,null,null,null,null,null,null,null,null,null,null,null,null,null,null,null,null,null,null,null,null,null,null,null,null,null,null,null,null,null,null,null,null,null,null,null,null,null,null,null,null,"ℓ",{"$f":"IF(BC292=\"増車\",\"👈入力不要\",\"👈入力\")","v":"👈入力"},null,null,null,"旧車両",null,null,{"$f":"IF(AY294=\"\",\"\",+'（ｆ）別紙２－１【補助対象経費支出予定額の内訳】'!N16)","v":""},null,null,null,null,null,null,null,"円",null,null,null,null,null,null,null,null,null,null,null,null,null,null,null,"👉10台目入力へ⇒"]
[null,null,null,null,null,null,null,null,null,null,null,null,null,null,null,null,null,null,null,null,null,null,null,null,null,null,null,null,null,null,null,null,null,null,null,null,null,null,null,null,null,null,null,null,null,null,null,null,null,null,"１０台目",null,null,"☟１０台目入力"]
[null,null,null,null,null,null,null,null,null,null,null,null,null,null,null,null,null,null,null,null,null,null,null,null,null,null,null,null,null,null,null,null,null,null,null,null,null,null,null,null,null,null,null,null,null,null,null,null,null,null,"申請車両購入区分及び申請車情報",null,null,null,null,null,null,null,null,null,null,null,"申請車両年度間走行情報",null,null,null,null,null,null,null,null,null,null,null,"申請車両の購入額等"]
[null,null,null,null,null,null,null,null,null,null,null,null,null,null,null,null,null,null,null,null,null,null,null,null,null,null,null,null,null,null,null,null,null,null,null,null,null,null,null,null,null,null,null,null,null,null,null,null,null,null,"申請台数"]
[null,null,null,null,null,null,null,null,null,null,null,null,null,null,null,null,null,null,null,null,null,null,null,null,null,null,null,null,null,null,null,null,null,null,null,null,null,null,null,null,null,null,null,null,null,null,null,null,null,null,"車種",null,{"$f":"IF(AY322=\"\",\"\",VLOOKUP(BE326,$AI$45:$AN$55,6.1))","v":""},{"$f":"IF(BK323=\"\",\"\",VLOOKUP(BQ327,$AI$45:$AN$55,6.1))","v":{"$error":"#N/A"}},null,null,null,"号車",null,null,null,null,"具体的な用途",null,null,null,null,null,null,null,null,null,null,null,"①1台毎の車両購入費"]
[null,null,null,null,null,null,null,null,null,null,null,null,null,null,null,null,null,null,null,null,null,null,null,null,null,null,null,null,null,null,null,null,null,null,null,null,null,null,null,null,null,null,null,null,null,null,null,null,null,null,"購入区分",null,null,null,null,null,null,null,null,null,null,null,null,null,null,null,null,null,null,null,null,null,null,null,null,null,null,null,null,null,null,null,"円"]
[null,null,null,null,null,null,null,null,null,null,null,null,null,null,null,null,null,null,null,null,null,null,null,null,null,null,null,null,null,null,null,null,null,null,null,null,null,null,null,null,null,null,null,null,null,null,null,null,null,null,"登録年月日",null,null,null,null,null,null,null,null,null,null,null,null,null,null,null,null,null,null,null,null,null,null,null,"②寄付金その他の収入",null,null,null,null,null,null,null,null,null,"③差引額（①ー②）"]
[null,null,null,null,null,null,null,null,null,null,null,null,null,null,null,null,null,null,null,null,null,null,null,null,null,null,null,null,null,null,null,null,null,null,null,null,null,null,null,null,null,null,null,null,null,null,null,null,null,null,null,null,null,null,null,null,null,null,null,null,null,null,null,null,null,null,null,null,null,null,null,null,null,null,null,null,null,null,null,null,null,null,"円",null,{"$f":"IF(BW320=\"\",\"\",'（ｆ）別紙２－１【補助対象経費支出予定額の内訳】'!G17)","v":""},null,null,null,null,null,"円"]
[null,null,null,null,null,null,null,null,null,null,null,null,null,null,null,null,null,null,null,null,null,null,null,null,null,null,null,null,null,null,null,null,null,null,null,null,null,null,null,null,null,null,null,null,null,null,null,null,null,null,"登録番号",null,null,null,null,null,null,null,null,null,null,null,"代表的な運行コース",null,null,null,null,null,null,null,null,null,null,null,"買替の場合の旧車両情報",null,null,null,null,null,null,null,null,null,null,null,{"$f":"IF(BC320=\"増車\",\"増車の場合の旧車両情報\",\"\")","v":""}]
[null,null,null,null,null,null,null,null,null,null,null,null,null,null,null,null,null,null,null,null,null,null,null,null,null,null,null,null,null,null,null,null,null,null,null,null,null,null,null,null,null,null,null,null,null,null,null,null,null,null,null,null,null,null,null,null,null,null,null,null,null,null,"出発地（Ａ）",null,null,null,null,null,null,null,null,null,null,null,"旧車両（先進環境対応型に適合していない車両）"]
[null,null,null,null,null,null,null,null,null,null,null,null,null,null,null,null,null,null,null,null,null,null,null,null,null,null,null,null,null,null,null,null,null,null,null,null,null,null,null,null,null,null,null,null,null,null,null,null,null,null,"車台番号",null,null,null,null,null,"車両総重量",null,null,null,null,null,null,null,null,null,null,null,null,null,null,null,null,null,null,null,{"$f":"IF(BC320=\"買替\",\"☟車両情報入力\",\"\")","v":""},null,null,null,null,null,null,null,null,null,null,null,{"$f":"IF(BC320=\"増車\",\"☟車両価格入力\",\"\")","v":""}]
[null,null,null,null,null,null,null,null,null,null,null,null,null,null,null,null,null,null,null,null,null,null,null,null,null,null,null,null,null,null,null,null,null,null,null,null,null,null,null,null,null,null,null,null,null,null,null,null,null,null,null,null,null,null,null,null,null,null,null,null,"kg ",null,"経由地",null,null,null,null,null,null,null,null,null,null,null,"車両総重量",null,null,null,null,null,"車体の形状"]
[null,null,null,null,null,null,null,null,null,null,null,null,null,null,null,null,null,null,null,null,null,null,null,null,null,null,null,null,null,null,null,null,null,null,null,null,null,null,null,null,null,null,null,null,null,null,null,null,null,null,"車名（メーカー）",null,null,null,null,null,"型式",null,null,null,null,null,null,null,null,null,null,null,null,null,null,null,null,null,null,null,null,null,null,"kg "]
[null,null,null,null,null,null,null,null,null,null,null,null,null,null,null,null,null,null,null,null,null,null,null,null,null,null,null,null,null,null,null,null,null,null,null,null,null,null,null,null,null,null,null,null,null,null,null,null,null,null,null,null,null,null,null,null,null,null,null,null,null,null,"到着地（Ｂ）",null,null,null,null,null,null,null,null,null,null,null,"旧車両の購入時価格",null,null,null,null,null,null,null,null,null,null,null,"平成21年車両価格"]
[null,null,null,null,null,null,null,null,null,null,null,null,null,null,null,null,null,null,null,null,null,null,null,null,null,null,null,null,null,null,null,null,null,null,null,null,null,null,null,null,null,null,null,null,null,null,null,null,null,null,"通称名",null,null,null,null,null,"架装業者",null,null,null,null,null,null,null,null,null,null,null,null,null,null,null,null,null,null,null,null,null,null,"円",null,null,null,null,null,null,null,null,null,null,"円"]
[null,null,null,null,null,null,null,null,null,null,null,null,null,null,null,null,null,null,null,null,null,null,null,null,null,null,null,null,null,null,null,null,null,null,null,null,null,null,null,null,null,null,null,null,null,null,null,null,null,null,null,null,null,null,null,null,null,null,null,null,null,null,"（Ａ）から（Ｂ）までの距離",null,null,null,null,null,null,null,null,null,null,null,"旧車両の購入年",null,null,null,null,null,"消費者物価指数",null,null,null,null,null,null,null,null,null,null,null,"消費者物価指数"]
[null,null,null,null,null,null,null,null,null,null,null,null,null,null,null,null,null,null,null,null,null,null,null,null,null,null,null,null,null,null,null,null,null,null,null,null,null,null,null,null,null,null,null,null,null,null,null,null,null,null,"車体の形状",null,null,null,null,null,"用途",null,null,null,null,null,null,null,null,null,"㎞",null,null,null,null,null,null,null,"平成",null,null,null,null,"年",null,{"$f":"IF(BZ331=\"\",\"\",VLOOKUP(BZ331,$AS$43:$AT$63,2,FALSE))","v":""},null,null,null,null,null,null,null,null,null,null,null,{"$f":"IF(CI329=\"\",\"\",98)","v":""}]
[null,null,null,null,null,null,null,null,null,null,null,null,null,null,null,null,null,null,null,null,null,null,null,null,null,null,null,null,null,null,null,null,null,null,null,null,null,null,null,null,null,null,null,null,null,null,null,null,null,null,null,null,null,null,null,null,null,null,null,null,null,null,"移動回数及び年度間稼働日数",null,null,null,null,null,null,null,null,null,null,null,"車両総重量",null,null,null,null,null,"車体の形状"]
[null,null,null,null,null,null,null,null,null,null,null,null,null,null,null,null,null,null,null,null,null,null,null,null,null,null,null,null,null,null,null,null,null,null,null,null,null,null,null,null,null,null,null,null,null,null,null,null,null,null,null,null,null,null,null,null,null,null,null,null,null,null,null,null,null,null,"回",null,null,null,null,null,"日",null,{"$f":"IF(BC320=\"買替\",IF(AND(BW327>=BE326-(BE326*0.05),BW327<=BE326+(BE326*0.05)),\"適合\",\"不適合\"),\"\")","v":""},{"$f":"IF(AND(BW333>=BV333-(BV333*0.05),BW333<=BV333+(BV333*0.05)),\"適\",\"不適\")","v":"不適"},{"$f":"IF(AND(BX333>=BW333-(BW333*0.05),BX333<=BW333+(BW333*0.05)),\"適\",\"不適\")","v":{"$error":"#VALUE!"}},{"$f":"IF(AND(BY333>=BX333-(BX333*0.05),BY333<=BX333+(BX333*0.05)),\"適\",\"不適\")","v":{"$error":"#VALUE!"}},{"$f":"IF(AND(BZ333>=BY333-(BY333*0.05),BZ333<=BY333+(BY333*0.05)),\"適\",\"不適\")","v":{"$error":"#VALUE!"}},{"$f":"IF(AND(CA333>=BZ333-(BZ333*0.05),CA333<=BZ333+(BZ333*0.05)),\"適\",\"不適\")","v":{"$error":"#VALUE!"}},{"$f":"IF(BC320=\"買替\",IF(EXACT(AY332,CC327),\"適合\",\"再確認\"),\"\")","v":""},{"$f":"IF(EXACT(CB333,CC333),\"ok\",\"x\")","v":{"$error":"#VALUE!"}},{"$f":"IF(EXACT(CC333,CD333),\"ok\",\"x\")","v":{"$error":"#VALUE!"}},{"$f":"IF(EXACT(CD333,CE333),\"ok\",\"x\")","v":{"$error":"#VALUE!"}},{"$f":"IF(EXACT(CE333,CF333),\"ok\",\"x\")","v":{"$error":"#VALUE!"}},{"$f":"IF(EXACT(CF333,CG333),\"ok\",\"x\")","v":{"$error":"#VALUE!"}}]
[null,null,null,null,null,null,null,null,null,null,null,null,null,null,null,null,null,null,null,null,null,null,null,null,null,null,null,null,null,null,null,null,null,null,null,null,null,null,null,null,null,null,null,null,null,null,null,null,null,null,null,null,null,null,null,null,null,null,null,null,null,null,"その他の走行距離",null,null,null,null,null,"年度間走行距離",null,null,null,null,null,null,null,null,{"$f":"IF(BC320=\"買替\",IF(AND(BW333=\"適合\",CC333=\"適合\"),\"適合\",\"問い合わせ！\"),\"\")","v":""}]
[null,null,null,null,null,null,null,null,null,null,null,null,null,null,null,null,null,null,null,null,null,null,null,null,null,null,null,null,null,null,null,null,null,null,null,null,null,null,null,null,null,null,null,null,null,null,null,null,null,null,"所有者の氏名又は名称",null,null,null,null,null,null,null,null,null,null,null,null,null,null,null,"㎞",null,{"$f":"IF(AY322=\"\",\"\",+'（ｂ）別紙１－２【年度間走行距離一覧表】'!M75)","v":""},null,null,null,"㎞",null,"⑤基準額",null,null,null,null,null,null,null,null,null,null,null,"④補助対象経費支出予定額",null,null,null,null,null,null,null,null,null,null,null,"申請台数分の入力が終了しましたら"]
[null,null,null,null,null,null,null,null,null,null,null,null,null,null,null,null,null,null,null,null,null,null,null,null,null,null,null,null,null,null,null,null,null,null,null,null,null,null,null,null,null,null,null,null,null,null,null,null,null,null,{"$f":"IF(AY322=\"\",\"\",+応募申請用入力シートⅠ!$L$4)","v":""},null,null,null,null,null,null,null,null,null,null,null,"「増車」の先進環境対応型の燃費",null,null,null,null,null,null,null,null,null,null,null,{"$f":"+IF(AY322=\"\",\"\",VLOOKUP(BA319,$AA$44:$AC$46,3,FALSE))","v":""},null,null,null,null,null,null,null,"円",null,null,null,{"$f":"IF(AY322=\"\",\"\",+'（ｆ）別紙２－１【補助対象経費支出予定額の内訳】'!H17)","v":""},null,null,null,null,null,null,null,"円",null,null,null,"下記の「入力完了」をクリックして下さい。"]
[null,null,null,null,null,null,null,null,null,null,null,null,null,null,null,null,null,null,null,null,null,null,null,null,null,null,null,null,null,null,null,null,null,null,null,null,null,null,null,null,null,null,null,null,null,null,null,null,null,null,"所有者の住所",null,null,null,null,null,null,null,null,null,null,null,{"$f":"IF(AY322=\"\",\"\",IF(BC320=\"買替\",\"\",VLOOKUP(BE326,$AI$45:$AM$55,4,1)))","v":""},null,null,null,"㎞／ℓ",null,null,null,null,null,null,null,null,null,null,null,null,null,null,null,null,null,null,null,"（物価指数補正後）"]
[null,null,null,null,null,null,null,null,null,null,null,null,null,null,null,null,null,null,null,null,null,null,null,null,null,null,null,null,null,null,null,null,null,null,null,null,null,null,null,null,null,null,null,null,null,null,null,null,null,null,{"$f":"IF(AY322=\"\",\"\",+応募申請用入力シートⅠ!$L$6)","v":""},null,null,null,null,null,null,null,null,null,null,null,"「増車」の旧車両相当型式換算燃費",null,null,null,null,null,null,null,null,null,null,null,"⑥選定額（④と⑤の少ない方の額）",null,null,null,null,null,null,null,null,null,null,null,null,null,null,null,null,null,null,null,null,null,null,null,"👉入力完了⇒"]
[null,null,null,null,null,null,null,null,null,null,null,null,null,null,null,null,null,null,null,null,null,null,null,null,null,null,null,null,null,null,null,null,null,null,null,null,null,null,null,null,null,null,null,null,null,null,null,null,null,null,"使用の本拠の位置",null,null,null,null,null,null,null,null,null,null,null,{"$f":"IF(BK337=\"\",\"\",(+BK337*100/105))","v":""},null,null,null,"㎞／ℓ",null,null,null,null,null,null,null,{"$f":"IF(AY322=\"\",\"\",+'（ｆ）別紙２－１【補助対象経費支出予定額の内訳】'!L17)","v":""},null,null,null,null,null,null,null,"円"]
[null,null,null,null,null,null,null,null,null,null,null,null,null,null,null,null,null,null,null,null,null,null,null,null,null,null,null,null,null,null,null,null,null,null,null,null,null,null,null,null,null,null,null,null,null,null,null,null,null,null,null,null,null,null,null,null,null,null,null,null,null,null,"実績走行距離",null,null,null,null,null,null,null,null,null,null,null,"⑦補助基本額（③と⑤の少ない方の額）",null,null,null,null,null,null,null,null,null,null,null,null,null,null,null,null,null,null,null,null,null,null,null,"複数台数申請の場合は次の申請車入力画面に進んで下さい。"]
[null,null,null,null,null,null,null,null,null,null,null,null,null,null,null,null,null,null,null,null,null,null,null,null,null,null,null,null,null,null,null,null,null,null,null,null,null,null,null,null,null,null,null,null,null,null,null,null,null,null,"抵当権の有無",null,null,null,null,null,null,null,null,null,null,null,null,null,null,null,"㎞",{"$f":"IF(BC320=\"増車\",\"👈入力不要\",\"👈入力\")","v":"👈入力"},null,null,null,"旧車両",null,null,{"$f":"IF(AY322=\"\",\"\",+'（ｆ）別紙２－１【補助対象経費支出予定額の内訳】'!M17)","v":""},null,null,null,null,null,null,null,"円"]
[null,null,null,null,null,null,null,null,null,null,null,null,null,null,null,null,null,null,null,null,null,null,null,null,null,null,null,null,null,null,null,null,null,null,null,null,null,null,null,null,null,null,null,null,null,null,null,null,null,null,null,null,null,null,null,null,null,null,null,null,null,null,"実績燃料使用量",null,null,null,null,null,null,null,null,null,null,null,"⑧補助金所要額（⑦×１/３）"]
[null,null,null,null,null,null,null,null,null,null,null,null,null,null,null,null,null,null,null,null,null,null,null,null,null,null,null,null,null,null,null,null,null,null,null,null,null,null,null,null,null,null,null,null,null,null,null,null,null,null,null,null,null,null,null,null,null,null,null,null,null,null,null,null,null,null,"ℓ",{"$f":"IF(BC320=\"増車\",\"👈入力不要\",\"👈入力\")","v":"👈入力"},null,null,null,"旧車両",null,null,{"$f":"IF(AY322=\"\",\"\",+'（ｆ）別紙２－１【補助対象経費支出予定額の内訳】'!N17)","v":""},null,null,null,null,null,null,null,"円",null,null,null,null,null,null,null,null,null,null,null,null,null,null,null,"👉ｎ台目入力へ⇒"]
[null,null,null,null,null,null,null,null,null,null,null,null,null,null,null,null,null,null,null,null,null,null,null,null,null,null,null,null,null,null,null,null,null,null,null,null,null,null,null,null,null,null,null,null,null,null,null,null,null,null,"ｎ台目",null,null,"☟ｎ台目入力※10台以上申請の場合ご連絡ください。"]
[null,null,null,null,null,null,null,null,null,null,null,null,null,null,null,null,null,null,null,null,null,null,null,null,null,null,null,null,null,null,null,null,null,null,null,null,null,null,null,null,null,null,null,null,null,null,null,null,null,null,"申請車両購入区分及び申請車情報",null,null,null,null,null,null,null,null,null,null,null,"申請車両年度間走行情報",null,null,null,null,null,null,null,null,null,null,null,"申請車両の購入額等"]
[null,null,null,null,null,null,null,null,null,null,null,null,null,null,null,null,null,null,null,null,null,null,null,null,null,null,null,null,null,null,null,null,null,null,null,null,null,null,null,null,null,null,null,null,null,null,null,null,null,null,"申請台数"]
[null,null,null,null,null,null,null,null,null,null,null,null,null,null,null,null,null,null,null,null,null,null,null,null,null,null,null,null,null,null,null,null,null,null,null,null,null,null,null,null,null,null,null,null,null,null,null,null,null,null,"車種",null,{"$f":"IF(AY350=\"\",\"\",VLOOKUP(BE354,$AI$45:$AN$55,6.1))","v":""},{"$f":"IF(BK351=\"\",\"\",VLOOKUP(BQ355,$AI$45:$AN$55,6.1))","v":{"$error":"#N/A"}},null,null,null,"号車",null,null,null,null,"具体的な用途",null,null,null,null,null,null,null,null,null,null,null,"①1台毎の車両購入費"]
[null,null,null,null,null,null,null,null,null,null,null,null,null,null,null,null,null,null,null,null,null,null,null,null,null,null,null,null,null,null,null,null,null,null,null,null,null,null,null,null,null,null,null,null,null,null,null,null,null,null,"購入区分",null,null,null,null,null,null,null,null,null,null,null,null,null,null,null,null,null,null,null,null,null,null,null,null,null,null,null,null,null,null,null,"円"]
[null,null,null,null,null,null,null,null,null,null,null,null,null,null,null,null,null,null,null,null,null,null,null,null,null,null,null,null,null,null,null,null,null,null,null,null,null,null,null,null,null,null,null,null,null,null,null,null,null,null,"登録年月日",null,null,null,null,null,null,null,null,null,null,null,null,null,null,null,null,null,null,null,null,null,null,null,"②寄付金その他の収入",null,null,null,null,null,null,null,null,null,"③差引額（①ー②）"]
[null,null,null,null,null,null,null,null,null,null,null,null,null,null,null,null,null,null,null,null,null,null,null,null,null,null,null,null,null,null,null,null,null,null,null,null,null,null,null,null,null,null,null,null,null,null,null,null,null,null,null,null,null,null,null,null,null,null,null,null,null,null,null,null,null,null,null,null,null,null,null,null,null,null,null,null,null,null,null,null,null,null,"円",null,{"$f":"IF(BW348=\"\",\"\",'（ｆ）別紙２－１【補助対象経費支出予定額の内訳】'!G288)","v":""},null,null,null,null,null,"円"]
[null,null,null,null,null,null,null,null,null,null,null,null,null,null,null,null,null,null,null,null,null,null,null,null,null,null,null,null,null,null,null,null,null,null,null,null,null,null,null,null,null,null,null,null,null,null,null,null,null,null,"登録番号",null,null,null,null,null,null,null,null,null,null,null,"代表的な運行コース",null,null,null,null,null,null,null,null,null,null,null,"買替の場合の旧車両情報",null,null,null,null,null,null,null,null,null,null,null,{"$f":"IF(BC348=\"増車\",\"増車の場合の旧車両情報\",\"\")","v":""}]
[null,null,null,null,null,null,null,null,null,null,null,null,null,null,null,null,null,null,null,null,null,null,null,null,null,null,null,null,null,null,null,null,null,null,null,null,null,null,null,null,null,null,null,null,null,null,null,null,null,null,null,null,null,null,null,null,null,null,null,null,null,null,"出発地（Ａ）",null,null,null,null,null,null,null,null,null,null,null,"旧車両（先進環境対応型に適合していない車両）"]
[null,null,null,null,null,null,null,null,null,null,null,null,null,null,null,null,null,null,null,null,null,null,null,null,null,null,null,null,null,null,null,null,null,null,null,null,null,null,null,null,null,null,null,null,null,null,null,null,null,null,"車台番号",null,null,null,null,null,"車両総重量",null,null,null,null,null,null,null,null,null,null,null,null,null,null,null,null,null,null,null,{"$f":"IF(BC348=\"買替\",\"☟車両情報入力\",\"\")","v":""},null,null,null,null,null,null,null,null,null,null,null,{"$f":"IF(BC348=\"増車\",\"☟車両価格入力\",\"\")","v":""}]
[null,null,null,null,null,null,null,null,null,null,null,null,null,null,null,null,null,null,null,null,null,null,null,null,null,null,null,null,null,null,null,null,null,null,null,null,null,null,null,null,null,null,null,null,null,null,null,null,null,null,null,null,null,null,null,null,null,null,null,null,"kg ",null,"経由地",null,null,null,null,null,null,null,null,null,null,null,"車両総重量",null,null,null,null,null,"車体の形状"]
[null,null,null,null,null,null,null,null,null,null,null,null,null,null,null,null,null,null,null,null,null,null,null,null,null,null,null,null,null,null,null,null,null,null,null,null,null,null,null,null,null,null,null,null,null,null,null,null,null,null,"車名（メーカー）",null,null,null,null,null,"型式",null,null,null,null,null,null,null,null,null,null,null,null,null,null,null,null,null,null,null,null,null,null,"kg "]
[null,null,null,null,null,null,null,null,null,null,null,null,null,null,null,null,null,null,null,null,null,null,null,null,null,null,null,null,null,null,null,null,null,null,null,null,null,null,null,null,null,null,null,null,null,null,null,null,null,null,null,null,null,null,null,null,null,null,null,null,null,null,"到着地（Ｂ）",null,null,null,null,null,null,null,null,null,null,null,"旧車両の購入時価格",null,null,null,null,null,null,null,null,null,null,null,"平成21年車両価格"]
[null,null,null,null,null,null,null,null,null,null,null,null,null,null,null,null,null,null,null,null,null,null,null,null,null,null,null,null,null,null,null,null,null,null,null,null,null,null,null,null,null,null,null,null,null,null,null,null,null,null,"通称名",null,null,null,null,null,"架装業者",null,null,null,null,null,null,null,null,null,null,null,null,null,null,null,null,null,null,null,null,null,null,"円",null,null,null,null,null,null,null,null,null,null,"円"]
[null,null,null,null,null,null,null,null,null,null,null,null,null,null,null,null,null,null,null,null,null,null,null,null,null,null,null,null,null,null,null,null,null,null,null,null,null,null,null,null,null,null,null,null,null,null,null,null,null,null,null,null,null,null,null,null,null,null,null,null,null,null,"（Ａ）から（Ｂ）までの距離",null,null,null,null,null,null,null,null,null,null,null,"旧車両の購入年",null,null,null,null,null,"消費者物価指数",null,null,null,null,null,null,null,null,null,null,null,"消費者物価指数"]
[null,null,null,null,null,null,null,null,null,null,null,null,null,null,null,null,null,null,null,null,null,null,null,null,null,null,null,null,null,null,null,null,null,null,null,null,null,null,null,null,null,null,null,null,null,null,null,null,null,null,"車体の形状",null,null,null,null,null,"用途",null,null,null,null,null,null,null,null,null,"㎞",null,null,null,null,null,null,null,"平成",null,null,null,null,"年",null,{"$f":"IF(BZ359=\"\",\"\",VLOOKUP(BZ359,$AS$43:$AT$63,2,FALSE))","v":""},null,null,null,null,null,null,null,null,null,null,null,{"$f":"IF(CI357=\"\",\"\",98)","v":""}]
[null,null,null,null,null,null,null,null,null,null,null,null,null,null,null,null,null,null,null,null,null,null,null,null,null,null,null,null,null,null,null,null,null,null,null,null,null,null,null,null,null,null,null,null,null,null,null,null,null,null,null,null,null,null,null,null,null,null,null,null,null,null,"移動回数及び年度間稼働日数",null,null,null,null,null,null,null,null,null,null,null,"車両総重量",null,null,null,null,null,"車体の形状"]
[null,null,null,null,null,null,null,null,null,null,null,null,null,null,null,null,null,null,null,null,null,null,null,null,null,null,null,null,null,null,null,null,null,null,null,null,null,null,null,null,null,null,null,null,null,null,null,null,null,null,null,null,null,null,null,null,null,null,null,null,null,null,null,null,null,null,"回",null,null,null,null,null,"日",null,{"$f":"IF(BC348=\"買替\",IF(AND(BW355>=BE354-(BE354*0.05),BW355<=BE354+(BE354*0.05)),\"適合\",\"不適合\"),\"\")","v":""},{"$f":"IF(AND(BW361>=BV361-(BV361*0.05),BW361<=BV361+(BV361*0.05)),\"適\",\"不適\")","v":"不適"},{"$f":"IF(AND(BX361>=BW361-(BW361*0.05),BX361<=BW361+(BW361*0.05)),\"適\",\"不適\")","v":{"$error":"#VALUE!"}},{"$f":"IF(AND(BY361>=BX361-(BX361*0.05),BY361<=BX361+(BX361*0.05)),\"適\",\"不適\")","v":{"$error":"#VALUE!"}},{"$f":"IF(AND(BZ361>=BY361-(BY361*0.05),BZ361<=BY361+(BY361*0.05)),\"適\",\"不適\")","v":{"$error":"#VALUE!"}},{"$f":"IF(AND(CA361>=BZ361-(BZ361*0.05),CA361<=BZ361+(BZ361*0.05)),\"適\",\"不適\")","v":{"$error":"#VALUE!"}},{"$f":"IF(BC348=\"買替\",IF(EXACT(AY360,CC355),\"適合\",\"再確認\"),\"\")","v":""},{"$f":"IF(EXACT(CB361,CC361),\"ok\",\"x\")","v":{"$error":"#VALUE!"}},{"$f":"IF(EXACT(CC361,CD361),\"ok\",\"x\")","v":{"$error":"#VALUE!"}},{"$f":"IF(EXACT(CD361,CE361),\"ok\",\"x\")","v":{"$error":"#VALUE!"}},{"$f":"IF(EXACT(CE361,CF361),\"ok\",\"x\")","v":{"$error":"#VALUE!"}},{"$f":"IF(EXACT(CF361,CG361),\"ok\",\"x\")","v":{"$error":"#VALUE!"}}]
[null,null,null,null,null,null,null,null,null,null,null,null,null,null,null,null,null,null,null,null,null,null,null,null,null,null,null,null,null,null,null,null,null,null,null,null,null,null,null,null,null,null,null,null,null,null,null,null,null,null,null,null,null,null,null,null,null,null,null,null,null,null,"その他の走行距離",null,null,null,null,null,"年度間走行距離",null,null,null,null,null,null,null,null,{"$f":"IF(BC348=\"買替\",IF(AND(BW361=\"適合\",CC361=\"適合\"),\"適合\",\"問い合わせ！\"),\"\")","v":""}]
[null,null,null,null,null,null,null,null,null,null,null,null,null,null,null,null,null,null,null,null,null,null,null,null,null,null,null,null,null,null,null,null,null,null,null,null,null,null,null,null,null,null,null,null,null,null,null,null,null,null,"所有者の氏名又は名称",null,null,null,null,null,null,null,null,null,null,null,null,null,null,null,"㎞",null,{"$f":"IF(AY350=\"\",\"\",+'（ｂ）別紙１－２【年度間走行距離一覧表】'!M103)","v":""},null,null,null,"㎞",null,"⑤基準額",null,null,null,null,null,null,null,null,null,null,null,"④補助対象経費支出予定額",null,null,null,null,null,null,null,null,null,null,null,"申請台数分の入力が終了しましたら"]
[null,null,null,null,null,null,null,null,null,null,null,null,null,null,null,null,null,null,null,null,null,null,null,null,null,null,null,null,null,null,null,null,null,null,null,null,null,null,null,null,null,null,null,null,null,null,null,null,null,null,{"$f":"IF(AY350=\"\",\"\",+応募申請用入力シートⅠ!$L$4)","v":""},null,null,null,null,null,null,null,null,null,null,null,"「増車」の先進環境対応型の燃費",null,null,null,null,null,null,null,null,null,null,null,{"$f":"+IF(AY350=\"\",\"\",VLOOKUP(BA347,$AA$44:$AC$46,3,FALSE))","v":""},null,null,null,null,null,null,null,"円",null,null,null,null,null,null,null,null,null,null,null,"円",null,null,null,"下記の「入力完了」をクリックして下さい。"]
[null,null,null,null,null,null,null,null,null,null,null,null,null,null,null,null,null,null,null,null,null,null,null,null,null,null,null,null,null,null,null,null,null,null,null,null,null,null,null,null,null,null,null,null,null,null,null,null,null,null,"所有者の住所",null,null,null,null,null,null,null,null,null,null,null,{"$f":"IF(AY350=\"\",\"\",IF(BC348=\"買替\",\"\",VLOOKUP(BE354,$AI$45:$AM$55,4,1)))","v":""},null,null,null,"㎞／ℓ",null,null,null,null,null,null,null,null,null,null,null,null,null,null,null,null,null,null,null,"（物価指数補正後）"]
[null,null,null,null,null,null,null,null,null,null,null,null,null,null,null,null,null,null,null,null,null,null,null,null,null,null,null,null,null,null,null,null,null,null,null,null,null,null,null,null,null,null,null,null,null,null,null,null,null,null,{"$f":"IF(AY350=\"\",\"\",+応募申請用入力シートⅠ!$L$6)","v":""},null,null,null,null,null,null,null,null,null,null,null,"「増車」の旧車両相当型式換算燃費",null,null,null,null,null,null,null,null,null,null,null,"⑥選定額（④と⑤の少ない方の額）",null,null,null,null,null,null,null,null,null,null,null,null,null,null,null,null,null,null,null,null,null,null,null,"👉入力完了⇒"]
[null,null,null,null,null,null,null,null,null,null,null,null,null,null,null,null,null,null,null,null,null,null,null,null,null,null,null,null,null,null,null,null,null,null,null,null,null,null,null,null,null,null,null,null,null,null,null,null,null,null,"使用の本拠の位置",null,null,null,null,null,null,null,null,null,null,null,{"$f":"IF(BK365=\"\",\"\",(+BK365*100/105))","v":""},null,null,null,"㎞／ℓ",null,null,null,null,null,null,null,{"$f":"+'（ｆ）別紙２－１【補助対象経費支出予定額の内訳】'!L17","v":""},null,null,null,null,null,null,null,"円"]
[null,null,null,null,null,null,null,null,null,null,null,null,null,null,null,null,null,null,null,null,null,null,null,null,null,null,null,null,null,null,null,null,null,null,null,null,null,null,null,null,null,null,null,null,null,null,null,null,null,null,null,null,null,null,null,null,null,null,null,null,null,null,"実績走行距離",null,null,null,null,null,null,null,null,null,null,null,"⑦補助基本額（③と⑤の少ない方の額）"]
[null,null,null,null,null,null,null,null,null,null,null,null,null,null,null,null,null,null,null,null,null,null,null,null,null,null,null,null,null,null,null,null,null,null,null,null,null,null,null,null,null,null,null,null,null,null,null,null,null,null,"抵当権の有無",null,null,null,null,null,null,null,null,null,null,null,null,null,null,null,"㎞",{"$f":"IF(BC348=\"増車\",\"👈入力不要\",\"👈入力\")","v":"👈入力"},null,null,null,"旧車両",null,null,{"$f":"+'（ｆ）別紙２－１【補助対象経費支出予定額の内訳】'!M17","v":""},null,null,null,null,null,null,null,"円"]
[null,null,null,null,null,null,null,null,null,null,null,null,null,null,null,null,null,null,null,null,null,null,null,null,null,null,null,null,null,null,null,null,null,null,null,null,null,null,null,null,null,null,null,null,null,null,null,null,null,null,null,null,null,null,null,null,null,null,null,null,null,null,"実績燃料使用量",null,null,null,null,null,null,null,null,null,null,null,"⑧補助金所要額（⑦×１/３）"]
[null,null,null,null,null,null,null,null,null,null,null,null,null,null,null,null,null,null,null,null,null,null,null,null,null,null,null,null,null,null,null,null,null,null,null,null,null,null,null,null,null,null,null,null,null,null,null,null,null,null,null,null,null,null,null,null,null,null,null,null,null,null,null,null,null,null,"ℓ",{"$f":"IF(BC348=\"増車\",\"👈入力不要\",\"👈入力\")","v":"👈入力"},null,null,null,"旧車両",null,null,{"$f":"+'（ｆ）別紙２－１【補助対象経費支出予定額の内訳】'!N17","v":""},null,null,null,null,null,null,null,"円"]

{"sheet":"ア（様式第17）交付申請書兼完了実績報告書","index":2,"n_rows":40,"n_cols":31,"rows_kept":40,"cut":false,"hidden":false,"merged":[[33,17,33,25],[10,19,10,29],[14,19,14,29],[9,19,9,29],[2,20,2,30],[8,19,8,31],[12,19,12,31],[8,14,8,18],[14,14,14,18],[13,19,13,29],[39,3,39,10],[17,1,17,31],[28,3,28,10],[9,14,9,18],[34,17,34,25],[10,14,10,18],[16,1,16,31],[14,30,14,31],[36,3,36,10],[20,1,25,31],[33,3,33,10],[9,30,9,31],[30,3,30,11],[10,30,10,31],[12,14,12,18],[13,14,13,18]]}
[null,"様式第１７　（第５条関係）"]
[]
[null,null,null,null,null,null,null,null,null,null,null,null,null,null,null,null,null,null,null,null,{"$f":"IF(+応募申請用入力シートⅠ!AL19=\"\",\" 平成　　年　　月　　日\",+応募申請用入力シートⅠ!AL19)","v":" 平成　　年　　月　　日"}]
[]
[null,"公益財団法人廃棄物・３Ｒ研究財団"]
[null,null,"理　事　長　　梶原　成元　殿　　　"]
[]
[]
[null,null,null,null,null,null,null,null,null,null,null,null,null,null,"住　　　　所",null,null,null,null,{"$f":"IF(+応募申請用入力シートⅠ!L6=\"\",\"\",+応募申請用入力シートⅠ!L6)","v":""}]
[null,null,null,null,null,null,null,null,null,null,null,null,null,null,"氏名又は名称",null,null,null,null,{"$f":"IF(+応募申請用入力シートⅠ!L4=\"\",\"\",+応募申請用入力シートⅠ!L4)","v":""}]
[null,null,null,null,null,null,null,null,null,null,null,null,null,null,"代表者の職・氏名",null,null,null,null,{"$f":"IF(T9=\"\",\"\",+応募申請用入力シートⅠ!L7&\" \"&応募申請用入力シートⅠ!L8)","v":""},null,null,null,null,null,null,null,null,null,null,"印"]
[null,null,null,null,null,null,null,null,null,null,null,null,null,null,"（貸渡し先（リースの場合））"]
[null,null,null,null,null,null,null,null,null,null,null,null,null,null,{"$f":"IF(応募申請用入力シートⅠ!L46=\"\",\"\",\"住     所\")","v":""},null,null,null,null,{"$f":"IF(+応募申請用入力シートⅠ!L46=\"\",\"\",応募申請用入力シートⅠ!L46)","v":""}]
[null,null,null,null,null,null,null,null,null,null,null,null,null,null,{"$f":"IF(応募申請用入力シートⅠ!L44=\"\",\"\",\"氏名又は名称\")","v":""},null,null,null,null,{"$f":"IF(+応募申請用入力シートⅠ!L44=\"\",\"\",応募申請用入力シートⅠ!L44)","v":""}]
[null,null,null,null,null,null,null,null,null,null,null,null,null,null,{"$f":"IF(応募申請用入力シートⅠ!L48=\"\",\"\",\"代表者の職・氏名\")","v":""},null,null,null,null,{"$f":"IF(+応募申請用入力シートⅠ!L48=\"\",\"\",応募申請用入力シートⅠ!L47&\" \"&応募申請用入力シートⅠ!L48)","v":""},null,null,null,null,null,null,null,null,null,null,{"$f":"IF(T15=\"\",\"\",\"印\")","v":""}]
[]
[null,"平成３０年度二酸化炭素排出抑制対策事業費等補助金"]
[null,"（低炭素型廃棄物処理支援事業）交付申請書兼完了実績報告書"]
[]
[]
[null,"  二酸化炭素排出抑制対策事業費等補助金（低炭素型廃棄物処理支援事業）交付規程第５条第１項の規定に基づき下記のとおり申請及び報告します。　　\n  なお、交付決定を受けて補助事業を実施する際には、補助金等に係る予算の執行の適正化に関する法律（昭和３０年法律第１７９号）、補助金等に係る予算の執行の適正化に関する法律施行令（昭和３０年政令第２５５号）及び交付規程の定めるところに従います。"]
[]
[]
[]
[]
[]
[null,null,null,null,null,null,null,null,null,null,null,null,null,null,"記"]
[]
[null,1,null,"補助事業の名称",null,null,null,null,null,null,null,"廃棄物収集運搬車の低燃費化事業"]
[]
[null,2,null,"補助事業の目的及び内容"]
[null,null,null,null,"別紙１　実施計画書のとおり"]
[]
[null,3,null,"補助金交付申請額",null,null,null,null,null,null,null,null,null,null,null,null,null,{"$f":"IF(T9=\"\",\"\",+'（ｆ）別紙２－１【補助対象経費支出予定額の内訳】'!N22)","v":""},null,null,null,null,null,null,null,null,"円"]
[null,null,null,null,"（うち消費税及び地方消費税相当額",null,null,null,null,null,null,null,null,null,null,null,null,"━",null,null,null,null,null,null,null,null,"円）"]
[]
[null,4,null,"補助事業に要する経費"]
[null,null,null,null,"別紙２　経費内訳のとおり"]
[]
[null,5,null,"その他参考資料"]

{"sheet":"イ（別紙１）実施計画書","index":3,"n_rows":43,"n_cols":12,"rows_kept":43,"cut":false,"hidden":false,"merged":[[42,7,42,10],[36,7,36,10],[37,7,37,10],[38,7,38,10],[39,7,39,10],[40,7,40,10],[41,7,41,10],[32,7,32,10],[33,7,33,10],[34,7,34,10],[35,1,35,6],[35,7,35,10],[27,1,27,6],[27,7,27,10],[28,7,28,10],[29,7,29,10],[31,7,31,10],[30,7,30,10],[20,7,20,10],[21,7,21,10],[22,7,22,10],[23,7,23,10],[24,7,24,10],[25,7,25,10],[26,7,26,10],[19,1,19,6],[19,7,19,10],[10,7,10,10],[11,1,11,6],[11,7,11,10],[12,1,12,6],[12,7,12,10],[13,1,13,6],[13,7,13,10],[14,7,14,10],[15,7,15,10],[16,7,16,10],[17,7,17,10],[18,7,18,10],[9,7,9,10],[1,1,1,31],[2,1,2,6],[2,7,2,31],[3,1,3,6],[3,7,3,10],[4,1,4,6],[4,7,4,10],[5,1,5,6],[5,7,5,10],[6,7,6,10],[7,7,7,10],[8,7,8,10]]}
[null,"様式第１７【別紙１】"]
[null,"廃棄物収集運搬車の低燃費化事業実施計画書"]
[null,"事 業 の 名 称",null,null,null,null,null,"平成３０年度　廃棄物収集運搬車の低燃費化事業"]
[null,"事業実施の代表者",null,null,null,null,null,"会社名等",null,null,null,{"$f":"IF(+応募申請用入力シートⅠ!L4=\"\",\"\",応募申請用入力シートⅠ!L4)","v":""}]
[null,"（事業の実質の責",null,null,null,null,null,"所　属",null,null,null,{"$f":"IF(+応募申請用入力シートⅠ!L5=\"\",\"\",応募申請用入力シートⅠ!L5)","v":""}]
[null,"任者）",null,null,null,null,null,"所在地",null,null,null,{"$f":"IF(+応募申請用入力シートⅠ!L6=\"\",\"\",応募申請用入力シートⅠ!L6)","v":""}]
[null,null,null,null,null,null,null,"役職名",null,null,null,{"$f":"IF(+応募申請用入力シートⅠ!L7=\"\",\"\",応募申請用入力シートⅠ!L7)","v":""}]
[null,null,null,null,null,null,null,"氏 名",null,null,null,{"$f":"IF(+応募申請用入力シートⅠ!L8=\"\",\"\",応募申請用入力シートⅠ!L8)","v":""}]
[null,null,null,null,null,null,null,"ＴＥＬ",null,null,null,{"$f":"IF(+応募申請用入力シートⅠ!L9=\"\",\"\",応募申請用入力シートⅠ!L9)","v":""}]
[null,null,null,null,null,null,null,"ＦＡＸ",null,null,null,{"$f":"IF(+応募申請用入力シートⅠ!L10=\"\",\"\",応募申請用入力シートⅠ!L10)","v":""}]
[null,null,null,null,null,null,null,"Ｅ-mail",null,null,null,{"$f":"IF(+応募申請用入力シートⅠ!L11=\"\",\"\",応募申請用入力シートⅠ!L11)","v":""}]
[null,"事業実施の担当者",null,null,null,null,null,"会社名等",null,null,null,{"$f":"IF(+応募申請用入力シートⅠ!L12=\"\",\"\",応募申請用入力シートⅠ!L12)","v":""}]
[null,"（問い合わせに対",null,null,null,null,null,"所　属",null,null,null,{"$f":"IF(+応募申請用入力シートⅠ!L13=\"\",\"\",応募申請用入力シートⅠ!L13)","v":""}]
[null,"応できる実施計画",null,null,null,null,null,"所在地",null,null,null,{"$f":"IF(+応募申請用入力シートⅠ!L14=\"\",\"\",応募申請用入力シートⅠ!L14)","v":""}]
[null,"書等の作成者）",null,null,null,null,null,"役職名",null,null,null,{"$f":"IF(+応募申請用入力シートⅠ!L15=\"\",\"\",応募申請用入力シートⅠ!L15)","v":""}]
[null,null,null,null,null,null,null,"氏 名",null,null,null,{"$f":"IF(+応募申請用入力シートⅠ!L16=\"\",\"\",応募申請用入力シートⅠ!L16)","v":""}]
[null,null,null,null,null,null,null,"ＴＥＬ",null,null,null,{"$f":"IF(+応募申請用入力シートⅠ!L17=\"\",\"\",応募申請用入力シートⅠ!L17)","v":""}]
[null,null,null,null,null,null,null,"ＦＡＸ",null,null,null,{"$f":"IF(+応募申請用入力シートⅠ!L18=\"\",\"\",応募申請用入力シートⅠ!L18)","v":""}]
[null,null,null,null,null,null,null,"Ｅ-mail",null,null,null,{"$f":"IF(+応募申請用入力シートⅠ!L19=\"\",\"\",応募申請用入力シートⅠ!L19)","v":""}]
[null,"経 理 責 任 者",null,null,null,null,null,"会社名等",null,null,null,{"$f":"IF(+応募申請用入力シートⅠ!L20=\"\",\"\",応募申請用入力シートⅠ!L20)","v":""}]
[null,null,null,null,null,null,null,"所　属",null,null,null,{"$f":"IF(+応募申請用入力シートⅠ!L21=\"\",\"\",応募申請用入力シートⅠ!L21)","v":""}]
[null,null,null,null,null,null,null,"所在地",null,null,null,{"$f":"IF(+応募申請用入力シートⅠ!L22=\"\",\"\",応募申請用入力シートⅠ!L22)","v":""}]
[null,null,null,null,null,null,null,"役職名",null,null,null,{"$f":"IF(+応募申請用入力シートⅠ!L23=\"\",\"\",応募申請用入力シートⅠ!L23)","v":""}]
[null,null,null,null,null,null,null,"氏 名",null,null,null,{"$f":"IF(+応募申請用入力シートⅠ!L24=\"\",\"\",応募申請用入力シートⅠ!L24)","v":""}]
[null,null,null,null,null,null,null,"ＴＥＬ",null,null,null,{"$f":"IF(+応募申請用入力シートⅠ!L25=\"\",\"\",応募申請用入力シートⅠ!L25)","v":""}]
[null,null,null,null,null,null,null,"ＦＡＸ",null,null,null,{"$f":"IF(+応募申請用入力シートⅠ!L26=\"\",\"\",応募申請用入力シートⅠ!L26)","v":""}]
[null,null,null,null,null,null,null,"Ｅ-mail",null,null,null,{"$f":"IF(+応募申請用入力シートⅠ!L27=\"\",\"\",応募申請用入力シートⅠ!L27)","v":""}]
[null,"共同事業者の代表",null,null,null,null,null,"会社名等",null,null,null,{"$f":"IF(+応募申請用入力シートⅠ!L28=\"\",\"\",応募申請用入力シートⅠ!L28)","v":""}]
[null,"者",null,null,null,null,null,"所　属",null,null,null,{"$f":"IF(+応募申請用入力シートⅠ!L29=\"\",\"\",応募申請用入力シートⅠ!L29)","v":""}]
[null,null,null,null,null,null,null,"所在地",null,null,null,{"$f":"IF(+応募申請用入力シートⅠ!L30=\"\",\"\",応募申請用入力シートⅠ!L30)","v":""}]
[null,null,null,null,null,null,null,"役職名",null,null,null,{"$f":"IF(+応募申請用入力シートⅠ!L31=\"\",\"\",応募申請用入力シートⅠ!L31)","v":""}]
[null,null,null,null,null,null,null,"氏 名",null,null,null,{"$f":"IF(+応募申請用入力シートⅠ!L32=\"\",\"\",応募申請用入力シートⅠ!L32)","v":""}]
[null,null,null,null,null,null,null,"ＴＥＬ",null,null,null,{"$f":"IF(+応募申請用入力シートⅠ!L33=\"\",\"\",応募申請用入力シートⅠ!L33)","v":""}]
[null,null,null,null,null,null,null,"ＦＡＸ",null,null,null,{"$f":"IF(+応募申請用入力シートⅠ!L34=\"\",\"\",応募申請用入力シートⅠ!L34)","v":""}]
[null,null,null,null,null,null,null,"Ｅ-mail",null,null,null,{"$f":"IF(+応募申請用入力シートⅠ!L35=\"\",\"\",応募申請用入力シートⅠ!L35)","v":""}]
[null,"共同事業者の担当",null,null,null,null,null,"会社名等",null,null,null,{"$f":"IF(+応募申請用入力シートⅠ!L36=\"\",\"\",応募申請用入力シートⅠ!L36)","v":""}]
[null,"者",null,null,null,null,null,"所　属",null,null,null,{"$f":"IF(+応募申請用入力シートⅠ!L37=\"\",\"\",応募申請用入力シートⅠ!L37)","v":""}]
[null,null,null,null,null,null,null,"所在地",null,null,null,{"$f":"IF(+応募申請用入力シートⅠ!L38=\"\",\"\",応募申請用入力シートⅠ!L38)","v":""}]
[null,null,null,null,null,null,null,"役職名",null,null,null,{"$f":"IF(+応募申請用入力シートⅠ!L39=\"\",\"\",応募申請用入力シートⅠ!L39)","v":""}]
[null,null,null,null,null,null,null,"氏 名",null,null,null,{"$f":"IF(+応募申請用入力シートⅠ!L40=\"\",\"\",応募申請用入力シートⅠ!L40)","v":""}]
[null,null,null,null,null,null,null,"ＴＥＬ",null,null,null,{"$f":"IF(+応募申請用入力シートⅠ!L41=\"\",\"\",応募申請用入力シートⅠ!L41)","v":""}]
[null,null,null,null,null,null,null,"ＦＡＸ",null,null,null,{"$f":"IF(+応募申請用入力シートⅠ!L42=\"\",\"\",応募申請用入力シートⅠ!L42)","v":""}]
[null,null,null,null,null,null,null,"Ｅ-mail",null,null,null,{"$f":"IF(+応募申請用入力シートⅠ!L43=\"\",\"\",応募申請用入力シートⅠ!L43)","v":""}]

{"sheet":"イ（別紙１）実施計画書 (2)","index":4,"n_rows":41,"n_cols":24,"rows_kept":41,"cut":false,"hidden":false,"merged":[[38,7,39,10],[38,11,39,16],[38,23,39,28],[37,7,37,10],[40,7,40,14],[40,15,40,28],[37,11,37,16],[38,17,39,22],[37,23,37,28],[30,7,30,16],[31,7,31,16],[32,1,32,6],[32,7,32,16],[37,17,37,22],[33,7,33,16],[34,7,34,16],[35,7,35,16],[36,7,36,16],[1,1,22,2],[1,3,1,6],[9,3,9,6],[1,7,1,10],[2,7,2,10],[3,7,3,10],[6,7,6,10],[17,3,17,6],[20,3,20,6],[21,3,21,6],[22,3,22,6],[20,7,20,10],[18,3,18,6],[19,3,19,6],[23,1,23,6],[23,7,23,28],[27,7,27,16],[24,7,26,28],[24,1,26,6],[28,7,28,16],[29,7,29,16],[4,7,4,10],[5,7,5,10],[13,7,13,10],[14,7,14,10],[9,7,9,10],[10,7,10,10],[11,7,11,10],[12,7,12,10],[16,7,16,10],[15,7,15,10],[7,7,7,10],[8,7,8,10],[17,7,17,10],[19,7,19,10]]}
[null,"様式第１７【別紙１】"]
[null,"リース事業者申請の場合の使用者〈貸渡し先〉",null,"代表者",null,null,null,"会社名等",null,null,null,{"$f":"IF(+応募申請用入力シートⅠ!L44=\"\",\"\",+応募申請用入力シートⅠ!L44)","v":""}]
[null,null,null,null,null,null,null,"所　属",null,null,null,{"$f":"IF(+応募申請用入力シートⅠ!L45=\"\",\"\",+応募申請用入力シートⅠ!L45)","v":""}]
[null,null,null,null,null,null,null,"所在地",null,null,null,{"$f":"IF(+応募申請用入力シートⅠ!L46=\"\",\"\",+応募申請用入力シートⅠ!L46)","v":""}]
[null,null,null,null,null,null,null,"役職名",null,null,null,{"$f":"IF(+応募申請用入力シートⅠ!L47=\"\",\"\",+応募申請用入力シートⅠ!L47)","v":""}]
[null,null,null,null,null,null,null,"氏 名",null,null,null,{"$f":"IF(+応募申請用入力シートⅠ!L48=\"\",\"\",+応募申請用入力シートⅠ!L48)","v":""}]
[null,null,null,null,null,null,null,"ＴＥＬ",null,null,null,{"$f":"IF(+応募申請用入力シートⅠ!L49=\"\",\"\",+応募申請用入力シートⅠ!L49)","v":""}]
[null,null,null,null,null,null,null,"ＦＡＸ",null,null,null,{"$f":"IF(+応募申請用入力シートⅠ!L50=\"\",\"\",+応募申請用入力シートⅠ!L50)","v":""}]
[null,null,null,null,null,null,null,"Ｅ-mail",null,null,null,{"$f":"IF(+応募申請用入力シートⅠ!L51=\"\",\"\",+応募申請用入力シートⅠ!L51)","v":""}]
[null,null,null,"担当者",null,null,null,"会社名等",null,null,null,{"$f":"IF(+応募申請用入力シートⅠ!L52=\"\",\"\",+応募申請用入力シートⅠ!L52)","v":""}]
[null,null,null,null,null,null,null,"所　属",null,null,null,{"$f":"IF(+応募申請用入力シートⅠ!L53=\"\",\"\",+応募申請用入力シートⅠ!L53)","v":""}]
[null,null,null,null,null,null,null,"所在地",null,null,null,{"$f":"IF(+応募申請用入力シートⅠ!L54=\"\",\"\",+応募申請用入力シートⅠ!L54)","v":""}]
[null,null,null,null,null,null,null,"役職名",null,null,null,{"$f":"IF(+応募申請用入力シートⅠ!L55=\"\",\"\",+応募申請用入力シートⅠ!L55)","v":""}]
[null,null,null,null,null,null,null,"氏 名",null,null,null,{"$f":"IF(+応募申請用入力シートⅠ!L56=\"\",\"\",+応募申請用入力シートⅠ!L56)","v":""}]
[null,null,null,null,null,null,null,"ＴＥＬ",null,null,null,{"$f":"IF(+応募申請用入力シートⅠ!L57=\"\",\"\",+応募申請用入力シートⅠ!L57)","v":""}]
[null,null,null,null,null,null,null,"ＦＡＸ",null,null,null,{"$f":"IF(+応募申請用入力シートⅠ!L58=\"\",\"\",+応募申請用入力シートⅠ!L58)","v":""}]
[null,null,null,null,null,null,null,"Ｅ-mail",null,null,null,{"$f":"IF(+応募申請用入力シートⅠ!L59=\"\",\"\",+応募申請用入力シートⅠ!L59)","v":""}]
[null,null,null,"廃棄物収集",null,null,null,"一般廃棄物",null,null,null,{"$f":"+応募申請用入力シートⅠ!L60","v":0}]
[null,null,null,"運搬に係る"]
[null,null,null,"許可番号",null,null,null,"産業廃棄物",null,null,null,{"$f":"+応募申請用入力シートⅠ!L62","v":0}]
[null,null,null,"補助対象車",null,null,null,"住　所"]
[null,null,null,"両の使用の",null,null,null,null,null,null,null,"別紙１の１のとおり。"]
[null,null,null,"本拠地"]
[null,"事業の目的・概要",null,null,null,null,null,"（先進環境対応型車両を選定した理由等を記入して下さい。）"]
[null,null,null,null,null,null,null,{"$f":"+応募申請用入力シートⅠ!AL5","v":0}]
[]
[]
[null,"補助対象車両",null,null,null,null,null,"登　録　年　月　日",null,null,null,null,null,null,null,null,null,"別紙１－１のとおり。"]
[null,"（廃棄物の収集運",null,null,null,null,null,"登 録 番 号",null,null,null,null,null,null,null,null,null,"別紙１－１のとおり。"]
[null,"搬の用に供する先",null,null,null,null,null,"車 台 番 号",null,null,null,null,null,null,null,null,null,"別紙１－１のとおり。"]
[null,"進環境対応型ディ",null,null,null,null,null,"車名（メーカー）・型式",null,null,null,null,null,null,null,null,null,"別紙１－１のとおり。"]
[null,"ーゼルトラック）",null,null,null,null,null,"架 装 業 者",null,null,null,null,null,null,null,null,null,"別紙１－１のとおり。"]
[null,null,null,null,null,null,null,"車 体 の 形 状",null,null,null,null,null,null,null,null,null,"別紙１－１のとおり。"]
[null,null,null,null,null,null,null,"用途（自動車検査証の用途）",null,null,null,null,null,null,null,null,null,"別紙１－１のとおり。"]
[null,null,null,null,null,null,null,"所有者の氏名又は名称",null,null,null,null,null,null,null,null,null,"別紙１－１のとおり。"]
[null,null,null,null,null,null,null,"所 有 者 の 住 所",null,null,null,null,null,null,null,null,null,"別紙１－１のとおり。"]
[null,null,null,null,null,null,null,"使用の本拠の位置",null,null,null,null,null,null,null,null,null,"別紙１－１のとおり。"]
[null,null,null,null,null,null,null,"区分注１",null,null,null,"（大型）",null,null,null,null,null,"（中型）",null,null,null,null,null,"（小型）"]
[null,null,null,null,null,null,null,"台数",null,null,null,{"$f":"+'（ａ）別紙１－１ 【補助対象車両一覧】'!D23","v":0},null,null,null,null,null,{"$f":"+'（ａ）別紙１－１ 【補助対象車両一覧】'!D24","v":0},null,null,null,null,null,{"$f":"+'（ａ）別紙１－１ 【補助対象車両一覧】'!D25","v":0}]
[]
[null,null,null,null,null,null,null,"抵当権の有無",null,null,null,null,null,null,null,"別紙１－１のとおり。\n※有りの場合の申請様式は別紙"]

{"sheet":"イ（別紙１）実施計画書 (3)","index":5,"n_rows":47,"n_cols":24,"rows_kept":47,"cut":false,"hidden":false,"merged":[[38,3,38,29],[14,12,14,16],[1,1,8,6],[17,1,17,6],[18,1,18,6],[19,1,19,6],[18,7,20,28],[9,1,9,6],[10,1,10,6],[11,1,11,6],[11,12,11,16],[5,7,8,22],[5,23,8,28],[2,7,2,14],[4,7,4,14],[1,15,4,28],[1,7,1,14],[36,23,36,28],[37,2,37,28],[22,1,22,29],[23,1,23,29],[34,5,34,29],[35,5,35,29],[24,1,24,29],[29,4,29,29],[46,4,46,29],[41,3,41,29],[42,3,42,29],[43,3,43,29],[44,3,44,29],[45,4,45,29]]}
[null,"様式第１７【別紙１】"]
[null,"補助対象車両の使用計画",null,null,null,null,null,"補助対象車両の具体的",null,null,null,null,null,null,null,"別紙１－２のとおり。"]
[null,null,null,null,null,null,null,"な用途"]
[]
[]
[null,null,null,null,null,null,null,"年度間走行距離（㎞）\n（別紙に、車両毎の年度間走行距離見込み（㎞）の内訳（発着場所を含む）を添付すること。）",null,null,null,null,null,null,null,null,null,null,null,null,null,null,null,{"$f":"+'（ｂ）別紙１－２【年度間走行距離一覧表】'!M82","v":0}]
[]
[]
[]
[null,"事業の効果"]
[null,"【ＣＯ２削減量及び費",null,null,null,null,null,"【ＣＯ２削減量】注２"]
[null,"用対効果（ＣＯ２を１",null,null,null,null,null,"（　　　　　　　　ｔ－ＣＯ２／年）",null,null,null,null,{"$f":"+'（ｃ）別紙１－３－１【事業の効果 ＣＯ2削減量】 '!H22","v":0},null,null,null,null,"t－ＣＯ２／年）"]
[null,"トン削減するために必"]
[null,"要な経費）】",null,null,null,null,null,"【費用対効果】注３"]
[null,null,null,null,null,null,null,"（　　　　　　　　円／ｔ－ＣＯ２）",null,null,null,null,{"$f":"+'（ｄ）別紙１－３－２【事業の効果 費用対効果】'!G23","v":""},null,null,null,null,"円/ｔ－ＣＯ２）"]
[]
[]
[null,"事業実施に関連す",null,null,null,null,null,"※他の補助金との関係を記入して下さい。"]
[null,"る事項",null,null,null,null,null,{"$f":"+応募申請用入力シートⅠ!AL13","v":0}]
[]
[]
[]
[null,"注１： 大型とはベース車両の車両総重量が１２トン超のもの、中型とはベース車両の車両総重量が "]
[null,"７．５トン超 １２トン以下のもの、小型とはベース車両の車両総重量が"]
[null,"３．５トン超７．５トン以下のものをいう。"]
[null,"注２： ＣＯ２排出削減量を求める計算式"]
[null,null,null,"年間の一台当たりのＣＯ２排出削減量（t-CO2/年）＝"]
[null,null,null,null,null,null,null,"    A１ ×　B　　　　　　   A２ ×　B　　"]
[null,null,null,null,null,null,null,"　C　×　1,000　　　　　　D　×　1,000"]
[null,null,null,null,"A1 ： 先進環境対応型に適合していない補助対象車両と同型・同用途車両の走行距離（km/年）"]
[null,null,null,null,"A2 :  先進環境対応型補助対象車両の走行距離（km/年）"]
[null,null,null,null,"B　:　排出係数（2.69kg-CO2/ℓ）"]
[null,null,null,null,"C　:  先進環境対応型に適合していない補助対象車両と同型・同用途車両の燃費（km/ℓ）"]
[null,null,null,null,"D　:　先進環境対応型補助申請対象車両の燃費（km/ℓ）"]
[null,null,null,null,null,"・ 実施計画書の「事業の効果」欄に記載する年間の総【CO2削減量】（t－CO2/年）は、"]
[null,null,null,null,null,"　補助対象車両のCO2排出削減量の合計を記載して下さい。"]
[null,"注３：費用対効果を求める計算式"]
[null,null,"CO2削減コスト[円／tCO2] =       "]
[null,null,null," 補助対象経費支出予定額[円]＊1÷（年間の総ＣＯ2排出削減量[t-CO2/年] ＊2×耐用年数[年]）＊3"]
[null,null,"＊1"," 補助対象経費支出予定額は、様式第17別紙２の経費内訳の④欄の額です。"]
[null,null,"＊2"," 注2で算出した年間の総ＣＯ２排出削減量です。"]
[null,null,"＊3"," 耐用年数は、減価償却資産の耐用年数等に関する省令（昭和40年3月30日大蔵省令第15号）"]
[null,null,null,"別表第一「機械及び装置以外の有形減価償却資産の耐用根数表」の種類欄「車両及び運搬具」"]
[null,null,null,"の「特殊自動車」の「タンク車、じん芥車、し尿車、寝台車、霊きゅう車、トラックミキサー、"]
[null,null,null,"レッカーその他の特殊車体を架装したもの」の4年とします。"]
[null,null,null,"・","実施計画書の「事業の効果」欄に記載する年間の【費用対効果】（円/t－CO2）は、"]
[null,null,null,null,"補助対象車両の費用対効果の合計を記載して下さい。"]

{"sheet":"（ａ）別紙１－１ 【補助対象車両一覧】","index":6,"n_rows":25,"n_cols":16,"rows_kept":25,"cut":false,"hidden":false,"merged":[[21,7,21,8],[15,7,15,8],[16,7,16,8],[17,7,17,8],[18,7,18,8],[19,7,19,8],[20,7,20,8],[14,7,14,8],[7,13,7,14],[7,3,7,11],[11,7,11,8],[12,7,12,8],[13,7,13,8]]}
[]
[]
[]
[]
[null,null,null,null,null,null,null,null,null,null,null,null,null,null,"別紙１－１"]
[null,null,null,"平成３０年度低炭素型廃棄物処理支援事業補助金（廃棄物収集運搬車の低燃費化事業）　　　"]
[]
[null,null,null,"補助対象車両（廃棄物の収集運搬の用に供する先進環境対応型ディーゼルトラック）の内訳",null,null,null,null,null,null,null,null,"　　　（応募申請者名：　　　　　　　　　　　　　　　　　　",{"$f":"IF(E13=\"\",\"\",+応募申請用入力シートⅠ!L4)","v":""},null,"）"]
[]
[null,null,"No.1"]
[]
[null,null,"車種","号車","登録年月日","登録番号","車台番号","車名（メーカー）型式",null,"架装業者","車体の形状","用途","所有者の氏名又は名称","所有者の住所","使用の本拠の位置","抵当権の有無"]
[null,1,{"$f":"IF(+応募申請用入力入力シートⅡ!BA67=\"\",\"\",+応募申請用入力入力シートⅡ!BA67)","v":""},{"$f":"IF(+応募申請用入力入力シートⅡ!BD67=\"\",\"\",+応募申請用入力入力シートⅡ!BD67)","v":""},{"$f":"IF(+応募申請用入力入力シートⅡ!AY70=\"\",\"\",+応募申請用入力入力シートⅡ!AY70)","v":""},{"$f":"IF(+応募申請用入力入力シートⅡ!AY72=\"\",\"\",+応募申請用入力入力シートⅡ!AY72)","v":""},{"$f":"IF(+応募申請用入力入力シートⅡ!AY74=\"\",\"\",+応募申請用入力入力シートⅡ!AY74)","v":""},{"$f":"IF(+応募申請用入力入力シートⅡ!AY76=\"\",\"\",+応募申請用入力入力シートⅡ!AY76&\"─\"&応募申請用入力入力シートⅡ!BE76&\"─\"&応募申請用入力入力シートⅡ!BH76)","v":""},null,{"$f":"IF(+応募申請用入力入力シートⅡ!BE78=\"\",\"\",+応募申請用入力入力シートⅡ!BE78)","v":""},{"$f":"IF(+応募申請用入力入力シートⅡ!AY80=\"\",\"\",+応募申請用入力入力シートⅡ!AY80)","v":""},{"$f":"IF(+応募申請用入力入力シートⅡ!BE80=\"\",\"\",+応募申請用入力入力シートⅡ!BE80)","v":""},{"$f":"IF(+E13=\"\",\"\",+応募申請用入力入力シートⅡ!AY84)","v":""},{"$f":"IF(E13=\"\",\"\",+応募申請用入力入力シートⅡ!AY86)","v":""},{"$f":"IF(+E13=\"\",\"\",+応募申請用入力入力シートⅡ!AY88)","v":""},{"$f":"IF(+応募申請用入力入力シートⅡ!AY90=\"\",\"\",+応募申請用入力入力シートⅡ!AY90)","v":""}]
[null,2,{"$f":"IF(+応募申請用入力入力シートⅡ!BA95=\"\",\"\",+応募申請用入力入力シートⅡ!BA95)","v":""},{"$f":"IF(+応募申請用入力入力シートⅡ!BD95=\"\",\"\",+応募申請用入力入力シートⅡ!BD95)","v":""},{"$f":"IF(+応募申請用入力入力シートⅡ!AY98=\"\",\"\",+応募申請用入力入力シートⅡ!AY98)","v":""},{"$f":"IF(+応募申請用入力入力シートⅡ!AY100=\"\",\"\",+応募申請用入力入力シートⅡ!AY100)","v":""},{"$f":"IF(+応募申請用入力入力シートⅡ!AY102=\"\",\"\",+応募申請用入力入力シートⅡ!AY102)","v":""},{"$f":"IF(+応募申請用入力入力シートⅡ!AY104=\"\",\"\",+応募申請用入力入力シートⅡ!AY104&\"─\"&応募申請用入力入力シートⅡ!BE104&\"─\"&応募申請用入力入力シートⅡ!BH104)","v":""},null,{"$f":"IF(+応募申請用入力入力シートⅡ!BE106=\"\",\"\",+応募申請用入力入力シートⅡ!BE106)","v":""},{"$f":"IF(+応募申請用入力入力シートⅡ!AY108=\"\",\"\",+応募申請用入力入力シートⅡ!AY108)","v":""},{"$f":"IF(+応募申請用入力入力シートⅡ!BE108=\"\",\"\",+応募申請用入力入力シートⅡ!BE108)","v":""},{"$f":"IF(E14=\"\",\"\",+応募申請用入力入力シートⅡ!AY112)","v":""},{"$f":"IF(+E14=\"\",\"\",+応募申請用入力入力シートⅡ!AY114)","v":""},{"$f":"IF(E14=\"\",\"\",+応募申請用入力入力シートⅡ!AY116)","v":""},{"$f":"IF(+応募申請用入力入力シートⅡ!AY118=\"\",\"\",+応募申請用入力入力シートⅡ!AY118)","v":""}]
[null,3,{"$f":"IF(+応募申請用入力入力シートⅡ!BA123=\"\",\"\",+応募申請用入力入力シートⅡ!BA123)","v":""},{"$f":"IF(+応募申請用入力入力シートⅡ!BD123=\"\",\"\",+応募申請用入力入力シートⅡ!BD123)","v":""},{"$f":"IF(+応募申請用入力入力シートⅡ!AY126=\"\",\"\",+応募申請用入力入力シートⅡ!AY126)","v":""},{"$f":"IF(+応募申請用入力入力シートⅡ!AY128=\"\",\"\",+応募申請用入力入力シートⅡ!AY128)","v":""},{"$f":"IF(+応募申請用入力入力シートⅡ!AY130=\"\",\"\",+応募申請用入力入力シートⅡ!AY130)","v":""},{"$f":"IF(+応募申請用入力入力シートⅡ!AY132=\"\",\"\",+応募申請用入力入力シートⅡ!AY132&\"─\"&応募申請用入力入力シートⅡ!BE132&\"─\"&応募申請用入力入力シートⅡ!BH132)","v":""},null,{"$f":"IF(+応募申請用入力入力シートⅡ!BE134=\"\",\"\",+応募申請用入力入力シートⅡ!BE134)","v":""},{"$f":"IF(+応募申請用入力入力シートⅡ!AY136=\"\",\"\",+応募申請用入力入力シートⅡ!AY136)","v":""},{"$f":"IF(+応募申請用入力入力シートⅡ!BE136=\"\",\"\",+応募申請用入力入力シートⅡ!BE136)","v":""},{"$f":"IF(E15=\"\",\"\",+応募申請用入力入力シートⅡ!AY140)","v":""},{"$f":"IF(+E15=\"\",\"\",+応募申請用入力入力シートⅡ!AY142)","v":""},{"$f":"IF(+E15=\"\",\"\",+応募申請用入力入力シートⅡ!AY144)","v":""},{"$f":"IF(+応募申請用入力入力シートⅡ!AY146=\"\",\"\",+応募申請用入力入力シートⅡ!AY146)","v":""}]
[null,4,{"$f":"IF(+応募申請用入力入力シートⅡ!BA151=\"\",\"\",+応募申請用入力入力シートⅡ!BA151)","v":""},{"$f":"IF(+応募申請用入力入力シートⅡ!BD151=\"\",\"\",+応募申請用入力入力シートⅡ!BD151)","v":""},{"$f":"IF(+応募申請用入力入力シートⅡ!AY154=\"\",\"\",+応募申請用入力入力シートⅡ!AY154)","v":""},{"$f":"IF(+応募申請用入力入力シートⅡ!AY156=\"\",\"\",+応募申請用入力入力シートⅡ!AY156)","v":""},{"$f":"IF(+応募申請用入力入力シートⅡ!AY158=\"\",\"\",+応募申請用入力入力シートⅡ!AY158)","v":""},{"$f":"IF(+応募申請用入力入力シートⅡ!AY160=\"\",\"\",+応募申請用入力入力シートⅡ!AY160&\"─\"&応募申請用入力入力シートⅡ!BE160&\"─\"&応募申請用入力入力シートⅡ!BH160)","v":""},null,{"$f":"IF(+応募申請用入力入力シートⅡ!BE162=\"\",\"\",+応募申請用入力入力シートⅡ!BE162)","v":""},{"$f":"IF(+応募申請用入力入力シートⅡ!AY164=\"\",\"\",+応募申請用入力入力シートⅡ!AY164)","v":""},{"$f":"IF(+応募申請用入力入力シートⅡ!BE164=\"\",\"\",+応募申請用入力入力シートⅡ!BE164)","v":""},{"$f":"IF(+E16=\"\",\"\",+応募申請用入力入力シートⅡ!AY168)","v":""},{"$f":"IF(+E16=\"\",\"\",+応募申請用入力入力シートⅡ!AY170)","v":""},{"$f":"IF(+E16=\"\",\"\",+応募申請用入力入力シートⅡ!AY172)","v":""},{"$f":"IF(+応募申請用入力入力シートⅡ!AY174=\"\",\"\",+応募申請用入力入力シートⅡ!AY174)","v":""}]
[null,5,{"$f":"IF(+応募申請用入力入力シートⅡ!BA179=\"\",\"\",+応募申請用入力入力シートⅡ!BA179)","v":""},{"$f":"IF(+応募申請用入力入力シートⅡ!BD179=\"\",\"\",+応募申請用入力入力シートⅡ!BD179)","v":""},{"$f":"IF(+応募申請用入力入力シートⅡ!AY182=\"\",\"\",+応募申請用入力入力シートⅡ!AY182)","v":""},{"$f":"IF(+応募申請用入力入力シートⅡ!AY184=\"\",\"\",+応募申請用入力入力シートⅡ!AY184)","v":""},{"$f":"IF(+応募申請用入力入力シートⅡ!AY186=\"\",\"\",+応募申請用入力入力シートⅡ!AY186)","v":""},{"$f":"IF(+応募申請用入力入力シートⅡ!AY188=\"\",\"\",+応募申請用入力入力シートⅡ!AY188&\"─\"&応募申請用入力入力シートⅡ!BE188&\"─\"&応募申請用入力入力シートⅡ!BH188)","v":""},null,{"$f":"IF(+応募申請用入力入力シートⅡ!BE190=\"\",\"\",+応募申請用入力入力シートⅡ!BE190)","v":""},{"$f":"IF(+応募申請用入力入力シートⅡ!AY192=\"\",\"\",+応募申請用入力入力シートⅡ!AY192)","v":""},{"$f":"IF(+応募申請用入力入力シートⅡ!BE192=\"\",\"\",+応募申請用入力入力シートⅡ!BE192)","v":""},{"$f":"IF(E17=\"\",\"\",+応募申請用入力入力シートⅡ!AY196)","v":""},{"$f":"IF(+E17=\"\",\"\",+応募申請用入力入力シートⅡ!AY198)","v":""},{"$f":"IF(+E17=\"\",\"\",+応募申請用入力入力シートⅡ!AY200)","v":""},{"$f":"IF(+応募申請用入力入力シートⅡ!AY202=\"\",\"\",+応募申請用入力入力シートⅡ!AY202)","v":""}]
[null,6,{"$f":"IF(+応募申請用入力入力シートⅡ!BA207=\"\",\"\",+応募申請用入力入力シートⅡ!BA207)","v":""},{"$f":"IF(+応募申請用入力入力シートⅡ!BD207=\"\",\"\",+応募申請用入力入力シートⅡ!BD207)","v":""},{"$f":"IF(+応募申請用入力入力シートⅡ!AY210=\"\",\"\",+応募申請用入力入力シートⅡ!AY210)","v":""},{"$f":"IF(+応募申請用入力入力シートⅡ!AY212=\"\",\"\",+応募申請用入力入力シートⅡ!AY212)","v":""},{"$f":"IF(+応募申請用入力入力シートⅡ!AY214=\"\",\"\",+応募申請用入力入力シートⅡ!AY214)","v":""},{"$f":"IF(+応募申請用入力入力シートⅡ!AY216=\"\",\"\",+応募申請用入力入力シートⅡ!AY216&\"─\"&応募申請用入力入力シートⅡ!BE216&\"─\"&応募申請用入力入力シートⅡ!BH216)","v":""},null,{"$f":"IF(+応募申請用入力入力シートⅡ!BE218=\"\",\"\",+応募申請用入力入力シートⅡ!BE218)","v":""},{"$f":"IF(+応募申請用入力入力シートⅡ!AY220=\"\",\"\",+応募申請用入力入力シートⅡ!AY220)","v":""},{"$f":"IF(+応募申請用入力入力シートⅡ!BE220=\"\",\"\",+応募申請用入力入力シートⅡ!BE220)","v":""},{"$f":"IF(E18=\"\",\"\",+応募申請用入力入力シートⅡ!AY224)","v":""},{"$f":"IF(E18=\"\",\"\",+応募申請用入力入力シートⅡ!AY226)","v":""},{"$f":"IF(+E18=\"\",\"\",+応募申請用入力入力シートⅡ!AY228)","v":""},{"$f":"IF(+応募申請用入力入力シートⅡ!AY230=\"\",\"\",+応募申請用入力入力シートⅡ!AY230)","v":""}]
[null,7,{"$f":"IF(+応募申請用入力入力シートⅡ!BA235=\"\",\"\",+応募申請用入力入力シートⅡ!BA235)","v":""},{"$f":"IF(+応募申請用入力入力シートⅡ!BD235=\"\",\"\",+応募申請用入力入力シートⅡ!BD235)","v":""},{"$f":"IF(+応募申請用入力入力シートⅡ!AY238=\"\",\"\",+応募申請用入力入力シートⅡ!AY238)","v":""},{"$f":"IF(+応募申請用入力入力シートⅡ!AY240=\"\",\"\",+応募申請用入力入力シートⅡ!AY240)","v":""},{"$f":"IF(+応募申請用入力入力シートⅡ!AY242=\"\",\"\",+応募申請用入力入力シートⅡ!AY242)","v":""},{"$f":"IF(+応募申請用入力入力シートⅡ!AY244=\"\",\"\",+応募申請用入力入力シートⅡ!AY244&\"─\"&応募申請用入力入力シートⅡ!BE244&\"─\"&応募申請用入力入力シートⅡ!BH244)","v":""},null,{"$f":"IF(+応募申請用入力入力シートⅡ!BE246=\"\",\"\",+応募申請用入力入力シートⅡ!BE246)","v":""},{"$f":"IF(+応募申請用入力入力シートⅡ!AY248=\"\",\"\",+応募申請用入力入力シートⅡ!AY248)","v":""},{"$f":"IF(+応募申請用入力入力シートⅡ!BE248=\"\",\"\",+応募申請用入力入力シートⅡ!BE248)","v":""},{"$f":"IF(+E19=\"\",\"\",+応募申請用入力入力シートⅡ!AY252)","v":""},{"$f":"IF(+E19=\"\",\"\",+応募申請用入力入力シートⅡ!AY254)","v":""},{"$f":"IF(+E19=\"\",\"\",+応募申請用入力入力シートⅡ!AY256)","v":""},{"$f":"IF(+応募申請用入力入力シートⅡ!AY258=\"\",\"\",+応募申請用入力入力シートⅡ!AY258)","v":""}]
[null,8,{"$f":"IF(+応募申請用入力入力シートⅡ!BA263=\"\",\"\",+応募申請用入力入力シートⅡ!BA263)","v":""},{"$f":"IF(+応募申請用入力入力シートⅡ!BD263=\"\",\"\",+応募申請用入力入力シートⅡ!BD263)","v":""},{"$f":"IF(+応募申請用入力入力シートⅡ!AY266=\"\",\"\",+応募申請用入力入力シートⅡ!AY266)","v":""},{"$f":"IF(+応募申請用入力入力シートⅡ!AY268=\"\",\"\",+応募申請用入力入力シートⅡ!AY268)","v":""},{"$f":"IF(+応募申請用入力入力シートⅡ!AY270=\"\",\"\",+応募申請用入力入力シートⅡ!AY270)","v":""},{"$f":"IF(+応募申請用入力入力シートⅡ!AY272=\"\",\"\",+応募申請用入力入力シートⅡ!AY272&\"─\"&応募申請用入力入力シートⅡ!BE272&\"─\"&応募申請用入力入力シートⅡ!BH272)","v":""},null,{"$f":"IF(+応募申請用入力入力シートⅡ!BE274=\"\",\"\",+応募申請用入力入力シートⅡ!BE274)","v":""},{"$f":"IF(+応募申請用入力入力シートⅡ!AY276=\"\",\"\",+応募申請用入力入力シートⅡ!AY276)","v":""},{"$f":"IF(+応募申請用入力入力シートⅡ!BE276=\"\",\"\",+応募申請用入力入力シートⅡ!BE276)","v":""},{"$f":"IF(E20=\"\",\"\",+応募申請用入力入力シートⅡ!AY280)","v":""},{"$f":"IF(+E20=\"\",\"\",+応募申請用入力入力シートⅡ!AY282)","v":""},{"$f":"IF(+E20=\"\",\"\",+応募申請用入力入力シートⅡ!AY284)","v":""},{"$f":"IF(+応募申請用入力入力シートⅡ!AY286=\"\",\"\",+応募申請用入力入力シートⅡ!AY286)","v":""}]
[null,9,{"$f":"IF(+応募申請用入力入力シートⅡ!BA291=\"\",\"\",+応募申請用入力入力シートⅡ!BA291)","v":""},{"$f":"IF(+応募申請用入力入力シートⅡ!BD291=\"\",\"\",+応募申請用入力入力シートⅡ!BD291)","v":""},{"$f":"IF(+応募申請用入力入力シートⅡ!AY294=\"\",\"\",+応募申請用入力入力シートⅡ!AY294)","v":""},{"$f":"IF(+応募申請用入力入力シートⅡ!AY296=\"\",\"\",+応募申請用入力入力シートⅡ!AY296)","v":""},{"$f":"IF(+応募申請用入力入力シートⅡ!AY298=\"\",\"\",+応募申請用入力入力シートⅡ!AY298)","v":""},{"$f":"IF(+応募申請用入力入力シートⅡ!AY300=\"\",\"\",+応募申請用入力入力シートⅡ!AY300&\"─\"&応募申請用入力入力シートⅡ!BE300&\"─\"&応募申請用入力入力シートⅡ!BH300)","v":""},null,{"$f":"IF(+応募申請用入力入力シートⅡ!BE302=\"\",\"\",+応募申請用入力入力シートⅡ!BE302)","v":""},{"$f":"IF(+応募申請用入力入力シートⅡ!AY304=\"\",\"\",+応募申請用入力入力シートⅡ!AY304)","v":""},{"$f":"IF(+応募申請用入力入力シートⅡ!BE304=\"\",\"\",+応募申請用入力入力シートⅡ!BE304)","v":""},{"$f":"IF(E21=\"\",\"\",+応募申請用入力入力シートⅡ!AY308)","v":""},{"$f":"IF(+E21=\"\",\"\",+応募申請用入力入力シートⅡ!AY310)","v":""},{"$f":"IF(+E21=\"\",\"\",+応募申請用入力入力シートⅡ!AY312)","v":""},{"$f":"IF(+応募申請用入力入力シートⅡ!AY314=\"\",\"\",+応募申請用入力入力シートⅡ!AY314)","v":""}]
[null,10,{"$f":"IF(+応募申請用入力入力シートⅡ!BA319=\"\",\"\",+応募申請用入力入力シートⅡ!BA319)","v":""},{"$f":"IF(+応募申請用入力入力シートⅡ!BD319=\"\",\"\",+応募申請用入力入力シートⅡ!BD319)","v":""},{"$f":"IF(+応募申請用入力入力シートⅡ!AY322=\"\",\"\",+応募申請用入力入力シートⅡ!AY322)","v":""},{"$f":"IF(+応募申請用入力入力シートⅡ!AY324=\"\",\"\",+応募申請用入力入力シートⅡ!AY324)","v":""},{"$f":"IF(+応募申請用入力入力シートⅡ!AY326=\"\",\"\",+応募申請用入力入力シートⅡ!AY326)","v":""},{"$f":"IF(+応募申請用入力入力シートⅡ!AY328=\"\",\"\",+応募申請用入力入力シートⅡ!AY328&\"─\"&応募申請用入力入力シートⅡ!BE328&\"─\"&応募申請用入力入力シートⅡ!BH328)","v":""},null,{"$f":"IF(+応募申請用入力入力シートⅡ!BE330=\"\",\"\",+応募申請用入力入力シートⅡ!BE330)","v":""},{"$f":"IF(+応募申請用入力入力シートⅡ!AY332=\"\",\"\",+応募申請用入力入力シートⅡ!AY332)","v":""},{"$f":"IF(+応募申請用入力入力シートⅡ!BE332=\"\",\"\",+応募申請用入力入力シートⅡ!BE332)","v":""},{"$f":"IF(E22=\"\",\"\",+応募申請用入力入力シートⅡ!AY336)","v":""},{"$f":"IF(+E22=\"\",\"\",+応募申請用入力入力シートⅡ!AY338)","v":""},{"$f":"IF(+E22=\"\",\"\",+応募申請用入力入力シートⅡ!AY340)","v":""},{"$f":"IF(+応募申請用入力入力シートⅡ!AY342=\"\",\"\",+応募申請用入力入力シートⅡ!AY342)","v":""}]
[null,null,"大型",{"$f":"COUNTIFS($C$13:$C$22,\"大型\")","v":0}]
[null,null,"中型",{"$f":"COUNTIFS($C$13:$C$22,\"中型\")","v":0}]
[null,null,"小型",{"$f":"COUNTIFS($C$13:$C$22,\"小型\")","v":0}]

{"sheet":"（ｂ）別紙１－２【年度間走行距離一覧表】","index":7,"n_rows":82,"n_cols":13,"rows_kept":82,"cut":false,"hidden":false,"merged":[[71,2,73,2],[50,2,52,2],[54,2,56,2],[57,2,59,2],[61,2,63,2],[64,2,66,2],[68,2,70,2],[29,2,31,2],[33,2,35,2],[36,2,38,2],[40,2,42,2],[43,2,45,2],[47,2,49,2],[64,10,66,10],[64,11,66,11],[64,12,66,12],[5,2,7,2],[8,2,10,2],[12,2,14,2],[15,2,17,2],[19,2,21,2],[22,2,24,2],[26,2,28,2],[61,9,63,9],[61,10,63,10],[61,11,63,11],[61,12,63,12],[64,4,66,4],[64,5,66,5],[64,6,66,6],[64,7,66,7],[64,8,66,8],[64,9,66,9],[61,3,66,3],[61,4,63,4],[61,5,63,5],[61,6,63,6],[61,7,63,7],[61,8,63,8],[1,4,1,10],[8,7,10,7],[5,3,10,3],[5,4,7,4],[5,5,7,5],[5,6,7,6],[8,6,10,6],[8,4,10,4],[8,5,10,5],[3,8,3,9],[19,8,21,8],[15,9,17,9],[5,7,7,7],[12,8,14,8],[5,9,7,9],[5,8,7,8],[8,9,10,9],[8,8,10,8],[19,9,21,9],[12,9,14,9],[19,10,21,10],[15,4,17,4],[15,11,17,11],[8,12,10,12],[12,10,14,10],[5,11,7,11],[5,12,7,12],[8,10,10,10],[5,10,7,10],[8,11,10,11],[15,10,17,10],[15,12,17,12],[12,11,14,11],[12,12,14,12],[15,5,17,5],[15,6,17,6],[15,7,17,7],[15,8,17,8],[12,4,14,4],[12,6,14,6],[19,3,24,3],[19,4,21,4],[19,5,21,5],[19,6,21,6],[19,7,21,7],[12,3,17,3],[12,5,14,5],[12,7,14,7],[19,11,21,11],[19,12,21,12],[22,4,24,4],[22,5,24,5],[22,6,24,6],[22,7,24,7],[22,8,24,8],[22,9,24,9],[22,10,24,10],[22,11,24,11],[22,12,24,12],[26,3,31,3],[26,4,28,4],[26,5,28,5],[26,6,28,6],[26,7,28,7],[26,8,28,8],[26,9,28,9],[26,10,28,10],[26,11,28,11],[26,12,28,12],[29,4,31,4],[29,5,31,5],[29,6,31,6],[29,7,31,7],[29,8,31,8],[29,9,31,9],[29,10,31,10],[29,11,31,11],[29,12,31,12],[33,3,38,3],[33,4,35,4],[33,5,35,5],[33,6,35,6],[33,7,35,7],[33,8,35,8],[33,9,35,9],[33,10,35,10],[33,11,35,11],[33,12,35,12],[36,4,38,4],[36,5,38,5],[36,6,38,6],[36,7,38,7],[36,8,38,8],[36,9,38,9],[36,10,38,10],[36,11,38,11],[36,12,38,12],[40,3,45,3],[40,4,42,4],[40,5,42,5],[40,6,42,6],[40,7,42,7],[40,8,42,8],[40,9,42,9],[40,10,42,10],[40,11,42,11],[40,12,42,12],[43,4,45,4],[43,5,45,5],[43,6,45,6],[43,7,45,7],[43,8,45,8],[43,9,45,9],[43,10,45,10],[43,11,45,11],[43,12,45,12],[50,6,52,6],[50,7,52,7],[50,8,52,8],[50,9,52,9],[50,10,52,10],[50,11,52,11],[50,12,52,12],[47,3,52,3],[47,4,49,4],[47,5,49,5],[47,6,49,6],[47,7,49,7],[47,8,49,8],[47,9,49,9],[47,10,49,10],[47,11,49,11],[54,3,59,3],[54,4,56,4],[54,5,56,5],[54,6,56,6],[54,7,56,7],[54,8,56,8],[54,9,56,9],[54,10,56,10],[54,11,56,11],[68,3,73,3],[68,4,70,4],[68,5,70,5],[68,6,70,6],[68,7,70,7],[71,10,73,10],[68,8,70,8],[68,9,70,9],[68,10,70,10],[3,10,3,11],[71,12,73,12],[68,11,70,11],[68,12,70,12],[71,4,73,4],[71,5,73,5],[71,6,73,6],[71,7,73,7],[71,8,73,8],[71,9,73,9],[71,11,73,11],[54,12,56,12],[57,4,59,4],[57,5,59,5],[57,6,59,6],[57,7,59,7],[57,8,59,8],[57,9,59,9],[57,10,59,10],[57,11,59,11],[57,12,59,12],[47,12,49,12],[50,4,52,4],[50,5,52,5]]}
[]
[null,null,null,null,"年度間走行距離一覧表          ",null,null,null,null,null,null,"別紙１－２"]
[null,null,"No.1"]
[null,null,null,null,null,null,null,null,"　　　（応募申請者名：　　　　　　　　　　　　　　　　　　",null,{"$f":"IF(C9=\"\",\"\",+応募申請用入力シートⅠ!L4)","v":""},null,"）"]
[null,null,"車種\n号車","主な用途",null,"出発地（A）","経由地","到着地（B）","（A）から（B）\nまでの距離","移動\n回数","１日の\n走行距離","年度間\n稼動日数","年度間\n走行距離"]
[null,null,{"$f":"IF(+応募申請用入力入力シートⅡ!BA67=\"\",\"\",+応募申請用入力入力シートⅡ!BA67)","v":""},{"$f":"IF(C6=\"\",\"\",+応募申請用入力入力シートⅡ!BK68)","v":""},"代表的なコース",{"$f":"IF(C6=\"\",\"\",+応募申請用入力入力シートⅡ!BK73)","v":""},{"$f":"IF(C6=\"\",\"\",+応募申請用入力入力シートⅡ!BK75)","v":""},{"$f":"IF(C6=\"\",\"\",+応募申請用入力入力シートⅡ!BK77)","v":""},{"$f":"IF(C6=\"\",\"\",+応募申請用入力入力シートⅡ!BK79)","v":""},{"$f":"IF(C6=\"\",\"\",+応募申請用入力入力シートⅡ!BK81)","v":""},{"$f":"IF(C6=\"\",\"\",I6*J6)","v":""},{"$f":"IF(C6=\"\",\"\",+応募申請用入力入力シートⅡ!BQ81)","v":""},{"$f":"IF(C6=\"\",\"\",K6*L6)","v":""}]
[]
[]
[null,null,{"$f":"IF(+応募申請用入力入力シートⅡ!BD67=\"\",\"\",+応募申請用入力入力シートⅡ!BD67)","v":""},null,"その他の走行距離","ー","ー","ー","ー","ー","-","-",{"$f":"IF(C6=\"\",\"\",応募申請用入力入力シートⅡ!BK83)","v":""}]
[]
[]
[null,1,"計",null,"ー","ー","ー","ー","ー","ー","-","-",{"$f":"SUM(M6:M11)","v":0}]
[null,null,{"$f":"IF(+応募申請用入力入力シートⅡ!BA95=\"\",\"\",+応募申請用入力入力シートⅡ!BA95)","v":""},{"$f":"IF(C13=\"\",\"\",+応募申請用入力入力シートⅡ!BK96)","v":""},"代表的なコース",{"$f":"IF(C13=\"\",\"\",+応募申請用入力入力シートⅡ!BK101)","v":""},{"$f":"IF(C13=\"\",\"\",+応募申請用入力入力シートⅡ!BK103)","v":""},{"$f":"IF(C13=\"\",\"\",+応募申請用入力入力シートⅡ!BK105)","v":""},{"$f":"IF(C13=\"\",\"\",+応募申請用入力入力シートⅡ!BK107)","v":""},{"$f":"IF(C13=\"\",\"\",+応募申請用入力入力シートⅡ!BK109)","v":""},{"$f":"IF(C13=\"\",\"\",I13*J13)","v":""},{"$f":"IF(C13=\"\",\"\",+応募申請用入力入力シートⅡ!BQ109)","v":""},{"$f":"IF(C13=\"\",\"\",K13*L13)","v":""}]
[]
[]
[null,null,{"$f":"IF(+応募申請用入力入力シートⅡ!BD95=\"\",\"\",+応募申請用入力入力シートⅡ!BD95)","v":""},null,"その他の走行距離","ー","ー","ー","ー","ー","-","-",{"$f":"IF(C13=\"\",\"\",応募申請用入力入力シートⅡ!BK111)","v":""}]
[]
[]
[null,2,"計",null,"ー","ー","ー","ー","ー","ー","-","-",{"$f":"SUM(M13:M18)","v":0}]
[null,null,{"$f":"IF(+応募申請用入力入力シートⅡ!BA123=\"\",\"\",+応募申請用入力入力シートⅡ!BA123)","v":""},{"$f":"IF(C20=\"\",\"\",+応募申請用入力入力シートⅡ!BK124)","v":""},"代表的なコース",{"$f":"IF(C20=\"\",\"\",+応募申請用入力入力シートⅡ!BK129)","v":""},{"$f":"IF(C20=\"\",\"\",+応募申請用入力入力シートⅡ!BK131)","v":""},{"$f":"IF(C20=\"\",\"\",+応募申請用入力入力シートⅡ!BK133)","v":""},{"$f":"IF(C20=\"\",\"\",+応募申請用入力入力シートⅡ!BK135)","v":""},{"$f":"IF(C20=\"\",\"\",+応募申請用入力入力シートⅡ!BK137)","v":""},{"$f":"IF(C20=\"\",\"\",I20*J20)","v":""},{"$f":"IF(C20=\"\",\"\",+応募申請用入力入力シートⅡ!BQ137)","v":""},{"$f":"IF(C20=\"\",\"\",K20*L20)","v":""}]
[]
[]
[null,null,{"$f":"IF(+応募申請用入力入力シートⅡ!BD123=\"\",\"\",+応募申請用入力入力シートⅡ!BD123)","v":""},null,"その他の走行距離","ー","ー","ー","ー","ー","-","-",{"$f":"IF(C20=\"\",\"\",応募申請用入力入力シートⅡ!BK139)","v":""}]
[]
[]
[null,3,"計",null,"ー","ー","ー","ー","ー","ー","-","-",{"$f":"SUM(M20:M25)","v":0}]
[null,null,{"$f":"IF(+応募申請用入力入力シートⅡ!BA151=\"\",\"\",+応募申請用入力入力シートⅡ!BA151)","v":""},{"$f":"IF(C27=\"\",\"\",+応募申請用入力入力シートⅡ!BK152)","v":""},"代表的なコース",{"$f":"IF(C27=\"\",\"\",+応募申請用入力入力シートⅡ!BK157)","v":""},{"$f":"IF(C27=\"\",\"\",+応募申請用入力入力シートⅡ!BK159)","v":""},{"$f":"IF(C27=\"\",\"\",+応募申請用入力入力シートⅡ!BK161)","v":""},{"$f":"IF(C27=\"\",\"\",+応募申請用入力入力シートⅡ!BK163)","v":""},{"$f":"IF(C27=\"\",\"\",+応募申請用入力入力シートⅡ!BK165)","v":""},{"$f":"IF(C27=\"\",\"\",I27*J27)","v":""},{"$f":"IF(C27=\"\",\"\",+応募申請用入力入力シートⅡ!BQ165)","v":""},{"$f":"IF(C27=\"\",\"\",K27*L27)","v":""}]
[]
[]
[null,null,{"$f":"IF(+応募申請用入力入力シートⅡ!BD151=\"\",\"\",+応募申請用入力入力シートⅡ!BD151)","v":""},null,"その他の走行距離","ー","ー","ー","ー","ー","-","-",{"$f":"IF(C27=\"\",\"\",応募申請用入力入力シートⅡ!BK167)","v":""}]
[]
[]
[null,4,"計",null,"ー","ー","ー","ー","ー","ー","-","-",{"$f":"SUM(M27:M32)","v":0}]
[null,null,{"$f":"IF(+応募申請用入力入力シートⅡ!BA179=\"\",\"\",+応募申請用入力入力シートⅡ!BA179)","v":""},{"$f":"IF(C34=\"\",\"\",+応募申請用入力入力シートⅡ!BK180)","v":""},"代表的なコース",{"$f":"IF(C34=\"\",\"\",+応募申請用入力入力シートⅡ!BK185)","v":""},{"$f":"IF(C34=\"\",\"\",+応募申請用入力入力シートⅡ!BK187)","v":""},{"$f":"IF(C34=\"\",\"\",+応募申請用入力入力シートⅡ!BK189)","v":""},{"$f":"IF(C34=\"\",\"\",+応募申請用入力入力シートⅡ!BK191)","v":""},{"$f":"IF(C34=\"\",\"\",+応募申請用入力入力シートⅡ!BK193)","v":""},{"$f":"IF(C34=\"\",\"\",I34*J34)","v":""},{"$f":"IF(C34=\"\",\"\",+応募申請用入力入力シートⅡ!BQ193)","v":""},{"$f":"IF(C34=\"\",\"\",K34*L34)","v":""}]
[]
[]
[null,null,{"$f":"IF(+応募申請用入力入力シートⅡ!BD179=\"\",\"\",+応募申請用入力入力シートⅡ!BD179)","v":""},null,"その他の走行距離","ー","ー","ー","ー","ー","-","-",{"$f":"IF(C34=\"\",\"\",応募申請用入力入力シートⅡ!BK195)","v":""}]
[]
[]
[null,5,"計",null,"ー","ー","ー","ー","ー","ー","-","-",{"$f":"SUM(M34:M39)","v":0}]
[null,null,{"$f":"IF(+応募申請用入力入力シートⅡ!BA207=\"\",\"\",+応募申請用入力入力シートⅡ!BA207)","v":""},{"$f":"IF(C41=\"\",\"\",+応募申請用入力入力シートⅡ!BK208)","v":""},"代表的なコース",{"$f":"IF(C41=\"\",\"\",+応募申請用入力入力シートⅡ!BK213)","v":""},{"$f":"IF(C41=\"\",\"\",+応募申請用入力入力シートⅡ!BK215)","v":""},{"$f":"IF(C41=\"\",\"\",+応募申請用入力入力シートⅡ!BK217)","v":""},{"$f":"IF(C41=\"\",\"\",+応募申請用入力入力シートⅡ!BK219)","v":""},{"$f":"IF(C41=\"\",\"\",+応募申請用入力入力シートⅡ!BK221)","v":""},{"$f":"IF(C41=\"\",\"\",I41*J41)","v":""},{"$f":"IF(C41=\"\",\"\",+応募申請用入力入力シートⅡ!BQ221)","v":""},{"$f":"IF(C41=\"\",\"\",K41*L41)","v":""}]
[]
[]
[null,null,{"$f":"IF(+応募申請用入力入力シートⅡ!BD207=\"\",\"\",+応募申請用入力入力シートⅡ!BD207)","v":""},null,"その他の走行距離","ー","ー","ー","ー","ー","-","-",{"$f":"IF(C41=\"\",\"\",応募申請用入力入力シートⅡ!BK223)","v":""}]
[]
[]
[null,6,"計",null,"ー","ー","ー","ー","ー","ー","-","-",{"$f":"SUM(M41:M46)","v":0}]
[null,null,{"$f":"IF(+応募申請用入力入力シートⅡ!BA235=\"\",\"\",+応募申請用入力入力シートⅡ!BA235)","v":""},{"$f":"IF(C48=\"\",\"\",+応募申請用入力入力シートⅡ!BK236)","v":""},"代表的なコース",{"$f":"IF(C48=\"\",\"\",+応募申請用入力入力シートⅡ!BK241)","v":""},{"$f":"IF(C48=\"\",\"\",+応募申請用入力入力シートⅡ!BK243)","v":""},{"$f":"IF(C48=\"\",\"\",+応募申請用入力入力シートⅡ!BK245)","v":""},{"$f":"IF(C48=\"\",\"\",+応募申請用入力入力シートⅡ!BK247)","v":""},{"$f":"IF(C48=\"\",\"\",+応募申請用入力入力シートⅡ!BK249)","v":""},{"$f":"IF(C48=\"\",\"\",I48*J48)","v":""},{"$f":"IF(C48=\"\",\"\",+応募申請用入力入力シートⅡ!BQ249)","v":""},{"$f":"IF(C48=\"\",\"\",K48*L48)","v":""}]
[]
[]
[null,null,{"$f":"IF(+応募申請用入力入力シートⅡ!BD235=\"\",\"\",+応募申請用入力入力シートⅡ!BD235)","v":""},null,"その他の走行距離","ー","ー","ー","ー","ー","-","-",{"$f":"IF(C48=\"\",\"\",応募申請用入力入力シートⅡ!BK251)","v":""}]
[]
[]
[null,7,"計",null,"ー","ー","ー","ー","ー","ー","-","-",{"$f":"SUM(M48:M53)","v":0}]
[null,null,{"$f":"IF(+応募申請用入力入力シートⅡ!BA263=\"\",\"\",+応募申請用入力入力シートⅡ!BA263)","v":""},{"$f":"IF(C55=\"\",\"\",+応募申請用入力入力シートⅡ!BK264)","v":""},"代表的なコース",{"$f":"IF(C55=\"\",\"\",+応募申請用入力入力シートⅡ!BK269)","v":""},{"$f":"IF(C55=\"\",\"\",+応募申請用入力入力シートⅡ!BK271)","v":""},{"$f":"IF(C55=\"\",\"\",+応募申請用入力入力シートⅡ!BK273)","v":""},{"$f":"IF(C55=\"\",\"\",+応募申請用入力入力シートⅡ!BK275)","v":""},{"$f":"IF(C55=\"\",\"\",+応募申請用入力入力シートⅡ!BK277)","v":""},{"$f":"IF(C55=\"\",\"\",I55*J55)","v":""},{"$f":"IF(C55=\"\",\"\",+応募申請用入力入力シートⅡ!BQ277)","v":""},{"$f":"IF(C55=\"\",\"\",K55*L55)","v":""}]
[]
[]
[null,null,{"$f":"IF(+応募申請用入力入力シートⅡ!BD263=\"\",\"\",+応募申請用入力入力シートⅡ!BD263)","v":""},null,"その他の走行距離","ー","ー","ー","ー","ー","-","-",{"$f":"IF(C55=\"\",\"\",応募申請用入力入力シートⅡ!BK279)","v":""}]
[]
[]
[null,8,"計",null,"ー","ー","ー","ー","ー","ー","-","-",{"$f":"SUM(M55:M60)","v":0}]
[null,null,{"$f":"IF(+応募申請用入力入力シートⅡ!BA291=\"\",\"\",+応募申請用入力入力シートⅡ!BA291)","v":""},{"$f":"IF(C62=\"\",\"\",+応募申請用入力入力シートⅡ!BK292)","v":""},"代表的なコース",{"$f":"IF(C62=\"\",\"\",+応募申請用入力入力シートⅡ!BK297)","v":""},{"$f":"IF(C62=\"\",\"\",+応募申請用入力入力シートⅡ!BK299)","v":""},{"$f":"IF(C62=\"\",\"\",+応募申請用入力入力シートⅡ!BK301)","v":""},{"$f":"IF(C62=\"\",\"\",+応募申請用入力入力シートⅡ!BK303)","v":""},{"$f":"IF(C62=\"\",\"\",+応募申請用入力入力シートⅡ!BK305)","v":""},{"$f":"IF(C62=\"\",\"\",I62*J62)","v":""},{"$f":"IF(C62=\"\",\"\",+応募申請用入力入力シートⅡ!BQ305)","v":""},{"$f":"IF(C62=\"\",\"\",K62*L62)","v":""}]
[]
[]
[null,null,{"$f":"IF(+応募申請用入力入力シートⅡ!BD291=\"\",\"\",+応募申請用入力入力シートⅡ!BD291)","v":""},null,"その他の走行距離","ー","ー","ー","ー","ー","-","-",{"$f":"IF(C62=\"\",\"\",応募申請用入力入力シートⅡ!BK307)","v":""}]
[]
[]
[null,9,"計",null,"ー","ー","ー","ー","ー","ー","-","-",{"$f":"SUM(M62:M67)","v":0}]
[null,null,{"$f":"IF(+応募申請用入力入力シートⅡ!BA319=\"\",\"\",+応募申請用入力入力シートⅡ!BA319)","v":""},{"$f":"IF(C69=\"\",\"\",+応募申請用入力入力シートⅡ!BK320)","v":""},"代表的なコース",{"$f":"IF(C69=\"\",\"\",+応募申請用入力入力シートⅡ!BK325)","v":""},{"$f":"IF(C69=\"\",\"\",+応募申請用入力入力シートⅡ!BK327)","v":""},{"$f":"IF(C69=\"\",\"\",+応募申請用入力入力シートⅡ!BK329)","v":""},{"$f":"IF(C69=\"\",\"\",+応募申請用入力入力シートⅡ!BK331)","v":""},{"$f":"IF(C69=\"\",\"\",+応募申請用入力入力シートⅡ!BK333)","v":""},{"$f":"IF(C69=\"\",\"\",I69*J69)","v":""},{"$f":"IF(C69=\"\",\"\",+応募申請用入力入力シートⅡ!BQ333)","v":""},{"$f":"IF(C69=\"\",\"\",K69*L69)","v":""}]
[]
[]
[null,null,{"$f":"IF(+応募申請用入力入力シートⅡ!BD319=\"\",\"\",+応募申請用入力入力シートⅡ!BD319)","v":""},null,"その他の走行距離","ー","ー","ー","ー","ー","-","-",{"$f":"IF(C69=\"\",\"\",応募申請用入力入力シートⅡ!BK335)","v":""}]
[]
[]
[null,10,"計",null,"ー","ー","ー","ー","ー","ー","-","-",{"$f":"SUM(M69:M74)","v":0}]
[]
[]
[]
[]
[]
[]
[null,null,null,null,null,null,null,null,null,"合計",{"$f":"SUM(K6,K13,K20,K27,K34,K41,K48,K55,K62,K69)","v":0},{"$f":"SUM(L6,L13,L20,L27,L34,L41,L48,L55,L62,L69)","v":0},{"$f":"SUM(M12,M19,M26,M33,M40,M47,M54,M61,M68,M75)","v":0}]

{"sheet":"（ｃ）別紙１－３－１【事業の効果 ＣＯ2削減量】 ","index":8,"n_rows":24,"n_cols":9,"rows_kept":24,"cut":false,"hidden":false,"merged":[[3,1,4,8]]}
[]
[null," 事業の効果　【CO2削減量（t－CO２/年）】",null,null,null,null,null,"別紙1-3-1"]
[]
[null,"　①走行距離(km)×②排出係数(kg-CO2/ℓ)      　　　　　　　　　　　　　　　         　　　　　　　①走行距離(km)×②排出係数(kg-CO2/ℓ) \n　③先進環境対応型に適合していない補助対象車両と同型・同用途の車両の燃費(km/ℓ)×1,000　　  　　  ④先進環境対応型の燃費(km/ℓ)×1,000　　　　　　　　　　　　　　　　　　　　　　　　　　　　　　　　　　　　　"]
[]
[]
[null,null,null,null,null,null,"　　　（応募申請者名：　　　　　　　　　　　　　　　　　　",{"$f":"IF(B9=\"\",\"\",+応募申請用入力シートⅠ!L4)","v":""},"）"]
[null,"車種","号車","①走行距離\n(km)","②排出係数（a）\n(kg-CO2/ℓ)","③先進環境対応型に適合していない補助\n対象車両と同型・同用途の車両の燃費(b)\n(km/ℓ)","④先進環境対応型の燃費\n(km/ℓ)","CO２削減量(t-CO2/年)"]
[1,{"$f":"IF(+応募申請用入力入力シートⅡ!BA67=\"\",\"\",+応募申請用入力入力シートⅡ!BA67)","v":""},{"$f":"IF(+応募申請用入力入力シートⅡ!BD67=\"\",\"\",+応募申請用入力入力シートⅡ!BD67)","v":""},{"$f":"IF(+応募申請用入力入力シートⅡ!BQ83=\"\",\"\",+応募申請用入力入力シートⅡ!BQ83)","v":""},{"$f":"IF(B9=\"\",\"\",2.619)","v":""},{"$f":"+IF(応募申請用入力入力シートⅡ!BC68=\"買替\",'(e）別紙１－４　【実績燃費計算シート】'!F7,応募申請用入力入力シートⅡ!BK87)","v":""},{"$f":"+IF(応募申請用入力入力シートⅡ!BC68=\"買替\",'(e）別紙１－４　【実績燃費計算シート】'!F7*1.05,応募申請用入力入力シートⅡ!BK85)","v":""},{"$f":"IF(D9=\"\",\"\",ROUNDDOWN((D9*E9)/(F9*1000)-(D9*E9)/(G9*1000),3))","v":""}]
[2,{"$f":"IF(+応募申請用入力入力シートⅡ!BA95=\"\",\"\",+応募申請用入力入力シートⅡ!BA95)","v":""},{"$f":"IF(+応募申請用入力入力シートⅡ!BD95=\"\",\"\",+応募申請用入力入力シートⅡ!BD95)","v":""},{"$f":"IF(+応募申請用入力入力シートⅡ!BQ111=\"\",\"\",+応募申請用入力入力シートⅡ!BQ111)","v":""},{"$f":"IF(B10=\"\",\"\",2.619)","v":""},{"$f":"+IF(応募申請用入力入力シートⅡ!BC96=\"買替\",'(e）別紙１－４　【実績燃費計算シート】'!F8,応募申請用入力入力シートⅡ!BK115)","v":""},{"$f":"+IF(応募申請用入力入力シートⅡ!BC96=\"買替\",'(e）別紙１－４　【実績燃費計算シート】'!F8*1.05,応募申請用入力入力シートⅡ!BK113)","v":""},""]
[3,{"$f":"IF(+応募申請用入力入力シートⅡ!BA123=\"\",\"\",+応募申請用入力入力シートⅡ!BA123)","v":""},{"$f":"IF(+応募申請用入力入力シートⅡ!BD123=\"\",\"\",+応募申請用入力入力シートⅡ!BD123)","v":""},{"$f":"IF(+応募申請用入力入力シートⅡ!BQ139=\"\",\"\",+応募申請用入力入力シートⅡ!BQ139)","v":""},{"$f":"IF(B11=\"\",\"\",2.619)","v":""},{"$f":"+IF(応募申請用入力入力シートⅡ!BC124=\"買替\",'(e）別紙１－４　【実績燃費計算シート】'!F9,応募申請用入力入力シートⅡ!BK143)","v":""},{"$f":"+IF(応募申請用入力入力シートⅡ!BC124=\"買替\",'(e）別紙１－４　【実績燃費計算シート】'!F9*1.05,応募申請用入力入力シートⅡ!BK141)","v":""},""]
[4,{"$f":"IF(+応募申請用入力入力シートⅡ!BA151=\"\",\"\",+応募申請用入力入力シートⅡ!BA151)","v":""},{"$f":"IF(+応募申請用入力入力シートⅡ!BD151=\"\",\"\",+応募申請用入力入力シートⅡ!BD151)","v":""},{"$f":"IF(+応募申請用入力入力シートⅡ!BQ167=\"\",\"\",+応募申請用入力入力シートⅡ!BQ167)","v":""},{"$f":"IF(B12=\"\",\"\",2.619)","v":""},{"$f":"+IF(応募申請用入力入力シートⅡ!BC152=\"買替\",'(e）別紙１－４　【実績燃費計算シート】'!F10,応募申請用入力入力シートⅡ!BK171)","v":""},{"$f":"+IF(応募申請用入力入力シートⅡ!BC152=\"買替\",'(e）別紙１－４　【実績燃費計算シート】'!F10*1.05,応募申請用入力入力シートⅡ!BK169)","v":""},""]
[5,{"$f":"IF(+応募申請用入力入力シートⅡ!BA179=\"\",\"\",応募申請用入力入力シートⅡ!BA179)","v":""},{"$f":"IF(+応募申請用入力入力シートⅡ!BD179=\"\",\"\",+応募申請用入力入力シートⅡ!BD179)","v":""},{"$f":"IF(+応募申請用入力入力シートⅡ!BQ195=\"\",\"\",+応募申請用入力入力シートⅡ!BQ195)","v":""},{"$f":"IF(B13=\"\",\"\",2.619)","v":""},{"$f":"+IF(応募申請用入力入力シートⅡ!BC180=\"買替\",'(e）別紙１－４　【実績燃費計算シート】'!F11,応募申請用入力入力シートⅡ!BK199)","v":""},{"$f":"+IF(応募申請用入力入力シートⅡ!BC180=\"買替\",'(e）別紙１－４　【実績燃費計算シート】'!F11*1.05,応募申請用入力入力シートⅡ!BK197)","v":""},""]
[6,{"$f":"IF(+応募申請用入力入力シートⅡ!BA207=\"\",\"\",+応募申請用入力入力シートⅡ!BA207)","v":""},{"$f":"IF(+応募申請用入力入力シートⅡ!BD207=\"\",\"\",+応募申請用入力入力シートⅡ!BD207)","v":""},{"$f":"IF(+応募申請用入力入力シートⅡ!BQ223=\"\",\"\",+応募申請用入力入力シートⅡ!BQ223)","v":""},"",{"$f":"+IF(応募申請用入力入力シートⅡ!BC208=\"買替\",'(e）別紙１－４　【実績燃費計算シート】'!F12,応募申請用入力入力シートⅡ!BK227)","v":""},{"$f":"+IF(応募申請用入力入力シートⅡ!BC208=\"買替\",'(e）別紙１－４　【実績燃費計算シート】'!F12*1.05,応募申請用入力入力シートⅡ!BK225)","v":""},""]
[7,{"$f":"IF(+応募申請用入力入力シートⅡ!BA235=\"\",\"\",+応募申請用入力入力シートⅡ!BA235)","v":""},{"$f":"IF(+応募申請用入力入力シートⅡ!BD235=\"\",\"\",+応募申請用入力入力シートⅡ!BD235)","v":""},{"$f":"IF(+応募申請用入力入力シートⅡ!BQ251=\"\",\"\",+応募申請用入力入力シートⅡ!BQ251)","v":""},"",{"$f":"+IF(応募申請用入力入力シートⅡ!BC236=\"買替\",'(e）別紙１－４　【実績燃費計算シート】'!F13,応募申請用入力入力シートⅡ!BK255)","v":""},{"$f":"+IF(応募申請用入力入力シートⅡ!BC236=\"買替\",'(e）別紙１－４　【実績燃費計算シート】'!F13*1.05,応募申請用入力入力シートⅡ!BK253)","v":""},""]
[8,{"$f":"IF(+応募申請用入力入力シートⅡ!BA263=\"\",\"\",+応募申請用入力入力シートⅡ!BA263)","v":""},{"$f":"IF(+応募申請用入力入力シートⅡ!BD263=\"\",\"\",+応募申請用入力入力シートⅡ!BD263)","v":""},{"$f":"IF(+応募申請用入力入力シートⅡ!BQ279=\"\",\"\",+応募申請用入力入力シートⅡ!BQ279)","v":""},"",{"$f":"+IF(応募申請用入力入力シートⅡ!BC264=\"買替\",'(e）別紙１－４　【実績燃費計算シート】'!F14,応募申請用入力入力シートⅡ!BK283)","v":""},{"$f":"+IF(応募申請用入力入力シートⅡ!BC264=\"買替\",'(e）別紙１－４　【実績燃費計算シート】'!F14*1.05,応募申請用入力入力シートⅡ!BK281)","v":""},""]
[9,{"$f":"IF(+応募申請用入力入力シートⅡ!BA291=\"\",\"\",+応募申請用入力入力シートⅡ!BA291)","v":""},{"$f":"IF(+応募申請用入力入力シートⅡ!BD291=\"\",\"\",+応募申請用入力入力シートⅡ!BD291)","v":""},{"$f":"IF(+応募申請用入力入力シートⅡ!BQ307=\"\",\"\",+応募申請用入力入力シートⅡ!BQ307)","v":""},"",{"$f":"+IF(応募申請用入力入力シートⅡ!BC292=\"買替\",'(e）別紙１－４　【実績燃費計算シート】'!F15,応募申請用入力入力シートⅡ!BK311)","v":""},{"$f":"+IF(応募申請用入力入力シートⅡ!BC292=\"買替\",'(e）別紙１－４　【実績燃費計算シート】'!F15*1.05,応募申請用入力入力シートⅡ!BK309)","v":""},""]
[10,{"$f":"IF(+応募申請用入力入力シートⅡ!BA319=\"\",\"\",+応募申請用入力入力シートⅡ!BA319)","v":""},{"$f":"IF(+応募申請用入力入力シートⅡ!BD319=\"\",\"\",+応募申請用入力入力シートⅡ!BD319)","v":""},{"$f":"IF(+応募申請用入力入力シートⅡ!BQ335=\"\",\"\",+応募申請用入力入力シートⅡ!BQ335)","v":""},"",{"$f":"+IF(応募申請用入力入力シートⅡ!BC320=\"買替\",'(e）別紙１－４　【実績燃費計算シート】'!F16,応募申請用入力入力シートⅡ!BK339)","v":""},{"$f":"+IF(応募申請用入力入力シートⅡ!BC320=\"買替\",'(e）別紙１－４　【実績燃費計算シート】'!F16*1.05,応募申請用入力入力シートⅡ!BK337)","v":""},""]
[null,"大型",{"$f":"COUNTIFS($B$9:$B$18,\"大型\")","v":0},{"$f":"SUMIF($B$9:$B$18,B19,$D$9:$D$18)","v":0},null,null,null,{"$f":"SUMIF($B$9:$B$18,B19,$H$9:$H$18)","v":0}]
[null,"中型",{"$f":"COUNTIFS($B$9:$B$18,\"中型\")","v":0},{"$f":"SUMIF($B$9:$B$18,B20,$D$9:$D$18)","v":0},null,null,null,{"$f":"SUMIF($B$9:$B$18,B20,$H$9:$H$18)","v":0}]
[null,"小型",{"$f":"COUNTIFS($B$9:$B$18,\"小型\")","v":0},{"$f":"SUMIF($B$9:$B$18,B21,$D$9:$D$18)","v":0},null,null,null,{"$f":"SUMIF($B$9:$B$18,B21,$H$9:$H$18)","v":0}]
[null,null,"合計","ー","ー","ー","ー",{"$f":"SUM(H9:H18)","v":0}]
[]
[null,"(a)燃料（軽油）のCO2排出係数は2.619（kg-CO2/l）とする。"]

{"sheet":"（ｄ）別紙１－３－２【事業の効果 費用対効果】","index":9,"n_rows":25,"n_cols":10,"rows_kept":25,"cut":false,"hidden":false,"merged":[[20,1,20,2],[22,1,22,2],[1,9,1,11],[3,1,3,9],[5,3,5,4]]}
[]
[null,"事業の効果　【費用対効果（CO2を１トン削減するために必要な経費）（t-CO２/年）】",null,null,null,null,null,null,null,"別紙1-3-2"]
[]
[null,"CO2削減コスト（円/ｔ-CO2)=補助対象経費支出予定額（円）÷ (年間CO2排出量削減量（t-CO2/年）×耐用年数（年）)"]
[]
[null,"（応募申請者名：　　　　　　　　　　　　　　　　　　",null,{"$f":"IF(B8=\"\",\"\",応募申請用入力シートⅠ!L4)","v":""},null,"）"]
[null,"車種","号車","補助対象経費\n支出予定額（円）","年間CO2排出量削減量\n（t-CO2/年）","耐用年数(年)※","CO2削減コスト\n（円/ｔ－CO2）"]
[1,{"$f":"IF(+応募申請用入力入力シートⅡ!BA67=\"\",\"\",+応募申請用入力入力シートⅡ!BA67)","v":""},{"$f":"IF(+応募申請用入力入力シートⅡ!BD67=\"\",\"\",+応募申請用入力入力シートⅡ!BD67)","v":""},{"$f":"+'（ｆ）別紙２－１【補助対象経費支出予定額の内訳】'!H8","v":""},{"$f":"IF(B8=\"\",\"\",+'（ｃ）別紙１－３－１【事業の効果 ＣＯ2削減量】 '!H9)","v":""},{"$f":"IF(B8=\"\",\"\",4)","v":""},{"$f":"IF(D8=\"\",\"\",(INT(D8/(E8*F8))))","v":""}]
[2,{"$f":"IF(+応募申請用入力入力シートⅡ!BA95=\"\",\"\",+応募申請用入力入力シートⅡ!BA95)","v":""},{"$f":"IF(+応募申請用入力入力シートⅡ!BD95=\"\",\"\",+応募申請用入力入力シートⅡ!BD95)","v":""},{"$f":"+'（ｆ）別紙２－１【補助対象経費支出予定額の内訳】'!H9","v":""},{"$f":"IF(B9=\"\",\"\",+'（ｃ）別紙１－３－１【事業の効果 ＣＯ2削減量】 '!H10)","v":""},{"$f":"IF(B9=\"\",\"\",4)","v":""},""]
[3,{"$f":"IF(+応募申請用入力入力シートⅡ!BA123=\"\",\"\",+応募申請用入力入力シートⅡ!BA123)","v":""},{"$f":"IF(+応募申請用入力入力シートⅡ!BD123=\"\",\"\",+応募申請用入力入力シートⅡ!BD123)","v":""},{"$f":"+'（ｆ）別紙２－１【補助対象経費支出予定額の内訳】'!H10","v":""},{"$f":"IF(B10=\"\",\"\",+'（ｃ）別紙１－３－１【事業の効果 ＣＯ2削減量】 '!H11)","v":""},"",""]
[4,{"$f":"IF(+応募申請用入力入力シートⅡ!BA151=\"\",\"\",応募申請用入力入力シートⅡ!BA151)","v":""},{"$f":"IF(+応募申請用入力入力シートⅡ!BD151=\"\",\"\",+応募申請用入力入力シートⅡ!BD151)","v":""},{"$f":"+'（ｆ）別紙２－１【補助対象経費支出予定額の内訳】'!H11","v":""},{"$f":"IF(B11=\"\",\"\",+'（ｃ）別紙１－３－１【事業の効果 ＣＯ2削減量】 '!H12)","v":""},"",""]
[5,{"$f":"IF(+応募申請用入力入力シートⅡ!BA179=\"\",\"\",+応募申請用入力入力シートⅡ!BA179)","v":""},{"$f":"IF(+応募申請用入力入力シートⅡ!BD179=\"\",\"\",+応募申請用入力入力シートⅡ!BD179)","v":""},{"$f":"+'（ｆ）別紙２－１【補助対象経費支出予定額の内訳】'!H12","v":""},{"$f":"IF(B12=\"\",\"\",+'（ｃ）別紙１－３－１【事業の効果 ＣＯ2削減量】 '!H13)","v":""},"",""]
[6,{"$f":"IF(+応募申請用入力入力シートⅡ!BA207=\"\",\"\",+応募申請用入力入力シートⅡ!BA207)","v":""},{"$f":"IF(+応募申請用入力入力シートⅡ!BD207=\"\",\"\",+応募申請用入力入力シートⅡ!BD207)","v":""},{"$f":"+'（ｆ）別紙２－１【補助対象経費支出予定額の内訳】'!H13","v":""},{"$f":"IF(B13=\"\",\"\",+'（ｃ）別紙１－３－１【事業の効果 ＣＯ2削減量】 '!H14)","v":""},"",""]
[7,{"$f":"IF(+応募申請用入力入力シートⅡ!BA235=\"\",\"\",+応募申請用入力入力シートⅡ!BA235)","v":""},{"$f":"IF(+応募申請用入力入力シートⅡ!BD235=\"\",\"\",+応募申請用入力入力シートⅡ!BD235)","v":""},{"$f":"+'（ｆ）別紙２－１【補助対象経費支出予定額の内訳】'!H14","v":""},{"$f":"IF(B14=\"\",\"\",+'（ｃ）別紙１－３－１【事業の効果 ＣＯ2削減量】 '!H15)","v":""},"",""]
[8,{"$f":"IF(+応募申請用入力入力シートⅡ!BA263=\"\",\"\",+応募申請用入力入力シートⅡ!BA263)","v":""},{"$f":"IF(+応募申請用入力入力シートⅡ!BD263=\"\",\"\",+応募申請用入力入力シートⅡ!BD235)","v":""},{"$f":"+'（ｆ）別紙２－１【補助対象経費支出予定額の内訳】'!H15","v":""},{"$f":"IF(B15=\"\",\"\",+'（ｃ）別紙１－３－１【事業の効果 ＣＯ2削減量】 '!H16)","v":""},"",""]
[9,{"$f":"IF(+応募申請用入力入力シートⅡ!BA291=\"\",\"\",+応募申請用入力入力シートⅡ!BA291)","v":""},{"$f":"IF(+応募申請用入力入力シートⅡ!BD291=\"\",\"\",+応募申請用入力入力シートⅡ!BD291)","v":""},{"$f":"+'（ｆ）別紙２－１【補助対象経費支出予定額の内訳】'!H16","v":""},{"$f":"IF(B16=\"\",\"\",+'（ｃ）別紙１－３－１【事業の効果 ＣＯ2削減量】 '!H17)","v":""},"",""]
[10,{"$f":"IF(+応募申請用入力入力シートⅡ!BA319=\"\",\"\",+応募申請用入力入力シートⅡ!BA319)","v":""},{"$f":"IF(+応募申請用入力入力シートⅡ!BD319=\"\",\"\",+応募申請用入力入力シートⅡ!BD319)","v":""},{"$f":"+'（ｆ）別紙２－１【補助対象経費支出予定額の内訳】'!H17","v":""},{"$f":"IF(B17=\"\",\"\",+'（ｃ）別紙１－３－１【事業の効果 ＣＯ2削減量】 '!H18)","v":""},"",""]
[null,"大型",{"$f":"COUNTIFS($B$8:$B$17,\"大型\")","v":0},{"$f":"IF(SUMIF($B$8:$B$17,B18,$D$8:$D$17)<=0,\"\",SUMIF($B$8:$B$17,B18,$D$8:$D$17))","v":""},{"$f":"IF(D18=\"\",\"\",+'（ｃ）別紙１－３－１【事業の効果 ＣＯ2削減量】 '!H19)","v":""},{"$f":"IF(D18=\"\",\"\",4)","v":""},{"$f":"IF(D18=\"\",\"\",INT(D18/(E18*F18)))","v":""}]
[null,"中型",{"$f":"COUNTIFS($B$8:$B$17,\"中型\")","v":0},{"$f":"IF(SUMIF($B$8:$B$17,B19,$D$8:$D$17)<=0,\"\",SUMIF($B$8:$B$17,B19,$D$8:$D$17))","v":""},{"$f":"IF(D19=\"\",\"\",+'（ｃ）別紙１－３－１【事業の効果 ＣＯ2削減量】 '!H20)","v":""},{"$f":"IF(D19=\"\",\"\",4)","v":""},{"$f":"IF(D19=\"\",\"\",INT(D19/(E19*F19)))","v":""}]
[null,"小型",{"$f":"COUNTIFS($B$8:$B$17,\"小型\")","v":0},{"$f":"IF(SUMIF($B$8:$B$17,B20,$D$8:$D$17)<=0,\"\",SUMIF($B$8:$B$17,B20,$D$8:$D$17))","v":""},{"$f":"IF(D20=\"\",\"\",+'（ｃ）別紙１－３－１【事業の効果 ＣＯ2削減量】 '!H21)","v":""},{"$f":"IF(D20=\"\",\"\",4)","v":""},{"$f":"IF(D20=\"\",\"\",INT(D20/(E20*F20)))","v":""}]
[null,"計",null,{"$f":"IF(SUM(D8:D17)<=0,\"\",SUM(D8:D17))","v":""},{"$f":"IF(SUM(E8:E17)<=0,\"\",SUM(E8:E17))","v":""},{"$f":"IF(D21=\"\",\"\",4)","v":""},{"$f":"IF(D21=\"\",\"\",INT(D21/(E21*F21)))","v":""}]
[]
[null,"CO2削減コスト",null,{"$f":"IF(D21<=0,\"\",D21)","v":""},{"$f":"IF(E21<=0,\"\",E21)","v":""},{"$f":"IF(D23=\"\",\"\",4)","v":""},{"$f":"IF(G21<=0,\"\",G21)","v":""}]
[]
[null,null,"※　耐用年数は４年とする。"]

{"sheet":"(e）別紙１－４　【実績燃費計算シート】","index":10,"n_rows":22,"n_cols":6,"rows_kept":22,"cut":false,"hidden":false,"merged":[[23,1,23,5],[19,1,19,2],[6,12,6,16],[7,12,7,15],[8,12,8,16],[9,12,9,16],[20,1,20,5],[1,4,1,5],[21,1,21,5],[4,1,4,2],[4,3,4,4],[22,1,22,5]]}
[]
[null,null,null,null,"別紙1-4"]
[null,"　実績燃費計算シート"]
[]
[null,"（応募申請者名：　　　　　　　　　　　　　　　　　　",null,{"$f":"IF(B7=\"\",\"\",応募申請用入力シートⅠ!L4)","v":""},null,"）"]
[null,"車種","号車","実績走行距離\n(km)","実績燃料使用量\n（ℓ）","燃　　費\n（㎞/ℓ）"]
[1,{"$f":"IF(+応募申請用入力入力シートⅡ!BA67=\"\",\"\",+応募申請用入力入力シートⅡ!BA67)","v":""},{"$f":"IF(+応募申請用入力入力シートⅡ!BD67=\"\",\"\",+応募申請用入力入力シートⅡ!BD67)","v":""},{"$f":"IF(+応募申請用入力入力シートⅡ!BC68=\"買替\",応募申請用入力入力シートⅡ!BK89,\"\")","v":""},{"$f":"IF(+応募申請用入力入力シートⅡ!BC68=\"買替\",応募申請用入力入力シートⅡ!BK91,\"\")","v":""},{"$f":"IF(D7=\"\",\"\",ROUNDDOWN(D7/E7,2))","v":""}]
[2,{"$f":"IF(+応募申請用入力入力シートⅡ!BA95=\"\",\"\",+応募申請用入力入力シートⅡ!BA95)","v":""},{"$f":"IF(+応募申請用入力入力シートⅡ!BD95=\"\",\"\",+応募申請用入力入力シートⅡ!BD95)","v":""},{"$f":"IF(+応募申請用入力入力シートⅡ!BC96=\"買替\",応募申請用入力入力シートⅡ!BK117,\"\")","v":""},{"$f":"IF(+応募申請用入力入力シートⅡ!BC96=\"買替\",応募申請用入力入力シートⅡ!BK119,\"\")","v":""},{"$f":"IF(D8=\"\",\"\",ROUNDDOWN(D8/E8,2))","v":""}]
[3,{"$f":"IF(+応募申請用入力入力シートⅡ!BA123=\"\",\"\",+応募申請用入力入力シートⅡ!BA123)","v":""},{"$f":"IF(+応募申請用入力入力シートⅡ!BD123=\"\",\"\",+応募申請用入力入力シートⅡ!BD123)","v":""},{"$f":"IF(+応募申請用入力入力シートⅡ!BC124=\"買替\",応募申請用入力入力シートⅡ!BK145,\"\")","v":""},{"$f":"IF(+応募申請用入力入力シートⅡ!BC124=\"買替\",応募申請用入力入力シートⅡ!BK147,\"\")","v":""},{"$f":"IF(D9=\"\",\"\",ROUNDDOWN(D9/E9,2))","v":""}]
[4,{"$f":"IF(+応募申請用入力入力シートⅡ!BA151=\"\",\"\",+応募申請用入力入力シートⅡ!BA151)","v":""},{"$f":"IF(+応募申請用入力入力シートⅡ!BD151=\"\",\"\",+応募申請用入力入力シートⅡ!BD151)","v":""},{"$f":"IF(+応募申請用入力入力シートⅡ!BC152=\"買替\",応募申請用入力入力シートⅡ!BK173,\"\")","v":""},{"$f":"IF(+応募申請用入力入力シートⅡ!BC152=\"買替\",応募申請用入力入力シートⅡ!BK175,\"\")","v":""},{"$f":"IF(D10=\"\",\"\",ROUNDDOWN(D10/E10,2))","v":""}]
[5,{"$f":"IF(+応募申請用入力入力シートⅡ!BA179=\"\",\"\",+応募申請用入力入力シートⅡ!BA179)","v":""},{"$f":"IF(+応募申請用入力入力シートⅡ!BD179=\"\",\"\",+応募申請用入力入力シートⅡ!BD179)","v":""},{"$f":"IF(+応募申請用入力入力シートⅡ!BC180=\"買替\",応募申請用入力入力シートⅡ!BK201,\"\")","v":""},{"$f":"IF(+応募申請用入力入力シートⅡ!BC180=\"買替\",応募申請用入力入力シートⅡ!BK203,\"\")","v":""},{"$f":"IF(D11=\"\",\"\",ROUNDDOWN(D11/E11,2))","v":""}]
[6,{"$f":"IF(+応募申請用入力入力シートⅡ!BA207=\"\",\"\",+応募申請用入力入力シートⅡ!BA207)","v":""},{"$f":"IF(+応募申請用入力入力シートⅡ!BD207=\"\",\"\",+応募申請用入力入力シートⅡ!BD207)","v":""},{"$f":"IF(+応募申請用入力入力シートⅡ!BC208=\"買替\",応募申請用入力入力シートⅡ!BK229,\"\")","v":""},{"$f":"IF(+応募申請用入力入力シートⅡ!BC208=\"買替\",応募申請用入力入力シートⅡ!BK231,\"\")","v":""},""]
[7,{"$f":"IF(+応募申請用入力入力シートⅡ!BA235=\"\",\"\",+応募申請用入力入力シートⅡ!BA235)","v":""},{"$f":"IF(+応募申請用入力入力シートⅡ!BD235=\"\",\"\",+応募申請用入力入力シートⅡ!BD235)","v":""},{"$f":"IF(+応募申請用入力入力シートⅡ!BC236=\"買替\",応募申請用入力入力シートⅡ!BK257,\"\")","v":""},{"$f":"IF(+応募申請用入力入力シートⅡ!BC236=\"買替\",応募申請用入力入力シートⅡ!BK259,\"\")","v":""},""]
[8,{"$f":"IF(+応募申請用入力入力シートⅡ!BA263=\"\",\"\",+応募申請用入力入力シートⅡ!BA263)","v":""},{"$f":"IF(+応募申請用入力入力シートⅡ!BD263=\"\",\"\",+応募申請用入力入力シートⅡ!BD263)","v":""},{"$f":"IF(+応募申請用入力入力シートⅡ!BC264=\"買替\",応募申請用入力入力シートⅡ!BK285,\"\")","v":""},{"$f":"IF(+応募申請用入力入力シートⅡ!BC264=\"買替\",応募申請用入力入力シートⅡ!BK287,\"\")","v":""},""]
[9,{"$f":"IF(+応募申請用入力入力シートⅡ!BA291=\"\",\"\",+応募申請用入力入力シートⅡ!BA291)","v":""},{"$f":"(IF(+応募申請用入力入力シートⅡ!BD291=\"\",\"\",+応募申請用入力入力シートⅡ!BD291))","v":""},{"$f":"IF(+応募申請用入力入力シートⅡ!BC292=\"買替\",応募申請用入力入力シートⅡ!BK313,\"\")","v":""},{"$f":"IF(+応募申請用入力入力シートⅡ!BC292=\"買替\",応募申請用入力入力シートⅡ!BK315,\"\")","v":""},""]
[10,{"$f":"IF(+応募申請用入力入力シートⅡ!BA319=\"\",\"\",+応募申請用入力入力シートⅡ!BA319)","v":""},{"$f":"IF(+応募申請用入力入力シートⅡ!BD319=\"\",\"\",+応募申請用入力入力シートⅡ!BD319)","v":""},{"$f":"IF(+応募申請用入力入力シートⅡ!BC320=\"買替\",応募申請用入力入力シートⅡ!BK341,\"\")","v":""},{"$f":"IF(+応募申請用入力入力シートⅡ!BC320=\"買替\",応募申請用入力入力シートⅡ!BK343,\"\")","v":""},""]
[null,"大型",{"$f":"COUNTIFS($B$7:$B$16,\"大型\")","v":0},{"$f":"SUMIF($B$7:$B$16,B17,$D$7:$D$16)","v":0},{"$f":"SUMIF($B$7:$B$16,B17,$E$7:$E$16)","v":0},{"$f":"SUMIF($B$7:$B$16,B17,$F$7:$F$16)","v":0}]
[null,"中型",{"$f":"COUNTIFS($B$7:$B$16,\"中型\")","v":0},{"$f":"SUMIF($B$7:$B$16,B18,$D$7:$D$16)","v":0},{"$f":"SUMIF($B$7:$B$16,B18,$E$7:$E$16)","v":0},{"$f":"SUMIF($B$7:$B$16,B18,$F$7:$F$16)","v":0}]
[null,"小型",{"$f":"COUNTIFS($B$7:$B$16,\"小型\")","v":0},{"$f":"SUMIF($B$7:$B$16,B19,$D$7:$D$16)","v":0},{"$f":"SUMIF($B$7:$B$16,B19,$E$7:$E$16)","v":0},{"$f":"SUMIF($B$7:$B$16,B19,$F$7:$F$16)","v":0}]
[null,"合計",null,{"$f":"SUM(D7:D16)","v":0},{"$f":"SUM(E7:E16)","v":0}]
[null,"（注）:この書式には買替に伴う先進環境型ディーゼルトラックに適合していない  車両の直近の1年間の実績を記載する。"]
[null,"　　 次年度以降の事業報告の際に先進環境対応型の補助対象車両との 燃費の差を求めるデータとする。"]

{"sheet":"ウ（別紙２）経費内訳","index":11,"n_rows":75,"n_cols":29,"rows_kept":75,"cut":false,"hidden":false,"merged":[[72,1,72,8],[73,1,73,8],[63,1,63,8],[64,1,64,8],[65,1,65,8],[66,1,66,8],[67,1,67,8],[68,1,68,8],[54,18,54,19],[55,18,55,19],[53,20,53,22],[54,20,54,22],[55,20,55,22],[52,18,52,19],[69,1,69,8],[70,1,70,8],[71,1,71,8],[66,9,66,12],[67,9,67,12],[68,9,68,12],[56,20,56,22],[50,18,50,19],[51,18,51,19],[45,20,45,22],[45,1,45,10],[64,21,64,24],[63,21,63,24],[65,21,65,24],[66,21,66,24],[65,13,65,14],[66,13,66,14],[63,17,63,20],[64,17,64,20],[65,17,65,20],[66,17,66,20],[55,23,55,28],[56,23,56,28],[57,11,57,16],[50,20,50,22],[51,20,51,22],[54,23,54,28],[45,23,45,28],[46,23,46,28],[47,23,47,28],[48,23,48,28],[53,18,53,19],[53,23,53,28],[51,23,51,28],[46,20,46,22],[47,20,47,22],[48,20,48,22],[49,20,49,22],[49,23,49,28],[50,23,50,28],[45,18,45,19],[46,18,46,19],[47,18,47,19],[48,18,48,19],[49,18,49,19],[52,23,52,28],[52,20,52,22],[32,23,32,28],[33,18,33,19],[33,20,33,22],[33,23,33,28],[41,23,41,28],[41,20,41,22],[44,1,44,10],[43,20,43,22],[44,20,44,22],[43,1,43,10],[44,23,44,28],[43,11,43,16],[43,18,43,19],[44,18,44,19],[27,17,27,28],[28,20,28,22],[28,23,28,28],[29,20,29,22],[29,23,29,28],[40,18,40,19],[38,23,38,28],[39,23,39,28],[40,23,40,28],[38,20,38,22],[39,20,39,22],[40,20,40,22],[32,18,32,19],[30,20,30,22],[37,18,37,19],[37,23,37,28],[37,20,37,22],[38,18,38,19],[35,18,35,19],[35,20,35,22],[35,23,35,28],[36,18,36,19],[30,23,30,28],[32,20,32,22],[1,1,1,28],[3,1,3,10],[3,11,3,20],[3,21,3,28],[4,1,4,10],[4,11,4,20],[4,21,4,28],[5,1,5,20],[5,21,8,28],[6,1,6,20],[7,1,7,20],[8,1,8,20],[9,21,10,28],[11,21,14,28],[15,1,16,20],[15,21,16,28],[17,1,18,20],[17,21,18,28],[19,1,20,20],[19,21,20,28],[21,1,22,20],[21,21,22,28],[26,1,26,20],[27,1,27,10],[34,18,34,19],[34,20,34,22],[34,23,34,28],[57,1,57,10],[61,1,62,28],[65,15,65,16],[36,23,36,28],[39,18,39,19],[36,20,36,22],[43,23,43,28],[63,25,63,28],[63,9,63,14],[64,9,64,12],[65,9,65,12],[28,18,28,19],[29,18,29,19],[30,18,30,19],[31,18,31,19],[31,20,31,22],[31,23,31,28],[28,11,28,16],[27,11,27,16],[73,25,73,28],[71,17,71,20],[73,17,73,20],[64,13,64,14],[72,17,72,20],[63,15,63,16],[64,15,64,16],[66,15,66,16],[69,15,69,16],[70,15,70,16],[71,15,71,16],[68,15,68,16],[73,15,73,16],[64,25,64,28],[65,25,65,28],[66,25,66,28],[67,25,67,28],[68,25,68,28],[69,25,69,28],[70,25,70,28],[71,25,71,28],[72,25,72,28],[69,17,69,20],[70,17,70,20],[69,21,69,24],[72,13,72,14],[73,13,73,14],[67,15,67,16],[70,21,70,24],[71,21,71,24],[72,15,72,16],[72,21,72,24],[69,9,69,12],[70,9,70,12],[72,9,72,12],[73,9,73,12],[69,13,69,14],[70,13,70,14],[71,13,71,14],[67,21,67,24],[71,9,71,12],[67,13,67,14],[68,13,68,14],[73,21,73,24],[67,17,67,20],[68,17,68,20],[68,21,68,24]]}
[null,"様式第１７【別紙２】"]
[null,"廃棄物収集運搬車の低燃費化事業経費内訳書"]
[]
[null,"①総事業費",null,null,null,null,null,null,null,null,null,"②寄付金その他の収入",null,null,null,null,null,null,null,null,null,"③差引額（①―②）"]
[null,{"$f":"+'（ｆ）別紙２－１【補助対象経費支出予定額の内訳】'!E22","v":""},null,null,null,null,null,null,null,null,null,{"$f":"IF(+'（ｆ）別紙２－１【補助対象経費支出予定額の内訳】'!F22<=0,\"0円\",+'（ｆ）別紙２－１【補助対象経費支出予定額の内訳】'!F22)","v":"0円"},null,null,null,null,null,null,null,null,null,{"$f":"+'（ｆ）別紙２－１【補助対象経費支出予定額の内訳】'!G22","v":""}]
[null,"④補助対象経費支出予定額",null,null,null,null,null,null,null,null,null,null,null,null,null,null,null,null,null,null,null,{"$f":"+'（ｆ）別紙２－１【補助対象経費支出予定額の内訳】'!H22","v":""}]
[null,"（先進環境対応型に適合していない補助対象車両と同型・同用途の"]
[null,"車両の価格との差額）（下記アからイを差し引いた金額）"]
[null,"注：複数台の場合は別紙２－１による。"]
[null,"ア.先進環境対応型ディーゼルトラック本体価格（補助対象車両）",null,null,null,null,null,null,null,null,null,null,null,null,null,null,null,null,null,null,null,{"$f":"+'（ｆ）別紙２－１【補助対象経費支出予定額の内訳】'!I22","v":""}]
[]
[null,"イ.先進環境対応型に適合していない補助対象車両と同型・同用途",null,null,null,null,null,null,null,null,null,null,null,null,null,null,null,null,null,null,null,{"$f":"+'（ｆ）別紙２－１【補助対象経費支出予定額の内訳】'!J22","v":""}]
[null,"の車両価格"]
[]
[]
[null,"⑤基準額\n注：複数台の場合は別紙２－１による。",null,null,null,null,null,null,null,null,null,null,null,null,null,null,null,null,null,null,null,{"$f":"+'（ｆ）別紙２－１【補助対象経費支出予定額の内訳】'!K22","v":""}]
[]
[null,"⑥選定額（④と⑤の少ない方の金額）\n注：複数台の場合は別紙２－１による。",null,null,null,null,null,null,null,null,null,null,null,null,null,null,null,null,null,null,null,{"$f":"+'（ｆ）別紙２－１【補助対象経費支出予定額の内訳】'!L22","v":""}]
[]
[null,"⑦補助基本額（③と⑥の少ない方の金額を記載）\n注：複数台の場合は別紙２－１による。",null,null,null,null,null,null,null,null,null,null,null,null,null,null,null,null,null,null,null,{"$f":"+'（ｆ）別紙２－１【補助対象経費支出予定額の内訳】'!M22","v":""}]
[]
[null,"⑧補助金所要額（⑦×１/３）（千円未満切り捨て）\n注：複数台の場合は別紙２－１による。",null,null,null,null,null,null,null,null,null,null,null,null,null,null,null,null,null,null,null,{"$f":"+'（ｆ）別紙２－１【補助対象経費支出予定額の内訳】'!N22","v":""}]
[]
[]
[]
[null,"様式第１７【別紙２】－２"]
[null,"補 助 対 象 経 費 支 出 予 定 額 内 訳"]
[null,"経費区分・費目",null,null,null,null,null,null,null,null,null,"金額（円）",null,null,null,null,null,"積算内訳（円）"]
[null,"ア.先進環境対応型ディーゼル",null,null,null,null,null,null,null,null,null,{"$f":"+V10","v":""},null,null,null,null,null,1,{"$f":"IF(+応募申請用入力入力シートⅡ!BA67=\"\",\"\",+応募申請用入力入力シートⅡ!BA67)","v":""},null,{"$f":"+応募申請用入力入力シートⅡ!BD67","v":0},null,null,{"$f":"IF(S29=\"\",\"ー\",'（ｆ）別紙２－１【補助対象経費支出予定額の内訳】'!I8)","v":"ー"}]
[null,"トラック本体価格",null,null,null,null,null,null,null,null,null,null,null,null,null,null,null,2,{"$f":"IF(+応募申請用入力入力シートⅡ!BA95=\"\",\"\",+応募申請用入力入力シートⅡ!BA95)","v":""},null,{"$f":"+応募申請用入力入力シートⅡ!BD95","v":0},null,null,{"$f":"IF(S30=\"\",\"ー\",'（ｆ）別紙２－１【補助対象経費支出予定額の内訳】'!I9)","v":"ー"}]
[null,null,null,null,null,null,null,null,null,null,null,null,null,null,null,null,null,3,{"$f":"IF(+応募申請用入力入力シートⅡ!BA123=\"\",\"\",+応募申請用入力入力シートⅡ!BA123)","v":""},null,{"$f":"+応募申請用入力入力シートⅡ!BD123","v":0},null,null,{"$f":"IF(S31=\"\",\"ー\",'（ｆ）別紙２－１【補助対象経費支出予定額の内訳】'!I10)","v":"ー"}]
[null,null,null,null,null,null,null,null,null,null,null,null,null,null,null,null,null,4,{"$f":"IF(+応募申請用入力入力シートⅡ!BA151=\"\",\"\",+応募申請用入力入力シートⅡ!BA151)","v":""},null,{"$f":"+応募申請用入力入力シートⅡ!BD151","v":0},null,null,{"$f":"IF(S32=\"\",\"ー\",'（ｆ）別紙２－１【補助対象経費支出予定額の内訳】'!I11)","v":"ー"}]
[null,null,null,null,null,null,null,null,null,null,null,null,null,null,null,null,null,5,{"$f":"IF(+応募申請用入力入力シートⅡ!BA179=\"\",\"\",+応募申請用入力入力シートⅡ!BA179)","v":""},null,{"$f":"+応募申請用入力入力シートⅡ!BD179","v":0},null,null,{"$f":"IF(S33=\"\",\"ー\",'（ｆ）別紙２－１【補助対象経費支出予定額の内訳】'!I12)","v":"ー"}]
[null,null,null,null,null,null,null,null,null,null,null,null,null,null,null,null,null,6,{"$f":"IF(+応募申請用入力入力シートⅡ!BA207=\"\",\"\",+応募申請用入力入力シートⅡ!BA207)","v":""},null,{"$f":"+応募申請用入力入力シートⅡ!BD207","v":0},null,null,{"$f":"IF(S34=\"\",\"ー\",'（ｆ）別紙２－１【補助対象経費支出予定額の内訳】'!I13)","v":"ー"}]
[null,null,null,null,null,null,null,null,null,null,null,null,null,null,null,null,null,7,{"$f":"IF(+応募申請用入力入力シートⅡ!BA235=\"\",\"\",+応募申請用入力入力シートⅡ!BA235)","v":""},null,{"$f":"+応募申請用入力入力シートⅡ!BD235","v":0},null,null,{"$f":"IF(S35=\"\",\"ー\",'（ｆ）別紙２－１【補助対象経費支出予定額の内訳】'!I14)","v":"ー"}]
[null,null,null,null,null,null,null,null,null,null,null,null,null,null,null,null,null,8,{"$f":"IF(+応募申請用入力入力シートⅡ!BA263=\"\",\"\",+応募申請用入力入力シートⅡ!BA263)","v":""},null,{"$f":"+応募申請用入力入力シートⅡ!BD263","v":0},null,null,{"$f":"IF(S36=\"\",\"ー\",'（ｆ）別紙２－１【補助対象経費支出予定額の内訳】'!I15)","v":"ー"}]
[null,null,null,null,null,null,null,null,null,null,null,null,null,null,null,null,null,9,{"$f":"IF(+応募申請用入力入力シートⅡ!BA291=\"\",\"\",+応募申請用入力入力シートⅡ!BA291)","v":""},null,{"$f":"+応募申請用入力入力シートⅡ!BD291","v":0},null,null,{"$f":"IF(S37=\"\",\"ー\",'（ｆ）別紙２－１【補助対象経費支出予定額の内訳】'!I16)","v":"ー"}]
[null,null,null,null,null,null,null,null,null,null,null,null,null,null,null,null,null,10,{"$f":"IF(+応募申請用入力入力シートⅡ!BA319=\"\",\"\",+応募申請用入力入力シートⅡ!BA319)","v":""},null,{"$f":"+応募申請用入力入力シートⅡ!BD319","v":0},null,null,{"$f":"IF(S38=\"\",\"ー\",'（ｆ）別紙２－１【補助対象経費支出予定額の内訳】'!I17)","v":"ー"}]
[null,null,null,null,null,null,null,null,null,null,null,null,null,null,null,null,null,null,"小型",null,{"$f":"COUNTIFS($S$29:$S$38,\"小型\")","v":0},{"$f":"COUNTIFS($B$13:$B$32,\"大型\")","v":0},0,{"$f":"SUMIF($S$29:$T$38,S39,$X$29:$AC$38)","v":0},{"$f":"SUMIF($B$8:$B$27,W39,$D$8:$D$27)","v":0},0,0,0,0]
[null,null,null,null,null,null,null,null,null,null,null,null,null,null,null,null,null,null,"中型",null,{"$f":"COUNTIFS($S$29:$S$38,\"中型\")","v":0},0,0,{"$f":"SUMIF($S$29:$T$38,S40,$X$29:$AC$38)","v":0},0,0,0,0,0]
[null,null,null,null,null,null,null,null,null,null,null,null,null,null,null,null,null,null,"大型",null,{"$f":"COUNTIFS($S$29:$S$38,\"大型\")","v":0},0,0,{"$f":"SUMIF($S$29:$T$38,S41,$X$29:$AC$38)","v":0},0,0,0,0,0]
[null,null,null,null,null,null,null,null,null,null,null,null,null,null,null,null,null,null,null,null,"合計",null,null,{"$f":"SUM(X39:AC41)","v":0}]
[]
[null,"イ.先進環境対応型に適合し",null,null,null,null,null,null,null,null,null,{"$f":"+V12","v":""},null,null,null,null,null,1,{"$f":"IF(+応募申請用入力入力シートⅡ!BA67=\"\",\"\",+応募申請用入力入力シートⅡ!BA67)","v":""},null,{"$f":"+応募申請用入力入力シートⅡ!BD67","v":0},null,null,{"$f":"IF(S44=\"\",\"ー\",'（ｆ）別紙２－１【補助対象経費支出予定額の内訳】'!J8)","v":"ー"}]
[null,"ていない補助対象車両と",null,null,null,null,null,null,null,null,null,null,null,null,null,null,null,2,{"$f":"IF(+応募申請用入力入力シートⅡ!BA95=\"\",\"\",+応募申請用入力入力シートⅡ!BA95)","v":""},null,{"$f":"+応募申請用入力入力シートⅡ!BD95","v":0},null,null,{"$f":"IF(S45=\"\",\"ー\",'（ｆ）別紙２－１【補助対象経費支出予定額の内訳】'!J9)","v":"ー"}]
[null,"同型・同用途の車両価格",null,null,null,null,null,null,null,null,null,null,null,null,null,null,null,3,{"$f":"IF(+応募申請用入力入力シートⅡ!BA123=\"\",\"\",(+応募申請用入力入力シートⅡ!BA123))","v":""},null,{"$f":"+応募申請用入力入力シートⅡ!BD123","v":0},null,null,{"$f":"IF(S46=\"\",\"ー\",'（ｆ）別紙２－１【補助対象経費支出予定額の内訳】'!J10)","v":"ー"}]
[null,null,null,null,null,null,null,null,null,null,null,null,null,null,null,null,null,4,{"$f":"IF(+応募申請用入力入力シートⅡ!BA151=\"\",\"\",+応募申請用入力入力シートⅡ!BA151)","v":""},null,{"$f":"+応募申請用入力入力シートⅡ!BD151","v":0},null,null,{"$f":"IF(S47=\"\",\"ー\",'（ｆ）別紙２－１【補助対象経費支出予定額の内訳】'!J11)","v":"ー"}]
[null,null,null,null,null,null,null,null,null,null,null,null,null,null,null,null,null,5,{"$f":"IF(+応募申請用入力入力シートⅡ!BA179=\"\",\"\",+応募申請用入力入力シートⅡ!BA179)","v":""},null,{"$f":"+応募申請用入力入力シートⅡ!BD179","v":0},null,null,{"$f":"IF(S48=\"\",\"ー\",'（ｆ）別紙２－１【補助対象経費支出予定額の内訳】'!J12)","v":"ー"}]
[null,null,null,null,null,null,null,null,null,null,null,null,null,null,null,null,null,6,{"$f":"IF(+応募申請用入力入力シートⅡ!BA207=\"\",\"\",+応募申請用入力入力シートⅡ!BA207)","v":""},null,{"$f":"+応募申請用入力入力シートⅡ!BD207","v":0},null,null,{"$f":"IF(S49=\"\",\"ー\",'（ｆ）別紙２－１【補助対象経費支出予定額の内訳】'!J13)","v":"ー"}]
[null,null,null,null,null,null,null,null,null,null,null,null,null,null,null,null,null,7,{"$f":"IF(+応募申請用入力入力シートⅡ!BA235=\"\",\"\",+応募申請用入力入力シートⅡ!BA235)","v":""},null,{"$f":"+応募申請用入力入力シートⅡ!BD235","v":0},null,null,{"$f":"IF(S50=\"\",\"ー\",'（ｆ）別紙２－１【補助対象経費支出予定額の内訳】'!J14)","v":"ー"}]
[null,null,null,null,null,null,null,null,null,null,null,null,null,null,null,null,null,8,{"$f":"IF(+応募申請用入力入力シートⅡ!BA263=\"\",\"\",+応募申請用入力入力シートⅡ!BA263)","v":""},null,{"$f":"+応募申請用入力入力シートⅡ!BD263","v":0},null,null,{"$f":"IF(S51=\"\",\"ー\",'（ｆ）別紙２－１【補助対象経費支出予定額の内訳】'!J15)","v":"ー"}]
[null,null,null,null,null,null,null,null,null,null,null,null,null,null,null,null,null,9,{"$f":"IF(+応募申請用入力入力シートⅡ!BA291=\"\",\"\",+応募申請用入力入力シートⅡ!BA291)","v":""},null,{"$f":"+応募申請用入力入力シートⅡ!BD291","v":0},null,null,{"$f":"IF(S52=\"\",\"ー\",'（ｆ）別紙２－１【補助対象経費支出予定額の内訳】'!J16)","v":"ー"}]
[null,null,null,null,null,null,null,null,null,null,null,null,null,null,null,null,null,10,{"$f":"IF(+応募申請用入力入力シートⅡ!BA319=\"\",\"\",+応募申請用入力入力シートⅡ!BA319)","v":""},null,{"$f":"+応募申請用入力入力シートⅡ!BD319","v":0},null,null,{"$f":"IF(S53=\"\",\"ー\",'（ｆ）別紙２－１【補助対象経費支出予定額の内訳】'!J17)","v":"ー"}]
[null,null,null,null,null,null,null,null,null,null,null,null,null,null,null,null,null,null,"小型",null,{"$f":"COUNTIFS($S$44:$S$53,\"小型\")","v":0},{"$f":"COUNTIFS($B$13:$B$32,\"大型\")","v":0},0,{"$f":"SUMIF($S$44:$T$53,S54,$X$44:$AC$53)","v":0}]
[null,null,null,null,null,null,null,null,null,null,null,null,null,null,null,null,null,null,"中型",null,{"$f":"COUNTIFS($S$44:$S$53,\"中型\")","v":0},0,0,{"$f":"SUMIF($S$44:$T$53,S55,$X$44:$AC$53)","v":0}]
[null,null,null,null,null,null,null,null,null,null,null,null,null,null,null,null,null,null,"大型",null,{"$f":"COUNTIFS($S$44:$S$53,\"大型\")","v":0},0,0,{"$f":"SUMIF($S$44:$T$53,S56,$X$44:$AC$53)","v":0}]
[null,null,null,null,null,null,null,null,null,null,null,null,null,null,null,null,null,null,null,null,"合計",null,null,{"$f":"SUM(X54:AC56)","v":0}]
[null,"合計",null,null,null,null,null,null,null,null,null,{"$f":"+'（ｆ）別紙２－１【補助対象経費支出予定額の内訳】'!H22","v":""}]
[]
[]
[null,"様式第１７【別紙２】－３"]
[null,"購入予定の主な財産の内訳（一品、一組又は一式の価格が５０万円以上のもの）"]
[]
[null,"名    称",null,null,null,null,null,null,null,"仕    様",null,null,null,null,null,"数量",null,"単価（円）",null,null,null,"金額（円）",null,null,null,"購入時期"]
[1,{"$f":"IF(応募申請用入力入力シートⅡ!AY70=\"\",\"\",+応募申請用入力入力シートⅡ!AY76&\"─\"&応募申請用入力入力シートⅡ!AY78)","v":""},null,null,null,null,null,null,null,{"$f":"IF(B65=\"\",\"\",+応募申請用入力入力シートⅡ!BE76&\"─\"&応募申請用入力入力シートⅡ!BH76)","v":""},null,null,null,{"$f":"IF(B65=\"\",\"\",+応募申請用入力入力シートⅡ!BE74)","v":""},{"$f":"+応募申請用入力入力シートⅡ!BE101","v":"車両総重量"},{"$f":"IF(B65=\"\",\"\",1)","v":""},null,{"$f":"IF(B65=\"\",\"\",+応募申請用入力入力シートⅡ!$BW$68)","v":""},null,null,null,{"$f":"IF(B65=\"\",\"\",+応募申請用入力入力シートⅡ!$BW$68)","v":""},null,null,null,{"$f":"IF(B65=\"\",\"\",+応募申請用入力入力シートⅡ!AY70)","v":""}]
[2,{"$f":"IF(応募申請用入力入力シートⅡ!AY98=\"\",\"\",+応募申請用入力入力シートⅡ!AY104&\"─\"&応募申請用入力入力シートⅡ!AY106)","v":""},null,null,null,null,null,null,null,{"$f":"IF(B66=\"\",\"\",+応募申請用入力入力シートⅡ!BE104&\"─\"&応募申請用入力入力シートⅡ!BH104)","v":""},null,null,null,{"$f":"IF(B66=\"\",\"\",+応募申請用入力入力シートⅡ!BE102)","v":""},null,"",null,{"$f":"IF(B66=\"\",\"\",+応募申請用入力入力シートⅡ!$BW$96)","v":""},null,null,null,{"$f":"IF(B66=\"\",\"\",+応募申請用入力入力シートⅡ!$BW$96)","v":""},null,null,null,{"$f":"IF(B66=\"\",\"\",+応募申請用入力入力シートⅡ!AY98)","v":""}]
[3,{"$f":"IF(応募申請用入力入力シートⅡ!AY126=\"\",\"\",+応募申請用入力入力シートⅡ!AY132&\"─\"&応募申請用入力入力シートⅡ!AY134)","v":""},null,null,null,null,null,null,null,{"$f":"IF(B67=\"\",\"\",+応募申請用入力入力シートⅡ!BE132&\"─\"&応募申請用入力入力シートⅡ!BH132)","v":""},null,null,null,{"$f":"IF(B67=\"\",\"\",+応募申請用入力入力シートⅡ!BE130)","v":""},null,"",null,{"$f":"IF(B67=\"\",\"\",+応募申請用入力入力シートⅡ!$BW$124)","v":""},null,null,null,{"$f":"IF(B67=\"\",\"\",+応募申請用入力入力シートⅡ!$BW$124)","v":""},null,null,null,{"$f":"IF(B67=\"\",\"\",+応募申請用入力入力シートⅡ!AY126)","v":""}]
[4,{"$f":"IF(応募申請用入力入力シートⅡ!AY154=\"\",\"\",+応募申請用入力入力シートⅡ!AY160&\"─\"&応募申請用入力入力シートⅡ!AY162)","v":""},null,null,null,null,null,null,null,{"$f":"IF(B68=\"\",\"\",+応募申請用入力入力シートⅡ!BE160&\"─\"&応募申請用入力入力シートⅡ!BH160)","v":""},null,null,null,{"$f":"IF(B68=\"\",\"\",+応募申請用入力入力シートⅡ!BE158)","v":""},null,"",null,{"$f":"IF(B68=\"\",\"\",+応募申請用入力入力シートⅡ!$BW$152)","v":""},null,null,null,{"$f":"IF(B68=\"\",\"\",+応募申請用入力入力シートⅡ!$BW$152)","v":""},null,null,null,{"$f":"IF(B68=\"\",\"\",+応募申請用入力入力シートⅡ!AY154)","v":""}]
[5,{"$f":"IF(応募申請用入力入力シートⅡ!AY182=\"\",\"\",+応募申請用入力入力シートⅡ!AY188&\"─\"&応募申請用入力入力シートⅡ!AY190)","v":""},null,null,null,null,null,null,null,{"$f":"IF(B69=\"\",\"\",+応募申請用入力入力シートⅡ!BE188&\"─\"&応募申請用入力入力シートⅡ!BH188)","v":""},null,null,null,{"$f":"IF(B69=\"\",\"\",+応募申請用入力入力シートⅡ!BE186)","v":""},null,"",null,{"$f":"IF(B69=\"\",\"\",+応募申請用入力入力シートⅡ!$BW$180)","v":""},null,null,null,{"$f":"IF(B69=\"\",\"\",+応募申請用入力入力シートⅡ!$BW$180)","v":""},null,null,null,{"$f":"IF(B69=\"\",\"\",+応募申請用入力入力シートⅡ!AY182)","v":""}]
[6,{"$f":"IF(応募申請用入力入力シートⅡ!AY210=\"\",\"\",+応募申請用入力入力シートⅡ!AY216&\"─\"&応募申請用入力入力シートⅡ!AY218)","v":""},null,null,null,null,null,null,null,{"$f":"IF(B70=\"\",\"\",+応募申請用入力入力シートⅡ!BE216&\"─\"&応募申請用入力入力シートⅡ!BH216)","v":""},null,null,null,{"$f":"IF(B70=\"\",\"\",+応募申請用入力入力シートⅡ!BE214)","v":""},null,"",null,{"$f":"IF(B70=\"\",\"\",+応募申請用入力入力シートⅡ!$BW$208)","v":""},null,null,null,{"$f":"IF(B70=\"\",\"\",+応募申請用入力入力シートⅡ!$BW$208)","v":""},null,null,null,{"$f":"IF(B70=\"\",\"\",+応募申請用入力入力シートⅡ!AY210)","v":""}]
[7,{"$f":"IF(応募申請用入力入力シートⅡ!AY238=\"\",\"\",+応募申請用入力入力シートⅡ!AY244&\"─\"&応募申請用入力入力シートⅡ!AY246)","v":""},null,null,null,null,null,null,null,{"$f":"IF(B71=\"\",\"\",+応募申請用入力入力シートⅡ!BE244&\"─\"&応募申請用入力入力シートⅡ!BH244)","v":""},null,null,null,{"$f":"IF(B71=\"\",\"\",+応募申請用入力入力シートⅡ!BE242)","v":""},null,"",null,{"$f":"IF(B71=\"\",\"\",+応募申請用入力入力シートⅡ!$BW$236)","v":""},null,null,null,{"$f":"IF(B71=\"\",\"\",+応募申請用入力入力シートⅡ!$BW$236)","v":""},null,null,null,{"$f":"IF(B71=\"\",\"\",+応募申請用入力入力シートⅡ!AY238)","v":""}]
[8,{"$f":"IF(応募申請用入力入力シートⅡ!AY266=\"\",\"\",+応募申請用入力入力シートⅡ!AY272&\"─\"&応募申請用入力入力シートⅡ!AY274)","v":""},null,null,null,null,null,null,null,{"$f":"IF(B72=\"\",\"\",+応募申請用入力入力シートⅡ!BE272&\"─\"&応募申請用入力入力シートⅡ!BH272)","v":""},null,null,null,{"$f":"IF(B72=\"\",\"\",+応募申請用入力入力シートⅡ!BE270)","v":""},null,"",null,{"$f":"IF(B72=\"\",\"\",+応募申請用入力入力シートⅡ!$BW$264)","v":""},null,null,null,{"$f":"IF(B72=\"\",\"\",+応募申請用入力入力シートⅡ!$BW$264)","v":""},null,null,null,{"$f":"IF(B72=\"\",\"\",+応募申請用入力入力シートⅡ!AY266)","v":""}]
[9,{"$f":"IF(応募申請用入力入力シートⅡ!AY294=\"\",\"\",+応募申請用入力入力シートⅡ!AY300&\"─\"&応募申請用入力入力シートⅡ!AY302)","v":""},null,null,null,null,null,null,null,{"$f":"IF(B73=\"\",\"\",+応募申請用入力入力シートⅡ!BE300&\"─\"&応募申請用入力入力シートⅡ!BH300)","v":""},null,null,null,{"$f":"IF(B73=\"\",\"\",+応募申請用入力入力シートⅡ!BE298)","v":""},null,"",null,{"$f":"IF(B73=\"\",\"\",+応募申請用入力入力シートⅡ!$BW$292)","v":""},null,null,null,{"$f":"IF(B73=\"\",\"\",+応募申請用入力入力シートⅡ!$BW$292)","v":""},null,null,null,{"$f":"IF(B73=\"\",\"\",+応募申請用入力入力シートⅡ!AY294)","v":""}]
[10,{"$f":"IF(応募申請用入力入力シートⅡ!AY322=\"\",\"\",+応募申請用入力入力シートⅡ!AY328&\"─\"&応募申請用入力入力シートⅡ!AY32)","v":""},null,null,null,null,null,null,null,{"$f":"IF(B74=\"\",\"\",+応募申請用入力入力シートⅡ!BE328&\"─\"&応募申請用入力入力シートⅡ!BH328)","v":""},null,null,null,{"$f":"IF(B74=\"\",\"\",+応募申請用入力入力シートⅡ!BE326)","v":""},null,"",null,{"$f":"IF(B74=\"\",\"\",+応募申請用入力入力シートⅡ!$BW$320)","v":""},null,null,null,{"$f":"IF(B74=\"\",\"\",+応募申請用入力入力シートⅡ!$BW$320)","v":""},null,null,null,{"$f":"IF(B74=\"\",\"\",+応募申請用入力入力シートⅡ!AY322)","v":""}]
[null,null,"・消費税は除く。"]

{"sheet":"（ｆ）別紙２－１【補助対象経費支出予定額の内訳】","index":12,"n_rows":25,"n_cols":15,"rows_kept":25,"cut":false,"hidden":false,"merged":[[4,3,4,10],[20,2,20,3],[21,2,21,3],[24,2,24,13],[1,12,1,13],[4,12,4,13]]}
[]
[null,null,null,null,null,null,null,null,null,null,null,null,"別紙2-1"]
[null,null,null,"平成３０年度低炭素型廃棄物処理支援事業補助金（廃棄物収集運搬車の低燃費化事業）  "]
[]
[null,null,"NO.1","補助対象経費支出予定額の内訳【別紙２経費内訳の④】　",null,null,null,null,null,null,null,"　　　（応募申請者名：　　　　　　　　　　　　　　　　　　　",{"$f":"IF(C8=\"\",\"\",+応募申請用入力シートⅠ!L4)","v":""},null,"）"]
[]
[null,null,"車種","号車","①総事業費\n（１台毎の購入費）","②寄付金その他の収入","③差引額\n（①ー②）","④補助対象経費\n支出予定額","④ーア\n先進環境対応型ディーゼル\nトラック本体価格","④ーイ\n先進環境対応型に\n適合していない補助対象車両\nと同型・同用途の車両の価格","⑤基準額","⑥選定額\n（④と⑤の少ない方の額）","⑦補助基本額\n（③と⑥の少ない方の金額）","⑧補助金所要額\n（⑦×１/3）"]
[null,1,{"$f":"IF(+応募申請用入力入力シートⅡ!BA67=\"\",\"\",+応募申請用入力入力シートⅡ!BA67)","v":""},{"$f":"IF(+応募申請用入力入力シートⅡ!BD67=\"\",\"\",+応募申請用入力入力シートⅡ!BD67)","v":""},{"$f":"IF(+応募申請用入力入力シートⅡ!BW68=\"\",\"\",+応募申請用入力入力シートⅡ!BW68)","v":""},{"$f":"IF(+応募申請用入力入力シートⅡ!BW70=\"\",\"\",+応募申請用入力入力シートⅡ!BW70)","v":""},{"$f":"IF(E8=\"\",\"\",E8-F8)","v":""},{"$f":"IF(E8=\"\",\"\",I8-J8)","v":""},{"$f":"IF(+応募申請用入力入力シートⅡ!BW68=\"\",\"\",+応募申請用入力入力シートⅡ!BW68)","v":""},{"$f":"+'（ｇ）別紙２－２　【価格計算内訳書】'!J10","v":""},{"$f":"IF(+応募申請用入力入力シートⅡ!BA67=\"\",\"\",応募申請用入力入力シートⅡ!BW84)","v":""},{"$f":"IF(H8<K8,H8,K8)","v":""},{"$f":"IF(G8<L8,G8,L8)","v":""},{"$f":"IF(E8=\"\",\"\",ROUNDDOWN(M8*1/3,-3))","v":""}]
[null,2,{"$f":"IF(+応募申請用入力入力シートⅡ!BA95=\"\",\"\",+応募申請用入力入力シートⅡ!BA95)","v":""},{"$f":"IF(+応募申請用入力入力シートⅡ!BD95=\"\",\"\",+応募申請用入力入力シートⅡ!BD95)","v":""},{"$f":"IF(+応募申請用入力入力シートⅡ!BW96=\"\",\"\",+応募申請用入力入力シートⅡ!BW96)","v":""},{"$f":"IF(+応募申請用入力入力シートⅡ!BW98=\"\",\"\",+応募申請用入力入力シートⅡ!BW98)","v":""},{"$f":"IF(E9=\"\",\"\",E9-F9)","v":""},{"$f":"IF(E9=\"\",\"\",I9-J9)","v":""},{"$f":"IF(+応募申請用入力入力シートⅡ!BW96=\"\",\"\",+応募申請用入力入力シートⅡ!BW96)","v":""},{"$f":"+'（ｇ）別紙２－２　【価格計算内訳書】'!J11","v":""},{"$f":"IF(+応募申請用入力入力シートⅡ!BA95=\"\",\"\",応募申請用入力入力シートⅡ!BW112)","v":""},{"$f":"IF(H9<K9,H9,K9)","v":""},{"$f":"IF(G9<L9,G9,L9)","v":""},{"$f":"IF(E9=\"\",\"\",ROUNDDOWN(M9*1/3,-3))","v":""}]
[null,3,{"$f":"IF(+応募申請用入力入力シートⅡ!BA123=\"\",\"\",+応募申請用入力入力シートⅡ!BA123)","v":""},{"$f":"IF(+応募申請用入力入力シートⅡ!BD123=\"\",\"\",+応募申請用入力入力シートⅡ!BD123)","v":""},{"$f":"IF(+応募申請用入力入力シートⅡ!BW124=\"\",\"\",+応募申請用入力入力シートⅡ!BW124)","v":""},{"$f":"IF(+応募申請用入力入力シートⅡ!BW126=\"\",\"\",+応募申請用入力入力シートⅡ!BW126)","v":""},{"$f":"IF(E10=\"\",\"\",E10-F10)","v":""},"",{"$f":"IF(+応募申請用入力入力シートⅡ!BW124=\"\",\"\",+応募申請用入力入力シートⅡ!BW124)","v":""},{"$f":"+'（ｇ）別紙２－２　【価格計算内訳書】'!J12","v":""},{"$f":"IF(+応募申請用入力入力シートⅡ!BA123=\"\",\"\",応募申請用入力入力シートⅡ!BW140)","v":""},{"$f":"IF(H10<K10,H10,K10)","v":""},{"$f":"IF(G10<L10,G10,L10)","v":""},""]
[null,4,{"$f":"IF(+応募申請用入力入力シートⅡ!BA151=\"\",\"\",+応募申請用入力入力シートⅡ!BA151)","v":""},{"$f":"IF(+応募申請用入力入力シートⅡ!BD151=\"\",\"\",+応募申請用入力入力シートⅡ!BD151)","v":""},{"$f":"IF(+応募申請用入力入力シートⅡ!BW152=\"\",\"\",+応募申請用入力入力シートⅡ!BW152)","v":""},{"$f":"IF(+応募申請用入力入力シートⅡ!BW154=\"\",\"\",+応募申請用入力入力シートⅡ!BW154)","v":""},{"$f":"IF(E11=\"\",\"\",E11-F11)","v":""},"",{"$f":"IF(+応募申請用入力入力シートⅡ!BW152=\"\",\"\",+応募申請用入力入力シートⅡ!BW152)","v":""},{"$f":"+'（ｇ）別紙２－２　【価格計算内訳書】'!J13","v":""},{"$f":"IF(+応募申請用入力入力シートⅡ!BA151=\"\",\"\",応募申請用入力入力シートⅡ!BW168)","v":""},{"$f":"IF(H11<K11,H11,K11)","v":""},{"$f":"IF(G11<L11,G11,L11)","v":""},""]
[null,5,{"$f":"IF(+応募申請用入力入力シートⅡ!BA179=\"\",\"\",+応募申請用入力入力シートⅡ!BA179)","v":""},{"$f":"IF(+応募申請用入力入力シートⅡ!BD179=\"\",\"\",+応募申請用入力入力シートⅡ!BD179)","v":""},{"$f":"IF(+応募申請用入力入力シートⅡ!BW180=\"\",\"\",+応募申請用入力入力シートⅡ!BW180)","v":""},{"$f":"IF(+応募申請用入力入力シートⅡ!BW182=\"\",\"\",+応募申請用入力入力シートⅡ!BW182)","v":""},"","",{"$f":"IF(+応募申請用入力入力シートⅡ!BW180=\"\",\"\",+応募申請用入力入力シートⅡ!BW180)","v":""},{"$f":"+'（ｇ）別紙２－２　【価格計算内訳書】'!J14","v":""},{"$f":"IF(+応募申請用入力入力シートⅡ!BA179=\"\",\"\",応募申請用入力入力シートⅡ!BW196)","v":""},{"$f":"IF(H12<K12,H12,K12)","v":""},{"$f":"IF(G12<L12,G12,L12)","v":""},{"$f":"IF(E12=\"\",\"\",ROUNDDOWN(M12*1/3,-3))","v":""}]
[null,6,{"$f":"IF(+応募申請用入力入力シートⅡ!BA207=\"\",\"\",+応募申請用入力入力シートⅡ!BA207)","v":""},{"$f":"IF(+応募申請用入力入力シートⅡ!BD207=\"\",\"\",+応募申請用入力入力シートⅡ!BD207)","v":""},{"$f":"IF(+応募申請用入力入力シートⅡ!BW208=\"\",\"\",+応募申請用入力入力シートⅡ!BW208)","v":""},{"$f":"IF(+応募申請用入力入力シートⅡ!BW210=\"\",\"\",+応募申請用入力入力シートⅡ!BW210)","v":""},"","",{"$f":"IF(+応募申請用入力入力シートⅡ!BW208=\"\",\"\",+応募申請用入力入力シートⅡ!BW208)","v":""},{"$f":"+'（ｇ）別紙２－２　【価格計算内訳書】'!J15","v":""},{"$f":"IF(+応募申請用入力入力シートⅡ!BA207=\"\",\"\",応募申請用入力入力シートⅡ!BW224)","v":""},"","",""]
[null,7,{"$f":"IF(+応募申請用入力入力シートⅡ!BA235=\"\",\"\",+応募申請用入力入力シートⅡ!BA235)","v":""},{"$f":"IF(+応募申請用入力入力シートⅡ!BD235=\"\",\"\",+応募申請用入力入力シートⅡ!BD235)","v":""},{"$f":"IF(+応募申請用入力入力シートⅡ!BW236=\"\",\"\",+応募申請用入力入力シートⅡ!BW236)","v":""},{"$f":"IF(+応募申請用入力入力シートⅡ!BW238=\"\",\"\",+応募申請用入力入力シートⅡ!BW238)","v":""},"","",{"$f":"IF(+応募申請用入力入力シートⅡ!BW236=\"\",\"\",応募申請用入力入力シートⅡ!BW236)","v":""},{"$f":"+'（ｇ）別紙２－２　【価格計算内訳書】'!J16","v":""},{"$f":"IF(+応募申請用入力入力シートⅡ!BA235=\"\",\"\",応募申請用入力入力シートⅡ!BW252)","v":""},"","",""]
[null,8,{"$f":"IF(+応募申請用入力入力シートⅡ!BA263=\"\",\"\",+応募申請用入力入力シートⅡ!BA263)","v":""},{"$f":"IF(+応募申請用入力入力シートⅡ!BD263=\"\",\"\",+応募申請用入力入力シートⅡ!BD263)","v":""},{"$f":"IF(+応募申請用入力入力シートⅡ!BW264=\"\",\"\",+応募申請用入力入力シートⅡ!BW264)","v":""},{"$f":"IF(+応募申請用入力入力シートⅡ!BW266=\"\",\"\",+応募申請用入力入力シートⅡ!BW266)","v":""},"","",{"$f":"IF(+応募申請用入力入力シートⅡ!BW264=\"\",\"\",+応募申請用入力入力シートⅡ!BW264)","v":""},{"$f":"+'（ｇ）別紙２－２　【価格計算内訳書】'!J17","v":""},{"$f":"IF(+応募申請用入力入力シートⅡ!BA263=\"\",\"\",応募申請用入力入力シートⅡ!BW280)","v":""},"","",""]
[null,9,{"$f":"IF(+応募申請用入力入力シートⅡ!BA291=\"\",\"\",+応募申請用入力入力シートⅡ!BA291)","v":""},{"$f":"IF(+応募申請用入力入力シートⅡ!BD291=\"\",\"\",+応募申請用入力入力シートⅡ!BD291)","v":""},{"$f":"IF(+応募申請用入力入力シートⅡ!BW292=\"\",\"\",+応募申請用入力入力シートⅡ!BW292)","v":""},{"$f":"IF(+応募申請用入力入力シートⅡ!BW294=\"\",\"\",+応募申請用入力入力シートⅡ!BW294)","v":""},"","",{"$f":"IF(+応募申請用入力入力シートⅡ!BW292=\"\",\"\",+応募申請用入力入力シートⅡ!BW292)","v":""},{"$f":"+'（ｇ）別紙２－２　【価格計算内訳書】'!J18","v":""},{"$f":"IF(+応募申請用入力入力シートⅡ!BA291=\"\",\"\",応募申請用入力入力シートⅡ!BW308)","v":""},"","",""]
[null,10,{"$f":"IF(+応募申請用入力入力シートⅡ!BA319=\"\",\"\",+応募申請用入力入力シートⅡ!BA319)","v":""},{"$f":"IF(+応募申請用入力入力シートⅡ!BD319=\"\",\"\",+応募申請用入力入力シートⅡ!BD319)","v":""},{"$f":"IF(+応募申請用入力入力シートⅡ!BW320=\"\",\"\",+応募申請用入力入力シートⅡ!BW320)","v":""},{"$f":"IF(+応募申請用入力入力シートⅡ!BW322=\"\",\"\",応募申請用入力入力シートⅡ!BW322)","v":""},"","",{"$f":"IF(+応募申請用入力入力シートⅡ!BW320=\"\",\"\",+応募申請用入力入力シートⅡ!BW320)","v":""},{"$f":"+'（ｇ）別紙２－２　【価格計算内訳書】'!J19","v":""},{"$f":"IF(+応募申請用入力入力シートⅡ!BA319=\"\",\"\",応募申請用入力入力シートⅡ!BW336)","v":""},"","",""]
[null,null,"大型",{"$f":"COUNTIFS($C$8:$C$17,\"大型\")","v":0},{"$f":"IF(SUMIF($C$8:$C$17,C18,$E$8:$E$17)<=0,\"\",(SUMIF($C$8:$C$17,C18,$E$8:$E$17)))","v":""},{"$f":"IF(SUMIF($C$8:$BC$17,C18,$F$8:$F$17)<=0,\"\",(SUMIF($C$8:$BC$17,C18,$F$8:$F$17)))","v":""},{"$f":"IF(SUMIF($C$8:$C$17,C18,$G$8:$G$17)<=0,\"\",(SUMIF($C$8:$C$17,C18,$G$8:$G$17)))","v":""},{"$f":"IF(SUMIF($C$8:$C$17,C18,$H$8:$H$17)<=0,\"\",(SUMIF($C$8:$C$17,C18,$H$8:$H$17)))","v":""},{"$f":"IF(SUMIF($C$8:$C$17,C18,$I$8:$I$17)<=0,\"\",(SUMIF($C$8:$C$17,C18,$I$8:$I$17)))","v":""},{"$f":"IF(SUMIF($C$8:$C$17,C18,$J$8:$J$17)<=0,\"\",(SUMIF($C$8:$C$17,C18,$J$8:$J$17)))","v":""},{"$f":"IF(SUMIF($C$8:$C$17,C18,$K$8:$K$17)<=0,\"\",(SUMIF($C$8:$C$17,C18,$K$8:$K$17)))","v":""},{"$f":"IF(SUMIF($C$8:$C$17,C18,$L$8:$L$17)<=0,\"\",(SUMIF($C$8:$C$17,C18,$L$8:$L$17)))","v":""},{"$f":"IF(SUMIF($C$8:$C$17,C18,$M$8:$M$17)<=0,\"\",(SUMIF($C$8:$C$17,C18,$M$8:$M$17)))","v":""},{"$f":"IF(SUMIF($C$8:$C$17,C18,$N$8:$N$17)<=0,\"\",(SUMIF($C$8:$C$17,C18,$N$8:$N$17)))","v":""}]
[null,null,"中型",{"$f":"COUNTIFS($C$8:$C$17,\"中型\")","v":0},{"$f":"IF(SUMIF($C$8:$C$17,C19,$E$8:$E$17)<=0,\"\",(SUMIF($C$8:$C$17,C19,$E$8:$E$17)))","v":""},{"$f":"IF(SUMIF($C$8:$BC$17,C19,$F$8:$F$17)<=0,\"\",(SUMIF($C$8:$BC$17,C19,$F$8:$F$17)))","v":""},{"$f":"IF(SUMIF($C$8:$C$17,C19,$G$8:$G$17)<=0,\"\",(SUMIF($C$8:$C$17,C19,$G$8:$G$17)))","v":""},{"$f":"IF(SUMIF($C$8:$C$17,C19,$H$8:$H$17)<=0,\"\",(SUMIF($C$8:$C$17,C19,$H$8:$H$17)))","v":""},{"$f":"IF(SUMIF($C$8:$C$17,C19,$I$8:$I$17)<=0,\"\",(SUMIF($C$8:$C$17,C19,$I$8:$I$17)))","v":""},{"$f":"IF(SUMIF($C$8:$C$17,C19,$J$8:$J$17)<=0,\"\",(SUMIF($C$8:$C$17,C19,$J$8:$J$17)))","v":""},{"$f":"IF(SUMIF($C$8:$C$17,C19,$K$8:$K$17)<=0,\"\",(SUMIF($C$8:$C$17,C19,$K$8:$K$17)))","v":""},{"$f":"IF(SUMIF($C$8:$C$17,C19,$L$8:$L$17)<=0,\"\",(SUMIF($C$8:$C$17,C19,$L$8:$L$17)))","v":""},{"$f":"IF(SUMIF($C$8:$C$17,C19,$M$8:$M$17)<=0,\"\",(SUMIF($C$8:$C$17,C19,$M$8:$M$17)))","v":""},{"$f":"IF(SUMIF($C$8:$C$17,C19,$N$8:$N$17)<=0,\"\",(SUMIF($C$8:$C$17,C19,$N$8:$N$17)))","v":""}]
[null,null,"小型",{"$f":"COUNTIFS($C$8:$C$17,\"小型\")","v":0},{"$f":"IF(SUMIF($C$8:$C$17,C20,$E$8:$E$17)<=0,\"\",(SUMIF($C$8:$C$17,C20,$E$8:$E$17)))","v":""},{"$f":"IF(SUMIF($C$8:$BC$17,C20,$F$8:$F$17)<=0,\"\",(SUMIF($C$8:$BC$17,C20,$F$8:$F$17)))","v":""},{"$f":"IF(SUMIF($C$8:$C$17,C20,$G$8:$G$17)<=0,\"\",(SUMIF($C$8:$C$17,C20,$G$8:$G$17)))","v":""},{"$f":"IF(SUMIF($C$8:$C$17,C20,$H$8:$H$17)<=0,\"\",(SUMIF($C$8:$C$17,C20,$H$8:$H$17)))","v":""},{"$f":"IF(SUMIF($C$8:$C$17,C20,$I$8:$I$17)<=0,\"\",(SUMIF($C$8:$C$17,C20,$I$8:$I$17)))","v":""},{"$f":"IF(SUMIF($C$8:$C$17,C20,$J$8:$J$17)<=0,\"\",(SUMIF($C$8:$C$17,C20,$J$8:$J$17)))","v":""},{"$f":"IF(SUMIF($C$8:$C$17,C20,$K$8:$K$17)<=0,\"\",(SUMIF($C$8:$C$17,C20,$K$8:$K$17)))","v":""},{"$f":"IF(SUMIF($C$8:$C$17,C20,$L$8:$L$17)<=0,\"\",(SUMIF($C$8:$C$17,C20,$L$8:$L$17)))","v":""},{"$f":"IF(SUMIF($C$8:$C$17,C20,$M$8:$M$17)<=0,\"\",(SUMIF($C$8:$C$17,C20,$M$8:$M$17)))","v":""},{"$f":"IF(SUMIF($C$8:$C$17,C20,$N$8:$N$17)<=0,\"\",(SUMIF($C$8:$C$17,C20,$N$8:$N$17)))","v":""}]
[]
[null,null,"総額",null,{"$f":"IF(SUM(E8:E17)<=0,\"\",(SUM(E8:E17)))","v":""},{"$f":"IF(SUM(F8:F17)<0,\"\",(SUM(F8:F17)))","v":0},"","","","","","","",""]
[]
[]
[null,null,"「④ーア」の価格は「①」の購入費から安全走行、環境保全(燃費改善に資する等)及び通常走行に必要な装備品以外の過大なオプションを差し引いた価格としてください。"]

{"sheet":"（ｇ）別紙２－２　【価格計算内訳書】","index":13,"n_rows":68,"n_cols":18,"rows_kept":68,"cut":false,"hidden":false,"merged":[[7,1,8,1],[23,2,23,9],[25,2,25,9],[27,2,27,8],[7,2,8,2],[7,9,8,9],[1,2,1,8],[5,2,5,6],[7,3,8,3],[7,4,7,5],[7,8,8,8],[7,6,7,7]]}
[]
[null,null,"平成３０年度低炭素型廃棄物処理支援事業補助金（廃棄物収集運搬車の低燃費化事業）",null,null,null,null,null,null,"別紙２－２"]
[]
[null,"価格計算内訳書（先進環境対応型に適合していない補助対象車両と同型・同用途の車両の価格）",null,null,null,null,null,null,"　　（応募申請者名：　　　　",{"$f":"IF(B10=\"\",\"\",(+応募申請用入力シートⅠ!L4&\"\"))","v":""},"）"]
[null,"【別紙２経費内訳の④のイ欄】"]
[null,"No.1"]
[null,null,null,null,null,null,null,null,null,"（円）"]
[null,"車種","号車","補助対象車両の\n運搬能力（ｋｇ）","代替（買替前の）車両の\n領収書等がある場合（Ａ）",null,"増車等の場合（Ｂ）\n（平成21年度車両価格）",null,"購入年の消費者\n物価指数（Ｃ）","先進環境対応型に適合\nしていない補助対象車両と\n同型・同用途の車両の価格"]
[null,null,null,null,"旧車両の\n購入時の価格（a）　","旧車両の購入年（※）(数字のみ)　　　　　","価格証明書の価格（ｂ）","旧車両の販売年（※）(平成21年度）　　　　　"]
[1,{"$f":"IF(+応募申請用入力入力シートⅡ!BA67=\"\",\"\",+応募申請用入力入力シートⅡ!BA67)","v":""},{"$f":"IF(+応募申請用入力入力シートⅡ!BD67=\"\",\"\",+応募申請用入力入力シートⅡ!BD67)","v":""},{"$f":"IF(+応募申請用入力入力シートⅡ!BE74=\"\",\"\",+応募申請用入力入力シートⅡ!BE74)","v":""},{"$f":"IF(+応募申請用入力入力シートⅡ!BC68=\"買替\",応募申請用入力入力シートⅡ!BW77,\"\")","v":""},{"$f":"+IF(E10=\"\",\"\",応募申請用入力入力シートⅡ!BZ79)","v":""},{"$f":"IF(+応募申請用入力入力シートⅡ!BC68=\"増車\",応募申請用入力入力シートⅡ!CI77,\"\")","v":""},{"$f":"IF(G10=\"\",\"\",21)","v":""},{"$f":"IF(+応募申請用入力入力シートⅡ!BC68=\"増車\",応募申請用入力入力シートⅡ!CP79,IF(応募申請用入力入力シートⅡ!BC68=\"買替\",応募申請用入力入力シートⅡ!CD79,\"\"))","v":""},{"$f":"IFERROR(IF(AND(E10<>\"\",G10<>\"\"),ERROR,IF(E10=\"\",ROUNDDOWN(G10*(100.2/I10),0),ROUNDDOWN(E10*(100.2/I10),0))),\"\")","v":""}]
[2,{"$f":"IF(+応募申請用入力入力シートⅡ!BA95=\"\",\"\",+応募申請用入力入力シートⅡ!BA95)","v":""},{"$f":"IF(+応募申請用入力入力シートⅡ!BD95=\"\",\"\",+応募申請用入力入力シートⅡ!BD95)","v":""},{"$f":"IF(+応募申請用入力入力シートⅡ!BE102=\"\",\"\",+応募申請用入力入力シートⅡ!BE102)","v":""},{"$f":"IF(+応募申請用入力入力シートⅡ!$BC$96=\"買替\",応募申請用入力入力シートⅡ!BW105,\"\")","v":""},{"$f":"+IF(E11=\"\",\"\",応募申請用入力入力シートⅡ!BZ107)","v":""},{"$f":"IF(+応募申請用入力入力シートⅡ!BC96=\"増車\",応募申請用入力入力シートⅡ!CI105,\"\")","v":""},{"$f":"IF(G11=\"\",\"\",21)","v":""},{"$f":"IF(+応募申請用入力入力シートⅡ!BC96=\"増車\",応募申請用入力入力シートⅡ!CP107,IF(応募申請用入力入力シートⅡ!BC96=\"買替\",応募申請用入力入力シートⅡ!CD107,\"\"))","v":""},{"$f":"IFERROR(IF(AND(E11<>\"\",G11<>\"\"),ERROR,IF(E11=\"\",ROUNDDOWN(G11*(100.2/I11),0),ROUNDDOWN(E11*(100.2/I11),0))),\"\")","v":""}]
[3,{"$f":"IF(+応募申請用入力入力シートⅡ!BA123=\"\",\"\",+応募申請用入力入力シートⅡ!BA123)","v":""},{"$f":"IF(+応募申請用入力入力シートⅡ!BD123=\"\",\"\",+応募申請用入力入力シートⅡ!BD123)","v":""},{"$f":"IF(+応募申請用入力入力シートⅡ!BE130=\"\",\"\",+応募申請用入力入力シートⅡ!BE130)","v":""},{"$f":"IF(+応募申請用入力入力シートⅡ!$BC$124=\"買替\",応募申請用入力入力シートⅡ!BW133,\"\")","v":""},{"$f":"+IF(E12=\"\",\"\",応募申請用入力入力シートⅡ!BZ135)","v":""},{"$f":"IF(+応募申請用入力入力シートⅡ!BC124=\"増車\",応募申請用入力入力シートⅡ!CI133,\"\")","v":""},"",{"$f":"IF(+応募申請用入力入力シートⅡ!BC124=\"増車\",応募申請用入力入力シートⅡ!CP135,IF(応募申請用入力入力シートⅡ!BC124=\"買替\",応募申請用入力入力シートⅡ!CD135,\"\"))","v":""},{"$f":"IFERROR(IF(AND(E12<>\"\",G12<>\"\"),ERROR,IF(E12=\"\",ROUNDDOWN(G12*(100.2/I12),0),ROUNDDOWN(E12*(100.2/I12),0))),\"\")","v":""}]
[4,{"$f":"IF(+応募申請用入力入力シートⅡ!BA151=\"\",\"\",+応募申請用入力入力シートⅡ!BA151)","v":""},{"$f":"IF(+応募申請用入力入力シートⅡ!BD151=\"\",\"\",+応募申請用入力入力シートⅡ!BD151)","v":""},{"$f":"IF(+応募申請用入力入力シートⅡ!BE158=\"\",\"\",応募申請用入力入力シートⅡ!BE158)","v":""},{"$f":"IF(+応募申請用入力入力シートⅡ!$BC$152=\"買替\",応募申請用入力入力シートⅡ!BW161,\"\")","v":""},{"$f":"+IF(E13=\"\",\"\",応募申請用入力入力シートⅡ!BZ163)","v":""},{"$f":"IF(+応募申請用入力入力シートⅡ!BC152=\"増車\",応募申請用入力入力シートⅡ!CI161,\"\")","v":""},"",{"$f":"IF(+応募申請用入力入力シートⅡ!BC152=\"増車\",応募申請用入力入力シートⅡ!CP163,IF(応募申請用入力入力シートⅡ!BC152=\"買替\",応募申請用入力入力シートⅡ!CD163,\"\"))","v":""},{"$f":"IFERROR(IF(AND(E13<>\"\",G13<>\"\"),ERROR,IF(E13=\"\",ROUNDDOWN(G13*(100.2/I13),0),ROUNDDOWN(E13*(100.2/I13),0))),\"\")","v":""}]
[5,{"$f":"IF(+応募申請用入力入力シートⅡ!BA179=\"\",\"\",+応募申請用入力入力シートⅡ!BA179)","v":""},{"$f":"IF(+応募申請用入力入力シートⅡ!BD179=\"\",\"\",+応募申請用入力入力シートⅡ!BD179)","v":""},{"$f":"IF(+応募申請用入力入力シートⅡ!BE186=\"\",\"\",+応募申請用入力入力シートⅡ!BE186)","v":""},{"$f":"IF(+応募申請用入力入力シートⅡ!$BC$180=\"買替\",応募申請用入力入力シートⅡ!BW189,\"\")","v":""},{"$f":"+IF(E14=\"\",\"\",応募申請用入力入力シートⅡ!BZ191)","v":""},{"$f":"IF(+応募申請用入力入力シートⅡ!BC180=\"増車\",応募申請用入力入力シートⅡ!CI189,\"\")","v":""},"",{"$f":"IF(+応募申請用入力入力シートⅡ!BC180=\"増車\",応募申請用入力入力シートⅡ!CP191,IF(応募申請用入力入力シートⅡ!BC180=\"買替\",応募申請用入力入力シートⅡ!CD191,\"\"))","v":""},""]
[6,{"$f":"IF(+応募申請用入力入力シートⅡ!BA207=\"\",\"\",+応募申請用入力入力シートⅡ!BA207)","v":""},{"$f":"IF(+応募申請用入力入力シートⅡ!BD207=\"\",\"\",+応募申請用入力入力シートⅡ!BD207)","v":""},{"$f":"IF(+応募申請用入力入力シートⅡ!BE214=\"\",\"\",+応募申請用入力入力シートⅡ!BE214)","v":""},{"$f":"IF(+応募申請用入力入力シートⅡ!$BC$208=\"買替\",応募申請用入力入力シートⅡ!BW217,\"\")","v":""},{"$f":"+IF(E15=\"\",\"\",応募申請用入力入力シートⅡ!BZ219)","v":""},{"$f":"IF(+応募申請用入力入力シートⅡ!BC208=\"増車\",応募申請用入力入力シートⅡ!CI217,\"\")","v":""},"",{"$f":"IF(+応募申請用入力入力シートⅡ!BC208=\"増車\",応募申請用入力入力シートⅡ!CP219,IF(応募申請用入力入力シートⅡ!BC208=\"買替\",応募申請用入力入力シートⅡ!CD219,\"\"))","v":""},""]
[7,{"$f":"IF(+応募申請用入力入力シートⅡ!BA235=\"\",\"\",+応募申請用入力入力シートⅡ!BA235)","v":""},{"$f":"IF(+応募申請用入力入力シートⅡ!BD235=\"\",\"\",応募申請用入力入力シートⅡ!BD235)","v":""},{"$f":"IF(+応募申請用入力入力シートⅡ!BE242=\"\",\"\",+応募申請用入力入力シートⅡ!BE242)","v":""},{"$f":"IF(+応募申請用入力入力シートⅡ!$BC$236=\"買替\",応募申請用入力入力シートⅡ!BW245,\"\")","v":""},{"$f":"+IF(E16=\"\",\"\",応募申請用入力入力シートⅡ!BZ247)","v":""},{"$f":"IF(+応募申請用入力入力シートⅡ!BC236=\"増車\",応募申請用入力入力シートⅡ!CI245,\"\")","v":""},"",{"$f":"IF(+応募申請用入力入力シートⅡ!BC236=\"増車\",応募申請用入力入力シートⅡ!CP247,IF(応募申請用入力入力シートⅡ!BC236=\"買替\",応募申請用入力入力シートⅡ!CD247,\"\"))","v":""},""]
[8,{"$f":"IF(+応募申請用入力入力シートⅡ!BA263=\"\",\"\",+応募申請用入力入力シートⅡ!BA263)","v":""},{"$f":"IF(+応募申請用入力入力シートⅡ!BD263=\"\",\"\",+応募申請用入力入力シートⅡ!BD263)","v":""},{"$f":"IF(+応募申請用入力入力シートⅡ!BE270=\"\",\"\",+応募申請用入力入力シートⅡ!BE270)","v":""},{"$f":"IF(+応募申請用入力入力シートⅡ!$BC$264=\"買替\",応募申請用入力入力シートⅡ!BW273,\"\")","v":""},{"$f":"+IF(E17=\"\",\"\",応募申請用入力入力シートⅡ!BZ275)","v":""},{"$f":"IF(+応募申請用入力入力シートⅡ!BC264=\"増車\",応募申請用入力入力シートⅡ!CI273,\"\")","v":""},"",{"$f":"IF(+応募申請用入力入力シートⅡ!BC264=\"増車\",応募申請用入力入力シートⅡ!CP275,IF(応募申請用入力入力シートⅡ!BC264=\"買替\",応募申請用入力入力シートⅡ!CD275,\"\"))","v":""},""]
[9,{"$f":"IF(+応募申請用入力入力シートⅡ!BA291=\"\",\"\",+応募申請用入力入力シートⅡ!BA291)","v":""},{"$f":"IF(+応募申請用入力入力シートⅡ!BD291=\"\",\"\",+応募申請用入力入力シートⅡ!BD291)","v":""},{"$f":"IF(+応募申請用入力入力シートⅡ!BE298=\"\",\"\",+応募申請用入力入力シートⅡ!BE298)","v":""},{"$f":"IF(+応募申請用入力入力シートⅡ!$BC$292=\"買替\",応募申請用入力入力シートⅡ!BW301,\"\")","v":""},{"$f":"+IF(E18=\"\",\"\",応募申請用入力入力シートⅡ!BZ303)","v":""},{"$f":"IF(+応募申請用入力入力シートⅡ!BC292=\"増車\",応募申請用入力入力シートⅡ!CI301,\"\")","v":""},"",{"$f":"IF(+応募申請用入力入力シートⅡ!BC292=\"増車\",応募申請用入力入力シートⅡ!CP303,IF(応募申請用入力入力シートⅡ!BC292=\"買替\",応募申請用入力入力シートⅡ!CD303,\"\"))","v":""},""]
[10,{"$f":"IF(+応募申請用入力入力シートⅡ!BA319=\"\",\"\",+応募申請用入力入力シートⅡ!BA319)","v":""},{"$f":"IF(+応募申請用入力入力シートⅡ!BD319=\"\",\"\",+応募申請用入力入力シートⅡ!BD319)","v":""},{"$f":"IF(+応募申請用入力入力シートⅡ!BE326=\"\",\"\",+応募申請用入力入力シートⅡ!BE326)","v":""},{"$f":"IF(+応募申請用入力入力シートⅡ!$BC$320=\"買替\",応募申請用入力入力シートⅡ!BW329,\"\")","v":""},{"$f":"+IF(E19=\"\",\"\",応募申請用入力入力シートⅡ!BZ331)","v":""},{"$f":"IF(+応募申請用入力入力シートⅡ!BC320=\"増車\",応募申請用入力入力シートⅡ!CI329,\"\")","v":""},"",{"$f":"IF(+応募申請用入力入力シートⅡ!BC320=\"増車\",応募申請用入力入力シートⅡ!CP331,IF(応募申請用入力入力シートⅡ!BC320=\"買替\",応募申請用入力入力シートⅡ!CD331,\"\"))","v":""},""]
[null,"大型",{"$f":"COUNTIFS($B$10:$B$19,\"大型\")","v":0},null,{"$f":"SUMIF($B$10:$B$19,$B$20,$E$10:$E$19)","v":0},null,{"$f":"SUMIF($B$10:$B$19,$B$20,$G$10:$G$19)","v":0},null,null,{"$f":"SUMIF($B$10:$B$19,B20,$J$10:$J$19)","v":0}]
[null,"中型",{"$f":"COUNTIFS($B$10:$B$19,\"中型\")","v":0},null,{"$f":"SUMIF($B$10:$B$19,$B$21,$E$10:$E$19)","v":0},null,{"$f":"SUMIF($B$10:$B$19,$B$21,$G$10:$G$19)","v":0},null,null,{"$f":"SUMIF($B$10:$B$19,B21,$J$10:$J$19)","v":0}]
[null,"小型",{"$f":"COUNTIFS($B$10:$B$19,\"小型\")","v":0},null,{"$f":"SUMIF($B$10:$B$19,$B$22,$E$10:$E$19)","v":0},null,{"$f":"SUMIF($B$10:$B$19,$B$22,$G$10:$G$19)","v":0},null,null,{"$f":"SUMIF($B$10:$B$19,B22,$J$10:$J$19)","v":0}]
[]
[null,null,"※旧車両の購入年が平成１０年～平成２９年以外の場合はお問い合わせください。"]
[]
[]
[]
[]
[]
[]
[]
[]
[]
[]
[]
[]
[]
[]
[]
[]
[]
[]
[]
[]
[]
[]
[]
[]
[]
[]
[]
[]
[]
[null,null,null,null,null,null,null,null,null,null,null,null,null,null,null,null,"年","消費者物価指数"]
[null,null,null,null,null,null,null,null,null,null,null,null,null,null,null,null,14,98.8]
[null,null,null,null,null,null,null,null,null,null,null,null,null,null,null,null,15,98.6]
[null,null,null,null,null,null,null,null,null,null,null,null,null,null,null,null,16,98.2]
[null,null,null,null,null,null,null,null,null,null,null,null,null,null,null,null,17,98.7]
[null,null,null,null,null,null,null,null,null,null,null,null,null,null,null,null,18,98.6]
[null,null,null,null,null,null,null,null,null,null,null,null,null,null,null,null,19,98.8]
[null,null,null,null,null,null,null,null,null,null,null,null,null,null,null,null,20,98.8]
[null,null,null,null,null,null,null,null,null,null,null,null,null,null,null,null,21,98]
[null,null,null,null,null,null,null,null,null,null,null,null,null,null,null,null,22,97.4]
[null,null,null,null,null,null,null,null,null,null,null,null,null,null,null,null,23,97.3]
[null,null,null,null,null,null,null,null,null,null,null,null,null,null,null,null,24,97.5]
[null,null,null,null,null,null,null,null,null,null,null,null,null,null,null,null,25,97.1]
[null,null,null,null,null,null,null,null,null,null,null,null,null,null,null,null,26,98.8]
[null,null,null,null,null,null,null,null,null,null,null,null,null,null,null,null,27,100]